Workbook

Sheet AMI Transitional Adjustment
A1: ='Tariff Compliance'!A1 -> Jemena
B3: 2009 | C3: 2010 | D3: 2011 | E3: 2012 | F3: 2013 | G3: 2014 | H3: 2015 | I3: 2016 | J3: 2017 | K3: 2018 | L3: 2019 | M3: 2020
A4: CPI | B4: Actual | C4: Actual | D4: Actual | E4: Actual | F4: Actual | G4: Actual | H4: Actual | I4: Actual | J4: Actual | K4: Forecast | L4: Forecast | M4: Forecast
A5: CPI increase | B5: ='Data 2009-15 (Real $2008)'!D$144 -> 0.04981084489 | C5: ='Data 2009-15 (Real $2008)'!E$144 -> 0.01261261261 | D5: ='Data 2009-15 (Real $2008)'!F$144 -> 0.02787663108 | E5: ='Data 2009-15 (Real $2008)'!G$144 -> 0.03519907675 | F5: ='Data 2009-15 (Real $2008)'!H$144 -> 0.02004008016 | G5: ='Data 2009-15 (Real $2008)'!I$144 -> 0.02161100196 | H5: ='Data 2009-15 (Real $2008)'!J$144 -> 0.02307692308 | I5: =108/106.4-1 -> 0.01503759398 | J5: =108.6/107.5-1 -> 0.01023255814 | K5: 0.02323079821 | L5: 0.02323079821 | M5: 0.02323079821
B8: =B$3 -> 2009 | C8: 2010 | D8: 2011 | E8: 2012 | F8: 2013 | G8: 2014 | H8: 2015 | I8: 2016 | J8: 2017 | K8: 2018 | L8: 2019 | M8: 2020
B9: Actual | C9: Actual | D9: Actual | E9: Actual | F9: Actual | G9: Actual | H9: Actual | I9: Actual | J9: Actual | K9: Forecast | L9: Forecast | M9: Forecast
A10: Vanilla' WACC (Real) | B10: ='AMI Building Blocks 2009-15'!$C$18 -> 0.06771645866 | C10: =B10 -> 0.06771645866 | D10: 0.06771645866 | E10: 0.06771645866 | F10: 0.06771645866 | G10: ='AMI Building Blocks 2009-15'!$I$18 -> 0.05023909437 | H10: =G10 -> 0.05023909437 | I10: 0.03959695909 | J10: 0.03899874743 | K10: 0.03899874743 | L10: 0.03899874743 | M10: 0.03899874743
A11: Vanilla' WACC (nominal) | B11: =(1+B10)*(1+B$5)-1 -> 0.1209003176 | C11: 0.08118315273 | D11: 0.09748079647 | E11: 0.1052990922 | F11: 0.08911358208 | G11: 0.0729358135 | H11: 0.07447538116 | I11: 0.05522999607 | J11: 0.04963036252 | K11: 0.06313551768 | L11: 0.06313551768 | M11: 0.06313551768
A13: Future value index | B13: =(1+B11)^0.5 -> 1.058725799 | C13: =B13*(C11+1) -> 1.144676497 | D13: 1.256260474 | E13: 1.388543561 | F13: 1.512281652 | G13: 1.622581145 | H13: 1.743423494 | I13: 1.839712767 | J13: 1.931018378 | K13: 2.052934223 | L13: =K13*(L11+1) -> 2.182547288 | M13: =L13*(M11+1) -> 2.320343541
A15: AMI Transitional Adjustment - Revenue and Costs 2009-2015
A16: Over \ (under) recovery of revenue and costs (000's)
A17: NPV at 1 January 2009 | B17: ='Tariff Compliance'!$J$17 -> 1152.528241
A19: AMI Transitional Adjustment in 2018 prices ($) | B19: =-B17*K13*10^3 -> -2366064.669
A22: AMI Transitional Adjustment - Revenue 2016-2020
A23: Increase \ (Reduction) in revenue 2016-2020 (000's)
A24: NPV at 1 January 2016 | B24: ='Opening RAB 2016'!C37*10^3 -> -4503.087938
A26: AMI Transitional Adjustment in 2018 prices ($) | B26: =B$24*K$13/$H$13*10^3 -> -5302523.093
A29: Total AMI Transitional Adjustment in 2018 prices ($) | B29: =SUM(B19,B26) -> -7668587.763
A30: The final amount will be subject to adjustment when the CPI and WACC are updated when DNSPs submit their 2018-2020 annual pricing proposals.
A33: Phased Transititional Adjustment | B33: 2018 | C33: =B33+1 -> 2019 | D33: =C33+1 -> 2020 | E33: Total
A34: Total AMI Transitional Adjustment in 2018 prices ($) | B34: =$B$29/COUNT($B$33:$D$33) -> -2556195.921 | C34: =$B$29/COUNT($B$33:$D$33) -> -2556195.921 | D34: -2556195.921 | E34: =SUM(B34:D34) -> -7668587.763
A35: Total AMI Transitional Adjustment in Nominal prices ($) | B35: =B34/($K13/K13) -> -2556195.921 | C35: =C34/($K13/L13) -> -2717582.674 | D35: -2889158.663 | E35: =SUM(B35:D35) -> -8162937.257

Sheet Opening RAB 2016
A1: ='Tariff Compliance'!A1 -> Jemena
A3: $m | B3: Final Decision RAB | I3: Actual RAB
A4: Asset Class Name | B4: Opening Asset Value | C4: Remaining Life | I4: Opening Asset Value | J4: Remaining Life
A5: Remotely read interval meters & transformers | B5: 84.37329886 | C5: 11.67485791 | I5: =D56 -> 82.79954951 | J5: =F56 -> 11.61892986
A6: IT | B6: 16.5072934 | C6: 4.961712714 | I6: =D57 -> 12.99073889 | J6: =F57 -> 4.640202911
A7: Communications | B7: 6.919992883 | C7: 4.753141757 | I7: 4.828547618 | J7: 4.436683524
A8: Other | B8: 12.06758003 | C8: 1.836171466 | I8: 13.86267116 | J8: 2.31060428
B9: =SUM(B5:B8) -> 119.8681652 | I9: =SUM(I5:I8) -> 114.4815072
B11: 2015 | C11: 2016 | D11: =C11+1 -> 2017 | E11: =D11+1 -> 2018 | F11: 2019 | G11: 2020 | I11: 2015 | J11: 2016 | K11: =J11+1 -> 2017 | L11: =K11+1 -> 2018 | M11: 2019 | N11: 2020
A12: Inflation Assumption (CPI % increase) | C12: 0.02323079821 | D12: 0.02323079821 | E12: 0.02323079821 | F12: 0.02323079821 | G12: 0.02323079821 | J12: =C12 -> 0.02323079821 | K12: =D12 -> 0.02323079821 | L12: 0.02323079821 | M12: 0.02323079821 | N12: 0.02323079821
A13: Cumulative Inflation Index (CPI end period) | B13: 1 | C13: =(1+C12) -> 1.023230798 | D13: =C13*(1+D12) -> 1.047001266 | E13: =D13*(1+E12) -> 1.071323942 | F13: =E13*(1+F12) -> 1.096211652 | G13: 1.121677524 | I13: 1 | J13: =(1+J12) -> 1.023230798 | K13: =J13*(1+K12) -> 1.047001266 | L13: =K13*(1+L12) -> 1.071323942 | M13: =L13*(1+M12) -> 1.096211652 | N13: =M13*(1+N12) -> 1.121677524
A15: Real Vanilla WACC | C15: ='AMI Transitional Adjustment'!I10 -> 0.03959695909 | D15: ='AMI Transitional Adjustment'!J10 -> 0.03899874743 | E15: ='AMI Transitional Adjustment'!K10 -> 0.03899874743 | F15: ='AMI Transitional Adjustment'!L10 -> 0.03899874743 | G15: ='AMI Transitional Adjustment'!M10 -> 0.03899874743
A16: Nominal Vanilla WACC | C16: =(1+C12)*(1+C15)-1 -> 0.06374762627 | D16: =(1+D12)*(1+D15)-1 -> 0.06313551768 | E16: 0.06313551768 | F16: 0.06313551768 | G16: 0.06313551768 | J16: =C16 -> 0.06374762627 | K16: =D16 -> 0.06313551768 | L16: 0.06313551768 | M16: 0.06313551768 | N16: 0.06313551768
A17: Discount factor | C17: =1/(1+C16) -> 0.940072603 | D17: =C17/(1+D16) -> 0.8842453172 | E17: =D17/(1+E16) -> 0.8317333985 | F17: =E17/(1+F16) -> 0.7823399601 | G17: =F17/(1+G16) -> 0.7358798075 | J17: =1/(1+J16) -> 0.940072603 | K17: =J17/(1+K16) -> 0.8842453172 | L17: =K17/(1+L16) -> 0.8317333985 | M17: =L17/(1+M16) -> 0.7823399601 | N17: =M17/(1+N16) -> 0.7358798075
A19: Real Straight-line Depreciation | C19: =SUM(C20:C23) -> 18.5818774 | D19: =SUM(D20:D23) -> 17.50517297 | E19: =SUM(E20:E23) -> 12.00973517 | F19: =SUM(F20:F23) -> 12.00973517 | G19: =SUM(G20:G23) -> 11.52296048 | J19: =SUM(J20:J23) -> 17.01377929 | K19: =SUM(K20:K23) -> 17.01377929 | L19: =SUM(L20:L23) -> 12.87768976 | M19: =SUM(M20:M23) -> 11.01419239 | N19: =SUM(N20:N23) -> 9.393831737
A20: Remotely read interval meters & transformers | C20: =MIN($B5/$C5,$B5-SUM($B20:B20)) -> 7.226922974 | D20: =MIN($B5/$C5,$B5-SUM($B20:C20)) -> 7.226922974 | E20: =MIN($B5/$C5,$B5-SUM($B20:D20)) -> 7.226922974 | F20: =MIN($B5/$C5,$B5-SUM($B20:E20)) -> 7.226922974 | G20: =MIN($B5/$C5,$B5-SUM($B20:F20)) -> 7.226922974 | J20: =MIN($I5/$J5,$I5-SUM($I20:I20)) -> 7.126262958 | K20: =MIN($I5/$J5,$I5-SUM($I20:J20)) -> 7.126262958 | L20: =MIN($I5/$J5,$I5-SUM($I20:K20)) -> 7.126262958 | M20: =MIN($I5/$J5,$I5-SUM($I20:L20)) -> 7.126262958 | N20: =MIN($I5/$J5,$I5-SUM($I20:M20)) -> 7.126262958
A21: IT | C21: =MIN($B6/$C6,$B6-SUM($B21:B21)) -> 3.32693454 | D21: =MIN($B6/$C6,$B6-SUM($B21:C21)) -> 3.32693454 | E21: =MIN($B6/$C6,$B6-SUM($B21:D21)) -> 3.32693454 | F21: =MIN($B6/$C6,$B6-SUM($B21:E21)) -> 3.32693454 | G21: =MIN($B6/$C6,$B6-SUM($B21:F21)) -> 3.199555245 | J21: =MIN($I6/$J6,$I6-SUM($I21:I21)) -> 2.79960578 | K21: =MIN($I6/$J6,$I6-SUM($I21:J21)) -> 2.79960578 | L21: =MIN($I6/$J6,$I6-SUM($I21:K21)) -> 2.79960578 | M21: =MIN($I6/$J6,$I6-SUM($I21:L21)) -> 2.79960578 | N21: =MIN($I6/$J6,$I6-SUM($I21:M21)) -> 1.79231577
A22: Communications | C22: =MIN($B7/$C7,$B7-SUM($B22:B22)) -> 1.455877657 | D22: =MIN($B7/$C7,$B7-SUM($B22:C22)) -> 1.455877657 | E22: =MIN($B7/$C7,$B7-SUM($B22:D22)) -> 1.455877657 | F22: =MIN($B7/$C7,$B7-SUM($B22:E22)) -> 1.455877657 | G22: =MIN($B7/$C7,$B7-SUM($B22:F22)) -> 1.096482257 | J22: =MIN($I7/$J7,$I7-SUM($I22:I22)) -> 1.088323652 | K22: =MIN($I7/$J7,$I7-SUM($I22:J22)) -> 1.088323652 | L22: =MIN($I7/$J7,$I7-SUM($I22:K22)) -> 1.088323652 | M22: =MIN($I7/$J7,$I7-SUM($I22:L22)) -> 1.088323652 | N22: =MIN($I7/$J7,$I7-SUM($I22:M22)) -> 0.4752530081
A23: Other | C23: =MIN($B8/$C8,$B8-SUM($B23:B23)) -> 6.572142231 | D23: =MIN($B8/$C8,$B8-SUM($B23:C23)) -> 5.495437804 | E23: =MIN($B8/$C8,$B8-SUM($B23:D23)) -> 0 | F23: =MIN($B8/$C8,$B8-SUM($B23:E23)) -> 0 | G23: =MIN($B8/$C8,$B8-SUM($B23:F23)) -> 0 | J23: =MIN($I8/$J8,$I8-SUM($I23:I23)) -> 5.999586896 | K23: =MIN($I8/$J8,$I8-SUM($I23:J23)) -> 5.999586896 | L23: =MIN($I8/$J8,$I8-SUM($I23:K23)) -> 1.863497367 | M23: =MIN($I8/$J8,$I8-SUM($I23:L23)) -> 0 | N23: =MIN($I8/$J8,$I8-SUM($I23:M23)) -> 0
A25: Inflation on Opening RAB | C25: =C29*C12 -> 2.784633157 | D25: =D29*D12 -> 2.407622482 | E25: =E29*E12 -> 2.037780839 | F25: =F29*F12 -> 1.786225305 | G25: =G29*G12 -> 1.521882369 | J25: =J29*J12 -> 2.659496792 | K25: =K29*K12 -> 2.316853526 | L25: =L29*L12 -> 1.956855256 | M25: =M29*M12 -> 1.681818354 | N25: =N29*N12 -> 1.440402326
A26: Nominal Straight-line Depreciation | C26: =C19*C13 -> 19.01354925 | D26: =D19*D13 -> 18.32793827 | E26: =E19*E13 -> 12.86631682 | F26: =F19*F13 -> 13.16521163 | G26: =G19*G13 -> 12.92504577 | J26: =J19*J13 -> 17.40902296 | K26: =K19*K13 -> 17.81344846 | L26: =L19*L13 -> 13.79617735 | M26: =M19*M13 -> 12.07388603 | N26: =N19*N13 -> 10.53684992
A27: Nominal Regulatory Depreciation | C27: =C26-C25 -> 16.22891609 | D27: =D26-D25 -> 15.92031579 | E27: 10.82853598 | F27: 11.37898633 | G27: 11.4031634 | J27: =J26-J25 -> 14.74952617 | K27: =K26-K25 -> 15.49659493 | L27: 11.83932209 | M27: 10.39206768 | N27: 9.096447592
A29: RAB (start period) | C29: =B9 -> 119.8681652 | D29: =C29-C27 -> 103.6392491 | E29: =D29-D27 -> 87.71893331 | F29: 76.89039732 | G29: 65.511411 | J29: =I9 -> 114.4815072 | K29: =J29-J27 -> 99.73198101 | L29: =K29-K27 -> 84.23538608 | M29: 72.39606398 | N29: 62.0039963
A31: Revenue | C31: =SUM(C32:C33) -> 23.87022708 | D31: =SUM(D32:D33) -> 22.46363343 | E31: =SUM(E32:E33) -> 16.36671625 | F31: =SUM(F32:F33) -> 16.23350136 | G31: =SUM(G32:G33) -> 15.53926025 | J31: =SUM(J32:J33) -> 22.0474505 | K31: =SUM(K32:K33) -> 21.79322518 | L31: =SUM(L32:L33) -> 17.1575668 | M31: =SUM(M32:M33) -> 14.96283066 | N31: =SUM(N32:N33) -> 13.011102
A32: Return on Capital | C32: =C29*C16 -> 7.641310996 | D32: =D29*D16 -> 6.543317643 | E32: =E29*E16 -> 5.538180264 | F32: =F29*F16 -> 4.854515039 | G32: =G29*G16 -> 4.136096847 | J32: =J29*J16 -> 7.297924334 | K32: =K29*K16 -> 6.29663025 | L32: =L29*L16 -> 5.318244707 | M32: =M29*M16 -> 4.570762977 | N32: =N29*N16 -> 3.914654405
A33: Return of Capital (regulatory depreciation) | C33: =C27 -> 16.22891609 | D33: =D27 -> 15.92031579 | E33: =E27 -> 10.82853598 | F33: =F27 -> 11.37898633 | G33: =G27 -> 11.4031634 | J33: =J27 -> 14.74952617 | K33: =K27 -> 15.49659493 | L33: =L27 -> 11.83932209 | M33: =M27 -> 10.39206768 | N33: =N27 -> 9.096447592
A35: NPV - Revenue 2016-2020 | C35: =SUMPRODUCT(C31:G31,C17:G17) -> 80.05099836 | J35: =SUMPRODUCT(J31:N31,J17:N17) -> 75.54791042
A37: Increase \ (Reduction) in revenue 2016-2020 | C37: =J35-C35 -> -4.503087938
B54: Opening RAB 2016 | H54: Opening Tax Value 2016
A55: Asset Categories | B55: ='AMI RAB 2009-15'!A19 -> ($000 Real 2008) | D55: ($m Dec 2015) | E55: Standard Life | F55: Remaining Life | H55: ($m Nominal) | I55: Tax Standard Life | J55: Tax Remaining Life
A56: ='AMI RAB 2009-15'!A38 -> Remotely read interval meters & transformers | B56: ='AMI RAB 2009-15'!K40 -> 68088.97769 | D56: =B56*$I$66/10^3 -> 82.79954951 | E56: ='Data 2009-15 (Real $2008)'!C12 -> 15 | F56: =F87 -> 11.61892986 | H56: ='AMI Tax Depn 2009-15'!K24/10^3 -> 24.89899274 | I56: 15 | J56: =I56*F56/E56 -> 11.61892986
A57: ='AMI RAB 2009-15'!A48 -> IT | B57: ='AMI RAB 2009-15'!K50 -> 10682.74086 | D57: =B57*$I$66/10^3 -> 12.99073889 | E57: ='Data 2009-15 (Real $2008)'!C13 -> 7 | F57: =F101 -> 4.640202911 | H57: ='AMI Tax Depn 2009-15'!K36/10^3 -> 8.390106273 | I57: 3 | J57: =I57*F57/E57 -> 1.98865839
A58: ='AMI RAB 2009-15'!A58 -> Communications | B58: ='AMI RAB 2009-15'!K60 -> 3970.684297 | D58: 4.828547618 | E58: ='Data 2009-15 (Real $2008)'!C14 -> 7 | F58: =F115 -> 4.436683524 | H58: ='AMI Tax Depn 2009-15'!K42/10^3 -> 4.103530361 | I58: 3 | J58: 1.901435796
A59: ='AMI RAB 2009-15'!A68 -> Other | B59: ='AMI RAB 2009-15'!K70 -> 11399.76139 | D59: 13.86267116 | E59: ='Data 2009-15 (Real $2008)'!C15 -> 7 | F59: =F129 -> 2.31060428 | H59: ='AMI Tax Depn 2009-15'!K48/10^3 -> 25.5317183 | I59: 7 | J59: 2.31060428
B60: =SUM(B56:B59) -> 94142.16423 | D60: =SUM(D56:D59) -> 114.4815072 | H60: =SUM(H56:H59) -> 62.92434767
B63: ='Data 2009-15 (Real $2008)'!D142 -> 2009 | C63: ='Data 2009-15 (Real $2008)'!E142 -> 2010 | D63: ='Data 2009-15 (Real $2008)'!F142 -> 2011 | E63: ='Data 2009-15 (Real $2008)'!G142 -> 2012 | F63: ='Data 2009-15 (Real $2008)'!H142 -> 2013 | G63: ='Data 2009-15 (Real $2008)'!I142 -> 2014 | H63: ='Data 2009-15 (Real $2008)'!J142 -> 2015 | I63: 2015-12-01
A64: Inflation | B64: ='Data 2009-15 (Real $2008)'!D143 -> Actual | C64: ='Data 2009-15 (Real $2008)'!E143 -> Actual | D64: ='Data 2009-15 (Real $2008)'!F143 -> Actual | E64: ='Data 2009-15 (Real $2008)'!G143 -> Actual | F64: ='Data 2009-15 (Real $2008)'!H143 -> Actual | G64: ='Data 2009-15 (Real $2008)'!I143 -> Actual | H64: ='Data 2009-15 (Real $2008)'!J143 -> Actual | I64: Actual | J64: CPI : All groups – weighted average of eight capital cities
A65: CPI increase | B65: ='Data 2009-15 (Real $2008)'!D144 -> 0.04981084489 | C65: ='Data 2009-15 (Real $2008)'!E144 -> 0.01261261261 | D65: ='Data 2009-15 (Real $2008)'!F144 -> 0.02787663108 | E65: ='Data 2009-15 (Real $2008)'!G144 -> 0.03519907675 | F65: ='Data 2009-15 (Real $2008)'!H144 -> 0.02004008016 | G65: ='Data 2009-15 (Real $2008)'!I144 -> 0.02161100196 | H65: ='Data 2009-15 (Real $2008)'!J144 -> 0.02307692308 | I65: =J66/J65-1 -> 0.008372093023 | J65: 107.5 | K65: 2015-06-30
A66: CPI Index | B66: =1+B65 -> 1.049810845 | C66: =B66*(1+C65) -> 1.063051702 | D66: 1.092686003 | E66: 1.131147541 | F66: 1.153815828 | G66: 1.178750945 | H66: 1.205952889 | I66: 1.216049239 | J66: 108.4 | K66: 2015-12-31
A69: Tax Losses
A70: ($m Nominal) | B70: 2016
A71: ='AMI Building Blocks 2009-15'!A56 -> Tax losses brought forward | B71: ='AMI Building Blocks 2009-15'!J57/10^3 -> 3.237196722
A74: RAB Remaining Lives
A75: Check | B75: =SUM(G87,G101,G115,G129) -> 2.955857781e-11
A76: =A56 -> Remotely read interval meters & transformers
A77: Standard Life | B77: =E56 -> 15 | D77: ($000 Real 2008)
E78: Closing Asset | F78: Weighted Avg
B79: Year | C79: Depn Factor | D79: Net Capex | E79: Value | F79: Remaining Life | G79: Check
B80: 2009 | C80: =C81+1 -> 6.5 | D80: ='AMI RAB 2009-15'!B215 -> 4428.868876 | E80: =D80*F80/B77 -> 2509.692363 | F80: =B77-C80 -> 8.5
B81: =B80+1 -> 2010 | C81: 5.5 | D81: ='AMI RAB 2009-15'!E$41 -> 9762.509177 | E81: =D81*F81/B77 -> 6182.922479 | F81: =B77-C81 -> 9.5
B82: =B81+1 -> 2011 | C82: 4.5 | D82: ='AMI RAB 2009-15'!F$41 -> 16751.71855 | E82: =D82*F82/B77 -> 11726.20299 | F82: =B77-C82 -> 10.5
B83: 2012 | C83: 3.5 | D83: ='AMI RAB 2009-15'!G$41 -> 20987.76163 | E83: =D83*F83/B77 -> 16090.61725 | F83: =B77-C83 -> 11.5
B84: 2013 | C84: 2.5 | D84: ='AMI RAB 2009-15'!H$41 -> 28372.00658 | E84: =D84*F84/B77 -> 23643.33882 | F84: =B77-C84 -> 12.5
B85: 2014 | C85: =C86+1 -> 1.5 | D85: ='AMI RAB 2009-15'!I$41 -> 8592.235826 | E85: =D85*F85/B77 -> 7733.012243 | F85: =B77-C85 -> 13.5
B86: 2015 | C86: 0.5 | D86: ='AMI RAB 2009-15'!J$41 -> 210.198153 | E86: =D86*F86/B77 -> 203.1915479 | F86: =B77-C86 -> 14.5
E87: =SUM(E80:E86) -> 68088.97769 | F87: =IF(E87=0,0,SUMPRODUCT(F80:F86,E80:E86)/E87) -> 11.61892986 | G87: =ABS(B56-E87) -> 1.455191523e-11
A90: =A57 -> IT
A91: Standard Life | B91: =E57 -> 7 | D91: ($000 Real 2008)
E92: Closing Asset | F92: Weighted Avg
B93: Year | C93: Depn Factor | D93: Net Capex | E93: Value | F93: Remaining Life | G93: Check
B94: 2009 | C94: =C95+1 -> 6.5 | D94: ='AMI RAB 2009-15'!B227 -> 24464.59428 | E94: =D94*F94/B91 -> 1747.47102 | F94: =B91-C94 -> 0.5
B95: =B94+1 -> 2010 | C95: 5.5 | D95: ='AMI RAB 2009-15'!B228 -> 4782.097605 | E95: =D95*F95/B91 -> 1024.735201 | F95: =B91-C95 -> 1.5
B96: =B95+1 -> 2011 | C96: 4.5 | D96: ='AMI RAB 2009-15'!B229 -> 261.6640657 | E96: =D96*F96/B91 -> 93.45145205 | F96: =B91-C96 -> 2.5
B97: 2012 | C97: 3.5 | D97: ='AMI RAB 2009-15'!B230 -> 441.2087563 | E97: =D97*F97/B91 -> 220.6043782 | F97: =B91-C97 -> 3.5
B98: 2013 | C98: 2.5 | D98: ='AMI RAB 2009-15'!B231 -> 717.8564028 | E98: =D98*F98/B91 -> 461.4791161 | F98: =B91-C98 -> 4.5
B99: 2014 | C99: =C100+1 -> 1.5 | D99: ='AMI RAB 2009-15'!B232 -> 2928.101331 | E99: =D99*F99/B91 -> 2300.651046 | F99: =B91-C99 -> 5.5
B100: 2015 | C100: 0.5 | D100: ='AMI RAB 2009-15'!B233 -> 5206.221616 | E100: =D100*F100/B91 -> 4834.348643 | F100: =B91-C100 -> 6.5
E101: =SUM(E94:E100) -> 10682.74086 | F101: =IF(E101=0,0,SUMPRODUCT(F94:F100,E94:E100)/E101) -> 4.640202911 | G101: =ABS(B57-E101) -> 9.094947018e-12
A104: =A58 -> Communications
A105: Standard Life | B105: =E58 -> 7 | D105: ($000 Real 2008)
E106: Closing Asset | F106: Weighted Avg
B107: Year | C107: Depn Factor | D107: Net Capex | E107: Value | F107: Remaining Life | G107: Check
B108: 2009 | C108: =C109+1 -> 6.5 | D108: ='AMI RAB 2009-15'!B239 -> 128.7232012 | E108: =D108*F108/B105 -> 9.194514369 | F108: =B105-C108 -> 0.5
B109: =B108+1 -> 2010 | C109: 5.5 | D109: ='AMI RAB 2009-15'!B240 -> 325.7188707 | E109: =D109*F109/B105 -> 69.79690086 | F109: =B105-C109 -> 1.5
B110: =B109+1 -> 2011 | C110: 4.5 | D110: ='AMI RAB 2009-15'!B241 -> 1089.216376 | E110: =D110*F110/B105 -> 389.0058486 | F110: =B105-C110 -> 2.5
B111: 2012 | C111: 3.5 | D111: ='AMI RAB 2009-15'!B242 -> 1505.97825 | E111: =D111*F111/B105 -> 752.9891249 | F111: =B105-C111 -> 3.5
B112: 2013 | C112: 2.5 | D112: ='AMI RAB 2009-15'!B243 -> 2723.250681 | E112: =D112*F112/B105 -> 1750.661152 | F112: =B105-C112 -> 4.5
B113: 2014 | C113: =C114+1 -> 1.5 | D113: ='AMI RAB 2009-15'!B244 -> 601.1264833 | E113: =D113*F113/B105 -> 472.3136655 | F113: =B105-C113 -> 5.5
B114: 2015 | C114: 0.5 | D114: ='AMI RAB 2009-15'!B245 -> 567.2402513 | E114: =D114*F114/B105 -> 526.7230905 | F114: =B105-C114 -> 6.5
E115: =SUM(E108:E114) -> 3970.684297 | F115: =IF(E115=0,0,SUMPRODUCT(F108:F114,E108:E114)/E115) -> 4.436683524 | G115: =ABS(B58-E115) -> 4.547473509e-13
A118: =A59 -> Other
A119: Standard Life | B119: =E59 -> 7 | D119: ($000 Real 2008)
E120: Closing Asset | F120: Weighted Avg
B121: Year | C121: Depn Factor | D121: Net Capex | E121: Value | F121: Remaining Life | G121: Check
B122: 2009 | C122: =C123+1 -> 6.5 | D122: ='AMI RAB 2009-15'!B251 -> 28717.44025 | E122: =D122*F122/B119 -> 2051.245732 | F122: =B119-C122 -> 0.5
B123: =B122+1 -> 2010 | C123: 5.5 | D123: ='AMI RAB 2009-15'!B252 -> 19600.34207 | E123: =D123*F123/B119 -> 4200.0733 | F123: =B119-C123 -> 1.5
B124: =B123+1 -> 2011 | C124: 4.5 | D124: ='AMI RAB 2009-15'!B253 -> 6178.002632 | E124: =D124*F124/B119 -> 2206.429512 | F124: =B119-C124 -> 2.5
B125: 2012 | C125: 3.5 | D125: ='AMI RAB 2009-15'!B254 -> 2433.386834 | E125: =D125*F125/B119 -> 1216.693417 | F125: =B119-C125 -> 3.5
B126: 2013 | C126: 2.5 | D126: ='AMI RAB 2009-15'!B255 -> 387.5712475 | E126: =D126*F126/B119 -> 249.1529448 | F126: =B119-C126 -> 4.5
B127: 2014 | C127: =C128+1 -> 1.5 | D127: ='AMI RAB 2009-15'!B256 -> 1878.757338 | E127: =D127*F127/B119 -> 1476.16648 | F127: =B119-C127 -> 5.5
B128: 2015 | C128: 0.5 | D128: ='AMI RAB 2009-15'!B257 -> 0 | E128: =D128*F128/B119 -> 0 | F128: =B119-C128 -> 6.5
E129: =SUM(E122:E128) -> 11399.76139 | F129: =IF(E129=0,0,SUMPRODUCT(F122:F128,E122:E128)/E129) -> 2.31060428 | G129: =ABS(B59-E129) -> 5.456968211e-12

Sheet Tariff Compliance
A1: ='Data 2006-08'!$A$1 -> Jemena | E1: Global Check | F1: =IF(SUM('AMI RAB 2009-15'!C2,'AMI Tax Depn 2009-15'!C2,'AMI Building Blocks 2009-15'!D1,'Data 2006-08'!D1)<0.001,"Ok","Error") -> Ok
A3: ($000 Nominal) | D3: 2009 | E3: 2010 | F3: 2011 | G3: 2012 | H3: 2013 | I3: 2014 | J3: 2015
A4: AMI Building Blocks Costs 2009-11 | D4: ='AMI Building Blocks 2009-15'!D34 -> 22620.1115 | E4: ='AMI Building Blocks 2009-15'!E34 -> 34422.02894 | F4: ='AMI Building Blocks 2009-15'!F34 -> 47160.62773 | G4: ='AMI Building Blocks 2009-15'!G34 -> 54985.93606 | H4: ='AMI Building Blocks 2009-15'!H34 -> 58953.4085 | I4: ='AMI Building Blocks 2009-15'!I34 -> 53974.67228 | J4: ='AMI Building Blocks 2009-15'!J34 -> 51292.43967
A5: Offset of costs and revenue 2006-08 | D5: ='Offset of Costs and Rev 2006-08'!G20 -> 7605.472915
A6: Total costs | D6: =SUM(D4:D5) -> 30225.58442 | E6: 34422.02894 | F6: 47160.62773 | G6: 54985.93606 | H6: 58953.4085 | I6: 53974.67228 | J6: 51292.43967
A8: Tariff Revenue | D8: ='Data 2009-15 (Real $2008)'!D60/10^3 -> 10895.11605 | E8: ='Data 2009-15 (Real $2008)'!E60/10^3 -> 42364.00881 | F8: ='Data 2009-15 (Real $2008)'!F60/10^3 -> 43546.35275 | G8: ='Data 2009-15 (Real $2008)'!G60/10^3 -> 49513.13864 | H8: ='Data 2009-15 (Real $2008)'!H60/10^3 -> 56528.76832 | I8: ='Data 2009-15 (Real $2008)'!I60/10^3 -> 64349.87542 | J8: ='Data 2009-15 (Real $2008)'!J60/10^3 -> 76572.12493
A10: ='AMI Building Blocks 2009-15'!A19 -> Vanilla' after tax WACC (nominal) | D10: ='AMI Building Blocks 2009-15'!D24 -> 0.1209003176 | E10: ='AMI Building Blocks 2009-15'!E24 -> 0.08118315273 | F10: ='AMI Building Blocks 2009-15'!F24 -> 0.09748079647 | G10: ='AMI Building Blocks 2009-15'!G24 -> 0.1052990922 | H10: ='AMI Building Blocks 2009-15'!H24 -> 0.08911358208 | I10: ='AMI Building Blocks 2009-15'!I24 -> 0.0729358135 | J10: ='AMI Building Blocks 2009-15'!J24 -> 0.07447538116
A11: Discount factor | D11: =1/(1+D10)*(1+D10)^(0.5) -> 0.9445316256 | E11: =D11/(1+E10) -> 0.8736092707 | F11: 0.7960132638 | G11: 0.7201790623 | H11: 0.6612524847 | I11: 0.6163019972 | J11: 0.5735841025
A13: NPV Costs | D13: =D6*D$11 -> 28549.02038 | E13: 30071.4036 | F13: 37540.4852 | G13: 39599.71987 | H13: 38983.08785 | I13: 33264.69832 | J13: 29420.52797
A15: NPV Revenue | D15: =D8*D$11 -> 10290.78167 | E15: 37009.59084 | F15: 34663.47437 | G15: 35658.32575 | H15: 37379.78851 | I15: 39658.95674 | J15: 43920.55355
A17: Over\(Under) recovery of costs | E17: =SUM($D15:E15)-SUM($D13:E13) -> -11320.05147 | F17: =SUM($D15:F15)-SUM($D13:F13) -> -14197.0623 | G17: =SUM($D15:G15)-SUM($D13:G13) -> -18138.45641 | H17: =SUM($D15:H15)-SUM($D13:H13) -> -19741.75576 | I17: =SUM($D15:I15)-SUM($D13:I13) -> -13347.49734 | J17: =SUM($D15:J15)-SUM($D13:J13) -> 1152.528241
A19: Proposed Tariffs | E19: =IF(E17>0,"Non Compliant","Compliant") -> Compliant | F19: Compliant | G19: Compliant | H19: Compliant | I19: Compliant | J19: Non Compliant

Sheet Data 2006-08
A1: ='IMRO Decision 2006-10'!A1 -> Jemena | B1: Check | C1: =IF(SUM(C201)<0.001,"Ok","Error") -> Ok | D1: =C201 -> 0
A3: NOMINAL INPUTS
A5: IMRO - DATA INPUTS
A6: Only include prescribed metering services costs under the current Price Determination 1/1/2006 to 31/12/2008.
C8: Regulatory | D8: 2006 | E8: 2007 | F8: 2008
A9: GROSS CAPITAL EXPENDITURE | C9: Life (years) | D9: Actual Capex Nominal $
A10: =A$161 -> Accumulation Meters | C10: =C161 -> 40 | D10: 4886139.745 | E10: 3776077.964 | F10: 3977207.623
A11: =A$162 -> Manually read interval meters | C11: =C162 -> 10 | D11: 395808 | E11: 150935.0321 | F11: 158974.4613
A12: =A$163 -> Metering Data Services (IT) | C12: =C163 -> 5 | D12: 0 | E12: 0 | F12: 0
A13: =A$164 -> Metering Data Services (Other) | C13: =C164 -> 5 | D13: 0 | E13: 0 | F13: 0
A14: Total | D14: =SUM(D10:D13) -> 5281947.745 | E14: =SUM(E10:E13) -> 3927012.996 | F14: =SUM(F10:F13) -> 4136182.084
C17: Declining Balance | D17: 2006 | E17: 2007 | F17: 2008
A18: Capital Expenditure by Taxation Category | C18: Tax Depn rate | D18: Nominal $
A19: =A$176 -> Standard metering (Group 1) (Unit cost < $1,000) | C19: =C176 -> 0.375 | D19: =SUM(D10:D11)-D20 -> 5281947.745 | E19: =SUM(E10:E11)-E20 -> 3927012.996 | F19: =SUM(F10:F11)-F20 -> 4136182.084
A20: =A$177 -> Standard metering (Group 2) (Unit cost => $1,000) | C20: =C177 -> 0.06 | D20: 0 | E20: 0 | F20: 0
A21: =A$178 -> IT | C21: =C178 -> 0.4 | D21: =D12 -> 0 | E21: 0 | F21: 0
A22: =A$179 -> Other | C22: =C179 -> 0.1764705882 | D22: 0 | E22: 0 | F22: 0
A23: Total | D23: =SUM(D19:D22) -> 5281947.745 | E23: =SUM(E19:E22) -> 3927012.996 | F23: =SUM(F19:F22) -> 4136182.084
D26: 2006 | E26: 2007 | F26: 2008
A27: Customer Contributions and Disposals | D27: Nominal $ | F27: F'cast $2007 Real
A28: Customer Contributions | D28: 0 | E28: 0 | F28: 0
A29: Disposals - proceeds from sale of assets | D29: 0 | E29: 0 | F29: 0
A32: Regulatory Depreciation : 2009-13
A33: Accumulation meters and manually read interval meters | C33: Year
A34: depreciated by end of | C34: 2013
D37: 2006 | E37: 2007 | F37: 2008
A38: O & M Expenditure | D38: Actual O & M Nominal $
A39: Maintenance costs
A40: Standard metering (accumulation meters and interval meters) | C40: Included in ECM | D40: 480000 | E40: 397789 | F40: 522383
A41: Metering data services (IT related) | C41: Excluded from ECM | D41: 2406405 | E41: 3369242 | F41: 3831095
A42: Total | D42: =SUM(D40:D41) -> 2886405 | E42: =SUM(E40:E41) -> 3767031 | F42: =SUM(F40:F41) -> 4353478
A44: Operating costs
A45: Metering data services | C45: Included in ECM | D45: 1015877.2 | E45: 1421583.275 | F45: 1616244
A46: Customer services (meter replacements) | C46: Included in ECM | D46: 0 | E46: 0 | F46: 0
A47: Indirect Overheads | C47: Excluded from ECM | D47: 517344.8 | E47: 724698.7254 | F47: 824062
A48: Total | D48: =SUM(D45:D47) -> 1533222 | E48: =SUM(E45:E47) -> 2146282 | F48: =SUM(F45:F47) -> 2440306
A50: TOTAL O&M Expenditure | D50: =SUM(D42,D48) -> 4419627 | E50: =SUM(E42,E48) -> 5913313 | F50: =SUM(F42,F48) -> 6793784
A51: Customer services (meter replacements) Capitalised % | D51: 1 | E51: 1 | F51: 1
A53: Total O&M included in Efficiency Carry-over Mechanism (ECM) | D53: =SUM(D40,D45:D46) -> 1495877.2 | E53: =SUM(E40,E45:E46) -> 1819372.275 | F53: =SUM(F40,F45:F46) -> 2138627
A56: Efficiency Carry-over : Actual Quantities | D56: 2006 | E56: 2007 | F56: 2008
D57: Actual Quantities
A58: Meter Maintenance
A59: - Number of customers with meters | D59: 284672 | E59: 292765 | F59: 298686
A61: Metering data services
A62: - Meter reading per cycle :
A63: Number of meters read monthly - accumulation | D63: 4289 | E63: 4411 | F63: 4500
A64: Number of meters read quarterly - accumulation | D64: 287045 | E64: 295206 | F64: 301176
A65: Number of meters read monthly - interval | D65: 967 | E65: 995 | F65: 1015
A66: Number of meters read quarterly - interval | D66: 1705 | E66: 1754 | F66: 1789
A68: Meter replacement costs (customer service costs)
A69: - Meter replacement installations | D69: 9548 | E69: 8372 | F69: 9885
A73: TARIFF REVENUE | D73: 2006 | E73: 2007 | F73: 2008
D74: Actual Tariff Revenue Nominal $
A75: Actual Tariff Revenue | D75: 5642414 | E75: 7072768 | F75: 8841231.851
A79: Pre Start Date Costs (AMI Only)
D81: 2006 | E81: 2007 | F81: 2008
A82: GROSS CAPITAL EXPENDITURE | C82: Regulatory | D82: Actual Capex Nominal $
C83: Life (years)
A84: ='Data 2009-15 (Real $2008)'!A$154 -> Remotely read interval meters & transformers | C84: ='Data 2009-15 (Real $2008)'!C154 -> 15 | D84: 0 | E84: 0 | F84: 0
A85: IT | C85: ='Data 2009-15 (Real $2008)'!C155 -> 7 | D85: 0 | E85: 0 | F85: 2905326.44
A86: Communications | C86: ='Data 2009-15 (Real $2008)'!C156 -> 7 | D86: 0 | E86: 0 | F86: 0
A87: Other | C87: ='Data 2009-15 (Real $2008)'!C157 -> 7 | D87: 0 | E87: 1051789 | F87: 12918736.56
A88: Total | D88: =SUM(D84:D87) -> 0 | E88: =SUM(E84:E87) -> 1051789 | F88: =SUM(F84:F87) -> 15824063
D91: 2006 | E91: 2007 | F91: 2008
C92: Declining Balance | D92: Actual Capex Nominal $
A93: Capital Expenditure by Taxation Category | C93: Tax Depn rate
A94: ='Data 2009-15 (Real $2008)'!A$162 -> Meters and transformers (Group 1) (Unit cost < $1,000) | C94: ='Data 2009-15 (Real $2008)'!C162 -> 0.375 | D94: =D84-D95 -> 0 | E94: =E84-E95 -> 0 | F94: =F84-F95 -> 0
A95: ='Data 2009-15 (Real $2008)'!A$163 -> Meters and transformers (Group 2) (Unit cost => $1,000) | C95: ='Data 2009-15 (Real $2008)'!C163 -> 0.06 | D95: 0 | E95: 0 | F95: 0
A96: ='Data 2009-15 (Real $2008)'!A$164 -> IT | C96: ='Data 2009-15 (Real $2008)'!C164 -> 0.4 | D96: =D85 -> 0 | E96: 0 | F96: 2905326.44
A97: ='Data 2009-15 (Real $2008)'!A$165 -> Communications | C97: ='Data 2009-15 (Real $2008)'!C165 -> 0.2142857143 | D97: 0 | E97: 0 | F97: 0
A98: ='Data 2009-15 (Real $2008)'!A$166 -> Other | C98: ='Data 2009-15 (Real $2008)'!C166 -> 0.1764705882 | D98: 0 | E98: 1051789 | F98: 12918736.56
A99: Total | D99: =SUM(D93:D98) -> 0 | E99: =SUM(E93:E98) -> 1051789 | F99: =SUM(F93:F98) -> 15824063
D102: 2006 | E102: 2007 | F102: 2008
A103: OPERATING & MAINTENANCE EXPENDITURE | D103: Actual O & M Nominal $
A105: Telecommunications systems - WAN / 'Backhaul' | D105: 0 | E105: 0 | F105: 0
A106: IT systems | D106: 0 | E106: 0 | F106: 0
A107: Technology trials | D107: 0 | E107: 0 | F107: 0
A108: Customer response trials | D108: 0 | E108: 0 | F108: 0
A109: Project management including training and project office | D109: 0 | E109: 0 | F109: 0
A110: Customer service costs | D110: 0 | E110: 0 | F110: 0
A111: Other costs of provision of reg. services | D111: 0 | E111: 0 | F111: 0
A112: Indirect costs | D112: 0 | E112: 0 | F112: 0
A113: Funding: - Equity raising | D113: 0 | E113: 0 | F113: 0
A114: - Interest and exchange rate hedging costs | D114: 0 | E114: 0 | F114: 0
A115: Total | D115: =SUM(D105:D114) -> 0 | E115: =SUM(E105:E114) -> 0 | F115: =SUM(F105:F112) -> 0
A118: Total Pre Start Date Costs (AMI Only) | D118: =SUM(D88,D115) -> 0 | E118: =SUM(E88,E115) -> 1051789 | F118: =SUM(F88,F115) -> 15824063
A124: AER INPUTS
A126: WEIGHTED AVERAGE COST OF CAPITAL (WACC) : EDPR 2006-10
A128: Risk free rate (real) | C128: 0.0264
A129: Debt premium | C129: 0.01425
A130: Equity premium | C130: 0.06
A131: Equity beta | C131: 1
A132: Franking credit value | C132: 0.5
A133: Gearing (debt/assets) | C133: 0.6
A134: Forecast inflation | C134: 0.0256
A136: After tax cost of equity (real) | C136: =C128+C131*C130 -> 0.0864
A137: After tax cost of equity (nominal) | C137: =(1+C136)*(1+C134)-1 -> 0.11421184
A138: Cost of debt (real) | C138: =C128+C129 -> 0.04065
A139: Cost of debt (nominal) | C139: =(1+C138)*(1+C134)-1 -> 0.06729064
A141: 'Vanilla' after tax WACC (real) | C141: =ROUND((C136*(1-C133))+(C138*C133),3) -> 0.059
A144: Actual CPI | C144: CPI Index | F144: Annual CPI
C145: 2002-09-30 | D145: 138.5
C146: 2003-09-30 | D146: 142.1 | F146: =D146/D145-1 -> 0.02599277978
C147: 2004-09-30 | D147: 145.4 | F147: 0.02322308234
C148: 2005-09-30 | D148: 149.8 | F148: 0.03026134801
C149: 2006-09-30 | D149: 155.7 | F149: 0.0393858478
C150: 2007-09-30 | D150: 158.6 | F150: 0.01862556198
C151: 2008-09-30 | D151: 166.5 | F151: 0.04981084489
B153: 2004 | C153: =B153+1 -> 2005 | D153: =C153+1 -> 2006 | E153: =D153+1 -> 2007 | F153: =E153+1 -> 2008
A155: CPI p.a. | B155: =F146 -> 0.02599277978 | C155: =F147 -> 0.02322308234 | D155: =F148 -> 0.03026134801 | E155: =F149 -> 0.0393858478 | F155: =F150 -> 0.01862556198
A156: Escalator : Nominal $ to Real $ 2008 | B156: =C156*(1+C155) -> 1.116115412 | C156: =D156*(1+D155) -> 1.090784044 | D156: =E156*(1+E155) -> 1.058744993 | E156: =F156*(1+F155) -> 1.018625562 | F156: 1
A159: Regulatory Depreciation Lives : EDPR 2006-10 | C159: Regulatory
C160: Life (years)
A161: Accumulation Meters | C161: ='IMRO Decision 2006-10'!D190 -> 40
A162: Manually read interval meters | C162: ='IMRO Decision 2006-10'!D191 -> 10
A163: Metering Data Services (IT) | C163: ='IMRO Decision 2006-10'!D192 -> 5
A164: Metering Data Services (Other) | C164: ='IMRO Decision 2006-10'!D193 -> 5
A167: BENCHMARK TAX RELATED INPUTS : EDPR 2006-10
A169: Company income tax rate | C169: 0.3
A170: Franking credit value | C170: =C132 -> 0.5
A171: Gearing (debt/assets) | C171: =C133 -> 0.6
A174: Tax Depreciation Rates
A175: Declining Balance
A176: Standard metering (Group 1) (Unit cost < $1,000) | C176: 0.375
A177: Standard metering (Group 2) (Unit cost => $1,000) | C177: 0.06
A178: IT | C178: 0.4
A179: Other | C179: 0.1764705882
A182: DUOS TAX OFFSET : EDPR 2006-10
D183: 2006 | E183: 2007 | F183: 2008 | G183: 2009 | H183: 2010
A184: Metering Taxable profit/(loss) ($MOD) | D184: ='IMRO Decision 2006-10'!D41*10^6 -> -668211.9556 | E184: ='IMRO Decision 2006-10'!E41*10^6 -> -2535881.439 | F184: ='IMRO Decision 2006-10'!F41*10^6 -> -2980902.038 | G184: ='IMRO Decision 2006-10'!G41*10^6 -> -3060280.682 | H184: ='IMRO Decision 2006-10'!H41*10^6 -> -2292345.945
A185: Inflation factor | D185: ='IMRO Decision 2006-10'!D71 -> 1.051098343 | E185: ='IMRO Decision 2006-10'!E71 -> 1.07800646 | F185: ='IMRO Decision 2006-10'!F71 -> 1.105603425 | G185: ='IMRO Decision 2006-10'!G71 -> 1.133906873 | H185: ='IMRO Decision 2006-10'!H71 -> 1.162934889
A187: Efficiency Carry-over : EDPR 2006-10
A188: O & M EXPENDITURE BENCHMARKS (Real 2004 $) | D188: 2006 | E188: 2007 | F188: 2008
A189: O & M Expenditure included in Efficiency Carry-over
A190: Maintenance cost - Accumulation and Interval meters | D190: =D205*D218 -> 603000 | E190: =E205*E218 -> 638000 | F190: =F205*F218 -> 674000
A191: Operating cost - Metering data services | D191: =((D208*12+D210)*D222+(D208*4+D210)*D223)+((D209*12+D211)*D224+(D209*4+D211)*D225) -> 2621095 | E191: =((E208*12+E210)*E222+(E208*4+E210)*E223)+((E209*12+E211)*E224+(E209*4+E211)*E225) -> 2710361.9 | F191: =((F208*12+F210)*F222+(F208*4+F210)*F223)+((F209*12+F211)*F224+(F209*4+F211)*F225) -> 2936585.2
A192: Operating cost - Customer services (meter replacements) | D192: =D213*D228 -> 238695 | E192: =E213*E228 -> 188775 | F192: =F213*F228 -> 345570
A193: Total O & M included in Efficiency Carry-over | D193: =SUM(D190:D192) -> 3462790 | E193: =SUM(E190:E192) -> 3537136.9 | F193: =SUM(F190:F192) -> 3956155.2
A195: O & M Expenditure not included in Efficiency Carry-over
A196: Maintenance costs - Metering data services (IT related) | D196: ='IMRO Decision 2006-10'!D105*10^3 -> 420000 | E196: ='IMRO Decision 2006-10'!E105*10^3 -> 420000 | F196: ='IMRO Decision 2006-10'!F105*10^3 -> 420000
A197: Operating costs - Indirect Overheads | D197: ='IMRO Decision 2006-10'!D111*10^3 -> 339633.7631 | E197: ='IMRO Decision 2006-10'!E111*10^3 -> 344182.6403 | F197: ='IMRO Decision 2006-10'!F111*10^3 -> 348792.4428
A198: Total O & M not included in Efficiency Carry-over | D198: =SUM(D196:D197) -> 759633.7631 | E198: =SUM(E196:E197) -> 764182.6403 | F198: =SUM(F196:F197) -> 768792.4428
A200: Total O & M | D200: =SUM(D193,D198) -> 4222423.763 | E200: =SUM(E193,E198) -> 4301319.54 | F200: =SUM(F193,F198) -> 4724947.643
A201: Check | C201: =SUM(D201:F201) -> 0 | D201: =IF(ABS('IMRO Decision 2006-10'!D114*10^3-D200)<0.001,0,ABS('IMRO Decision 2006-10'!D114*10^3-D200)) -> 0 | E201: =IF(ABS('IMRO Decision 2006-10'!E114*10^3-E200)<0.001,0,ABS('IMRO Decision 2006-10'!E114*10^3-E200)) -> 0 | F201: =IF(ABS('IMRO Decision 2006-10'!F114*10^3-F200)<0.001,0,ABS('IMRO Decision 2006-10'!F114*10^3-F200)) -> 0
A204: Benchmark Unit Costs (Real 2004 $) | D204: 2006 | E204: 2007 | F204: 2008
A205: Meter Maintenance per customer | D205: ='IMRO Decision 2006-10'!D349 -> 2.108015703 | E205: ='IMRO Decision 2006-10'!E349 -> 2.193864744 | F205: ='IMRO Decision 2006-10'!F349 -> 2.282718399
A207: Metering data services :
A208: - Cost per read accumulation meter | D208: ='IMRO Decision 2006-10'!D365 -> 0.75 | E208: ='IMRO Decision 2006-10'!E365 -> 0.75 | F208: ='IMRO Decision 2006-10'!F365 -> 0.75
A209: - Cost per read interval meter | D209: ='IMRO Decision 2006-10'!D366 -> 1.5 | E209: ='IMRO Decision 2006-10'!E366 -> 1.5 | F209: ='IMRO Decision 2006-10'!F366 -> 1.5
A210: - Meter data management per customer - accumulation meter | D210: ='IMRO Decision 2006-10'!D367 -> 4.5 | E210: ='IMRO Decision 2006-10'!E367 -> 4.5 | F210: ='IMRO Decision 2006-10'!F367 -> 4.5
A211: - Meter data management per customer - read interval meter | D211: ='IMRO Decision 2006-10'!D368 -> 6.2 | E211: ='IMRO Decision 2006-10'!E368 -> 6.2 | F211: ='IMRO Decision 2006-10'!F368 -> 6.2
A213: Meter replacement costs (customer service costs) | D213: ='IMRO Decision 2006-10'!D356 -> 15 | E213: ='IMRO Decision 2006-10'!E356 -> 15 | F213: ='IMRO Decision 2006-10'!F356 -> 15
A216: Forecast Quantities | D216: 2006 | E216: 2007 | F216: 2008
A217: Meter Maintenance
A218: - Number of customers with meters | D218: ='IMRO Decision 2006-10'!J349 -> 286051 | E218: ='IMRO Decision 2006-10'!K349 -> 290811 | F218: ='IMRO Decision 2006-10'!L349 -> 295262
A220: Metering data services
A221: - Meter reading per cycle :
A222: Number of meters read monthly - accumulation | D222: ='IMRO Decision 2006-10'!J370 -> 6287 | E222: ='IMRO Decision 2006-10'!K370 -> 6322 | F222: ='IMRO Decision 2006-10'!L370 -> 5812
A223: Number of meters read quarterly - accumulation | D223: ='IMRO Decision 2006-10'!J371 -> 308083 | E223: ='IMRO Decision 2006-10'!K371 -> 309781 | F223: ='IMRO Decision 2006-10'!L371 -> 284764
A224: Number of meters read monthly - interval | D224: ='IMRO Decision 2006-10'!J372 -> 2828 | E224: ='IMRO Decision 2006-10'!K372 -> 3781 | F224: ='IMRO Decision 2006-10'!L372 -> 9055
A225: Number of meters read quarterly - interval | D225: ='IMRO Decision 2006-10'!J373 -> 12882 | E225: ='IMRO Decision 2006-10'!K373 -> 17226 | F225: ='IMRO Decision 2006-10'!L373 -> 41251
A227: Meter replacement costs (customer service costs)
A228: - Meter replacement installations | D228: =SUM('IMRO Decision 2006-10'!J356,'IMRO Decision 2006-10'!J358:J362) -> 15913 | E228: =SUM('IMRO Decision 2006-10'!K356,'IMRO Decision 2006-10'!K358:K362) -> 12585 | F228: =SUM('IMRO Decision 2006-10'!L356,'IMRO Decision 2006-10'!L358:L362) -> 23038

Sheet Data 2009-15
A1: ='Data 2006-08'!$A$1 -> Jemena | D1: 2009 | E1: 2010 | F1: 2011 | G1: 2012 | H1: 2013 | I1: 2014 | J1: 2015
D2: Nominal $ | E2: Nominal $ | F2: Nominal $ | G2: Nominal $ | H2: Nominal $ | I2: Nominal $ | J2: Nominal $
A3: AMI DATA INPUTS 2009 - 2012 | D3: Actual | E3: Actual | F3: Actual | G3: Actual | H3: Actual | I3: Actual | J3: Actual
A5: NOMINAL INPUTS
D7: =D$1 -> 2009 | E7: 2010 | F7: 2011 | G7: 2012 | H7: 2013 | I7: 2014 | J7: 2015
A8: GROSS CAPITAL EXPENDITURE | C8: Regulatory | D8: =D$2 -> Nominal $ | E8: Nominal $ | F8: Nominal $ | G8: Nominal $ | H8: Nominal $ | I8: Nominal $ | J8: Nominal $
C9: Life (years) | D9: =D$3 -> Actual | E9: Actual | F9: Actual | G9: Actual | H9: Actual | I9: Actual | J9: Actual
A10: Accumulation Meters | C10: ='Data 2009-15 (Real $2008)'!C10 -> Depreciated by end of 2013 | D10: 2949525.175 | E10: 1859749 | F10: 1568574.653 | G10: 74072.10431 | H10: 0 | I10: 0 | J10: 0
A11: Manually read interval meters | C11: ='Data 2009-15 (Real $2008)'!C11 -> Depreciated by end of 2013 | D11: 870338.005 | E11: 1141834 | F11: 963017.7501 | G11: 726212.0742 | H11: 0 | I11: 0 | J11: 0
A12: Remotely read interval meters & transformers | C12: ='Data 2009-15 (Real $2008)'!C12 -> 15 | D12: 4649474.577 | E12: 10378052 | F12: 18304368.38 | G12: 23740254.95 | H12: 32736070.28 | I12: 10128106.1 | J12: 253489.07
A13: IT | C13: ='Data 2009-15 (Real $2008)'!C13 -> 7 | D13: 25683196.4 | E13: 5083617 | F13: 285916.662 | G13: 499072.1998 | H13: 828274.08 | I13: 3451502.21 | J13: 6278458
A14: Communications | C14: ='Data 2009-15 (Real $2008)'!C14 -> 7 | D14: 135135.0126 | E14: 346256 | F14: 1190171.488 | G14: 1703483.594 | H14: 3142129.74 | I14: 708578.41 | J14: 684065.02
A15: Other | C15: ='Data 2009-15 (Real $2008)'!C15 -> 7 | D15: 30147880.22 | E15: 20836177 | F15: 6750617 | G15: 2752519.533 | H15: 447185.84 | I15: 2214586.987 | J15: 0
A16: Total | D16: =SUM(D10:D15) -> 64435549.38 | E16: 39645685 | F16: 29062665.93 | G16: 29495614.46 | H16: 37153659.94 | I16: 16502773.7 | J16: 7216012.09
D19: =D$1 -> 2009 | E19: 2010 | F19: 2011 | G19: 2012 | H19: 2013 | I19: 2014 | J19: 2015
C20: Declining Balance | D20: =D$2 -> Nominal $ | E20: Nominal $ | F20: Nominal $ | G20: Nominal $ | H20: Nominal $ | I20: Nominal $ | J20: Nominal $
A21: Capital Expenditure by Taxation Category | C21: Tax Depn rate | D21: =D$3 -> Actual | E21: Actual | F21: Actual | G21: Actual | H21: Actual | I21: Actual | J21: Actual
A22: Meters and transformers (Group 1) (Unit cost < $1,000) | C22: ='Data 2009-15 (Real $2008)'!C22 -> 0.375 | D22: =SUM(D10:D12)-D23 -> 8469337.757 | E22: 13379635 | F22: 20835960.78 | G22: 24540539.13 | H22: 32736070.28 | I22: 10128106.1 | J22: 253489.07
A23: Meters and transformers (Group 2) (Unit cost => $1,000) | C23: ='Data 2009-15 (Real $2008)'!C23 -> 0.06 | D23: 0 | E23: 0 | F23: 0 | G23: 0 | H23: 0 | I23: 0 | J23: 0
A24: IT | C24: ='Data 2009-15 (Real $2008)'!C24 -> 0.4 | D24: =D13 -> 25683196.4 | E24: 5083617 | F24: 285916.662 | G24: =G13 -> 499072.1998 | H24: 828274.08 | I24: 3451502.21 | J24: 6278458
A25: Communications | C25: ='Data 2009-15 (Real $2008)'!C25 -> 0.2142857143 | D25: 135135.0126 | E25: 346256 | F25: 1190171.488 | G25: 1703483.594 | H25: 3142129.74 | I25: 708578.41 | J25: 684065.02
A26: Other | C26: ='Data 2009-15 (Real $2008)'!C26 -> 0.1764705882 | D26: 30147880.22 | E26: 20836177 | F26: 6750617 | G26: 2752519.533 | H26: 447185.84 | I26: 2214586.987 | J26: 0
A27: Total | D27: =SUM(D21:D26) -> 64435549.38 | E27: 39645685 | F27: 29062665.93 | G27: 29495614.46 | H27: 37153659.94 | I27: 16502773.7 | J27: 7216012.09
D30: =D$1 -> 2009 | E30: 2010 | F30: 2011 | G30: 2012 | H30: 2013 | I30: 2014 | J30: 2015
A31: CUSTOMER CONTRIBUTIONS AND DISPOSAL PROCEEDS | D31: =D$2 -> Nominal $ | E31: Nominal $ | F31: Nominal $ | G31: Nominal $ | H31: Nominal $ | I31: Nominal $ | J31: Nominal $
D32: =D$3 -> Actual | E32: Actual | F32: Actual | G32: Actual | H32: Actual | I32: Actual | J32: Actual
A33: Customer contributions
A34: Accumulation Meters | D34: 0 | E34: 0 | F34: 0 | G34: 0 | H34: 0 | I34: 0 | J34: 0
A35: Manually read interval meters | D35: 0 | E35: 0 | F35: 0 | G35: 0 | H35: 0 | I35: 0 | J35: 0
A36: Remotely read interval meters & transformers | D36: 0 | E36: 0 | F36: 0 | G36: 0 | H36: 0 | I36: 0 | J36: 0
A37: IT | D37: 0 | E37: 0 | F37: 0 | G37: 0 | H37: 0 | I37: 0 | J37: 0
A38: Communications | D38: 0 | E38: 0 | F38: 0 | G38: 0 | H38: 0 | I38: 0 | J38: 0
A39: Other | D39: 0 | E39: 0 | F39: 0 | G39: 0 | H39: 0 | I39: 0 | J39: 0
D40: =SUM(D34:D39) -> 0 | E40: 0 | F40: 0 | G40: =SUM(G34:G39) -> 0 | H40: 0 | I40: 0 | J40: 0
A42: Disposals - proceeds from sale of assets
A43: Accumulation Meters | D43: 0 | E43: 0 | F43: 0 | G43: 0 | H43: 0 | I43: 0 | J43: 0
A44: Manually read interval meters | D44: 0 | E44: 0 | F44: 0 | G44: 0 | H44: 0 | I44: 0 | J44: 0
A45: Remotely read interval meters & transformers | D45: 0 | E45: 0 | F45: 0 | G45: 0 | H45: 0 | I45: 0 | J45: 0
A46: IT | D46: 0 | E46: 0 | F46: 0 | G46: 0 | H46: 0 | I46: 0 | J46: 0
A47: Communications | D47: 0 | E47: 0 | F47: 0 | G47: 0 | H47: 0 | I47: 0 | J47: 0
A48: Other | D48: 0 | E48: 0 | F48: 0 | G48: 0 | H48: 0 | I48: 0 | J48: 0
D49: =SUM(D43:D48) -> 0 | E49: 0 | F49: 0 | G49: 0 | H49: 0 | I49: 0 | J49: 0
D52: =D$1 -> 2009 | E52: 2010 | F52: 2011 | G52: 2012 | H52: 2013 | I52: 2014 | J52: 2015
A53: OPERATING & MAINTENANCE EXPENDITURE | D53: =D$2 -> Nominal $ | E53: Nominal $ | F53: Nominal $ | G53: Nominal $ | H53: Nominal $ | I53: Nominal $ | J53: Nominal $
D54: =D$3 -> Actual | E54: Actual | F54: Actual | G54: Actual | H54: Actual | I54: Actual | J54: Actual
A55: Operating and Maintenance Expenditure | D55: 8437513.704 | E55: 10167825 | F55: 16811908.98 | G55: 20060926 | H55: 20130020.97 | I55: 21170616.44 | J55: 18055259.32
A58: Actual Tariff Revenue | D58: =D$1 -> 2009 | E58: 2010 | F58: 2011 | G58: 2012 | H58: 2013 | I58: 2014 | J58: 2015
D59: Nominal $ | E59: Nominal $ | F59: Nominal $ | G59: Nominal $ | H59: Nominal $ | I59: Nominal $ | J59: Nominal $
A60: Actual Tariff Revenue | D60: 10895116.05 | E60: 42364008.81 | F60: 43546352.75 | G60: 49513138.64 | H60: 56528768.32 | I60: 64349875.42 | J60: 76572124.93

Sheet Data 2009-15 (Real $2008)
A1: ='Data 2006-08'!$A$1 -> Jemena | D1: 2009 | E1: 2010 | F1: 2011 | G1: 2012 | H1: 2013 | I1: 2014 | J1: 2015
D2: Real 2008 $ | E2: Real 2008 $ | F2: Real 2008 $ | G2: Real 2008 $ | H2: Real 2008 $ | I2: Real 2008 $ | J2: Real 2008 $
A3: AMI DATA INPUTS 2009 - 2015 | D3: Actual | E3: Actual | F3: Actual | G3: Actual | H3: Actual | I3: Actual | J3: Actual
A5: REAL 2008 $ INPUTS
D7: 2009 | E7: 2010 | F7: 2011 | G7: =G$1 -> 2012 | H7: =H$1 -> 2013 | I7: =I$1 -> 2014 | J7: =J$1 -> 2015
A8: GROSS CAPITAL EXPENDITURE | C8: Regulatory | D8: =D$2 -> Real 2008 $ | E8: Real 2008 $ | F8: Real 2008 $ | G8: Real 2008 $ | H8: Real 2008 $ | I8: Real 2008 $ | J8: Real 2008 $
C9: Life (years) | D9: =D$3 -> Actual | E9: Actual | F9: Actual | G9: Actual | H9: Actual | I9: Actual | J9: Actual
A10: Accumulation Meters | C10: ="Depreciated by end of "&'Data 2006-08'!$C$34&"" -> Depreciated by end of 2013 | D10: ='Data 2009-15'!D10/D$145 -> 2809577.734 | E10: ='Data 2009-15'!E10/E$145 -> 1749443.603 | F10: ='Data 2009-15'!F10/F$145 -> 1435521.869 | G10: ='Data 2009-15'!G10/G$145 -> 65484.03424 | H10: ='Data 2009-15'!H10/H$145 -> 0 | I10: ='Data 2009-15'!I10/I$145 -> 0 | J10: ='Data 2009-15'!J10/J$145 -> 0
A11: Manually read interval meters | C11: ="Depreciated by end of "&'Data 2006-08'!$C$34&"" -> Depreciated by end of 2013 | D11: ='Data 2009-15'!D11/D$145 -> 829042.6883 | E11: ='Data 2009-15'!E11/E$145 -> 1074109.563 | F11: ='Data 2009-15'!F11/F$145 -> 881330.728 | G11: ='Data 2009-15'!G11/G$145 -> 642013.5729 | H11: ='Data 2009-15'!H11/H$145 -> 0 | I11: ='Data 2009-15'!I11/I$145 -> 0 | J11: ='Data 2009-15'!J11/J$145 -> 0
A12: =A$154 -> Remotely read interval meters & transformers | C12: =C154 -> 15 | D12: ='Data 2009-15'!D12/D$145 -> 4428868.876 | E12: ='Data 2009-15'!E12/E$145 -> 9762509.177 | F12: ='Data 2009-15'!F12/F$145 -> 16751718.55 | G12: ='Data 2009-15'!G12/G$145 -> 20987761.63 | H12: ='Data 2009-15'!H12/H$145 -> 28372006.58 | I12: ='Data 2009-15'!I12/I$145 -> 8592235.826 | J12: ='Data 2009-15'!J12/J$145 -> 210198.153
A13: =A$155 -> IT | C13: =C155 -> 7 | D13: ='Data 2009-15'!D13/D$145 -> 24464594.28 | E13: ='Data 2009-15'!E13/E$145 -> 4782097.605 | F13: ='Data 2009-15'!F13/F$145 -> 261664.0657 | G13: ='Data 2009-15'!G13/G$145 -> 441208.7563 | H13: ='Data 2009-15'!H13/H$145 -> 717856.4028 | I13: ='Data 2009-15'!I13/I$145 -> 2928101.331 | J13: ='Data 2009-15'!J13/J$145 -> 5206221.616
A14: =A$156 -> Communications | C14: =C156 -> 7 | D14: ='Data 2009-15'!D14/D$145 -> 128723.2012 | E14: ='Data 2009-15'!E14/E$145 -> 325718.8707 | F14: ='Data 2009-15'!F14/F$145 -> 1089216.376 | G14: ='Data 2009-15'!G14/G$145 -> 1505978.25 | H14: ='Data 2009-15'!H14/H$145 -> 2723250.681 | I14: ='Data 2009-15'!I14/I$145 -> 601126.4833 | J14: ='Data 2009-15'!J14/J$145 -> 567240.2513
A15: =A$157 -> Other | C15: =C157 -> 7 | D15: ='Data 2009-15'!D15/D$145 -> 28717440.25 | E15: ='Data 2009-15'!E15/E$145 -> 19600342.07 | F15: ='Data 2009-15'!F15/F$145 -> 6178002.632 | G15: ='Data 2009-15'!G15/G$145 -> 2433386.834 | H15: ='Data 2009-15'!H15/H$145 -> 387571.2475 | I15: ='Data 2009-15'!I15/I$145 -> 1878757.338 | J15: ='Data 2009-15'!J15/J$145 -> 0
A16: Total | D16: =SUM(D10:D15) -> 61378247.04 | E16: 37294220.88 | F16: 26597454.22 | G16: 26075833.07 | H16: 32200684.92 | I16: 14000220.98 | J16: 5983660.02
D19: 2009 | E19: 2010 | F19: 2011 | G19: =G$1 -> 2012 | H19: =H$1 -> 2013 | I19: =I$1 -> 2014 | J19: =J$1 -> 2015
C20: Declining Balance | D20: =D$2 -> Real 2008 $ | E20: Real 2008 $ | F20: Real 2008 $ | G20: Real 2008 $ | H20: Real 2008 $ | I20: Real 2008 $ | J20: Real 2008 $
A21: Capital Expenditure by Taxation Category | C21: Tax Depn rate | D21: =D$3 -> Actual | E21: Actual | F21: Actual | G21: Actual | H21: Actual | I21: Actual | J21: Actual
A22: =A$162 -> Meters and transformers (Group 1) (Unit cost < $1,000) | C22: =C162 -> 0.375 | D22: =SUM(D10:D12)-D23 -> 8067489.299 | E22: 12586062.34 | F22: 19068571.15 | G22: 21695259.23 | H22: =SUM(H10:H12)-H23 -> 28372006.58 | I22: 8592235.826 | J22: 210198.153
A23: =A$163 -> Meters and transformers (Group 2) (Unit cost => $1,000) | C23: =C163 -> 0.06 | D23: ='Data 2009-15'!D23/D$145 -> 0 | E23: ='Data 2009-15'!E23/E$145 -> 0 | F23: ='Data 2009-15'!F23/F$145 -> 0 | G23: ='Data 2009-15'!G23/G$145 -> 0 | H23: ='Data 2009-15'!H23/H$145 -> 0 | I23: ='Data 2009-15'!I23/I$145 -> 0 | J23: ='Data 2009-15'!J23/J$145 -> 0
A24: =A$164 -> IT | C24: =C164 -> 0.4 | D24: =D13 -> 24464594.28 | E24: 4782097.605 | F24: 261664.0657 | G24: =G13 -> 441208.7563 | H24: =H13 -> 717856.4028 | I24: 2928101.331 | J24: 5206221.616
A25: =A$165 -> Communications | C25: =C165 -> 0.2142857143 | D25: 128723.2012 | E25: 325718.8707 | F25: 1089216.376 | G25: 1505978.25 | H25: =H14 -> 2723250.681 | I25: 601126.4833 | J25: 567240.2513
A26: =A$166 -> Other | C26: =C166 -> 0.1764705882 | D26: 28717440.25 | E26: 19600342.07 | F26: 6178002.632 | G26: 2433386.834 | H26: =H15 -> 387571.2475 | I26: 1878757.338 | J26: 0
A27: Total | D27: =SUM(D21:D26) -> 61378247.04 | E27: 37294220.88 | F27: 26597454.22 | G27: 26075833.07 | H27: 32200684.92 | I27: 14000220.98 | J27: 5983660.02
D30: 2009 | E30: 2010 | F30: 2011 | G30: =G$1 -> 2012 | H30: =H$1 -> 2013 | I30: =I$1 -> 2014 | J30: =J$1 -> 2015
A31: CUSTOMER CONTRIBUTIONS AND DISPOSAL PROCEEDS | D31: =D$2 -> Real 2008 $ | E31: Real 2008 $ | F31: Real 2008 $ | G31: Real 2008 $ | H31: Real 2008 $ | I31: Real 2008 $ | J31: Real 2008 $
D32: =D$3 -> Actual | E32: Actual | F32: Actual | G32: Actual | H32: Actual | I32: Actual | J32: Actual
A33: Customer contributions
A34: =A10 -> Accumulation Meters | D34: ='Data 2009-15'!D34/D$145 -> 0 | E34: ='Data 2009-15'!E34/E$145 -> 0 | F34: ='Data 2009-15'!F34/F$145 -> 0 | G34: ='Data 2009-15'!G34/G$145 -> 0 | H34: ='Data 2009-15'!H34/H$145 -> 0 | I34: ='Data 2009-15'!I34/I$145 -> 0 | J34: ='Data 2009-15'!J34/J$145 -> 0
A35: Manually read interval meters | D35: ='Data 2009-15'!D35/D$145 -> 0 | E35: ='Data 2009-15'!E35/E$145 -> 0 | F35: ='Data 2009-15'!F35/F$145 -> 0 | G35: ='Data 2009-15'!G35/G$145 -> 0 | H35: ='Data 2009-15'!H35/H$145 -> 0 | I35: ='Data 2009-15'!I35/I$145 -> 0 | J35: ='Data 2009-15'!J35/J$145 -> 0
A36: Remotely read interval meters & transformers | D36: ='Data 2009-15'!D36/D$145 -> 0 | E36: ='Data 2009-15'!E36/E$145 -> 0 | F36: ='Data 2009-15'!F36/F$145 -> 0 | G36: ='Data 2009-15'!G36/G$145 -> 0 | H36: ='Data 2009-15'!H36/H$145 -> 0 | I36: ='Data 2009-15'!I36/I$145 -> 0 | J36: ='Data 2009-15'!J36/J$145 -> 0
A37: IT | D37: ='Data 2009-15'!D37/D$145 -> 0 | E37: ='Data 2009-15'!E37/E$145 -> 0 | F37: ='Data 2009-15'!F37/F$145 -> 0 | G37: ='Data 2009-15'!G37/G$145 -> 0 | H37: ='Data 2009-15'!H37/H$145 -> 0 | I37: ='Data 2009-15'!I37/I$145 -> 0 | J37: ='Data 2009-15'!J37/J$145 -> 0
A38: Communications | D38: ='Data 2009-15'!D38/D$145 -> 0 | E38: ='Data 2009-15'!E38/E$145 -> 0 | F38: ='Data 2009-15'!F38/F$145 -> 0 | G38: ='Data 2009-15'!G38/G$145 -> 0 | H38: ='Data 2009-15'!H38/H$145 -> 0 | I38: ='Data 2009-15'!I38/I$145 -> 0 | J38: ='Data 2009-15'!J38/J$145 -> 0
A39: Other | D39: ='Data 2009-15'!D39/D$145 -> 0 | E39: ='Data 2009-15'!E39/E$145 -> 0 | F39: ='Data 2009-15'!F39/F$145 -> 0 | G39: ='Data 2009-15'!G39/G$145 -> 0 | H39: ='Data 2009-15'!H39/H$145 -> 0 | I39: ='Data 2009-15'!I39/I$145 -> 0 | J39: ='Data 2009-15'!J39/J$145 -> 0
D40: =SUM(D34:D39) -> 0 | E40: =SUM(E34:E39) -> 0 | F40: 0 | G40: =SUM(G34:G39) -> 0 | H40: 0 | I40: 0 | J40: 0
A42: Disposals - proceeds from sale of assets
A43: =A10 -> Accumulation Meters | D43: ='Data 2009-15'!D43/D$145 -> 0 | E43: ='Data 2009-15'!E43/E$145 -> 0 | F43: ='Data 2009-15'!F43/F$145 -> 0 | G43: ='Data 2009-15'!G43/G$145 -> 0 | H43: ='Data 2009-15'!H43/H$145 -> 0 | I43: ='Data 2009-15'!I43/I$145 -> 0 | J43: ='Data 2009-15'!J43/J$145 -> 0
A44: Manually read interval meters | D44: ='Data 2009-15'!D44/D$145 -> 0 | E44: ='Data 2009-15'!E44/E$145 -> 0 | F44: ='Data 2009-15'!F44/F$145 -> 0 | G44: ='Data 2009-15'!G44/G$145 -> 0 | H44: ='Data 2009-15'!H44/H$145 -> 0 | I44: ='Data 2009-15'!I44/I$145 -> 0 | J44: ='Data 2009-15'!J44/J$145 -> 0
A45: Remotely read interval meters & transformers | D45: ='Data 2009-15'!D45/D$145 -> 0 | E45: ='Data 2009-15'!E45/E$145 -> 0 | F45: ='Data 2009-15'!F45/F$145 -> 0 | G45: ='Data 2009-15'!G45/G$145 -> 0 | H45: ='Data 2009-15'!H45/H$145 -> 0 | I45: ='Data 2009-15'!I45/I$145 -> 0 | J45: ='Data 2009-15'!J45/J$145 -> 0
A46: IT | D46: ='Data 2009-15'!D46/D$145 -> 0 | E46: ='Data 2009-15'!E46/E$145 -> 0 | F46: ='Data 2009-15'!F46/F$145 -> 0 | G46: ='Data 2009-15'!G46/G$145 -> 0 | H46: ='Data 2009-15'!H46/H$145 -> 0 | I46: ='Data 2009-15'!I46/I$145 -> 0 | J46: ='Data 2009-15'!J46/J$145 -> 0
A47: Communications | D47: ='Data 2009-15'!D47/D$145 -> 0 | E47: ='Data 2009-15'!E47/E$145 -> 0 | F47: ='Data 2009-15'!F47/F$145 -> 0 | G47: ='Data 2009-15'!G47/G$145 -> 0 | H47: ='Data 2009-15'!H47/H$145 -> 0 | I47: ='Data 2009-15'!I47/I$145 -> 0 | J47: ='Data 2009-15'!J47/J$145 -> 0
A48: Other | D48: ='Data 2009-15'!D48/D$145 -> 0 | E48: ='Data 2009-15'!E48/E$145 -> 0 | F48: ='Data 2009-15'!F48/F$145 -> 0 | G48: ='Data 2009-15'!G48/G$145 -> 0 | H48: ='Data 2009-15'!H48/H$145 -> 0 | I48: ='Data 2009-15'!I48/I$145 -> 0 | J48: ='Data 2009-15'!J48/J$145 -> 0
D49: =SUM(D43:D48) -> 0 | E49: 0 | F49: 0 | G49: =SUM(G43:G48) -> 0 | H49: 0 | I49: 0 | J49: 0
D52: 2009 | E52: 2010 | F52: 2011 | G52: =G$1 -> 2012 | H52: =H$1 -> 2013 | I52: =I$1 -> 2014 | J52: =J$1 -> 2015
A53: OPERATING & MAINTENANCE EXPENDITURE | D53: =D$2 -> Real 2008 $ | E53: Real 2008 $ | F53: Real 2008 $ | G53: Real 2008 $ | H53: Real 2008 $ | I53: Real 2008 $ | J53: Real 2008 $
D54: =D$3 -> Actual | E54: Actual | F54: Actual | G54: Actual | H54: Actual | I54: Actual | J54: Actual
A55: Operating and Maintenance Expenditure (including debt raisiing costs in 2014-15) | D55: ='Data 2009-15'!D55/D$145 -> 8037175.216 | E55: ='Data 2009-15'!E55/E$145 -> 9564751.157 | F55: ='Data 2009-15'!F55/F$145 -> 15385855.53 | G55: ='Data 2009-15'!G55/G$145 -> 17735021.54 | H55: ='Data 2009-15'!H55/H$145 -> 17446476.71 | I55: ='Data 2009-15'!I55/I$145+I56 -> 18034044.08 | J55: ='Data 2009-15'!J55/J$145+J56 -> 15037895.53
A56: Debt raisiing costs in 2014-15 | I56: ='AMI RAB 2009-15'!I12*10^3*$I$133*I57 -> 73832.43042 | J56: ='AMI RAB 2009-15'!J12*10^3*$I$133*J57 -> 66117.2118
A57: Debt Raising Cost Benchmark | I57: 0.00108 | J57: 0.00108
A58: Actual Tariff Revenue | D58: =D$1 -> 2009 | E58: 2010 | F58: 2011 | G58: 2012 | H58: 2013 | I58: 2014 | J58: 2015
D59: Nominal $ | E59: Nominal $ | F59: Nominal $ | G59: Nominal $ | H59: Nominal $ | I59: Nominal $ | J59: Nominal $
A60: Actual Tariff Revenue | D60: ='Data 2009-15'!D60 -> 10895116.05 | E60: ='Data 2009-15'!E60 -> 42364008.81 | F60: ='Data 2009-15'!F60 -> 43546352.75 | G60: ='Data 2009-15'!G60 -> 49513138.64 | H60: ='Data 2009-15'!H60 -> 56528768.32 | I60: ='Data 2009-15'!I60 -> 64349875.42 | J60: ='Data 2009-15'!J60 -> 76572124.93
A65: Proposed Tariffs and Forecast Tariff Quantities | E65: Tariffs
E67: =E$1 -> 2010 | F67: 2011 | G67: 2012 | H67: 2013 | I67: 2014 | J67: 2015
E68: Actual | F68: Actual | G68: Actual | H68: Actual | I68: Actual | J68: Actual
E69: Nominal $ | F69: Nominal $ | G69: Nominal $ | H69: Nominal $ | I69: Nominal $ | J69: Nominal $
A71: Metering data services | E71: Charge per meter ($ p.a.)
A72: metering data services - monthly read meter | E72: 0 | F72: 0 | G72: 0 | H72: 0 | I72: 0 | J72: 0
A73: metering data services - quarterly read meter | E73: 0 | F73: 0 | G73: 0 | H73: 0 | I73: 0 | J73: 0
A74: Other Category 1 : Describe……………….. | E74: 0 | F74: 0 | G74: 0 | H74: 0 | I74: 0 | J74: 0
A75: Other Category 2 : Describe……………….. | E75: 0 | F75: 0 | G75: 0 | H75: 0 | I75: 0 | J75: 0
A76: Other Category 3 : Describe……………….. | E76: 0 | F76: 0 | G76: 0 | H76: 0 | I76: 0 | J76: 0
A77: Other Category 4 : Describe……………….. | E77: 0 | F77: 0 | G77: 0 | H77: 0 | I77: 0 | J77: 0
A78: Other Category 5 : Describe……………….. | E78: 0 | F78: 0 | G78: 0 | H78: 0 | I78: 0 | J78: 0
A81: Metering data services | E81: Charge per NMIs ($ p.a.)
A82: metering data services - monthly read meter | E82: 0 | F82: 0 | G82: 0 | H82: 0 | I82: 0 | J82: 0
A83: metering data services - quarterly read meter | E83: 0 | F83: 0 | G83: 0 | H83: 0 | I83: 0 | J83: 0
A84: Other Category 1 : Describe……………….. | E84: 0 | F84: 0 | G84: 0 | H84: 0 | I84: 0 | J84: 0
A85: Other Category 2 : Describe……………….. | E85: 0 | F85: 0 | G85: 0 | H85: 0 | I85: 0 | J85: 0
A86: Other Category 3 : Describe……………….. | E86: 0 | F86: 0 | G86: 0 | H86: 0 | I86: 0 | J86: 0
A87: Other Category 4 : Describe……………….. | E87: 0 | F87: 0 | G87: 0 | H87: 0 | I87: 0 | J87: 0
A88: Other Category 5 : Describe……………….. | E88: 0 | F88: 0 | G88: 0 | H88: 0 | I88: 0 | J88: 0
A91: Meter provision Charge | E91: Charge per meter ($ p.a.)
A92: single phase single element meter | E92: =E185 -> 134.63 | F92: 136.7 | G92: =G185 -> 153.95 | H92: =H185 -> 173.38 | I92: 193.82 | J92: =J185 -> 226.32
A93: single phase single element meter with contactor | E93: 134.63 | F93: 136.7 | G93: =G186 -> 153.95 | H93: =H186 -> 173.38 | I93: 193.82 | J93: =J186 -> 226.32
A94: single phase two element meter with contactor | E94: 0 | F94: 0 | G94: 0 | H94: 0 | I94: 0 | J94: 0
A95: three phase direct connected meter | E95: =E187 -> 165.46 | F95: 167.99 | G95: 189.19 | H95: 213.07 | I95: 238.19 | J95: 278.12
A96: three phase direct connected meter with contactor | E96: 0 | F96: 0 | G96: 0 | H96: 0 | I96: 0 | J96: 0
A97: three phase Current transformer connected meter | E97: =E188 -> 183.95 | F97: 186.77 | G97: 210.34 | H97: 236.88 | I97: 264.81 | J97: 308.66
A98: Other Category 1 : Describe……………….. | E98: 0 | F98: 0 | G98: 0 | H98: 0 | I98: 0 | J98: 0
A99: Other Category 2 : Describe……………….. | E99: 0 | F99: 0 | G99: 0 | H99: 0 | I99: 0 | J99: 0
A100: Other Category 3 : Describe……………….. | E100: 0 | F100: 0 | G100: 0 | H100: 0 | I100: 0 | J100: 0
A101: Other Category 4 : Describe……………….. | E101: 0 | F101: 0 | G101: 0 | H101: 0 | I101: 0 | J101: 0
A102: Other Category 5 : Describe……………….. | E102: 0 | F102: 0 | G102: 0 | H102: 0 | I102: 0 | J102: 0
A105: Meter provision Charge | E105: Charge per NMIs ($ p.a.)
A106: single phase single element meter | E106: 0 | F106: 0 | G106: 0 | H106: 0 | I106: 0 | J106: 0
A107: single phase single element meter with contactor | E107: 0 | F107: 0 | G107: 0 | H107: 0 | I107: 0 | J107: 0
A108: single phase two element meter with contactor | E108: 0 | F108: 0 | G108: 0 | H108: 0 | I108: 0 | J108: 0
A109: three phase direct connected meter | E109: 0 | F109: 0 | G109: 0 | H109: 0 | I109: 0 | J109: 0
A110: three phase direct connected meter with contactor | E110: 0 | F110: 0 | G110: 0 | H110: 0 | I110: 0 | J110: 0
A111: three phase Current transformer connected meter | E111: 0 | F111: 0 | G111: 0 | H111: 0 | I111: 0 | J111: 0
A112: Other Category 1 : Describe……………….. | E112: 0 | F112: 0 | G112: 0 | H112: 0 | I112: 0 | J112: 0
A113: Other Category 2 : Describe……………….. | E113: 0 | F113: 0 | G113: 0 | H113: 0 | I113: 0 | J113: 0
A114: Other Category 3 : Describe……………….. | E114: 0 | F114: 0 | G114: 0 | H114: 0 | I114: 0 | J114: 0
A115: Other Category 4 : Describe……………….. | E115: 0 | F115: 0 | G115: 0 | H115: 0 | I115: 0 | J115: 0
A116: Other Category 5 : Describe……………….. | E116: 0 | F116: 0 | G116: 0 | H116: 0 | I116: 0 | J116: 0
A122: AER INPUTS
A124: AMI WACC | C124: Initial AMI WACC - | I124: Subsequent AMI WACC -
C125: 1 January 2009 to 31 December 2013 | I125: 1 January 2014 to 31 December 2015
A126: Market Observables
A127: Nominal risk free rate | C127: 0.0463 | I127: 0.0402
A128: Debt risk premium | C128: =4%+0.125% -> 0.04125 | I128: 0.0253
A130: Non Market Observables
A131: Equity premium | C131: ='Data 2006-08'!C130 -> 0.06 | I131: 0.065
A132: Equity beta | C132: ='Data 2006-08'!C131 -> 1 | I132: 0.8
A133: Gearing (debt/assets) | C133: ='Data 2006-08'!C133 -> 0.6 | I133: 0.6
A134: Forecast inflation | C134: ='Data 2006-08'!C134 -> 0.0256 | I134: 0.0247
A136: BENCHMARK TAX RELATED INPUTS
A137: Company income tax rate | C137: 0.3 | I137: 0.3
A138: Franking credit value | C138: 0.65 | I138: 0.25
A139: Gearing (debt/assets) | C139: =C133 -> 0.6 | I139: =I133 -> 0.6
D142: =D$1 -> 2009 | E142: =E$1 -> 2010 | F142: 2011 | G142: 2012 | H142: 2013 | I142: 2014 | J142: 2015 | L142: CPI Index | N142: Annual CPI
A143: Inflation | D143: Actual | E143: Actual | F143: Actual | G143: Actual | H143: Actual | I143: Actual | J143: Actual | L143: 2007-09-30 | M143: ='Data 2006-08'!D150 -> 158.6
A144: CPI increase | D144: ='Data 2006-08'!F151 -> 0.04981084489 | E144: =N145 -> 0.01261261261 | F144: =N146 -> 0.02787663108 | G144: =N147 -> 0.03519907675 | H144: =N151 -> 0.02004008016 | I144: =N152 -> 0.02161100196 | J144: =N153 -> 0.02307692308 | L144: 2008-09-30 | M144: ='Data 2006-08'!D151 -> 166.5 | N144: =M144/M143-1 -> 0.04981084489
A145: CPI Index | D145: =1+D144 -> 1.049810845 | E145: =D145*(1+E144) -> 1.063051702 | F145: 1.092686003 | G145: 1.131147541 | H145: 1.153815828 | I145: 1.178750945 | J145: 1.205952889 | L145: 2009-09-30 | M145: 168.6 | N145: =M145/M144-1 -> 0.01261261261
L146: 2010-09-30 | M146: 173.3 | N146: =M146/M145-1 -> 0.02787663108
L147: 2011-09-30 | M147: 179.4 | N147: =M147/M146-1 -> 0.03519907675
L149: The ABS changed the index reference base in September 2012 from 1989-90 to 2011-12.
L150: 2011-09-30 | M150: 99.8
L151: 2012-09-30 | M151: 101.8 | N151: =M151/M150-1 -> 0.02004008016
A152: Regulatory Depreciation | C152: Regulatory | L152: 2013-09-30 | M152: 104 | N152: =M152/M151-1 -> 0.02161100196
C153: Life (years) | L153: 2014-09-30 | M153: 106.4 | N153: =M153/M152-1 -> 0.02307692308
A154: Remotely read interval meters & transformers | C154: 15
A155: IT | C155: 7
A156: Communications | C156: 7
A157: Other | C157: 7
A160: Tax Depreciation Rates
A161: Declining Balance
A162: Meters and transformers (Group 1) (Unit cost < $1,000) | C162: ='Data 2006-08'!C176 -> 0.375
A163: Meters and transformers (Group 2) (Unit cost => $1,000) | C163: ='Data 2006-08'!C177 -> 0.06
A164: ='Data 2006-08'!A$178 -> IT | C164: ='Data 2006-08'!C178 -> 0.4
A165: Communications | C165: =1/7*1.5 -> 0.2142857143
A166: ='Data 2006-08'!A$179 -> Other | C166: ='Data 2006-08'!C179 -> 0.1764705882
A169: Actual Tariffs | D169: =D$1 -> 2009 | E169: 2010 | F169: 2011 | G169: 2012 | H169: 2013 | I169: 2014 | J169: 2015
D170: Actual | E170: Actual | F170: Actual | G170: Actual | H170: Actual | I170: Actual | J170: Actual
D171: Nominal $ | E171: Nominal $ | F171: Nominal $ | G171: Nominal $ | H171: Nominal $ | I171: Nominal $ | J171: Nominal $
A173: Metering data services | D173: Charge per NMIs ($ p.a.)
A174: metering data services - monthly read meter | D174: 69.52
A175: metering data services - quarterly read meter | D175: 23.17
A177: Meter provision Charge | D177: Charge per Meter ($ p.a.)
A178: Single phase non off peak meter | D178: 3.85
A179: Single phase off peak meter | D179: 39.64
A180: Three phase direct connected meter | D180: 65.89
A181: Three phase CT connected meter | D181: 1.32
A184: Meter provision Charge | E184: Charge per meter ($ p.a.)
A185: single phase single element meter | E185: 134.63 | F185: 136.7 | G185: 153.95 | H185: 173.38 | I185: 193.82 | J185: 226.32
A186: single phase single element meter with contactor | E186: 134.63 | F186: 136.7 | G186: 153.95 | H186: 173.38 | I186: 193.82 | J186: 226.32
A187: three phase direct connected meter | E187: 165.46 | F187: 167.99 | G187: 189.19 | H187: 213.07 | I187: 238.19 | J187: 278.12
A188: three phase Current transformer connected meter | E188: 183.95 | F188: 186.77 | G188: 210.34 | H188: 236.88 | I188: 264.81 | J188: 308.66

Sheet AMI Building Blocks 2009-15
A1: ='Data 2006-08'!$A$1 -> Jemena | B1: Check | C1: =IF(SUM(C35)<0.001,"Ok","Error") -> Ok | D1: =C35 -> 0
C3: Initial AMI WACC - | I3: Subsequent AMI WACC -
A4: WEIGHTED AVERAGE COST OF CAPITAL (WACC) | C4: 1 January 2009 to 31 December 2013 | I4: 1 January 2014 to 31 December 2015
A6: Risk free rate (nominal) | C6: ='Data 2009-15 (Real $2008)'!C127 -> 0.0463 | I6: ='Data 2009-15 (Real $2008)'!I127 -> 0.0402
A7: Debt risk premium | C7: ='Data 2009-15 (Real $2008)'!C128 -> 0.04125 | I7: ='Data 2009-15 (Real $2008)'!I128 -> 0.0253
A8: Equity premium | C8: ='Data 2009-15 (Real $2008)'!C131 -> 0.06 | I8: ='Data 2009-15 (Real $2008)'!I131 -> 0.065
A9: Equity beta | C9: ='Data 2009-15 (Real $2008)'!C132 -> 1 | I9: ='Data 2009-15 (Real $2008)'!I132 -> 0.8
A10: Gearing (debt/assets) | C10: ='Data 2009-15 (Real $2008)'!C133 -> 0.6 | I10: ='Data 2009-15 (Real $2008)'!I133 -> 0.6
A11: Forecast inflation | C11: ='Data 2009-15 (Real $2008)'!C134 -> 0.0256 | I11: ='Data 2009-15 (Real $2008)'!I134 -> 0.0247
A13: After tax cost of equity (real) | C13: =(C14+1)/(1+C11)-1 -> 0.07868564743 | I13: =(I14+1)/(1+I11)-1 -> 0.06587293842
A14: After tax cost of equity (nominal) | C14: =C6+C9*C8 -> 0.1063 | I14: =I6+I9*I8 -> 0.0922
A15: Cost of debt (real) | C15: =(C16+1)/(1+C11)-1 -> 0.06040366615 | I15: =(I16+1)/(1+I11)-1 -> 0.03981653167
A16: Cost of debt (nominal) | C16: =C6+C7 -> 0.08755 | I16: =I6+I7 -> 0.0655
A18: Vanilla' after tax WACC (real) | C18: =(C13*(1-C10))+(C15*C10) -> 0.06771645866 | I18: =(I13*(1-I10))+(I15*I10) -> 0.05023909437
A19: Vanilla' after tax WACC (nominal) | C19: =(C14*(1-C10))+(C16*C10) -> 0.09505 | I19: =(I14*(1-I10))+(I16*I10) -> 0.07618
D21: 2009 | E21: 2010 | F21: 2011 | G21: 2012 | H21: 2013 | I21: 2014 | J21: 2015
A22: Inflation | D22: ='Data 2009-15 (Real $2008)'!D144 -> 0.04981084489 | E22: ='Data 2009-15 (Real $2008)'!E144 -> 0.01261261261 | F22: ='Data 2009-15 (Real $2008)'!F144 -> 0.02787663108 | G22: ='Data 2009-15 (Real $2008)'!G144 -> 0.03519907675 | H22: ='Data 2009-15 (Real $2008)'!H144 -> 0.02004008016 | I22: ='Data 2009-15 (Real $2008)'!I144 -> 0.02161100196 | J22: ='Data 2009-15 (Real $2008)'!J144 -> 0.02307692308
A23: =A18 -> Vanilla' after tax WACC (real) | D23: =$C$18 -> 0.06771645866 | E23: =$C$18 -> 0.06771645866 | F23: =$C$18 -> 0.06771645866 | G23: =$C$18 -> 0.06771645866 | H23: =$C$18 -> 0.06771645866 | I23: =$I$18 -> 0.05023909437 | J23: =$I$18 -> 0.05023909437
A24: =A19 -> Vanilla' after tax WACC (nominal) | D24: =(1+D23)*(1+D22)-1 -> 0.1209003176 | E24: 0.08118315273 | F24: 0.09748079647 | G24: 0.1052990922 | H24: 0.08911358208 | I24: 0.0729358135 | J24: 0.07447538116
A27: BUILDING BLOCKS AMI REVENUE REQUIREMENT | E27: Applying Vanilla' after tax WACC (nominal) | Q27: Applying Vanilla' after tax WACC (real) | AB27: Applying Vanilla' after tax WACC (real)
A29: ($000 Nominal) | D29: =$D$21 -> 2009 | E29: =$E$21 -> 2010 | F29: =$F$21 -> 2011 | G29: =$G$21 -> 2012 | H29: =$H$21 -> 2013 | I29: =$I$21 -> 2014 | J29: =$J$21 -> 2015 | M29: ($000 Nominal) | P29: =$D$21 -> 2009 | Q29: =$E$21 -> 2010 | R29: =$F$21 -> 2011 | S29: =$G$21 -> 2012 | T29: =$H$21 -> 2013 | U29: =$I$21 -> 2014 | V29: =$J$21 -> 2015 | X29: ($000 Real 2008) | AA29: =$D$21 -> 2009 | AB29: =$E$21 -> 2010 | AC29: =$F$21 -> 2011 | AD29: =$G$21 -> 2012 | AE29: =$H$21 -> 2013 | AF29: =$I$21 -> 2014 | AG29: =$J$21 -> 2015
A30: Return on assets | D30: =D24*('AMI RAB 2009-15'!D12*'Data 2009-15 (Real $2008)'!D145-D38) -> 6815.17102 | E30: =E24*('AMI RAB 2009-15'!E12*'Data 2009-15 (Real $2008)'!E145-E38) -> 7890.923166 | F30: =F24*('AMI RAB 2009-15'!F12*'Data 2009-15 (Real $2008)'!F145-F38) -> 10980.37779 | G30: =G24*('AMI RAB 2009-15'!G12*'Data 2009-15 (Real $2008)'!G145-G38) -> 12690.30234 | H30: =H24*('AMI RAB 2009-15'!H12*'Data 2009-15 (Real $2008)'!H145-H38) -> 11571.05295 | I30: =I24*('AMI RAB 2009-15'!I12*'Data 2009-15 (Real $2008)'!I145-I38) -> 9588.473728 | J30: =J24*('AMI RAB 2009-15'!J12*'Data 2009-15 (Real $2008)'!J145-J38) -> 8957.242113 | M30: Return on assets | P30: =D23*'AMI RAB 2009-15'!D12*'Data 2009-15 (Real $2008)'!D145 -> 4007.325405 | Q30: =E23*'AMI RAB 2009-15'!E12*'Data 2009-15 (Real $2008)'!E145 -> 6664.989537 | R30: =F23*'AMI RAB 2009-15'!F12*'Data 2009-15 (Real $2008)'!F145 -> 7840.313776 | S30: =G23*'AMI RAB 2009-15'!G12*'Data 2009-15 (Real $2008)'!G145 -> 8448.224686 | T30: =H23*'AMI RAB 2009-15'!H12*'Data 2009-15 (Real $2008)'!H145 -> 8968.926278 | U30: =I23*'AMI RAB 2009-15'!I12*'Data 2009-15 (Real $2008)'!I145 -> 6747.393131 | V30: =J23*'AMI RAB 2009-15'!J12*'Data 2009-15 (Real $2008)'!J145 -> 6181.7533 | X30: Return on assets | AA30: =D23*'AMI RAB 2009-15'!D12 -> 3817.188043 | AB30: =E23*'AMI RAB 2009-15'!E12 -> 6269.675804 | AC30: =F23*'AMI RAB 2009-15'!F12 -> 7175.266964 | AD30: =G23*'AMI RAB 2009-15'!G12 -> 7468.720375 | AE30: =H23*'AMI RAB 2009-15'!H12 -> 7773.273739 | AF30: =I23*'AMI RAB 2009-15'!I12 -> 5724.18895 | AG30: =J23*'AMI RAB 2009-15'!J12 -> 5126.032165
A31: Regulatory depreciation | D31: =D39 -> 7367.426777 | E31: 16363.28078 | F31: 19368.34097 | G31: 22234.70772 | H31: 27252.33458 | I31: 23128.55206 | J31: 23471.83473 | M31: Regulatory depreciation | P31: ='AMI RAB 2009-15'!D9*'Data 2009-15 (Real $2008)'!D145 -> 10175.27239 | Q31: ='AMI RAB 2009-15'!E9*'Data 2009-15 (Real $2008)'!E145 -> 17589.21441 | R31: ='AMI RAB 2009-15'!F9*'Data 2009-15 (Real $2008)'!F145 -> 22508.40498 | S31: ='AMI RAB 2009-15'!G9*'Data 2009-15 (Real $2008)'!G145 -> 26476.78537 | T31: ='AMI RAB 2009-15'!H9*'Data 2009-15 (Real $2008)'!H145 -> 29854.46125 | U31: ='AMI RAB 2009-15'!I9*'Data 2009-15 (Real $2008)'!I145 -> 25969.63266 | V31: ='AMI RAB 2009-15'!J9*'Data 2009-15 (Real $2008)'!J145 -> 26247.32354 | X31: Regulatory depreciation | AA31: ='AMI RAB 2009-15'!D9 -> 9692.481691 | AB31: ='AMI RAB 2009-15'!E9 -> 16545.96326 | AC31: ='AMI RAB 2009-15'!F9 -> 20599.15193 | AD31: ='AMI RAB 2009-15'!G9 -> 23407.01316 | AE31: ='AMI RAB 2009-15'!H9 -> 25874.54645 | AF31: ='AMI RAB 2009-15'!I9 -> 22031.48407 | AG31: ='AMI RAB 2009-15'!J9 -> 21764.80008
A32: O&M expenditure | D32: ='Data 2009-15 (Real $2008)'!D55*'Data 2009-15 (Real $2008)'!D145/10^3 -> 8437.513704 | E32: ='Data 2009-15 (Real $2008)'!E55*'Data 2009-15 (Real $2008)'!E145/10^3 -> 10167.825 | F32: ='Data 2009-15 (Real $2008)'!F55*'Data 2009-15 (Real $2008)'!F145/10^3 -> 16811.90898 | G32: ='Data 2009-15 (Real $2008)'!G55*'Data 2009-15 (Real $2008)'!G145/10^3 -> 20060.926 | H32: ='Data 2009-15 (Real $2008)'!H55*'Data 2009-15 (Real $2008)'!H145/10^3 -> 20130.02097 | I32: ='Data 2009-15 (Real $2008)'!I55*'Data 2009-15 (Real $2008)'!I145/10^3 -> 21257.64649 | J32: ='Data 2009-15 (Real $2008)'!J55*'Data 2009-15 (Real $2008)'!J145/10^3 -> 18134.99357 | M32: O&M expenditure | P32: ='Data 2009-15 (Real $2008)'!D55*'Data 2009-15 (Real $2008)'!D145/10^3 -> 8437.513704 | Q32: ='Data 2009-15 (Real $2008)'!E55*'Data 2009-15 (Real $2008)'!E145/10^3 -> 10167.825 | R32: ='Data 2009-15 (Real $2008)'!F55*'Data 2009-15 (Real $2008)'!F145/10^3 -> 16811.90898 | S32: ='Data 2009-15 (Real $2008)'!G55*'Data 2009-15 (Real $2008)'!G145/10^3 -> 20060.926 | T32: ='Data 2009-15 (Real $2008)'!H55*'Data 2009-15 (Real $2008)'!H145/10^3 -> 20130.02097 | U32: ='Data 2009-15 (Real $2008)'!I55*'Data 2009-15 (Real $2008)'!I145/10^3 -> 21257.64649 | V32: ='Data 2009-15 (Real $2008)'!J55*'Data 2009-15 (Real $2008)'!J145/10^3 -> 18134.99357 | X32: O&M expenditure | AA32: ='Data 2009-15 (Real $2008)'!D55/10^3 -> 8037.175216 | AB32: ='Data 2009-15 (Real $2008)'!E55/10^3 -> 9564.751157 | AC32: ='Data 2009-15 (Real $2008)'!F55/10^3 -> 15385.85553 | AD32: ='Data 2009-15 (Real $2008)'!G55/10^3 -> 17735.02154 | AE32: ='Data 2009-15 (Real $2008)'!H55/10^3 -> 17446.47671 | AF32: ='Data 2009-15 (Real $2008)'!I55/10^3 -> 18034.04408 | AG32: ='Data 2009-15 (Real $2008)'!J55/10^3 -> 15037.89553
A33: Tax liability | D33: =D60 -> 0 | E33: 0 | F33: 0 | G33: 0 | H33: 0 | I33: 0 | J33: 728.3692624 | M33: Tax liability | P33: =D60 -> 0 | Q33: 0 | R33: 0 | S33: 0 | T33: 0 | U33: 0 | V33: 728.3692624 | X33: Tax liability | AA33: =D64 -> 0 | AB33: 0 | AC33: 0 | AD33: 0 | AE33: 0 | AF33: 0 | AG33: 603.9782058
A34: Total building blocks - AMI | D34: =SUM(D30:D33) -> 22620.1115 | E34: 34422.02894 | F34: 47160.62773 | G34: 54985.93606 | H34: 58953.4085 | I34: 53974.67228 | J34: 51292.43967 | M34: Total building blocks - AMI | P34: =SUM(P30:P33) -> 22620.1115 | Q34: 34422.02894 | R34: 47160.62773 | S34: 54985.93606 | T34: 58953.4085 | U34: 53974.67228 | V34: 51292.43967 | X34: Total building blocks - AMI | AA34: =SUM(AA30:AA33) -> 21546.84495 | AB34: 32380.39022 | AC34: 43160.27443 | AD34: 48610.75507 | AE34: 51094.2969 | AF34: 45789.7171 | AG34: 42532.70598
A35: Check | C35: =SUM(D35:J35,P35:V35) -> 0 | D35: =IF(ABS(P34-D34)<0.001,0,ABS(P34-D34)) -> 0 | E35: 0 | F35: 0 | G35: 0 | H35: 0 | I35: 0 | J35: 0 | P35: =IF(ABS(AA34*'Data 2009-15 (Real $2008)'!D145-P34)<0.001,0,ABS(AA34*'Data 2009-15 (Real $2008)'!D145-P34)) -> 0 | Q35: =IF(ABS(AB34*'Data 2009-15 (Real $2008)'!E145-Q34)<0.001,0,ABS(AB34*'Data 2009-15 (Real $2008)'!E145-Q34)) -> 0 | R35: =IF(ABS(AC34*'Data 2009-15 (Real $2008)'!F145-R34)<0.001,0,ABS(AC34*'Data 2009-15 (Real $2008)'!F145-R34)) -> 0 | S35: =IF(ABS(AD34*'Data 2009-15 (Real $2008)'!G145-S34)<0.001,0,ABS(AD34*'Data 2009-15 (Real $2008)'!G145-S34)) -> 0 | T35: =IF(ABS(AE34*'Data 2009-15 (Real $2008)'!H145-T34)<0.001,0,ABS(AE34*'Data 2009-15 (Real $2008)'!H145-T34)) -> 0 | U35: =IF(ABS(AF34*'Data 2009-15 (Real $2008)'!I145-U34)<0.001,0,ABS(AF34*'Data 2009-15 (Real $2008)'!I145-U34)) -> 0 | V35: =IF(ABS(AG34*'Data 2009-15 (Real $2008)'!J145-V34)<0.001,0,ABS(AG34*'Data 2009-15 (Real $2008)'!J145-V34)) -> 0
A37: Straight-line depreciation | D37: ='AMI RAB 2009-15'!D9*'Data 2009-15 (Real $2008)'!D145 -> 10175.27239 | E37: ='AMI RAB 2009-15'!E9*'Data 2009-15 (Real $2008)'!E145 -> 17589.21441 | F37: ='AMI RAB 2009-15'!F9*'Data 2009-15 (Real $2008)'!F145 -> 22508.40498 | G37: ='AMI RAB 2009-15'!G9*'Data 2009-15 (Real $2008)'!G145 -> 26476.78537 | H37: ='AMI RAB 2009-15'!H9*'Data 2009-15 (Real $2008)'!H145 -> 29854.46125 | I37: ='AMI RAB 2009-15'!I9*'Data 2009-15 (Real $2008)'!I145 -> 25969.63266 | J37: ='AMI RAB 2009-15'!J9*'Data 2009-15 (Real $2008)'!J145 -> 26247.32354
A38: Less Inflation indexation | D38: ='AMI RAB 2009-15'!D12*'Data 2009-15 (Real $2008)'!D144 -> 2807.845615 | E38: ='AMI RAB 2009-15'!E12*'Data 2009-15 (Real $2008)'!D145*'Data 2009-15 (Real $2008)'!E144 -> 1225.933629 | F38: ='AMI RAB 2009-15'!F12*'Data 2009-15 (Real $2008)'!E145*'Data 2009-15 (Real $2008)'!F144 -> 3140.06401 | G38: ='AMI RAB 2009-15'!G12*'Data 2009-15 (Real $2008)'!F145*'Data 2009-15 (Real $2008)'!G144 -> 4242.077652 | H38: ='AMI RAB 2009-15'!H12*'Data 2009-15 (Real $2008)'!G145*'Data 2009-15 (Real $2008)'!H144 -> 2602.12667 | I38: ='AMI RAB 2009-15'!I12*'Data 2009-15 (Real $2008)'!H145*'Data 2009-15 (Real $2008)'!I144 -> 2841.080597 | J38: ='AMI RAB 2009-15'!J12*'Data 2009-15 (Real $2008)'!I145*'Data 2009-15 (Real $2008)'!J144 -> 2775.488813
A39: Regulatory depreciation | D39: =D37-D38 -> 7367.426777 | E39: 16363.28078 | F39: 19368.34097 | G39: 22234.70772 | H39: 27252.33458 | I39: 23128.55206 | J39: 23471.83473
A43: Taxation calculation | D43: =$D$21 -> 2009 | E43: =$E$21 -> 2010 | F43: =$F$21 -> 2011 | G43: =$G$21 -> 2012 | H43: =$H$21 -> 2013 | I43: =$I$21 -> 2014 | J43: =$J$21 -> 2015
A45: Gearing | D45: ='Data 2009-15 (Real $2008)'!$C$139 -> 0.6 | E45: ='Data 2009-15 (Real $2008)'!$C$139 -> 0.6 | F45: ='Data 2009-15 (Real $2008)'!$C$139 -> 0.6 | G45: ='Data 2009-15 (Real $2008)'!$C$139 -> 0.6 | H45: ='Data 2009-15 (Real $2008)'!$C$139 -> 0.6 | I45: ='Data 2009-15 (Real $2008)'!$I$139 -> 0.6 | J45: ='Data 2009-15 (Real $2008)'!$I$139 -> 0.6
A46: Cost of debt (nominal) | D46: =(1+$C$15)*(1+'Data 2009-15 (Real $2008)'!D144)-1 -> 0.1132232687 | E46: =(1+$C$15)*(1+'Data 2009-15 (Real $2008)'!E144)-1 -> 0.0737781268 | F46: =(1+$C$15)*(1+'Data 2009-15 (Real $2008)'!F144)-1 -> 0.08996414794 | G46: =(1+$C$15)*(1+'Data 2009-15 (Real $2008)'!G144)-1 -> 0.09772889617 | H46: =(1+$C$15)*(1+'Data 2009-15 (Real $2008)'!H144)-1 -> 0.08165424062 | I46: =(1+$I$15)*(1+'Data 2009-15 (Real $2008)'!I144)-1 -> 0.06228800878 | J46: =(1+$I$15)*(1+'Data 2009-15 (Real $2008)'!J144)-1 -> 0.06381229778
A47: Tax rate | D47: ='Data 2009-15 (Real $2008)'!$C$137 -> 0.3 | E47: ='Data 2009-15 (Real $2008)'!$C$137 -> 0.3 | F47: ='Data 2009-15 (Real $2008)'!$C$137 -> 0.3 | G47: ='Data 2009-15 (Real $2008)'!$C$137 -> 0.3 | H47: ='Data 2009-15 (Real $2008)'!$C$137 -> 0.3 | I47: ='Data 2009-15 (Real $2008)'!$I$137 -> 0.3 | J47: ='Data 2009-15 (Real $2008)'!$I$137 -> 0.3
A48: Franking credit value | D48: ='Data 2009-15 (Real $2008)'!$C$138 -> 0.65 | E48: ='Data 2009-15 (Real $2008)'!$C$138 -> 0.65 | F48: ='Data 2009-15 (Real $2008)'!$C$138 -> 0.65 | G48: ='Data 2009-15 (Real $2008)'!$C$138 -> 0.65 | H48: ='Data 2009-15 (Real $2008)'!$C$138 -> 0.65 | I48: ='Data 2009-15 (Real $2008)'!$I$138 -> 0.25 | J48: ='Data 2009-15 (Real $2008)'!$I$138 -> 0.25
A50: ($000 Nominal) | D50: =$D$21 -> 2009 | E50: =$E$21 -> 2010 | F50: =$F$21 -> 2011 | G50: =$G$21 -> 2012 | H50: =$H$21 -> 2013 | I50: =$I$21 -> 2014 | J50: =$J$21 -> 2015
A51: Tariff Revenue | D51: ='Tariff Compliance'!D8 -> 10895.11605 | E51: ='Tariff Compliance'!E8 -> 42364.00881 | F51: ='Tariff Compliance'!F8 -> 43546.35275 | G51: ='Tariff Compliance'!G8 -> 49513.13864 | H51: ='Tariff Compliance'!H8 -> 56528.76832 | I51: ='Tariff Compliance'!I8 -> 64349.87542 | J51: ='Tariff Compliance'!J8 -> 76572.12493
A52: Customer contributions | D52: ='AMI RAB 2009-15'!D7*'Data 2009-15 (Real $2008)'!D145 -> 0 | E52: ='AMI RAB 2009-15'!E7*'Data 2009-15 (Real $2008)'!E145 -> 0 | F52: ='AMI RAB 2009-15'!F7*'Data 2009-15 (Real $2008)'!F145 -> 0 | G52: ='AMI RAB 2009-15'!G7*'Data 2009-15 (Real $2008)'!G145 -> 0 | H52: ='AMI RAB 2009-15'!H7*'Data 2009-15 (Real $2008)'!H145 -> 0 | I52: ='AMI RAB 2009-15'!I7*'Data 2009-15 (Real $2008)'!I145 -> 0 | J52: ='AMI RAB 2009-15'!J7*'Data 2009-15 (Real $2008)'!J145 -> 0
A53: Operating & maintenance expenditure | D53: ='Data 2009-15 (Real $2008)'!D55/10^3*'Data 2009-15 (Real $2008)'!D145 -> 8437.513704 | E53: ='Data 2009-15 (Real $2008)'!E55/10^3*'Data 2009-15 (Real $2008)'!E145 -> 10167.825 | F53: ='Data 2009-15 (Real $2008)'!F55/10^3*'Data 2009-15 (Real $2008)'!F145 -> 16811.90898 | G53: ='Data 2009-15 (Real $2008)'!G55/10^3*'Data 2009-15 (Real $2008)'!G145 -> 20060.926 | H53: ='Data 2009-15 (Real $2008)'!H55/10^3*'Data 2009-15 (Real $2008)'!H145 -> 20130.02097 | I53: ='Data 2009-15 (Real $2008)'!I55/10^3*'Data 2009-15 (Real $2008)'!I145 -> 21257.64649 | J53: ='Data 2009-15 (Real $2008)'!J55/10^3*'Data 2009-15 (Real $2008)'!J145 -> 18134.99357
A54: Tax depreciation | D54: ='AMI Tax Depn 2009-15'!D56 -> 15663.456 | E54: ='AMI Tax Depn 2009-15'!E56 -> 25452.29496 | F54: ='AMI Tax Depn 2009-15'!F56 -> 27488.65809 | G54: ='AMI Tax Depn 2009-15'!G56 -> 28761.47176 | H54: ='AMI Tax Depn 2009-15'!H56 -> 31488.15254 | I54: ='AMI Tax Depn 2009-15'!I56 -> 30779.78583 | J54: ='AMI Tax Depn 2009-15'!J56 -> 24860.87931
A55: Interest | D55: ='AMI RAB 2009-15'!D12*D45*'Data 2009-15 (Real $2008)'!D145*D46 -> 4020.196773 | E55: ='AMI RAB 2009-15'!E12*E45*'Data 2009-15 (Real $2008)'!E145*E46 -> 4356.965378 | F55: ='AMI RAB 2009-15'!F12*F45*'Data 2009-15 (Real $2008)'!F145*F46 -> 6249.710889 | G55: ='AMI RAB 2009-15'!G12*G45*'Data 2009-15 (Real $2008)'!G145*G46 -> 7315.524375 | H55: ='AMI RAB 2009-15'!H12*H45*'Data 2009-15 (Real $2008)'!H145*H46 -> 6488.976644 | I55: ='AMI RAB 2009-15'!I12*I45*'Data 2009-15 (Real $2008)'!I145*I46 -> 5019.37809 | J55: ='AMI RAB 2009-15'!J12*J45*'Data 2009-15 (Real $2008)'!J145*J46 -> 4711.134475
A56: Tax losses brought forward | D56: =IF('Offset of Costs and Rev 2006-08'!F106<0,-'Offset of Costs and Rev 2006-08'!F106,0) -> 2874.768366 | E56: =IF(D57<0,-D57,0) -> 20100.81879 | F56: 17713.89532 | G56: 24717.82053 | H56: 31342.60403 | I56: 32920.98587 | J56: 25627.92085
A57: After tax net income | D57: =SUM(D51:D52)-SUM(D53:D56) -> -20100.81879 | E57: -17713.89532 | F57: -24717.82053 | G57: -31342.60403 | H57: -32920.98587 | I57: -25627.92085 | J57: 3237.196722
A58: Cost of tax | D58: =IF(D57<0,0,D57*D47) -> 0 | E58: 0 | F58: 0 | G58: 0 | H58: 0 | I58: 0 | J58: 971.1590166
A59: Franking benefit | D59: =D58*D48 -> 0 | E59: 0 | F59: 0 | G59: 0 | H59: 0 | I59: 0 | J59: 242.7897541
A60: Tax liability ($000 MOD) | D60: =D58-D59 -> 0 | E60: 0 | F60: 0 | G60: 0 | H60: 0 | I60: 0 | J60: 728.3692624
D62: =$D$21 -> 2009 | E62: =$E$21 -> 2010 | F62: =$F$21 -> 2011 | G62: =$G$21 -> 2012 | H62: =$H$21 -> 2013 | I62: =$I$21 -> 2014 | J62: =$J$21 -> 2015
A63: ($000 Real 2008)
A64: Tax liability | D64: =D60/'Data 2009-15 (Real $2008)'!D145 -> 0 | E64: =E60/'Data 2009-15 (Real $2008)'!E145 -> 0 | F64: =F60/'Data 2009-15 (Real $2008)'!F145 -> 0 | G64: =G60/'Data 2009-15 (Real $2008)'!G145 -> 0 | H64: =H60/'Data 2009-15 (Real $2008)'!H145 -> 0 | I64: =I60/'Data 2009-15 (Real $2008)'!I145 -> 0 | J64: =J60/'Data 2009-15 (Real $2008)'!J145 -> 603.9782058

Sheet AMI Tax Depn 2009-15
A1: ='Data 2006-08'!$A$1 -> Jemena | B1: Check | C1: =IF(SUM(C59)<0.001,"Ok","Error") -> Ok | D1: 2009 | E1: 2010 | F1: 2011 | G1: 2012 | H1: 2013 | I1: 2014 | J1: 2015 | K1: 2016 | L1: 2017 | M1: 2018 | N1: 2019 | O1: 2020 | P1: 2021 | Q1: 2022 | R1: 2023 | S1: 2024 | T1: 2025 | U1: 2026 | V1: 2027 | W1: 2028 | X1: 2029 | Y1: 2030 | Z1: 2031 | AA1: 2032
C2: =C59 -> 4.615685611e-11
A3: TAX DEPRECIATION
A5: Tax Asset Class | D5: Tax Depreciation Declining Balance
A6: ='Data 2009-15 (Real $2008)'!A$162 -> Meters and transformers (Group 1) (Unit cost < $1,000) | D6: ='Data 2009-15 (Real $2008)'!C162 -> 0.375
A7: ='Data 2009-15 (Real $2008)'!A$163 -> Meters and transformers (Group 2) (Unit cost => $1,000) | D7: ='Data 2009-15 (Real $2008)'!C163 -> 0.06
A8: ='Data 2009-15 (Real $2008)'!A$164 -> IT | D8: ='Data 2009-15 (Real $2008)'!C164 -> 0.4
A9: ='Data 2009-15 (Real $2008)'!A$165 -> Communications | D9: ='Data 2009-15 (Real $2008)'!C165 -> 0.2142857143
A10: ='Data 2009-15 (Real $2008)'!A$166 -> Other | D10: ='Data 2009-15 (Real $2008)'!C166 -> 0.1764705882
A13: REGULATED TAX ASSET VALUE | D13: =D$1 -> 2009 | E13: 2010 | F13: 2011 | G13: 2012 | H13: 2013 | I13: 2014 | J13: 2015 | K13: 2016 | L13: 2017 | M13: 2018 | N13: 2019 | O13: 2020 | P13: 2021 | Q13: 2022 | R13: 2023 | S13: 2024 | T13: 2025 | U13: 2026 | V13: 2027 | W13: 2028 | X13: 2029 | Y13: 2030 | Z13: 2031 | AA13: 2032
A14: ($000 Nominal)
A15: Capex
A16: ='Data 2009-15 (Real $2008)'!A$162 -> Meters and transformers (Group 1) (Unit cost < $1,000) | D16: ='Data 2009-15 (Real $2008)'!D22*'Data 2009-15 (Real $2008)'!D$145/10^3 -> 8469.337757 | E16: ='Data 2009-15 (Real $2008)'!E22*'Data 2009-15 (Real $2008)'!E$145/10^3 -> 13379.635 | F16: ='Data 2009-15 (Real $2008)'!F22*'Data 2009-15 (Real $2008)'!F$145/10^3 -> 20835.96078 | G16: ='Data 2009-15 (Real $2008)'!G22*'Data 2009-15 (Real $2008)'!G$145/10^3 -> 24540.53913 | H16: ='Data 2009-15 (Real $2008)'!H22*'Data 2009-15 (Real $2008)'!H$145/10^3 -> 32736.07028 | I16: ='Data 2009-15 (Real $2008)'!I22*'Data 2009-15 (Real $2008)'!I$145/10^3 -> 10128.1061 | J16: ='Data 2009-15 (Real $2008)'!J22*'Data 2009-15 (Real $2008)'!J$145/10^3 -> 253.48907
A17: ='Data 2009-15 (Real $2008)'!A$163 -> Meters and transformers (Group 2) (Unit cost => $1,000) | D17: ='Data 2009-15 (Real $2008)'!D23*'Data 2009-15 (Real $2008)'!D$145/10^3 -> 0 | E17: ='Data 2009-15 (Real $2008)'!E23*'Data 2009-15 (Real $2008)'!E$145/10^3 -> 0 | F17: ='Data 2009-15 (Real $2008)'!F23*'Data 2009-15 (Real $2008)'!F$145/10^3 -> 0 | G17: ='Data 2009-15 (Real $2008)'!G23*'Data 2009-15 (Real $2008)'!G$145/10^3 -> 0 | H17: ='Data 2009-15 (Real $2008)'!H23*'Data 2009-15 (Real $2008)'!H$145/10^3 -> 0 | I17: ='Data 2009-15 (Real $2008)'!I23*'Data 2009-15 (Real $2008)'!I$145/10^3 -> 0 | J17: ='Data 2009-15 (Real $2008)'!J23*'Data 2009-15 (Real $2008)'!J$145/10^3 -> 0
A18: ='Data 2009-15 (Real $2008)'!A$164 -> IT | D18: ='Data 2009-15 (Real $2008)'!D24*'Data 2009-15 (Real $2008)'!D$145/10^3 -> 25683.1964 | E18: ='Data 2009-15 (Real $2008)'!E24*'Data 2009-15 (Real $2008)'!E$145/10^3 -> 5083.617 | F18: ='Data 2009-15 (Real $2008)'!F24*'Data 2009-15 (Real $2008)'!F$145/10^3 -> 285.916662 | G18: ='Data 2009-15 (Real $2008)'!G24*'Data 2009-15 (Real $2008)'!G$145/10^3 -> 499.0721998 | H18: ='Data 2009-15 (Real $2008)'!H24*'Data 2009-15 (Real $2008)'!H$145/10^3 -> 828.27408 | I18: ='Data 2009-15 (Real $2008)'!I24*'Data 2009-15 (Real $2008)'!I$145/10^3 -> 3451.50221 | J18: ='Data 2009-15 (Real $2008)'!J24*'Data 2009-15 (Real $2008)'!J$145/10^3 -> 6278.458
A19: ='Data 2009-15 (Real $2008)'!A$165 -> Communications | D19: ='Data 2009-15 (Real $2008)'!D25*'Data 2009-15 (Real $2008)'!D$145/10^3 -> 135.1350126 | E19: ='Data 2009-15 (Real $2008)'!E25*'Data 2009-15 (Real $2008)'!E$145/10^3 -> 346.256 | F19: ='Data 2009-15 (Real $2008)'!F25*'Data 2009-15 (Real $2008)'!F$145/10^3 -> 1190.171488 | G19: ='Data 2009-15 (Real $2008)'!G25*'Data 2009-15 (Real $2008)'!G$145/10^3 -> 1703.483594 | H19: ='Data 2009-15 (Real $2008)'!H25*'Data 2009-15 (Real $2008)'!H$145/10^3 -> 3142.12974 | I19: ='Data 2009-15 (Real $2008)'!I25*'Data 2009-15 (Real $2008)'!I$145/10^3 -> 708.57841 | J19: ='Data 2009-15 (Real $2008)'!J25*'Data 2009-15 (Real $2008)'!J$145/10^3 -> 684.06502
A20: ='Data 2009-15 (Real $2008)'!A$166 -> Other | D20: ='Data 2009-15 (Real $2008)'!D26*'Data 2009-15 (Real $2008)'!D$145/10^3 -> 30147.88022 | E20: ='Data 2009-15 (Real $2008)'!E26*'Data 2009-15 (Real $2008)'!E$145/10^3 -> 20836.177 | F20: ='Data 2009-15 (Real $2008)'!F26*'Data 2009-15 (Real $2008)'!F$145/10^3 -> 6750.617 | G20: ='Data 2009-15 (Real $2008)'!G26*'Data 2009-15 (Real $2008)'!G$145/10^3 -> 2752.519533 | H20: ='Data 2009-15 (Real $2008)'!H26*'Data 2009-15 (Real $2008)'!H$145/10^3 -> 447.18584 | I20: ='Data 2009-15 (Real $2008)'!I26*'Data 2009-15 (Real $2008)'!I$145/10^3 -> 2214.586987 | J20: ='Data 2009-15 (Real $2008)'!J26*'Data 2009-15 (Real $2008)'!J$145/10^3 -> 0
D21: =SUM(D16:D19) -> 34287.66916 | E21: 18809.508 | F21: 22312.04893 | G21: 26743.09493 | H21: 36706.4741 | I21: 14288.18672 | J21: 7216.01209
A22: ($000 MOD)
A23: ='Data 2009-15 (Real $2008)'!A$162 -> Meters and transformers (Group 1) (Unit cost < $1,000)
A24: Opening asset value | D24: ='Offset of Costs and Rev 2006-08'!F256+SUM('Data 2006-08'!D94:F94)/10^3 -> 7031.233661 | E24: =D27 -> 11275.85797 | F24: 17918.36467 | G24: 28128.19605 | H24: 37519.31058 | I24: 50047.62621 | J24: 39508.85259 | K24: 24898.99274 | L24: 15561.87046 | M24: 9726.169037 | N24: 6078.855648 | O24: 3799.28478 | P24: 2374.552988 | Q24: 1484.095617 | R24: 927.5597608 | S24: 579.7248505 | T24: 362.3280316 | U24: 226.4550197 | V24: 141.5343873 | W24: 88.45899208 | X24: =W27 -> 55.28687005 | Y24: =X27 -> 34.55429378 | Z24: =Y27 -> 21.59643361 | AA24: =Z27 -> 13.49777101
A25: Depreciation | D25: =$D$6*(D24+D26*0.5) -> 4224.713452 | E25: 6737.1283 | F25: 10626.1294 | G25: 15149.42461 | H25: 20207.75464 | I25: 20666.87972 | J25: 14863.34892 | K25: 9337.122276 | L25: 5835.701422 | M25: 3647.313389 | N25: 2279.570868 | O25: 1424.731793 | P25: 890.4573704 | Q25: 556.5358565 | R25: 347.8349103 | S25: 217.3968189 | T25: 135.8730118 | U25: 84.9206324 | V25: 53.07539525 | W25: 33.17212203 | X25: =$D$6*(X24+X26*0.5) -> 20.73257627 | Y25: =$D$6*(Y24+Y26*0.5) -> 12.95786017 | Z25: =$D$6*(Z24+Z26*0.5) -> 8.098662605 | AA25: =$D$6*(AA24+AA26*0.5) -> 5.061664128
A26: Gross capex | D26: =D16 -> 8469.337757 | E26: 13379.635 | F26: 20835.96078 | G26: 24540.53913 | H26: 32736.07028 | I26: 10128.1061 | J26: 253.48907 | K26: 0 | L26: 0 | M26: 0 | N26: 0 | O26: 0 | P26: 0 | Q26: 0 | R26: 0 | S26: 0 | T26: 0 | U26: 0 | V26: 0 | W26: 0 | X26: =X16 -> 0 | Y26: =Y16 -> 0 | Z26: =Z16 -> 0 | AA26: =AA16 -> 0
A27: Closing asset value | D27: =D24-D25+D26 -> 11275.85797 | E27: 17918.36467 | F27: 28128.19605 | G27: 37519.31058 | H27: 50047.62621 | I27: 39508.85259 | J27: 24898.99274 | K27: 15561.87046 | L27: 9726.169037 | M27: 6078.855648 | N27: 3799.28478 | O27: 2374.552988 | P27: 1484.095617 | Q27: 927.5597608 | R27: 579.7248505 | S27: 362.3280316 | T27: 226.4550197 | U27: 141.5343873 | V27: 88.45899208 | W27: 55.28687005 | X27: =X24-X25+X26 -> 34.55429378 | Y27: =Y24-Y25+Y26 -> 21.59643361 | Z27: =Z24-Z25+Z26 -> 13.49777101 | AA27: =AA24-AA25+AA26 -> 8.43610688
A29: ='Data 2009-15 (Real $2008)'!A$163 -> Meters and transformers (Group 2) (Unit cost => $1,000)
A30: =A$24 -> Opening asset value | D30: ='Offset of Costs and Rev 2006-08'!F262+SUM('Data 2006-08'!D95:F95)/10^3 -> 0 | E30: =D33 -> 0 | F30: 0 | G30: 0 | H30: 0 | I30: 0 | J30: 0 | K30: 0 | L30: 0 | M30: 0 | N30: 0 | O30: 0 | P30: 0 | Q30: 0 | R30: 0 | S30: 0 | T30: 0 | U30: 0 | V30: 0 | W30: 0 | X30: =W33 -> 0 | Y30: =X33 -> 0 | Z30: =Y33 -> 0 | AA30: =Z33 -> 0
A31: =A$25 -> Depreciation | D31: =$D$7*(D30+D32*0.5) -> 0 | E31: 0 | F31: 0 | G31: 0 | H31: 0 | I31: 0 | J31: 0 | K31: 0 | L31: 0 | M31: 0 | N31: 0 | O31: 0 | P31: 0 | Q31: 0 | R31: 0 | S31: 0 | T31: 0 | U31: 0 | V31: 0 | W31: 0 | X31: =$D$7*(X30+X32*0.5) -> 0 | Y31: =$D$7*(Y30+Y32*0.5) -> 0 | Z31: =$D$7*(Z30+Z32*0.5) -> 0 | AA31: =$D$7*(AA30+AA32*0.5) -> 0
A32: =A$26 -> Gross capex | D32: =D17 -> 0 | E32: 0 | F32: 0 | G32: 0 | H32: 0 | I32: 0 | J32: 0 | K32: 0 | L32: 0 | M32: 0 | N32: 0 | O32: 0 | P32: 0 | Q32: 0 | R32: 0 | S32: 0 | T32: 0 | U32: 0 | V32: 0 | W32: 0 | X32: =X17 -> 0 | Y32: =Y17 -> 0 | Z32: =Z17 -> 0 | AA32: =AA17 -> 0
A33: =A$27 -> Closing asset value | D33: =D30-D31+D32 -> 0 | E33: 0 | F33: 0 | G33: 0 | H33: 0 | I33: 0 | J33: 0 | K33: 0 | L33: 0 | M33: 0 | N33: 0 | O33: 0 | P33: 0 | Q33: 0 | R33: 0 | S33: 0 | T33: 0 | U33: 0 | V33: 0 | W33: 0 | X33: =X30-X31+X32 -> 0 | Y33: =Y30-Y31+Y32 -> 0 | Z33: =Z30-Z31+Z32 -> 0 | AA33: =AA30-AA31+AA32 -> 0
A35: ='Data 2009-15 (Real $2008)'!A$164 -> IT
A36: =A$24 -> Opening asset value | D36: ='Offset of Costs and Rev 2006-08'!F268+SUM('Data 2006-08'!D96:F96)/10^3 -> 2905.32644 | E36: =D39 -> 22289.75298 | F36: 17440.74539 | G36: 10693.18056 | H36: 6815.166097 | I36: 4751.718922 | J36: 5612.233121 | K36: 8390.106273 | L36: 5034.063764 | M36: 3020.438258 | N36: 1812.262955 | O36: 1087.357773 | P36: 652.4146638 | Q36: 391.4487983 | R36: 234.869279 | S36: 140.9215674 | T36: 84.55294043 | U36: 50.73176426 | V36: 30.43905855 | W36: 18.26343513 | X36: =W39 -> 10.95806108 | Y36: =X39 -> 6.574836647 | Z36: =Y39 -> 3.944901988 | AA36: =Z39 -> 2.366941193
A37: =A$25 -> Depreciation | D37: =$D$8*(D36+D38*0.5) -> 6298.769855 | E37: 9932.624592 | F37: 7033.481488 | G37: 4377.086665 | H37: 2891.721255 | I37: 2590.988011 | J37: 3500.584849 | K37: 3356.042509 | L37: 2013.625505 | M37: 1208.175303 | N37: 724.905182 | O37: 434.9431092 | P37: 260.9658655 | Q37: 156.5795193 | R37: 93.94771158 | S37: 56.36862695 | T37: 33.82117617 | U37: 20.2927057 | V37: 12.17562342 | W37: 7.305374053 | X37: =$D$8*(X36+X38*0.5) -> 4.383224432 | Y37: =$D$8*(Y36+Y38*0.5) -> 2.629934659 | Z37: =$D$8*(Z36+Z38*0.5) -> 1.577960795 | AA37: =$D$8*(AA36+AA38*0.5) -> 0.9467764772
A38: =A$26 -> Gross capex | D38: =D18 -> 25683.1964 | E38: 5083.617 | F38: 285.916662 | G38: 499.0721998 | H38: 828.27408 | I38: 3451.50221 | J38: 6278.458 | K38: 0 | L38: 0 | M38: 0 | N38: 0 | O38: 0 | P38: 0 | Q38: 0 | R38: 0 | S38: 0 | T38: 0 | U38: 0 | V38: 0 | W38: 0 | X38: =X18 -> 0 | Y38: =Y18 -> 0 | Z38: =Z18 -> 0 | AA38: =AA18 -> 0
A39: =A$27 -> Closing asset value | D39: =D36-D37+D38 -> 22289.75298 | E39: 17440.74539 | F39: 10693.18056 | G39: 6815.166097 | H39: 4751.718922 | I39: 5612.233121 | J39: 8390.106273 | K39: 5034.063764 | L39: 3020.438258 | M39: 1812.262955 | N39: 1087.357773 | O39: 652.4146638 | P39: 391.4487983 | Q39: 234.869279 | R39: 140.9215674 | S39: 84.55294043 | T39: 50.73176426 | U39: 30.43905855 | V39: 18.26343513 | W39: 10.95806108 | X39: =X36-X37+X38 -> 6.574836647 | Y39: =Y36-Y37+Y38 -> 3.944901988 | Z39: =Z36-Z37+Z38 -> 2.366941193 | AA39: =AA36-AA37+AA38 -> 1.420164716
A41: ='Data 2009-15 (Real $2008)'!A$165 -> Communications
A42: =A$24 -> Opening asset value | D42: =SUM('Data 2006-08'!D97:F97)/10^3 -> 0 | E42: =D45 -> 120.6562612 | F42: 403.958491 | G42: 1380.049071 | H42: 2605.291765 | I42: 4852.48794 | J42: 4445.328391 | K42: 4103.530361 | L42: 3224.202426 | M42: 2533.301906 | N42: 1990.451498 | O42: 1563.926177 | P42: 1228.799139 | Q42: 965.4850377 | R42: 758.5953868 | S42: 596.0392325 | T42: 468.3165398 | U42: 367.9629956 | V42: 289.1137822 | W42: 227.1608289 | X42: =W45 -> 178.4835084 | Y42: =X45 -> 140.2370423 | Z42: =Y45 -> 110.1862475 | AA42: =Z45 -> 86.57490878
A43: =A$25 -> Depreciation | D43: =$D$9*(D42+D44*0.5) -> 14.47875135 | E43: 62.95377026 | F43: 214.0809075 | G43: 478.2409004 | H43: 894.9335647 | I43: 1115.73796 | J43: 1025.86305 | K43: 879.3279344 | L43: 690.9005199 | M43: 542.8504085 | N43: 426.525321 | O43: 335.1270379 | P43: 263.3141012 | Q43: 206.8896509 | R43: 162.5561543 | S43: 127.7226927 | T43: 100.3535442 | U43: 78.84921333 | V43: 61.95295333 | W43: 48.67732048 | X43: =$D$9*(X42+X44*0.5) -> 38.24646609 | Y43: =$D$9*(Y42+Y44*0.5) -> 30.05079478 | Z43: =$D$9*(Z42+Z44*0.5) -> 23.61133876 | AA43: =$D$9*(AA42+AA44*0.5) -> 18.55176617
A44: =A$26 -> Gross capex | D44: =D19 -> 135.1350126 | E44: 346.256 | F44: 1190.171488 | G44: 1703.483594 | H44: 3142.12974 | I44: 708.57841 | J44: 684.06502 | K44: 0 | L44: 0 | M44: 0 | N44: 0 | O44: 0 | P44: 0 | Q44: 0 | R44: 0 | S44: 0 | T44: 0 | U44: 0 | V44: 0 | W44: 0 | X44: =X19 -> 0 | Y44: =Y19 -> 0 | Z44: =Z19 -> 0 | AA44: =AA19 -> 0
A45: =A$27 -> Closing asset value | D45: =D42-D43+D44 -> 120.6562612 | E45: 403.958491 | F45: 1380.049071 | G45: 2605.291765 | H45: 4852.48794 | I45: 4445.328391 | J45: 4103.530361 | K45: 3224.202426 | L45: 2533.301906 | M45: 1990.451498 | N45: 1563.926177 | O45: 1228.799139 | P45: 965.4850377 | Q45: 758.5953868 | R45: 596.0392325 | S45: 468.3165398 | T45: 367.9629956 | U45: 289.1137822 | V45: 227.1608289 | W45: 178.4835084 | X45: =X42-X43+X44 -> 140.2370423 | Y45: =Y42-Y43+Y44 -> 110.1862475 | Z45: =Z42-Z43+Z44 -> 86.57490878 | AA45: =AA42-AA43+AA44 -> 68.02314262
A47: ='Data 2009-15 (Real $2008)'!A$166 -> Other
A48: =A$24 -> Opening asset value | D48: ='Offset of Costs and Rev 2006-08'!F274+SUM('Data 2006-08'!D98:F98)/10^3 -> 13970.52556 | E48: =D51 -> 38992.91183 | F48: 51109.50054 | G48: 48245.15124 | H48: 42240.95118 | I48: 35194.39395 | J48: 31002.8008 | K48: 25531.7183 | L48: 21026.12096 | M48: 17315.62902 | N48: 14259.92978 | O48: 11743.47159 | P48: 9671.094247 | Q48: 7964.430557 | R48: 6558.942811 | S48: 5401.482315 | T48: 4448.279554 | U48: 3663.289044 | V48: 3016.826272 | W48: 2484.445165 | X48: =W51 -> 2046.013665 | Y48: =X51 -> 1684.95243 | Z48: =Y51 -> 1387.607884 | AA48: =Z51 -> 1142.735904
A49: =A$25 -> Depreciation | D49: =$D$10*(D48+D50*0.5) -> 5125.493941 | E49: 8719.588294 | F49: 9614.966301 | G49: 8756.719589 | H49: 7493.743077 | I49: 6406.180136 | J49: 5471.082493 | K49: 4505.597348 | L49: 3710.491933 | M49: 3055.699239 | N49: 2516.458197 | O49: 2072.377339 | P49: 1706.663691 | Q49: 1405.487745 | R49: 1157.460496 | S49: 953.2027615 | T49: 784.9905095 | U49: 646.4627725 | V49: 532.3811068 | W49: 438.4314997 | X49: =$D$10*(X48+X50*0.5) -> 361.061235 | Y49: =$D$10*(Y48+Y50*0.5) -> 297.3445465 | Z49: =$D$10*(Z48+Z50*0.5) -> 244.8719795 | AA49: =$D$10*(AA48+AA50*0.5) -> 201.6592772
A50: =A$26 -> Gross capex | D50: =D20 -> 30147.88022 | E50: 20836.177 | F50: 6750.617 | G50: 2752.519533 | H50: 447.18584 | I50: 2214.586987 | J50: 0 | K50: 0 | L50: 0 | M50: 0 | N50: 0 | O50: 0 | P50: 0 | Q50: 0 | R50: 0 | S50: 0 | T50: 0 | U50: 0 | V50: 0 | W50: 0 | X50: =X20 -> 0 | Y50: =Y20 -> 0 | Z50: =Z20 -> 0 | AA50: =AA20 -> 0
A51: =A$27 -> Closing asset value | D51: =D48-D49+D50 -> 38992.91183 | E51: 51109.50054 | F51: 48245.15124 | G51: 42240.95118 | H51: 35194.39395 | I51: 31002.8008 | J51: 25531.7183 | K51: 21026.12096 | L51: 17315.62902 | M51: 14259.92978 | N51: 11743.47159 | O51: 9671.094247 | P51: 7964.430557 | Q51: 6558.942811 | R51: 5401.482315 | S51: 4448.279554 | T51: 3663.289044 | U51: 3016.826272 | V51: 2484.445165 | W51: 2046.013665 | X51: =X48-X49+X50 -> 1684.95243 | Y51: =Y48-Y49+Y50 -> 1387.607884 | Z51: =Z48-Z49+Z50 -> 1142.735904 | AA51: =AA48-AA49+AA50 -> 941.076627
A54: Total | D54: =D$13 -> 2009 | E54: 2010 | F54: 2011 | G54: 2012 | H54: 2013 | I54: 2014 | J54: 2015 | K54: 2016 | L54: 2017 | M54: 2018 | N54: 2019 | O54: 2020 | P54: 2021 | Q54: 2022 | R54: 2023 | S54: 2024 | T54: 2025 | U54: 2026 | V54: 2027 | W54: 2028 | X54: 2029 | Y54: 2030 | Z54: 2031 | AA54: 2032
A55: =A$24 -> Opening asset value | D55: =SUM(D24,D30,D36,D42,D48) -> 23907.08566 | E55: 72679.17904 | F55: 86872.56908 | G55: 88446.57693 | H55: 89180.71962 | I55: 94846.22702 | J55: 80569.21489 | K55: 62924.34767 | L55: 44846.25761 | M55: 32595.53822 | N55: 24141.49988 | O55: 18194.04032 | P55: 13926.86104 | Q55: 10805.46001 | R55: 8479.967238 | S55: 6718.167966 | T55: 5363.477065 | U55: 4308.438824 | V55: 3477.9135 | W55: 2818.328421 | X55: =SUM(X24,X30,X36,X42,X48) -> 2290.742105 | Y55: 1866.318603 | Z55: 1523.335467 | AA55: 1245.175525
A56: =A$25 -> Depreciation | D56: =SUM(D25,D31,D37,D43,D49) -> 15663.456 | E56: 25452.29496 | F56: 27488.65809 | G56: 28761.47176 | H56: 31488.15254 | I56: 30779.78583 | J56: 24860.87931 | K56: 18078.09007 | L56: 12250.71938 | M56: 8454.03834 | N56: 5947.459568 | O56: 4267.179278 | P56: 3121.401028 | Q56: 2325.492772 | R56: 1761.799272 | S56: 1354.6909 | T56: 1055.038242 | U56: 830.5253239 | V56: 659.5850788 | W56: 527.5863163 | X56: 424.4235018 | Y56: 342.9831361 | Z56: 278.1599416 | AA56: 226.219484
A57: =A$26 -> Gross capex | D57: =SUM(D26,D32,D38,D44,D50) -> 64435.54938 | E57: 39645.685 | F57: 29062.66593 | G57: 29495.61446 | H57: 37153.65994 | I57: 16502.7737 | J57: 7216.01209 | K57: 0 | L57: 0 | M57: 0 | N57: 0 | O57: 0 | P57: 0 | Q57: 0 | R57: 0 | S57: 0 | T57: 0 | U57: 0 | V57: 0 | W57: 0 | X57: 0 | Y57: 0 | Z57: 0 | AA57: 0
A58: =A$27 -> Closing asset value | D58: =SUM(D27,D33,D39,D45,D51) -> 72679.17904 | E58: 86872.56908 | F58: 88446.57693 | G58: 89180.71962 | H58: 94846.22702 | I58: 80569.21489 | J58: 62924.34767 | K58: 44846.25761 | L58: 32595.53822 | M58: 24141.49988 | N58: 18194.04032 | O58: 13926.86104 | P58: 10805.46001 | Q58: 8479.967238 | R58: 6718.167966 | S58: 5363.477065 | T58: 4308.438824 | U58: 3477.9135 | V58: 2818.328421 | W58: 2290.742105 | X58: 1866.318603 | Y58: 1523.335467 | Z58: 1245.175525 | AA58: 1018.956041
A59: Check | C59: =SUM(D59:AA59) -> 4.615685611e-11 | D59: =ABS(D55-D56+D57-D58) -> 0 | E59: =ABS(E55-E56+E57-E58) -> 1.455191523e-11 | F59: 0 | G59: 0 | H59: 1.455191523e-11 | I59: 0 | J59: 7.275957614e-12 | K59: 7.275957614e-12 | L59: 0 | M59: 0 | N59: 0 | O59: 0 | P59: 0 | Q59: 0 | R59: 9.094947018e-13 | S59: 9.094947018e-13 | T59: 0 | U59: 4.547473509e-13 | V59: 0 | W59: 0 | X59: =ABS(X55-X56+X57-X58) -> 2.273736754e-13 | Y59: =ABS(Y55-Y56+Y57-Y58) -> 0 | Z59: =ABS(Z55-Z56+Z57-Z58) -> 0 | AA59: =ABS(AA55-AA56+AA57-AA58) -> 0

Sheet AMI RAB 2009-15
A1: ='Data 2006-08'!$A$1 -> Jemena | B1: Check | C1: =IF(SUM(C14,C77,C85,C129,C174)<0.001,"Ok","Error") -> Ok | D1: 2009 | E1: 2010 | F1: 2011 | G1: 2012 | H1: 2013 | I1: 2014 | J1: 2015 | K1: 2016 | L1: 2017 | M1: 2018 | N1: 2019 | O1: 2020 | P1: 2021 | Q1: 2022 | R1: 2023 | S1: 2024 | T1: 2025 | U1: 2026 | V1: 2027 | W1: 2028 | X1: 2029 | Y1: 2030 | Z1: 2031 | AA1: 2032
C2: =SUM(C14,C77,C85,C129,C174) -> 0
A3: Regulatory Asset Base
A4: ($000 Real 2008) | D4: =D$1 -> 2009 | E4: =E$1 -> 2010 | F4: 2011 | G4: 2012 | H4: 2013 | I4: 2014 | J4: 2015 | K4: 2016 | L4: 2017 | M4: 2018 | N4: 2019 | O4: 2020 | P4: 2021 | Q4: 2022 | R4: 2023 | S4: 2024 | T4: 2025 | U4: 2026 | V4: 2027 | W4: 2028 | X4: 2029 | Y4: 2030 | Z4: 2031 | AA4: 2032
A5: Opening RAB | D5: =D82+D126 -> 30527.28373 | E5: =D10 -> 82213.04908 | F5: =E10 -> 102961.3067 | G5: =F10 -> 108959.609 | H5: 111628.4289 | I5: 117954.5674 | J5: 109923.3043 | K5: 94142.16423 | L5: 77018.50816 | M5: 65467.63183 | N5: 56219.40133 | O5: 47821.84633 | P5: 40010.66648 | Q5: 32859.2483 | R5: 26506.50492 | S5: 20566.15166 | T5: 14773.42737 | U5: 9453.749017 | V5: 5017.878253 | W5: 1839.990161 | X5: =W10 -> 307.4276762 | Y5: =X10 -> 7.006605101 | Z5: =Y10 -> -2.870592652e-11 | AA5: =Z10 -> -2.870592652e-11
A6: Gross capital expenditure | D6: ='Data 2009-15 (Real $2008)'!D16/10^3 -> 61378.24704 | E6: ='Data 2009-15 (Real $2008)'!E16/10^3 -> 37294.22088 | F6: ='Data 2009-15 (Real $2008)'!F16/10^3 -> 26597.45422 | G6: ='Data 2009-15 (Real $2008)'!G16/10^3 -> 26075.83307 | H6: ='Data 2009-15 (Real $2008)'!H16/10^3 -> 32200.68492 | I6: ='Data 2009-15 (Real $2008)'!I16/10^3 -> 14000.22098 | J6: ='Data 2009-15 (Real $2008)'!J16/10^3 -> 5983.66002
A7: Customer contributions | D7: ='Data 2009-15 (Real $2008)'!D40/10^3 -> 0 | E7: ='Data 2009-15 (Real $2008)'!E40/10^3 -> 0 | F7: ='Data 2009-15 (Real $2008)'!F40/10^3 -> 0 | G7: ='Data 2009-15 (Real $2008)'!G40/10^3 -> 0 | H7: ='Data 2009-15 (Real $2008)'!H40/10^3 -> 0 | I7: ='Data 2009-15 (Real $2008)'!I40/10^3 -> 0 | J7: ='Data 2009-15 (Real $2008)'!J40/10^3 -> 0
A8: Disposals - proceeds from sale of assets | D8: ='Data 2009-15 (Real $2008)'!D49/10^3 -> 0 | E8: ='Data 2009-15 (Real $2008)'!E49/10^3 -> 0 | F8: ='Data 2009-15 (Real $2008)'!F49/10^3 -> 0 | G8: ='Data 2009-15 (Real $2008)'!G49/10^3 -> 0 | H8: ='Data 2009-15 (Real $2008)'!H49/10^3 -> 0 | I8: ='Data 2009-15 (Real $2008)'!I49/10^3 -> 0 | J8: ='Data 2009-15 (Real $2008)'!J49/10^3 -> 0
A9: Regulatory depreciation | D9: =SUM(D83,D127,D172) -> 9692.481691 | E9: =SUM(E83,E127,E172) -> 16545.96326 | F9: 20599.15193 | G9: 23407.01316 | H9: 25874.54645 | I9: 22031.48407 | J9: 21764.80008 | K9: 17123.65606 | L9: 11550.87633 | M9: 9248.2305 | N9: 8397.555006 | O9: 7811.179851 | P9: 7151.418173 | Q9: 6352.743386 | R9: 5940.353253 | S9: 5792.72429 | T9: 5319.678355 | U9: 4435.870764 | V9: 3177.888092 | W9: 1532.562485 | X9: =SUM(X83,X127,X172) -> 300.4210711 | Y9: =SUM(Y83,Y127,Y172) -> 7.006605101 | Z9: =SUM(Z83,Z127,Z172) -> 0 | AA9: =SUM(AA83,AA127,AA172) -> 0
A10: Closing RAB | D10: =D5+D6-SUM(D7:D9) -> 82213.04908 | E10: =E5+E6-SUM(E7:E9) -> 102961.3067 | F10: =F5+F6-SUM(F7:F9) -> 108959.609 | G10: =G5+G6-SUM(G7:G9) -> 111628.4289 | H10: 117954.5674 | I10: 109923.3043 | J10: 94142.16423 | K10: 77018.50816 | L10: 65467.63183 | M10: 56219.40133 | N10: 47821.84633 | O10: 40010.66648 | P10: 32859.2483 | Q10: 26506.50492 | R10: 20566.15166 | S10: 14773.42737 | T10: 9453.749017 | U10: 5017.878253 | V10: 1839.990161 | W10: 307.4276762 | X10: =X5+X6-SUM(X7:X9) -> 7.006605101 | Y10: =Y5+Y6-SUM(Y7:Y9) -> -2.870592652e-11 | Z10: =Z5+Z6-SUM(Z7:Z9) -> -2.870592652e-11 | AA10: =AA5+AA6-SUM(AA7:AA9) -> -2.870592652e-11
A12: Average RAB | D12: =AVERAGE(D5,D10) -> 56370.16641 | E12: =AVERAGE(E5,E10) -> 92587.17789 | F12: =AVERAGE(F5,F10) -> 105960.4579 | G12: =AVERAGE(G5,G10) -> 110294.019 | H12: 114791.4981 | I12: 113938.9358 | J12: 102032.7343 | K12: 85580.33619 | L12: 71243.07 | M12: 60843.51658 | N12: 52020.62383 | O12: 43916.2564 | P12: 36434.95739 | Q12: 29682.87661 | R12: 23536.32829 | S12: 17669.78952 | T12: 12113.58819 | U12: 7235.813635 | V12: 3428.934207 | W12: 1073.708919 | X12: =AVERAGE(X5,X10) -> 157.2171406 | Y12: =AVERAGE(Y5,Y10) -> 3.503302551 | Z12: =AVERAGE(Z5,Z10) -> -2.870592652e-11 | AA12: =AVERAGE(AA5,AA10) -> -2.870592652e-11
A14: Check | C14: =SUM(D14:AA14) -> 0 | D14: =IF(ABS(D10-D84-D128-D173)<0.001,0,ABS(D10-D84-D128-D173)) -> 0 | E14: 0 | F14: 0 | G14: 0 | H14: 0 | I14: 0 | J14: 0 | K14: 0 | L14: 0 | M14: 0 | N14: 0 | O14: 0 | P14: 0 | Q14: 0 | R14: 0 | S14: 0 | T14: 0 | U14: 0 | V14: 0 | W14: 0 | X14: =IF(ABS(X10-X84-X128-X173)<0.001,0,ABS(X10-X84-X128-X173)) -> 0 | Y14: =IF(ABS(Y10-Y84-Y128-Y173)<0.001,0,ABS(Y10-Y84-Y128-Y173)) -> 0 | Z14: =IF(ABS(Z10-Z84-Z128-Z173)<0.001,0,ABS(Z10-Z84-Z128-Z173)) -> 0 | AA14: =IF(ABS(AA10-AA84-AA128-AA173)<0.001,0,ABS(AA10-AA84-AA128-AA173)) -> 0
A18: Accumulation meters
A19: =$A$4 -> ($000 Real 2008) | D19: =D$4 -> 2009 | E19: =E$4 -> 2010 | F19: 2011 | G19: 2012 | H19: 2013 | I19: 2014 | J19: 2015 | K19: 2016 | L19: 2017 | M19: 2018 | N19: 2019 | O19: 2020 | P19: 2021 | Q19: 2022 | R19: 2023 | S19: 2024 | T19: 2025 | U19: 2026 | V19: 2027 | W19: 2028 | X19: 2029 | Y19: 2030 | Z19: 2031 | AA19: 2032
A20: Opening RAB | D20: =B92 -> 12479.5142 | E20: =D25 -> 12481.01379 | F20: =E25 -> 10860.28343 | G20: 8388.606449 | H20: 4237.959248 | I20: 0 | J20: 0 | K20: 0 | L20: 0 | M20: 0 | N20: 0 | O20: 0 | P20: 0 | Q20: 0 | R20: 0 | S20: 0 | T20: 0 | U20: 0 | V20: 0 | W20: 0 | X20: =W25 -> 0 | Y20: =X25 -> 0 | Z20: =Y25 -> 0 | AA20: =Z25 -> 0
A21: Gross capital expenditure | D21: ='Data 2009-15 (Real $2008)'!D10/10^3 -> 2809.577734 | E21: ='Data 2009-15 (Real $2008)'!E10/10^3 -> 1749.443603 | F21: ='Data 2009-15 (Real $2008)'!F10/10^3 -> 1435.521869 | G21: ='Data 2009-15 (Real $2008)'!G10/10^3 -> 65.48403424 | H21: ='Data 2009-15 (Real $2008)'!H10/10^3 -> 0 | I21: ='Data 2009-15 (Real $2008)'!I10/10^3 -> 0 | J21: ='Data 2009-15 (Real $2008)'!J10/10^3 -> 0
A22: Customer contributions | D22: ='Data 2009-15 (Real $2008)'!D34/10^3 -> 0 | E22: ='Data 2009-15 (Real $2008)'!E34/10^3 -> 0 | F22: ='Data 2009-15 (Real $2008)'!F34/10^3 -> 0 | G22: ='Data 2009-15 (Real $2008)'!G34/10^3 -> 0 | H22: ='Data 2009-15 (Real $2008)'!H34/10^3 -> 0 | I22: ='Data 2009-15 (Real $2008)'!I34/10^3 -> 0 | J22: ='Data 2009-15 (Real $2008)'!J34/10^3 -> 0
A23: Disposals - proceeds from sale of assets | D23: ='Data 2009-15 (Real $2008)'!D43/10^3 -> 0 | E23: ='Data 2009-15 (Real $2008)'!E43/10^3 -> 0 | F23: ='Data 2009-15 (Real $2008)'!F43/10^3 -> 0 | G23: ='Data 2009-15 (Real $2008)'!G43/10^3 -> 0 | H23: ='Data 2009-15 (Real $2008)'!H43/10^3 -> 0 | I23: ='Data 2009-15 (Real $2008)'!I43/10^3 -> 0 | J23: ='Data 2009-15 (Real $2008)'!J43/10^3 -> 0
A24: Regulatory depreciation | D24: =D92+D198 -> 2808.078144 | E24: =E92+E198 -> 3370.173962 | F24: 3907.198851 | G24: 4216.131236 | H24: 4237.959248 | I24: 0 | J24: 0 | K24: 0 | L24: 0 | M24: 0 | N24: 0 | O24: 0 | P24: 0 | Q24: 0 | R24: 0 | S24: 0 | T24: 0 | U24: 0 | V24: 0 | W24: 0 | X24: =X92+X198 -> 0 | Y24: =Y92+Y198 -> 0 | Z24: =Z92+Z198 -> 0 | AA24: =AA92+AA198 -> 0
A25: Closing RAB | D25: =D20+D21-SUM(D22:D24) -> 12481.01379 | E25: =E20+E21-SUM(E22:E24) -> 10860.28343 | F25: 8388.606449 | G25: 4237.959248 | H25: 0 | I25: 0 | J25: 0 | K25: 0 | L25: 0 | M25: 0 | N25: 0 | O25: 0 | P25: 0 | Q25: 0 | R25: 0 | S25: 0 | T25: 0 | U25: 0 | V25: 0 | W25: 0 | X25: =X20+X21-SUM(X22:X24) -> 0 | Y25: =Y20+Y21-SUM(Y22:Y24) -> 0 | Z25: =Z20+Z21-SUM(Z22:Z24) -> 0 | AA25: =AA20+AA21-SUM(AA22:AA24) -> 0
A28: Manually read interval meters
A29: =$A$4 -> ($000 Real 2008) | D29: =D$4 -> 2009 | E29: =E$4 -> 2010 | F29: 2011 | G29: 2012 | H29: 2013 | I29: 2014 | J29: 2015 | K29: 2016 | L29: 2017 | M29: 2018 | N29: 2019 | O29: 2020 | P29: 2021 | Q29: 2022 | R29: 2023 | S29: 2024 | T29: 2025 | U29: 2026 | V29: 2027 | W29: 2028 | X29: 2029 | Y29: 2030 | Z29: 2031 | AA29: 2032
A30: Opening RAB | D30: =B100 -> 596.0048816 | E30: =D35 -> 1213.730739 | F30: =E35 -> 1830.963395 | G30: 1925.706845 | H30: 1390.862471 | I30: 0 | J30: -1.136868377e-13 | K30: -1.136868377e-13 | L30: -1.136868377e-13 | M30: -1.136868377e-13 | N30: -1.136868377e-13 | O30: -1.136868377e-13 | P30: -1.136868377e-13 | Q30: -1.136868377e-13 | R30: -1.136868377e-13 | S30: -1.136868377e-13 | T30: -1.136868377e-13 | U30: -1.136868377e-13 | V30: -1.136868377e-13 | W30: -1.136868377e-13 | X30: =W35 -> -1.136868377e-13 | Y30: =X35 -> -1.136868377e-13 | Z30: =Y35 -> -1.136868377e-13 | AA30: =Z35 -> -1.136868377e-13
A31: Gross capital expenditure | D31: ='Data 2009-15 (Real $2008)'!D11/10^3 -> 829.0426883 | E31: ='Data 2009-15 (Real $2008)'!E11/10^3 -> 1074.109563 | F31: ='Data 2009-15 (Real $2008)'!F11/10^3 -> 881.330728 | G31: ='Data 2009-15 (Real $2008)'!G11/10^3 -> 642.0135729 | H31: ='Data 2009-15 (Real $2008)'!H11/10^3 -> 0 | I31: ='Data 2009-15 (Real $2008)'!I11/10^3 -> 0 | J31: ='Data 2009-15 (Real $2008)'!J11/10^3 -> 0
A32: Customer contributions | D32: ='Data 2009-15 (Real $2008)'!D35/10^3 -> 0 | E32: ='Data 2009-15 (Real $2008)'!E35/10^3 -> 0 | F32: ='Data 2009-15 (Real $2008)'!F35/10^3 -> 0 | G32: ='Data 2009-15 (Real $2008)'!G35/10^3 -> 0 | H32: ='Data 2009-15 (Real $2008)'!H35/10^3 -> 0 | I32: ='Data 2009-15 (Real $2008)'!I35/10^3 -> 0 | J32: ='Data 2009-15 (Real $2008)'!J35/10^3 -> 0
A33: Disposals - proceeds from sale of assets | D33: ='Data 2009-15 (Real $2008)'!D44/10^3 -> 0 | E33: ='Data 2009-15 (Real $2008)'!E44/10^3 -> 0 | F33: ='Data 2009-15 (Real $2008)'!F44/10^3 -> 0 | G33: ='Data 2009-15 (Real $2008)'!G44/10^3 -> 0 | H33: ='Data 2009-15 (Real $2008)'!H44/10^3 -> 0 | I33: ='Data 2009-15 (Real $2008)'!I44/10^3 -> 0 | J33: ='Data 2009-15 (Real $2008)'!J44/10^3 -> 0
A34: Regulatory depreciation | D34: =D100+D210 -> 211.3168306 | E34: =E100+E210 -> 456.8769082 | F34: 786.5872771 | G34: 1176.857947 | H34: 1390.862471 | I34: 1.136868377e-13 | J34: 0 | K34: 0 | L34: 0 | M34: 0 | N34: 0 | O34: 0 | P34: 0 | Q34: 0 | R34: 0 | S34: 0 | T34: 0 | U34: 0 | V34: 0 | W34: 0 | X34: =X100+X210 -> 0 | Y34: =Y100+Y210 -> 0 | Z34: =Z100+Z210 -> 0 | AA34: =AA100+AA210 -> 0
A35: Closing RAB | D35: =D30+D31-SUM(D32:D34) -> 1213.730739 | E35: 1830.963395 | F35: 1925.706845 | G35: 1390.862471 | H35: 0 | I35: -1.136868377e-13 | J35: -1.136868377e-13 | K35: -1.136868377e-13 | L35: -1.136868377e-13 | M35: -1.136868377e-13 | N35: -1.136868377e-13 | O35: -1.136868377e-13 | P35: -1.136868377e-13 | Q35: -1.136868377e-13 | R35: -1.136868377e-13 | S35: -1.136868377e-13 | T35: -1.136868377e-13 | U35: -1.136868377e-13 | V35: -1.136868377e-13 | W35: -1.136868377e-13 | X35: =X30+X31-SUM(X32:X34) -> -1.136868377e-13 | Y35: =Y30+Y31-SUM(Y32:Y34) -> -1.136868377e-13 | Z35: =Z30+Z31-SUM(Z32:Z34) -> -1.136868377e-13 | AA35: =AA30+AA31-SUM(AA32:AA34) -> -1.136868377e-13
A38: ='Data 2009-15 (Real $2008)'!A$154 -> Remotely read interval meters & transformers
A39: =$A$4 -> ($000 Real 2008) | D39: =D$4 -> 2009 | E39: =E$4 -> 2010 | F39: 2011 | G39: 2012 | H39: 2013 | I39: 2014 | J39: 2015 | K39: 2016 | L39: 2017 | M39: 2018 | N39: 2019 | O39: 2020 | P39: 2021 | Q39: 2022 | R39: 2023 | S39: 2024 | T39: 2025 | U39: 2026 | V39: 2027 | W39: 2028 | X39: 2029 | Y39: 2030 | Z39: 2031 | AA39: 2032
A40: Opening RAB | D40: =B136 -> 0 | E40: =D45 -> 4281.239914 | F40: =E45 -> 13423.07419 | G40: 28670.31026 | H40: 46895.60672 | I40: 70859.82254 | J40: 73812.12618 | K40: 68088.97769 | L40: 62148.62443 | M40: 56208.27118 | N40: 50267.91793 | O40: 44327.56468 | P40: 38387.21142 | Q40: 32446.85817 | R40: 26506.50492 | S40: 20566.15166 | T40: 14773.42737 | U40: 9453.749017 | V40: 5017.878253 | W40: 1839.990161 | X40: =W45 -> 307.4276762 | Y40: =X45 -> 7.006605101 | Z40: =Y45 -> -1.41540113e-11 | AA40: =Z45 -> -1.41540113e-11
A41: Gross capital expenditure | D41: ='Data 2009-15 (Real $2008)'!D12/10^3 -> 4428.868876 | E41: ='Data 2009-15 (Real $2008)'!E12/10^3 -> 9762.509177 | F41: ='Data 2009-15 (Real $2008)'!F12/10^3 -> 16751.71855 | G41: ='Data 2009-15 (Real $2008)'!G12/10^3 -> 20987.76163 | H41: ='Data 2009-15 (Real $2008)'!H12/10^3 -> 28372.00658 | I41: ='Data 2009-15 (Real $2008)'!I12/10^3 -> 8592.235826 | J41: ='Data 2009-15 (Real $2008)'!J12/10^3 -> 210.198153
A42: Customer contributions | D42: ='Data 2009-15 (Real $2008)'!D36/10^3 -> 0 | E42: ='Data 2009-15 (Real $2008)'!E36/10^3 -> 0 | F42: ='Data 2009-15 (Real $2008)'!F36/10^3 -> 0 | G42: ='Data 2009-15 (Real $2008)'!G36/10^3 -> 0 | H42: ='Data 2009-15 (Real $2008)'!H36/10^3 -> 0 | I42: ='Data 2009-15 (Real $2008)'!I36/10^3 -> 0 | J42: ='Data 2009-15 (Real $2008)'!J36/10^3 -> 0
A43: Disposals - proceeds from sale of assets | D43: ='Data 2009-15 (Real $2008)'!D45/10^3 -> 0 | E43: ='Data 2009-15 (Real $2008)'!E45/10^3 -> 0 | F43: ='Data 2009-15 (Real $2008)'!F45/10^3 -> 0 | G43: ='Data 2009-15 (Real $2008)'!G45/10^3 -> 0 | H43: ='Data 2009-15 (Real $2008)'!H45/10^3 -> 0 | I43: ='Data 2009-15 (Real $2008)'!I45/10^3 -> 0 | J43: ='Data 2009-15 (Real $2008)'!J45/10^3 -> 0
A44: Regulatory depreciation | D44: =D136+D222 -> 147.6289625 | E44: =E136+E222 -> 620.6748976 | F44: 1504.482489 | G44: 2762.465161 | H44: 4407.790768 | I44: 5639.932182 | J44: 5933.346648 | K44: 5940.353253 | L44: 5940.353253 | M44: 5940.353253 | N44: 5940.353253 | O44: 5940.353253 | P44: 5940.353253 | Q44: 5940.353253 | R44: 5940.353253 | S44: 5792.72429 | T44: 5319.678355 | U44: 4435.870764 | V44: 3177.888092 | W44: 1532.562485 | X44: =X136+X222 -> 300.4210711 | Y44: =Y136+Y222 -> 7.006605101 | Z44: =Z136+Z222 -> 0 | AA44: =AA136+AA222 -> 0
A45: Closing RAB | D45: =D40+D41-SUM(D42:D44) -> 4281.239914 | E45: 13423.07419 | F45: 28670.31026 | G45: 46895.60672 | H45: 70859.82254 | I45: 73812.12618 | J45: 68088.97769 | K45: 62148.62443 | L45: 56208.27118 | M45: 50267.91793 | N45: 44327.56468 | O45: 38387.21142 | P45: 32446.85817 | Q45: 26506.50492 | R45: 20566.15166 | S45: 14773.42737 | T45: 9453.749017 | U45: 5017.878253 | V45: 1839.990161 | W45: 307.4276762 | X45: =X40+X41-SUM(X42:X44) -> 7.006605101 | Y45: =Y40+Y41-SUM(Y42:Y44) -> -1.41540113e-11 | Z45: =Z40+Z41-SUM(Z42:Z44) -> -1.41540113e-11 | AA45: =AA40+AA41-SUM(AA42:AA44) -> -1.41540113e-11
A48: IT
A49: =$A$4 -> ($000 Real 2008) | D49: =D$4 -> 2009 | E49: =E$4 -> 2010 | F49: 2011 | G49: 2012 | H49: 2013 | I49: 2014 | J49: 2015 | K49: 2016 | L49: 2017 | M49: 2018 | N49: 2019 | O49: 2020 | P49: 2021 | Q49: 2022 | R49: 2023 | S49: 2024 | T49: 2025 | U49: 2026 | V49: 2027 | W49: 2028 | X49: 2029 | Y49: 2030 | Z49: 2031 | AA49: 2032
A50: Opening RAB | D50: =B108+B144 -> 2989.805362 | E50: =D55 -> 25246.95857 | F50: =E55 -> 25732.56568 | G50: 21337.47056 | H50: 17071.71492 | I50: 12999.81657 | J50: 10877.73759 | K50: 10682.74086 | L50: 6887.105583 | M50: 5180.519729 | N50: 3834.202566 | O50: 2538.090605 | P50: 1324.769013 | Q50: 371.8729725 | R50: -5.343281373e-12 | S50: -5.343281373e-12 | T50: -5.343281373e-12 | U50: -5.343281373e-12 | V50: -5.343281373e-12 | W50: -5.343281373e-12 | X50: =W55 -> -5.343281373e-12 | Y50: =X55 -> -5.343281373e-12 | Z50: =Y55 -> -5.343281373e-12 | AA50: =Z55 -> -5.343281373e-12
A51: Gross capital expenditure | D51: ='Data 2009-15 (Real $2008)'!D13/10^3 -> 24464.59428 | E51: ='Data 2009-15 (Real $2008)'!E13/10^3 -> 4782.097605 | F51: ='Data 2009-15 (Real $2008)'!F13/10^3 -> 261.6640657 | G51: ='Data 2009-15 (Real $2008)'!G13/10^3 -> 441.2087563 | H51: ='Data 2009-15 (Real $2008)'!H13/10^3 -> 717.8564028 | I51: ='Data 2009-15 (Real $2008)'!I13/10^3 -> 2928.101331 | J51: ='Data 2009-15 (Real $2008)'!J13/10^3 -> 5206.221616
A52: Customer contributions | D52: ='Data 2009-15 (Real $2008)'!D37/10^3 -> 0 | E52: ='Data 2009-15 (Real $2008)'!E37/10^3 -> 0 | F52: ='Data 2009-15 (Real $2008)'!F37/10^3 -> 0 | G52: ='Data 2009-15 (Real $2008)'!G37/10^3 -> 0 | H52: ='Data 2009-15 (Real $2008)'!H37/10^3 -> 0 | I52: ='Data 2009-15 (Real $2008)'!I37/10^3 -> 0 | J52: ='Data 2009-15 (Real $2008)'!J37/10^3 -> 0
A53: Disposals - proceeds from sale of assets | D53: ='Data 2009-15 (Real $2008)'!D46/10^3 -> 0 | E53: ='Data 2009-15 (Real $2008)'!E46/10^3 -> 0 | F53: ='Data 2009-15 (Real $2008)'!F46/10^3 -> 0 | G53: ='Data 2009-15 (Real $2008)'!G46/10^3 -> 0 | H53: ='Data 2009-15 (Real $2008)'!H46/10^3 -> 0 | I53: ='Data 2009-15 (Real $2008)'!I46/10^3 -> 0 | J53: ='Data 2009-15 (Real $2008)'!J46/10^3 -> 0
A54: Regulatory depreciation | D54: =D108+D144+D234 -> 2207.441076 | E54: =E108+E144+E234 -> 4296.490497 | F54: 4656.759187 | G54: 4706.964389 | H54: 4789.754757 | I54: 5050.18031 | J54: 5401.21835 | K54: 3795.635274 | L54: 1706.585853 | M54: 1346.317163 | N54: 1296.111961 | O54: 1213.321593 | P54: 952.8960402 | Q54: 371.8729725 | R54: 0 | S54: 0 | T54: 0 | U54: 0 | V54: 0 | W54: 0 | X54: =X108+X144+X234 -> 0 | Y54: =Y108+Y144+Y234 -> 0 | Z54: =Z108+Z144+Z234 -> 0 | AA54: =AA108+AA144+AA234 -> 0
A55: Closing RAB | D55: =D50+D51-SUM(D52:D54) -> 25246.95857 | E55: 25732.56568 | F55: 21337.47056 | G55: 17071.71492 | H55: 12999.81657 | I55: 10877.73759 | J55: 10682.74086 | K55: 6887.105583 | L55: 5180.519729 | M55: 3834.202566 | N55: 2538.090605 | O55: 1324.769013 | P55: 371.8729725 | Q55: -5.343281373e-12 | R55: -5.343281373e-12 | S55: -5.343281373e-12 | T55: -5.343281373e-12 | U55: -5.343281373e-12 | V55: -5.343281373e-12 | W55: -5.343281373e-12 | X55: =X50+X51-SUM(X52:X54) -> -5.343281373e-12 | Y55: =Y50+Y51-SUM(Y52:Y54) -> -5.343281373e-12 | Z55: =Z50+Z51-SUM(Z52:Z54) -> -5.343281373e-12 | AA55: =AA50+AA51-SUM(AA52:AA54) -> -5.343281373e-12
A58: Communications
A59: =$A$4 -> ($000 Real 2008) | D59: =D$4 -> 2009 | E59: =E$4 -> 2010 | F59: 2011 | G59: 2012 | H59: 2013 | I59: 2014 | J59: 2015 | K59: 2016 | L59: 2017 | M59: 2018 | N59: 2019 | O59: 2020 | P59: 2021 | Q59: 2022 | R59: 2023 | S59: 2024 | T59: 2025 | U59: 2026 | V59: 2027 | W59: 2028 | X59: 2029 | Y59: 2030 | Z59: 2031 | AA59: 2032
A60: Opening RAB | D60: =B152 -> 0 | E60: =D65 -> 119.5286868 | F60: =E65 -> 403.5928951 | G60: 1350.087806 | H60: 2527.973545 | I60: 4621.043935 | J60: 4354.534615 | K60: 3970.684297 | L60: 2988.271081 | M60: 2038.318012 | N60: 1189.431748 | O60: 525.9165276 | P60: 164.4890884 | Q60: 40.51716081 | R60: -2.557953849e-13 | S60: -2.557953849e-13 | T60: -2.557953849e-13 | U60: -2.557953849e-13 | V60: -2.557953849e-13 | W60: -2.557953849e-13 | X60: =W65 -> -2.557953849e-13 | Y60: =X65 -> -2.557953849e-13 | Z60: =Y65 -> -2.557953849e-13 | AA60: =Z65 -> -2.557953849e-13
A61: Gross capital expenditure | D61: ='Data 2009-15 (Real $2008)'!D14/10^3 -> 128.7232012 | E61: ='Data 2009-15 (Real $2008)'!E14/10^3 -> 325.7188707 | F61: ='Data 2009-15 (Real $2008)'!F14/10^3 -> 1089.216376 | G61: ='Data 2009-15 (Real $2008)'!G14/10^3 -> 1505.97825 | H61: ='Data 2009-15 (Real $2008)'!H14/10^3 -> 2723.250681 | I61: ='Data 2009-15 (Real $2008)'!I14/10^3 -> 601.1264833 | J61: ='Data 2009-15 (Real $2008)'!J14/10^3 -> 567.2402513
A62: Customer contributions | D62: ='Data 2009-15 (Real $2008)'!D38/10^3 -> 0 | E62: ='Data 2009-15 (Real $2008)'!E38/10^3 -> 0 | F62: ='Data 2009-15 (Real $2008)'!F38/10^3 -> 0 | G62: ='Data 2009-15 (Real $2008)'!G38/10^3 -> 0 | H62: ='Data 2009-15 (Real $2008)'!H38/10^3 -> 0 | I62: ='Data 2009-15 (Real $2008)'!I38/10^3 -> 0 | J62: ='Data 2009-15 (Real $2008)'!J38/10^3 -> 0
A63: Disposals - proceeds from sale of assets | D63: ='Data 2009-15 (Real $2008)'!D47/10^3 -> 0 | E63: ='Data 2009-15 (Real $2008)'!E47/10^3 -> 0 | F63: ='Data 2009-15 (Real $2008)'!F47/10^3 -> 0 | G63: ='Data 2009-15 (Real $2008)'!G47/10^3 -> 0 | H63: ='Data 2009-15 (Real $2008)'!H47/10^3 -> 0 | I63: ='Data 2009-15 (Real $2008)'!I47/10^3 -> 0 | J63: ='Data 2009-15 (Real $2008)'!J47/10^3 -> 0
A64: Regulatory depreciation | D64: =D152+D246 -> 9.194514369 | E64: =E152+E246 -> 41.65466236 | F64: 142.7214657 | G64: 328.0925104 | H64: 630.1802912 | I64: 867.6358029 | J64: 951.0905697 | K64: 982.4132161 | L64: 949.9530681 | M64: 848.8862647 | N64: 663.51522 | O64: 361.4274393 | P64: 123.9719276 | Q64: 40.51716081 | R64: 0 | S64: 0 | T64: 0 | U64: 0 | V64: 0 | W64: 0 | X64: =X152+X246 -> 0 | Y64: =Y152+Y246 -> 0 | Z64: =Z152+Z246 -> 0 | AA64: =AA152+AA246 -> 0
A65: Closing RAB | D65: =D60+D61-SUM(D62:D64) -> 119.5286868 | E65: 403.5928951 | F65: 1350.087806 | G65: 2527.973545 | H65: 4621.043935 | I65: 4354.534615 | J65: 3970.684297 | K65: 2988.271081 | L65: 2038.318012 | M65: 1189.431748 | N65: 525.9165276 | O65: 164.4890884 | P65: 40.51716081 | Q65: -2.557953849e-13 | R65: -2.557953849e-13 | S65: -2.557953849e-13 | T65: -2.557953849e-13 | U65: -2.557953849e-13 | V65: -2.557953849e-13 | W65: -2.557953849e-13 | X65: =X60+X61-SUM(X62:X64) -> -2.557953849e-13 | Y65: =Y60+Y61-SUM(Y62:Y64) -> -2.557953849e-13 | Z65: =Z60+Z61-SUM(Z62:Z64) -> -2.557953849e-13 | AA65: =AA60+AA61-SUM(AA62:AA64) -> -2.557953849e-13
A68: Other
A69: =$A$4 -> ($000 Real 2008) | D69: =D$4 -> 2009 | E69: =E$4 -> 2010 | F69: 2011 | G69: 2012 | H69: 2013 | I69: 2014 | J69: 2015 | K69: 2016 | L69: 2017 | M69: 2018 | N69: 2019 | O69: 2020 | P69: 2021 | Q69: 2022 | R69: 2023 | S69: 2024 | T69: 2025 | U69: 2026 | V69: 2027 | W69: 2028 | X69: 2029 | Y69: 2030 | Z69: 2031 | AA69: 2032
A70: Opening RAB | D70: =B116+B160 -> 14461.95929 | E70: =D75 -> 38870.57738 | F70: =E75 -> 50710.82712 | G70: 47287.42708 | H70: 39504.31201 | I70: 29473.88434 | J70: 20878.9059 | K70: 11399.76139 | L70: 4994.507065 | M70: 2040.52291 | N70: 927.8490905 | O70: 430.2745187 | P70: 134.1969527 | Q70: -2.50111043e-12 | R70: -2.50111043e-12 | S70: -2.50111043e-12 | T70: -2.50111043e-12 | U70: -2.50111043e-12 | V70: -2.50111043e-12 | W70: -2.50111043e-12 | X70: =W75 -> -2.50111043e-12 | Y70: =X75 -> -2.50111043e-12 | Z70: =Y75 -> -2.50111043e-12 | AA70: =Z75 -> -2.50111043e-12
A71: Gross capital expenditure | D71: ='Data 2009-15 (Real $2008)'!D15/10^3 -> 28717.44025 | E71: ='Data 2009-15 (Real $2008)'!E15/10^3 -> 19600.34207 | F71: ='Data 2009-15 (Real $2008)'!F15/10^3 -> 6178.002632 | G71: ='Data 2009-15 (Real $2008)'!G15/10^3 -> 2433.386834 | H71: ='Data 2009-15 (Real $2008)'!H15/10^3 -> 387.5712475 | I71: ='Data 2009-15 (Real $2008)'!I15/10^3 -> 1878.757338 | J71: ='Data 2009-15 (Real $2008)'!J15/10^3 -> 0
A72: Customer contributions | D72: ='Data 2009-15 (Real $2008)'!D39/10^3 -> 0 | E72: ='Data 2009-15 (Real $2008)'!E39/10^3 -> 0 | F72: ='Data 2009-15 (Real $2008)'!F39/10^3 -> 0 | G72: ='Data 2009-15 (Real $2008)'!G39/10^3 -> 0 | H72: ='Data 2009-15 (Real $2008)'!H39/10^3 -> 0 | I72: ='Data 2009-15 (Real $2008)'!I39/10^3 -> 0 | J72: ='Data 2009-15 (Real $2008)'!J39/10^3 -> 0
A73: Disposals - proceeds from sale of assets | D73: ='Data 2009-15 (Real $2008)'!D48/10^3 -> 0 | E73: ='Data 2009-15 (Real $2008)'!E48/10^3 -> 0 | F73: ='Data 2009-15 (Real $2008)'!F48/10^3 -> 0 | G73: ='Data 2009-15 (Real $2008)'!G48/10^3 -> 0 | H73: ='Data 2009-15 (Real $2008)'!H48/10^3 -> 0 | I73: ='Data 2009-15 (Real $2008)'!I48/10^3 -> 0 | J73: ='Data 2009-15 (Real $2008)'!J48/10^3 -> 0
A74: Regulatory depreciation | D74: =D116+D160+D258 -> 4308.822163 | E74: =E116+E160+E258 -> 7760.092329 | F74: 9601.402664 | G74: 10216.50191 | H74: 10417.99892 | I74: 10473.73578 | J74: 9479.144513 | K74: 6405.254321 | L74: 2953.984155 | M74: 1112.673819 | N74: 497.5745718 | O74: 296.077566 | P74: 134.1969527 | Q74: 0 | R74: 0 | S74: 0 | T74: 0 | U74: 0 | V74: 0 | W74: 0 | X74: =X116+X160+X258 -> 0 | Y74: =Y116+Y160+Y258 -> 0 | Z74: =Z116+Z160+Z258 -> 0 | AA74: =AA116+AA160+AA258 -> 0
A75: Closing RAB | D75: =D70+D71-SUM(D72:D74) -> 38870.57738 | E75: 50710.82712 | F75: 47287.42708 | G75: 39504.31201 | H75: 29473.88434 | I75: 20878.9059 | J75: 11399.76139 | K75: 4994.507065 | L75: 2040.52291 | M75: 927.8490905 | N75: 430.2745187 | O75: 134.1969527 | P75: -2.50111043e-12 | Q75: -2.50111043e-12 | R75: -2.50111043e-12 | S75: -2.50111043e-12 | T75: -2.50111043e-12 | U75: -2.50111043e-12 | V75: -2.50111043e-12 | W75: -2.50111043e-12 | X75: =X70+X71-SUM(X72:X74) -> -2.50111043e-12 | Y75: =Y70+Y71-SUM(Y72:Y74) -> -2.50111043e-12 | Z75: =Z70+Z71-SUM(Z72:Z74) -> -2.50111043e-12 | AA75: =AA70+AA71-SUM(AA72:AA74) -> -2.50111043e-12
A77: Check | C77: =SUM(D77:AA77) -> 0 | D77: =IF(ABS(D10-D25-D35-D45-D55-D65-D75)<0.001,0,ABS(D10-D25-D35-D45-D55-D65-D75)) -> 0 | E77: =IF(ABS(E10-E25-E35-E45-E55-E65-E75)<0.001,0,ABS(E10-E25-E35-E45-E55-E65-E75)) -> 0 | F77: 0 | G77: 0 | H77: 0 | I77: 0 | J77: 0 | K77: 0 | L77: 0 | M77: 0 | N77: 0 | O77: 0 | P77: 0 | Q77: 0 | R77: 0 | S77: 0 | T77: 0 | U77: 0 | V77: 0 | W77: 0 | X77: =IF(ABS(X10-X25-X35-X45-X55-X65-X75)<0.001,0,ABS(X10-X25-X35-X45-X55-X65-X75)) -> 0 | Y77: =IF(ABS(Y10-Y25-Y35-Y45-Y55-Y65-Y75)<0.001,0,ABS(Y10-Y25-Y35-Y45-Y55-Y65-Y75)) -> 0 | Z77: =IF(ABS(Z10-Z25-Z35-Z45-Z55-Z65-Z75)<0.001,0,ABS(Z10-Z25-Z35-Z45-Z55-Z65-Z75)) -> 0 | AA77: =IF(ABS(AA10-AA25-AA35-AA45-AA55-AA65-AA75)<0.001,0,ABS(AA10-AA25-AA35-AA45-AA55-AA65-AA75)) -> 0
A79: Regulatory Depreciation on Opening Assets at 1 January 2009 - IMRO Capex 2006-08
A80: =$A$4 -> ($000 Real 2008)
A81: RAB at 1 January 2009 | D81: =D$4 -> 2009 | E81: =E$4 -> 2010 | F81: 2011 | G81: 2012 | H81: 2013 | I81: 2014 | J81: 2015 | K81: 2016 | L81: 2017 | M81: 2018 | N81: 2019 | O81: 2020 | P81: 2021 | Q81: 2022 | R81: 2023 | S81: 2024 | T81: 2025 | U81: 2026 | V81: 2027 | W81: 2028 | X81: 2029 | Y81: 2030 | Z81: 2031 | AA81: 2032
A82: Opening asset base | D82: =B119 -> 13075.51908 | E82: =D84 -> 10460.41527 | F82: =E84 -> 7845.311449 | G82: 5230.207633 | H82: 2615.103816 | I82: 0 | J82: 0 | K82: 0 | L82: 0 | M82: 0 | N82: 0 | O82: 0 | P82: 0 | Q82: 0 | R82: 0 | S82: 0 | T82: 0 | U82: 0 | V82: 0 | W82: 0 | X82: =W84 -> 0 | Y82: =X84 -> 0 | Z82: =Y84 -> 0 | AA82: =Z84 -> 0
A83: Regulatory depreciation | D83: =D119 -> 2615.103816 | E83: =E119 -> 2615.103816 | F83: 2615.103816 | G83: 2615.103816 | H83: 2615.103816 | I83: 0 | J83: 0 | K83: 0 | L83: 0 | M83: 0 | N83: 0 | O83: 0 | P83: 0 | Q83: 0 | R83: 0 | S83: 0 | T83: 0 | U83: 0 | V83: 0 | W83: 0 | X83: =X119 -> 0 | Y83: =Y119 -> 0 | Z83: =Z119 -> 0 | AA83: =AA119 -> 0
A84: Closing asset base | D84: =D82-D83 -> 10460.41527 | E84: =E82-E83 -> 7845.311449 | F84: 5230.207633 | G84: 2615.103816 | H84: 0 | I84: 0 | J84: 0 | K84: 0 | L84: 0 | M84: 0 | N84: 0 | O84: 0 | P84: 0 | Q84: 0 | R84: 0 | S84: 0 | T84: 0 | U84: 0 | V84: 0 | W84: 0 | X84: =X82-X83 -> 0 | Y84: =Y82-Y83 -> 0 | Z84: =Z82-Z83 -> 0 | AA84: =AA82-AA83 -> 0
A85: Check | C85: =SUM(D85:E85) -> 0 | D85: =IF(ABS(D82-SUM(D83:AA83))<0.001,0,ABS(D82-SUM(D83:AA83))) -> 0 | E85: =IF(ABS(D82-'Offset of Costs and Rev 2006-08'!F183)<0.001,0,ABS(D82-'Offset of Costs and Rev 2006-08'!F183)) -> 0
A87: Accumulation meters | B87: RAB WDV | C87: Remaining | D87: =D$4 -> 2009 | E87: =E$4 -> 2010 | F87: 2011 | G87: 2012 | H87: 2013 | I87: 2014 | J87: 2015 | K87: 2016 | L87: 2017 | M87: 2018 | N87: 2019 | O87: 2020 | P87: 2021 | Q87: 2022 | R87: 2023 | S87: 2024 | T87: 2025 | U87: 2026 | V87: 2027 | W87: 2028 | X87: 2029 | Y87: 2030 | Z87: 2031 | AA87: 2032
A88: =$A$4 -> ($000 Real 2008) | B88: 1/01/2009 | C88: Life (years)
A89: 2006 | B89: ='Offset of Costs and Rev 2006-08'!D$140-SUM('Offset of Costs and Rev 2006-08'!D206:F206) -> 4849.852492 | C89: =IF('Data 2006-08'!C$34="",5,('Data 2006-08'!C$34-D$87+1)) -> 5 | D89: =IF(C89<1,B89,B89/C89) -> 969.9704985 | E89: =IF((SUM($D89:D89)+$B89/$C89)>$B89,$B89-SUM($D89:D89),$B89/$C89) -> 969.9704985 | F89: =IF((SUM($D89:E89)+$B89/$C89)>$B89,$B89-SUM($D89:E89),$B89/$C89) -> 969.9704985 | G89: =IF((SUM($D89:F89)+$B89/$C89)>$B89,$B89-SUM($D89:F89),$B89/$C89) -> 969.9704985 | H89: =IF((SUM($D89:G89)+$B89/$C89)>$B89,$B89-SUM($D89:G89),$B89/$C89) -> 969.9704985 | I89: =IF((SUM($D89:H89)+$B89/$C89)>$B89,$B89-SUM($D89:H89),$B89/$C89) -> 0 | J89: =IF((SUM($D89:I89)+$B89/$C89)>$B89,$B89-SUM($D89:I89),$B89/$C89) -> 0 | K89: =IF((SUM($D89:J89)+$B89/$C89)>$B89,$B89-SUM($D89:J89),$B89/$C89) -> 0 | L89: =IF((SUM($D89:K89)+$B89/$C89)>$B89,$B89-SUM($D89:K89),$B89/$C89) -> 0 | M89: =IF((SUM($D89:L89)+$B89/$C89)>$B89,$B89-SUM($D89:L89),$B89/$C89) -> 0 | N89: =IF((SUM($D89:M89)+$B89/$C89)>$B89,$B89-SUM($D89:M89),$B89/$C89) -> 0 | O89: =IF((SUM($D89:N89)+$B89/$C89)>$B89,$B89-SUM($D89:N89),$B89/$C89) -> 0 | P89: =IF((SUM($D89:O89)+$B89/$C89)>$B89,$B89-SUM($D89:O89),$B89/$C89) -> 0 | Q89: =IF((SUM($D89:P89)+$B89/$C89)>$B89,$B89-SUM($D89:P89),$B89/$C89) -> 0 | R89: =IF((SUM($D89:Q89)+$B89/$C89)>$B89,$B89-SUM($D89:Q89),$B89/$C89) -> 0 | S89: =IF((SUM($D89:R89)+$B89/$C89)>$B89,$B89-SUM($D89:R89),$B89/$C89) -> 0 | T89: =IF((SUM($D89:S89)+$B89/$C89)>$B89,$B89-SUM($D89:S89),$B89/$C89) -> 0 | U89: =IF((SUM($D89:T89)+$B89/$C89)>$B89,$B89-SUM($D89:T89),$B89/$C89) -> 0 | V89: =IF((SUM($D89:U89)+$B89/$C89)>$B89,$B89-SUM($D89:U89),$B89/$C89) -> 0 | W89: =IF((SUM($D89:V89)+$B89/$C89)>$B89,$B89-SUM($D89:V89),$B89/$C89) -> 0 | X89: =IF((SUM($D89:W89)+$B89/$C89)>$B89,$B89-SUM($D89:W89),$B89/$C89) -> 0 | Y89: =IF((SUM($D89:X89)+$B89/$C89)>$B89,$B89-SUM($D89:X89),$B89/$C89) -> 0 | Z89: =IF((SUM($D89:Y89)+$B89/$C89)>$B89,$B89-SUM($D89:Y89),$B89/$C89) -> 0 | AA89: =IF((SUM($D89:Z89)+$B89/$C89)>$B89,$B89-SUM($D89:Z89),$B89/$C89) -> 0
A90: 2007 | B90: ='Offset of Costs and Rev 2006-08'!E$140-SUM('Offset of Costs and Rev 2006-08'!D207:F207) -> 3702.169181 | C90: =IF('Data 2006-08'!C$34="",5,('Data 2006-08'!C$34-D$87+1)) -> 5 | D90: =IF(C90<1,B90,B90/C90) -> 740.4338361 | E90: =IF((SUM($D90:D90)+$B90/$C90)>$B90,$B90-SUM($D90:D90),$B90/$C90) -> 740.4338361 | F90: =IF((SUM($D90:E90)+$B90/$C90)>$B90,$B90-SUM($D90:E90),$B90/$C90) -> 740.4338361 | G90: =IF((SUM($D90:F90)+$B90/$C90)>$B90,$B90-SUM($D90:F90),$B90/$C90) -> 740.4338361 | H90: =IF((SUM($D90:G90)+$B90/$C90)>$B90,$B90-SUM($D90:G90),$B90/$C90) -> 740.4338361 | I90: =IF((SUM($D90:H90)+$B90/$C90)>$B90,$B90-SUM($D90:H90),$B90/$C90) -> 0 | J90: =IF((SUM($D90:I90)+$B90/$C90)>$B90,$B90-SUM($D90:I90),$B90/$C90) -> 0 | K90: =IF((SUM($D90:J90)+$B90/$C90)>$B90,$B90-SUM($D90:J90),$B90/$C90) -> 0 | L90: =IF((SUM($D90:K90)+$B90/$C90)>$B90,$B90-SUM($D90:K90),$B90/$C90) -> 0 | M90: =IF((SUM($D90:L90)+$B90/$C90)>$B90,$B90-SUM($D90:L90),$B90/$C90) -> 0 | N90: =IF((SUM($D90:M90)+$B90/$C90)>$B90,$B90-SUM($D90:M90),$B90/$C90) -> 0 | O90: =IF((SUM($D90:N90)+$B90/$C90)>$B90,$B90-SUM($D90:N90),$B90/$C90) -> 0 | P90: =IF((SUM($D90:O90)+$B90/$C90)>$B90,$B90-SUM($D90:O90),$B90/$C90) -> 0 | Q90: =IF((SUM($D90:P90)+$B90/$C90)>$B90,$B90-SUM($D90:P90),$B90/$C90) -> 0 | R90: =IF((SUM($D90:Q90)+$B90/$C90)>$B90,$B90-SUM($D90:Q90),$B90/$C90) -> 0 | S90: =IF((SUM($D90:R90)+$B90/$C90)>$B90,$B90-SUM($D90:R90),$B90/$C90) -> 0 | T90: =IF((SUM($D90:S90)+$B90/$C90)>$B90,$B90-SUM($D90:S90),$B90/$C90) -> 0 | U90: =IF((SUM($D90:T90)+$B90/$C90)>$B90,$B90-SUM($D90:T90),$B90/$C90) -> 0 | V90: =IF((SUM($D90:U90)+$B90/$C90)>$B90,$B90-SUM($D90:U90),$B90/$C90) -> 0 | W90: =IF((SUM($D90:V90)+$B90/$C90)>$B90,$B90-SUM($D90:V90),$B90/$C90) -> 0 | X90: =IF((SUM($D90:W90)+$B90/$C90)>$B90,$B90-SUM($D90:W90),$B90/$C90) -> 0 | Y90: =IF((SUM($D90:X90)+$B90/$C90)>$B90,$B90-SUM($D90:X90),$B90/$C90) -> 0 | Z90: =IF((SUM($D90:Y90)+$B90/$C90)>$B90,$B90-SUM($D90:Y90),$B90/$C90) -> 0 | AA90: =IF((SUM($D90:Z90)+$B90/$C90)>$B90,$B90-SUM($D90:Z90),$B90/$C90) -> 0
A91: 2008 | B91: ='Offset of Costs and Rev 2006-08'!F$140-SUM('Offset of Costs and Rev 2006-08'!D208:F208) -> 3927.492527 | C91: =IF('Data 2006-08'!C$34="",5,('Data 2006-08'!C$34-D$87+1)) -> 5 | D91: =IF(C91<1,B91,B91/C91) -> 785.4985055 | E91: =IF((SUM($D91:D91)+$B91/$C91)>$B91,$B91-SUM($D91:D91),$B91/$C91) -> 785.4985055 | F91: =IF((SUM($D91:E91)+$B91/$C91)>$B91,$B91-SUM($D91:E91),$B91/$C91) -> 785.4985055 | G91: =IF((SUM($D91:F91)+$B91/$C91)>$B91,$B91-SUM($D91:F91),$B91/$C91) -> 785.4985055 | H91: =IF((SUM($D91:G91)+$B91/$C91)>$B91,$B91-SUM($D91:G91),$B91/$C91) -> 785.4985055 | I91: =IF((SUM($D91:H91)+$B91/$C91)>$B91,$B91-SUM($D91:H91),$B91/$C91) -> 0 | J91: =IF((SUM($D91:I91)+$B91/$C91)>$B91,$B91-SUM($D91:I91),$B91/$C91) -> 0 | K91: =IF((SUM($D91:J91)+$B91/$C91)>$B91,$B91-SUM($D91:J91),$B91/$C91) -> 0 | L91: =IF((SUM($D91:K91)+$B91/$C91)>$B91,$B91-SUM($D91:K91),$B91/$C91) -> 0 | M91: =IF((SUM($D91:L91)+$B91/$C91)>$B91,$B91-SUM($D91:L91),$B91/$C91) -> 0 | N91: =IF((SUM($D91:M91)+$B91/$C91)>$B91,$B91-SUM($D91:M91),$B91/$C91) -> 0 | O91: =IF((SUM($D91:N91)+$B91/$C91)>$B91,$B91-SUM($D91:N91),$B91/$C91) -> 0 | P91: =IF((SUM($D91:O91)+$B91/$C91)>$B91,$B91-SUM($D91:O91),$B91/$C91) -> 0 | Q91: =IF((SUM($D91:P91)+$B91/$C91)>$B91,$B91-SUM($D91:P91),$B91/$C91) -> 0 | R91: =IF((SUM($D91:Q91)+$B91/$C91)>$B91,$B91-SUM($D91:Q91),$B91/$C91) -> 0 | S91: =IF((SUM($D91:R91)+$B91/$C91)>$B91,$B91-SUM($D91:R91),$B91/$C91) -> 0 | T91: =IF((SUM($D91:S91)+$B91/$C91)>$B91,$B91-SUM($D91:S91),$B91/$C91) -> 0 | U91: =IF((SUM($D91:T91)+$B91/$C91)>$B91,$B91-SUM($D91:T91),$B91/$C91) -> 0 | V91: =IF((SUM($D91:U91)+$B91/$C91)>$B91,$B91-SUM($D91:U91),$B91/$C91) -> 0 | W91: =IF((SUM($D91:V91)+$B91/$C91)>$B91,$B91-SUM($D91:V91),$B91/$C91) -> 0 | X91: =IF((SUM($D91:W91)+$B91/$C91)>$B91,$B91-SUM($D91:W91),$B91/$C91) -> 0 | Y91: =IF((SUM($D91:X91)+$B91/$C91)>$B91,$B91-SUM($D91:X91),$B91/$C91) -> 0 | Z91: =IF((SUM($D91:Y91)+$B91/$C91)>$B91,$B91-SUM($D91:Y91),$B91/$C91) -> 0 | AA91: =IF((SUM($D91:Z91)+$B91/$C91)>$B91,$B91-SUM($D91:Z91),$B91/$C91) -> 0
B92: =SUM(B89:B91) -> 12479.5142 | D92: =SUM(D89:D91) -> 2495.90284 | E92: =SUM(E89:E91) -> 2495.90284 | F92: 2495.90284 | G92: 2495.90284 | H92: 2495.90284 | I92: 0 | J92: 0 | K92: 0 | L92: 0 | M92: 0 | N92: 0 | O92: 0 | P92: 0 | Q92: 0 | R92: 0 | S92: 0 | T92: 0 | U92: 0 | V92: 0 | W92: 0 | X92: =SUM(X89:X91) -> 0 | Y92: =SUM(Y89:Y91) -> 0 | Z92: =SUM(Z89:Z91) -> 0 | AA92: =SUM(AA89:AA91) -> 0
A95: Manually read interval meters | B95: RAB WDV | C95: Remaining | D95: =D$4 -> 2009 | E95: =E$4 -> 2010 | F95: 2011 | G95: 2012 | H95: 2013 | I95: 2014 | J95: 2015 | K95: 2016 | L95: 2017 | M95: 2018 | N95: 2019 | O95: 2020 | P95: 2021 | Q95: 2022 | R95: 2023 | S95: 2024 | T95: 2025 | U95: 2026 | V95: 2027 | W95: 2028 | X95: 2029 | Y95: 2030 | Z95: 2031 | AA95: 2032
A96: =$A$4 -> ($000 Real 2008) | B96: 1/01/2009 | C96: Life (years)
A97: 2006 | B97: ='Offset of Costs and Rev 2006-08'!D$150-'Offset of Costs and Rev 2006-08'!D$151-SUM('Offset of Costs and Rev 2006-08'!D214:F214) -> 314.2948037 | C97: =IF('Data 2006-08'!C$34="",5,('Data 2006-08'!C$34-D$95+1)) -> 5 | D97: =IF(C97<1,B97,B97/C97) -> 62.85896075 | E97: =IF((SUM($D97:D97)+$B97/$C97)>$B97,$B97-SUM($D97:D97),$B97/$C97) -> 62.85896075 | F97: =IF((SUM($D97:E97)+$B97/$C97)>$B97,$B97-SUM($D97:E97),$B97/$C97) -> 62.85896075 | G97: =IF((SUM($D97:F97)+$B97/$C97)>$B97,$B97-SUM($D97:F97),$B97/$C97) -> 62.85896075 | H97: =IF((SUM($D97:G97)+$B97/$C97)>$B97,$B97-SUM($D97:G97),$B97/$C97) -> 62.85896075 | I97: =IF((SUM($D97:H97)+$B97/$C97)>$B97,$B97-SUM($D97:H97),$B97/$C97) -> 0 | J97: =IF((SUM($D97:I97)+$B97/$C97)>$B97,$B97-SUM($D97:I97),$B97/$C97) -> 0 | K97: =IF((SUM($D97:J97)+$B97/$C97)>$B97,$B97-SUM($D97:J97),$B97/$C97) -> 0 | L97: =IF((SUM($D97:K97)+$B97/$C97)>$B97,$B97-SUM($D97:K97),$B97/$C97) -> 0 | M97: =IF((SUM($D97:L97)+$B97/$C97)>$B97,$B97-SUM($D97:L97),$B97/$C97) -> 0 | N97: =IF((SUM($D97:M97)+$B97/$C97)>$B97,$B97-SUM($D97:M97),$B97/$C97) -> 0 | O97: =IF((SUM($D97:N97)+$B97/$C97)>$B97,$B97-SUM($D97:N97),$B97/$C97) -> 0 | P97: =IF((SUM($D97:O97)+$B97/$C97)>$B97,$B97-SUM($D97:O97),$B97/$C97) -> 0 | Q97: =IF((SUM($D97:P97)+$B97/$C97)>$B97,$B97-SUM($D97:P97),$B97/$C97) -> 0 | R97: =IF((SUM($D97:Q97)+$B97/$C97)>$B97,$B97-SUM($D97:Q97),$B97/$C97) -> 0 | S97: =IF((SUM($D97:R97)+$B97/$C97)>$B97,$B97-SUM($D97:R97),$B97/$C97) -> 0 | T97: =IF((SUM($D97:S97)+$B97/$C97)>$B97,$B97-SUM($D97:S97),$B97/$C97) -> 0 | U97: =IF((SUM($D97:T97)+$B97/$C97)>$B97,$B97-SUM($D97:T97),$B97/$C97) -> 0 | V97: =IF((SUM($D97:U97)+$B97/$C97)>$B97,$B97-SUM($D97:U97),$B97/$C97) -> 0 | W97: =IF((SUM($D97:V97)+$B97/$C97)>$B97,$B97-SUM($D97:V97),$B97/$C97) -> 0 | X97: =IF((SUM($D97:W97)+$B97/$C97)>$B97,$B97-SUM($D97:W97),$B97/$C97) -> 0 | Y97: =IF((SUM($D97:X97)+$B97/$C97)>$B97,$B97-SUM($D97:X97),$B97/$C97) -> 0 | Z97: =IF((SUM($D97:Y97)+$B97/$C97)>$B97,$B97-SUM($D97:Y97),$B97/$C97) -> 0 | AA97: =IF((SUM($D97:Z97)+$B97/$C97)>$B97,$B97-SUM($D97:Z97),$B97/$C97) -> 0
A98: 2007 | B98: ='Offset of Costs and Rev 2006-08'!E$150-'Offset of Costs and Rev 2006-08'!E$151-SUM('Offset of Costs and Rev 2006-08'!D215:F215) -> 130.6843396 | C98: =IF('Data 2006-08'!C$34="",5,('Data 2006-08'!C$34-D$95+1)) -> 5 | D98: =IF(C98<1,B98,B98/C98) -> 26.13686792 | E98: =IF((SUM($D98:D98)+$B98/$C98)>$B98,$B98-SUM($D98:D98),$B98/$C98) -> 26.13686792 | F98: =IF((SUM($D98:E98)+$B98/$C98)>$B98,$B98-SUM($D98:E98),$B98/$C98) -> 26.13686792 | G98: =IF((SUM($D98:F98)+$B98/$C98)>$B98,$B98-SUM($D98:F98),$B98/$C98) -> 26.13686792 | H98: =IF((SUM($D98:G98)+$B98/$C98)>$B98,$B98-SUM($D98:G98),$B98/$C98) -> 26.13686792 | I98: =IF((SUM($D98:H98)+$B98/$C98)>$B98,$B98-SUM($D98:H98),$B98/$C98) -> 0 | J98: =IF((SUM($D98:I98)+$B98/$C98)>$B98,$B98-SUM($D98:I98),$B98/$C98) -> 0 | K98: =IF((SUM($D98:J98)+$B98/$C98)>$B98,$B98-SUM($D98:J98),$B98/$C98) -> 0 | L98: =IF((SUM($D98:K98)+$B98/$C98)>$B98,$B98-SUM($D98:K98),$B98/$C98) -> 0 | M98: =IF((SUM($D98:L98)+$B98/$C98)>$B98,$B98-SUM($D98:L98),$B98/$C98) -> 0 | N98: =IF((SUM($D98:M98)+$B98/$C98)>$B98,$B98-SUM($D98:M98),$B98/$C98) -> 0 | O98: =IF((SUM($D98:N98)+$B98/$C98)>$B98,$B98-SUM($D98:N98),$B98/$C98) -> 0 | P98: =IF((SUM($D98:O98)+$B98/$C98)>$B98,$B98-SUM($D98:O98),$B98/$C98) -> 0 | Q98: =IF((SUM($D98:P98)+$B98/$C98)>$B98,$B98-SUM($D98:P98),$B98/$C98) -> 0 | R98: =IF((SUM($D98:Q98)+$B98/$C98)>$B98,$B98-SUM($D98:Q98),$B98/$C98) -> 0 | S98: =IF((SUM($D98:R98)+$B98/$C98)>$B98,$B98-SUM($D98:R98),$B98/$C98) -> 0 | T98: =IF((SUM($D98:S98)+$B98/$C98)>$B98,$B98-SUM($D98:S98),$B98/$C98) -> 0 | U98: =IF((SUM($D98:T98)+$B98/$C98)>$B98,$B98-SUM($D98:T98),$B98/$C98) -> 0 | V98: =IF((SUM($D98:U98)+$B98/$C98)>$B98,$B98-SUM($D98:U98),$B98/$C98) -> 0 | W98: =IF((SUM($D98:V98)+$B98/$C98)>$B98,$B98-SUM($D98:V98),$B98/$C98) -> 0 | X98: =IF((SUM($D98:W98)+$B98/$C98)>$B98,$B98-SUM($D98:W98),$B98/$C98) -> 0 | Y98: =IF((SUM($D98:X98)+$B98/$C98)>$B98,$B98-SUM($D98:X98),$B98/$C98) -> 0 | Z98: =IF((SUM($D98:Y98)+$B98/$C98)>$B98,$B98-SUM($D98:Y98),$B98/$C98) -> 0 | AA98: =IF((SUM($D98:Z98)+$B98/$C98)>$B98,$B98-SUM($D98:Z98),$B98/$C98) -> 0
A99: 2008 | B99: ='Offset of Costs and Rev 2006-08'!F$150-'Offset of Costs and Rev 2006-08'!F$151-SUM('Offset of Costs and Rev 2006-08'!D216:F216) -> 151.0257382 | C99: =IF('Data 2006-08'!C$34="",5,('Data 2006-08'!C$34-D$95+1)) -> 5 | D99: =IF(C99<1,B99,B99/C99) -> 30.20514765 | E99: =IF((SUM($D99:D99)+$B99/$C99)>$B99,$B99-SUM($D99:D99),$B99/$C99) -> 30.20514765 | F99: =IF((SUM($D99:E99)+$B99/$C99)>$B99,$B99-SUM($D99:E99),$B99/$C99) -> 30.20514765 | G99: =IF((SUM($D99:F99)+$B99/$C99)>$B99,$B99-SUM($D99:F99),$B99/$C99) -> 30.20514765 | H99: =IF((SUM($D99:G99)+$B99/$C99)>$B99,$B99-SUM($D99:G99),$B99/$C99) -> 30.20514765 | I99: =IF((SUM($D99:H99)+$B99/$C99)>$B99,$B99-SUM($D99:H99),$B99/$C99) -> 0 | J99: =IF((SUM($D99:I99)+$B99/$C99)>$B99,$B99-SUM($D99:I99),$B99/$C99) -> 0 | K99: =IF((SUM($D99:J99)+$B99/$C99)>$B99,$B99-SUM($D99:J99),$B99/$C99) -> 0 | L99: =IF((SUM($D99:K99)+$B99/$C99)>$B99,$B99-SUM($D99:K99),$B99/$C99) -> 0 | M99: =IF((SUM($D99:L99)+$B99/$C99)>$B99,$B99-SUM($D99:L99),$B99/$C99) -> 0 | N99: =IF((SUM($D99:M99)+$B99/$C99)>$B99,$B99-SUM($D99:M99),$B99/$C99) -> 0 | O99: =IF((SUM($D99:N99)+$B99/$C99)>$B99,$B99-SUM($D99:N99),$B99/$C99) -> 0 | P99: =IF((SUM($D99:O99)+$B99/$C99)>$B99,$B99-SUM($D99:O99),$B99/$C99) -> 0 | Q99: =IF((SUM($D99:P99)+$B99/$C99)>$B99,$B99-SUM($D99:P99),$B99/$C99) -> 0 | R99: =IF((SUM($D99:Q99)+$B99/$C99)>$B99,$B99-SUM($D99:Q99),$B99/$C99) -> 0 | S99: =IF((SUM($D99:R99)+$B99/$C99)>$B99,$B99-SUM($D99:R99),$B99/$C99) -> 0 | T99: =IF((SUM($D99:S99)+$B99/$C99)>$B99,$B99-SUM($D99:S99),$B99/$C99) -> 0 | U99: =IF((SUM($D99:T99)+$B99/$C99)>$B99,$B99-SUM($D99:T99),$B99/$C99) -> 0 | V99: =IF((SUM($D99:U99)+$B99/$C99)>$B99,$B99-SUM($D99:U99),$B99/$C99) -> 0 | W99: =IF((SUM($D99:V99)+$B99/$C99)>$B99,$B99-SUM($D99:V99),$B99/$C99) -> 0 | X99: =IF((SUM($D99:W99)+$B99/$C99)>$B99,$B99-SUM($D99:W99),$B99/$C99) -> 0 | Y99: =IF((SUM($D99:X99)+$B99/$C99)>$B99,$B99-SUM($D99:X99),$B99/$C99) -> 0 | Z99: =IF((SUM($D99:Y99)+$B99/$C99)>$B99,$B99-SUM($D99:Y99),$B99/$C99) -> 0 | AA99: =IF((SUM($D99:Z99)+$B99/$C99)>$B99,$B99-SUM($D99:Z99),$B99/$C99) -> 0
B100: =SUM(B97:B99) -> 596.0048816 | D100: =SUM(D97:D99) -> 119.2009763 | E100: =SUM(E97:E99) -> 119.2009763 | F100: 119.2009763 | G100: 119.2009763 | H100: 119.2009763 | I100: 0 | J100: 0 | K100: 0 | L100: 0 | M100: 0 | N100: 0 | O100: 0 | P100: 0 | Q100: 0 | R100: 0 | S100: 0 | T100: 0 | U100: 0 | V100: 0 | W100: 0 | X100: =SUM(X97:X99) -> 0 | Y100: =SUM(Y97:Y99) -> 0 | Z100: =SUM(Z97:Z99) -> 0 | AA100: =SUM(AA97:AA99) -> 0
A103: IT | B103: RAB WDV | C103: Remaining | D103: =D$4 -> 2009 | E103: =E$4 -> 2010 | F103: 2011 | G103: 2012 | H103: 2013 | I103: 2014 | J103: 2015 | K103: 2016 | L103: 2017 | M103: 2018 | N103: 2019 | O103: 2020 | P103: 2021 | Q103: 2022 | R103: 2023 | S103: 2024 | T103: 2025 | U103: 2026 | V103: 2027 | W103: 2028 | X103: 2029 | Y103: 2030 | Z103: 2031 | AA103: 2032
A104: =$A$4 -> ($000 Real 2008) | B104: 1/01/2009 | C104: Life (years)
A105: 2006 | B105: ='Offset of Costs and Rev 2006-08'!D$160-SUM('Offset of Costs and Rev 2006-08'!D222:F222) -> 0 | C105: ='Offset of Costs and Rev 2006-08'!C222-(D$103-A105-0.5) -> 2.5 | D105: =IF(C105<1,B105,B105/C105) -> 0 | E105: =IF((SUM($D105:D105)+$B105/$C105)>$B105,$B105-SUM($D105:D105),$B105/$C105) -> 0 | F105: =IF((SUM($D105:E105)+$B105/$C105)>$B105,$B105-SUM($D105:E105),$B105/$C105) -> 0 | G105: =IF((SUM($D105:F105)+$B105/$C105)>$B105,$B105-SUM($D105:F105),$B105/$C105) -> 0 | H105: =IF((SUM($D105:G105)+$B105/$C105)>$B105,$B105-SUM($D105:G105),$B105/$C105) -> 0 | I105: =IF((SUM($D105:H105)+$B105/$C105)>$B105,$B105-SUM($D105:H105),$B105/$C105) -> 0 | J105: =IF((SUM($D105:I105)+$B105/$C105)>$B105,$B105-SUM($D105:I105),$B105/$C105) -> 0 | K105: =IF((SUM($D105:J105)+$B105/$C105)>$B105,$B105-SUM($D105:J105),$B105/$C105) -> 0 | L105: =IF((SUM($D105:K105)+$B105/$C105)>$B105,$B105-SUM($D105:K105),$B105/$C105) -> 0 | M105: =IF((SUM($D105:L105)+$B105/$C105)>$B105,$B105-SUM($D105:L105),$B105/$C105) -> 0 | N105: =IF((SUM($D105:M105)+$B105/$C105)>$B105,$B105-SUM($D105:M105),$B105/$C105) -> 0 | O105: =IF((SUM($D105:N105)+$B105/$C105)>$B105,$B105-SUM($D105:N105),$B105/$C105) -> 0 | P105: =IF((SUM($D105:O105)+$B105/$C105)>$B105,$B105-SUM($D105:O105),$B105/$C105) -> 0 | Q105: =IF((SUM($D105:P105)+$B105/$C105)>$B105,$B105-SUM($D105:P105),$B105/$C105) -> 0 | R105: =IF((SUM($D105:Q105)+$B105/$C105)>$B105,$B105-SUM($D105:Q105),$B105/$C105) -> 0 | S105: =IF((SUM($D105:R105)+$B105/$C105)>$B105,$B105-SUM($D105:R105),$B105/$C105) -> 0 | T105: =IF((SUM($D105:S105)+$B105/$C105)>$B105,$B105-SUM($D105:S105),$B105/$C105) -> 0 | U105: =IF((SUM($D105:T105)+$B105/$C105)>$B105,$B105-SUM($D105:T105),$B105/$C105) -> 0 | V105: =IF((SUM($D105:U105)+$B105/$C105)>$B105,$B105-SUM($D105:U105),$B105/$C105) -> 0 | W105: =IF((SUM($D105:V105)+$B105/$C105)>$B105,$B105-SUM($D105:V105),$B105/$C105) -> 0 | X105: =IF((SUM($D105:W105)+$B105/$C105)>$B105,$B105-SUM($D105:W105),$B105/$C105) -> 0 | Y105: =IF((SUM($D105:X105)+$B105/$C105)>$B105,$B105-SUM($D105:X105),$B105/$C105) -> 0 | Z105: =IF((SUM($D105:Y105)+$B105/$C105)>$B105,$B105-SUM($D105:Y105),$B105/$C105) -> 0 | AA105: =IF((SUM($D105:Z105)+$B105/$C105)>$B105,$B105-SUM($D105:Z105),$B105/$C105) -> 0
A106: 2007 | B106: ='Offset of Costs and Rev 2006-08'!E$160-SUM('Offset of Costs and Rev 2006-08'!D223:F223) -> 0 | C106: ='Offset of Costs and Rev 2006-08'!C223-(D$103-A106-0.5) -> 3.5 | D106: =IF(C106<1,B106,B106/C106) -> 0 | E106: =IF((SUM($D106:D106)+$B106/$C106)>$B106,$B106-SUM($D106:D106),$B106/$C106) -> 0 | F106: =IF((SUM($D106:E106)+$B106/$C106)>$B106,$B106-SUM($D106:E106),$B106/$C106) -> 0 | G106: =IF((SUM($D106:F106)+$B106/$C106)>$B106,$B106-SUM($D106:F106),$B106/$C106) -> 0 | H106: =IF((SUM($D106:G106)+$B106/$C106)>$B106,$B106-SUM($D106:G106),$B106/$C106) -> 0 | I106: =IF((SUM($D106:H106)+$B106/$C106)>$B106,$B106-SUM($D106:H106),$B106/$C106) -> 0 | J106: =IF((SUM($D106:I106)+$B106/$C106)>$B106,$B106-SUM($D106:I106),$B106/$C106) -> 0 | K106: =IF((SUM($D106:J106)+$B106/$C106)>$B106,$B106-SUM($D106:J106),$B106/$C106) -> 0 | L106: =IF((SUM($D106:K106)+$B106/$C106)>$B106,$B106-SUM($D106:K106),$B106/$C106) -> 0 | M106: =IF((SUM($D106:L106)+$B106/$C106)>$B106,$B106-SUM($D106:L106),$B106/$C106) -> 0 | N106: =IF((SUM($D106:M106)+$B106/$C106)>$B106,$B106-SUM($D106:M106),$B106/$C106) -> 0 | O106: =IF((SUM($D106:N106)+$B106/$C106)>$B106,$B106-SUM($D106:N106),$B106/$C106) -> 0 | P106: =IF((SUM($D106:O106)+$B106/$C106)>$B106,$B106-SUM($D106:O106),$B106/$C106) -> 0 | Q106: =IF((SUM($D106:P106)+$B106/$C106)>$B106,$B106-SUM($D106:P106),$B106/$C106) -> 0 | R106: =IF((SUM($D106:Q106)+$B106/$C106)>$B106,$B106-SUM($D106:Q106),$B106/$C106) -> 0 | S106: =IF((SUM($D106:R106)+$B106/$C106)>$B106,$B106-SUM($D106:R106),$B106/$C106) -> 0 | T106: =IF((SUM($D106:S106)+$B106/$C106)>$B106,$B106-SUM($D106:S106),$B106/$C106) -> 0 | U106: =IF((SUM($D106:T106)+$B106/$C106)>$B106,$B106-SUM($D106:T106),$B106/$C106) -> 0 | V106: =IF((SUM($D106:U106)+$B106/$C106)>$B106,$B106-SUM($D106:U106),$B106/$C106) -> 0 | W106: =IF((SUM($D106:V106)+$B106/$C106)>$B106,$B106-SUM($D106:V106),$B106/$C106) -> 0 | X106: =IF((SUM($D106:W106)+$B106/$C106)>$B106,$B106-SUM($D106:W106),$B106/$C106) -> 0 | Y106: =IF((SUM($D106:X106)+$B106/$C106)>$B106,$B106-SUM($D106:X106),$B106/$C106) -> 0 | Z106: =IF((SUM($D106:Y106)+$B106/$C106)>$B106,$B106-SUM($D106:Y106),$B106/$C106) -> 0 | AA106: =IF((SUM($D106:Z106)+$B106/$C106)>$B106,$B106-SUM($D106:Z106),$B106/$C106) -> 0
A107: 2008 | B107: ='Offset of Costs and Rev 2006-08'!F$160-SUM('Offset of Costs and Rev 2006-08'!D224:F224) -> 0 | C107: ='Offset of Costs and Rev 2006-08'!C224-(D$103-A107-0.5) -> 4.5 | D107: =IF(C107<1,B107,B107/C107) -> 0 | E107: =IF((SUM($D107:D107)+$B107/$C107)>$B107,$B107-SUM($D107:D107),$B107/$C107) -> 0 | F107: =IF((SUM($D107:E107)+$B107/$C107)>$B107,$B107-SUM($D107:E107),$B107/$C107) -> 0 | G107: =IF((SUM($D107:F107)+$B107/$C107)>$B107,$B107-SUM($D107:F107),$B107/$C107) -> 0 | H107: =IF((SUM($D107:G107)+$B107/$C107)>$B107,$B107-SUM($D107:G107),$B107/$C107) -> 0 | I107: =IF((SUM($D107:H107)+$B107/$C107)>$B107,$B107-SUM($D107:H107),$B107/$C107) -> 0 | J107: =IF((SUM($D107:I107)+$B107/$C107)>$B107,$B107-SUM($D107:I107),$B107/$C107) -> 0 | K107: =IF((SUM($D107:J107)+$B107/$C107)>$B107,$B107-SUM($D107:J107),$B107/$C107) -> 0 | L107: =IF((SUM($D107:K107)+$B107/$C107)>$B107,$B107-SUM($D107:K107),$B107/$C107) -> 0 | M107: =IF((SUM($D107:L107)+$B107/$C107)>$B107,$B107-SUM($D107:L107),$B107/$C107) -> 0 | N107: =IF((SUM($D107:M107)+$B107/$C107)>$B107,$B107-SUM($D107:M107),$B107/$C107) -> 0 | O107: =IF((SUM($D107:N107)+$B107/$C107)>$B107,$B107-SUM($D107:N107),$B107/$C107) -> 0 | P107: =IF((SUM($D107:O107)+$B107/$C107)>$B107,$B107-SUM($D107:O107),$B107/$C107) -> 0 | Q107: =IF((SUM($D107:P107)+$B107/$C107)>$B107,$B107-SUM($D107:P107),$B107/$C107) -> 0 | R107: =IF((SUM($D107:Q107)+$B107/$C107)>$B107,$B107-SUM($D107:Q107),$B107/$C107) -> 0 | S107: =IF((SUM($D107:R107)+$B107/$C107)>$B107,$B107-SUM($D107:R107),$B107/$C107) -> 0 | T107: =IF((SUM($D107:S107)+$B107/$C107)>$B107,$B107-SUM($D107:S107),$B107/$C107) -> 0 | U107: =IF((SUM($D107:T107)+$B107/$C107)>$B107,$B107-SUM($D107:T107),$B107/$C107) -> 0 | V107: =IF((SUM($D107:U107)+$B107/$C107)>$B107,$B107-SUM($D107:U107),$B107/$C107) -> 0 | W107: =IF((SUM($D107:V107)+$B107/$C107)>$B107,$B107-SUM($D107:V107),$B107/$C107) -> 0 | X107: =IF((SUM($D107:W107)+$B107/$C107)>$B107,$B107-SUM($D107:W107),$B107/$C107) -> 0 | Y107: =IF((SUM($D107:X107)+$B107/$C107)>$B107,$B107-SUM($D107:X107),$B107/$C107) -> 0 | Z107: =IF((SUM($D107:Y107)+$B107/$C107)>$B107,$B107-SUM($D107:Y107),$B107/$C107) -> 0 | AA107: =IF((SUM($D107:Z107)+$B107/$C107)>$B107,$B107-SUM($D107:Z107),$B107/$C107) -> 0
B108: =SUM(B105:B107) -> 0 | D108: =SUM(D105:D107) -> 0 | E108: =SUM(E105:E107) -> 0 | F108: 0 | G108: 0 | H108: 0 | I108: 0 | J108: 0 | K108: 0 | L108: 0 | M108: 0 | N108: 0 | O108: 0 | P108: 0 | Q108: 0 | R108: 0 | S108: 0 | T108: 0 | U108: 0 | V108: 0 | W108: 0 | X108: =SUM(X105:X107) -> 0 | Y108: =SUM(Y105:Y107) -> 0 | Z108: =SUM(Z105:Z107) -> 0 | AA108: =SUM(AA105:AA107) -> 0
A111: Other | B111: RAB WDV | C111: Remaining | D111: =D$4 -> 2009 | E111: =E$4 -> 2010 | F111: 2011 | G111: 2012 | H111: 2013 | I111: 2014 | J111: 2015 | K111: 2016 | L111: 2017 | M111: 2018 | N111: 2019 | O111: 2020 | P111: 2021 | Q111: 2022 | R111: 2023 | S111: 2024 | T111: 2025 | U111: 2026 | V111: 2027 | W111: 2028 | X111: 2029 | Y111: 2030 | Z111: 2031 | AA111: 2032
A112: =$A$4 -> ($000 Real 2008) | B112: 1/01/2009 | C112: Life (years)
A113: 2006 | B113: ='Offset of Costs and Rev 2006-08'!D$170-SUM('Offset of Costs and Rev 2006-08'!D230:F230) -> 0 | C113: ='Offset of Costs and Rev 2006-08'!C230-(D$111-A113-0.5) -> 2.5 | D113: =IF(C113<1,B113,B113/C113) -> 0 | E113: =IF((SUM($D113:D113)+$B113/$C113)>$B113,$B113-SUM($D113:D113),$B113/$C113) -> 0 | F113: =IF((SUM($D113:E113)+$B113/$C113)>$B113,$B113-SUM($D113:E113),$B113/$C113) -> 0 | G113: =IF((SUM($D113:F113)+$B113/$C113)>$B113,$B113-SUM($D113:F113),$B113/$C113) -> 0 | H113: =IF((SUM($D113:G113)+$B113/$C113)>$B113,$B113-SUM($D113:G113),$B113/$C113) -> 0 | I113: =IF((SUM($D113:H113)+$B113/$C113)>$B113,$B113-SUM($D113:H113),$B113/$C113) -> 0 | J113: =IF((SUM($D113:I113)+$B113/$C113)>$B113,$B113-SUM($D113:I113),$B113/$C113) -> 0 | K113: =IF((SUM($D113:J113)+$B113/$C113)>$B113,$B113-SUM($D113:J113),$B113/$C113) -> 0 | L113: =IF((SUM($D113:K113)+$B113/$C113)>$B113,$B113-SUM($D113:K113),$B113/$C113) -> 0 | M113: =IF((SUM($D113:L113)+$B113/$C113)>$B113,$B113-SUM($D113:L113),$B113/$C113) -> 0 | N113: =IF((SUM($D113:M113)+$B113/$C113)>$B113,$B113-SUM($D113:M113),$B113/$C113) -> 0 | O113: =IF((SUM($D113:N113)+$B113/$C113)>$B113,$B113-SUM($D113:N113),$B113/$C113) -> 0 | P113: =IF((SUM($D113:O113)+$B113/$C113)>$B113,$B113-SUM($D113:O113),$B113/$C113) -> 0 | Q113: =IF((SUM($D113:P113)+$B113/$C113)>$B113,$B113-SUM($D113:P113),$B113/$C113) -> 0 | R113: =IF((SUM($D113:Q113)+$B113/$C113)>$B113,$B113-SUM($D113:Q113),$B113/$C113) -> 0 | S113: =IF((SUM($D113:R113)+$B113/$C113)>$B113,$B113-SUM($D113:R113),$B113/$C113) -> 0 | T113: =IF((SUM($D113:S113)+$B113/$C113)>$B113,$B113-SUM($D113:S113),$B113/$C113) -> 0 | U113: =IF((SUM($D113:T113)+$B113/$C113)>$B113,$B113-SUM($D113:T113),$B113/$C113) -> 0 | V113: =IF((SUM($D113:U113)+$B113/$C113)>$B113,$B113-SUM($D113:U113),$B113/$C113) -> 0 | W113: =IF((SUM($D113:V113)+$B113/$C113)>$B113,$B113-SUM($D113:V113),$B113/$C113) -> 0 | X113: =IF((SUM($D113:W113)+$B113/$C113)>$B113,$B113-SUM($D113:W113),$B113/$C113) -> 0 | Y113: =IF((SUM($D113:X113)+$B113/$C113)>$B113,$B113-SUM($D113:X113),$B113/$C113) -> 0 | Z113: =IF((SUM($D113:Y113)+$B113/$C113)>$B113,$B113-SUM($D113:Y113),$B113/$C113) -> 0 | AA113: =IF((SUM($D113:Z113)+$B113/$C113)>$B113,$B113-SUM($D113:Z113),$B113/$C113) -> 0
A114: 2007 | B114: ='Offset of Costs and Rev 2006-08'!E$170-SUM('Offset of Costs and Rev 2006-08'!D231:F231) -> 0 | C114: ='Offset of Costs and Rev 2006-08'!C231-(D$111-A114-0.5) -> 3.5 | D114: =IF(C114<1,B114,B114/C114) -> 0 | E114: =IF((SUM($D114:D114)+$B114/$C114)>$B114,$B114-SUM($D114:D114),$B114/$C114) -> 0 | F114: =IF((SUM($D114:E114)+$B114/$C114)>$B114,$B114-SUM($D114:E114),$B114/$C114) -> 0 | G114: =IF((SUM($D114:F114)+$B114/$C114)>$B114,$B114-SUM($D114:F114),$B114/$C114) -> 0 | H114: =IF((SUM($D114:G114)+$B114/$C114)>$B114,$B114-SUM($D114:G114),$B114/$C114) -> 0 | I114: =IF((SUM($D114:H114)+$B114/$C114)>$B114,$B114-SUM($D114:H114),$B114/$C114) -> 0 | J114: =IF((SUM($D114:I114)+$B114/$C114)>$B114,$B114-SUM($D114:I114),$B114/$C114) -> 0 | K114: =IF((SUM($D114:J114)+$B114/$C114)>$B114,$B114-SUM($D114:J114),$B114/$C114) -> 0 | L114: =IF((SUM($D114:K114)+$B114/$C114)>$B114,$B114-SUM($D114:K114),$B114/$C114) -> 0 | M114: =IF((SUM($D114:L114)+$B114/$C114)>$B114,$B114-SUM($D114:L114),$B114/$C114) -> 0 | N114: =IF((SUM($D114:M114)+$B114/$C114)>$B114,$B114-SUM($D114:M114),$B114/$C114) -> 0 | O114: =IF((SUM($D114:N114)+$B114/$C114)>$B114,$B114-SUM($D114:N114),$B114/$C114) -> 0 | P114: =IF((SUM($D114:O114)+$B114/$C114)>$B114,$B114-SUM($D114:O114),$B114/$C114) -> 0 | Q114: =IF((SUM($D114:P114)+$B114/$C114)>$B114,$B114-SUM($D114:P114),$B114/$C114) -> 0 | R114: =IF((SUM($D114:Q114)+$B114/$C114)>$B114,$B114-SUM($D114:Q114),$B114/$C114) -> 0 | S114: =IF((SUM($D114:R114)+$B114/$C114)>$B114,$B114-SUM($D114:R114),$B114/$C114) -> 0 | T114: =IF((SUM($D114:S114)+$B114/$C114)>$B114,$B114-SUM($D114:S114),$B114/$C114) -> 0 | U114: =IF((SUM($D114:T114)+$B114/$C114)>$B114,$B114-SUM($D114:T114),$B114/$C114) -> 0 | V114: =IF((SUM($D114:U114)+$B114/$C114)>$B114,$B114-SUM($D114:U114),$B114/$C114) -> 0 | W114: =IF((SUM($D114:V114)+$B114/$C114)>$B114,$B114-SUM($D114:V114),$B114/$C114) -> 0 | X114: =IF((SUM($D114:W114)+$B114/$C114)>$B114,$B114-SUM($D114:W114),$B114/$C114) -> 0 | Y114: =IF((SUM($D114:X114)+$B114/$C114)>$B114,$B114-SUM($D114:X114),$B114/$C114) -> 0 | Z114: =IF((SUM($D114:Y114)+$B114/$C114)>$B114,$B114-SUM($D114:Y114),$B114/$C114) -> 0 | AA114: =IF((SUM($D114:Z114)+$B114/$C114)>$B114,$B114-SUM($D114:Z114),$B114/$C114) -> 0
A115: 2008 | B115: ='Offset of Costs and Rev 2006-08'!F$170-SUM('Offset of Costs and Rev 2006-08'!D232:F232) -> 0 | C115: ='Offset of Costs and Rev 2006-08'!C232-(D$111-A115-0.5) -> 4.5 | D115: =IF(C115<1,B115,B115/C115) -> 0 | E115: =IF((SUM($D115:D115)+$B115/$C115)>$B115,$B115-SUM($D115:D115),$B115/$C115) -> 0 | F115: =IF((SUM($D115:E115)+$B115/$C115)>$B115,$B115-SUM($D115:E115),$B115/$C115) -> 0 | G115: =IF((SUM($D115:F115)+$B115/$C115)>$B115,$B115-SUM($D115:F115),$B115/$C115) -> 0 | H115: =IF((SUM($D115:G115)+$B115/$C115)>$B115,$B115-SUM($D115:G115),$B115/$C115) -> 0 | I115: =IF((SUM($D115:H115)+$B115/$C115)>$B115,$B115-SUM($D115:H115),$B115/$C115) -> 0 | J115: =IF((SUM($D115:I115)+$B115/$C115)>$B115,$B115-SUM($D115:I115),$B115/$C115) -> 0 | K115: =IF((SUM($D115:J115)+$B115/$C115)>$B115,$B115-SUM($D115:J115),$B115/$C115) -> 0 | L115: =IF((SUM($D115:K115)+$B115/$C115)>$B115,$B115-SUM($D115:K115),$B115/$C115) -> 0 | M115: =IF((SUM($D115:L115)+$B115/$C115)>$B115,$B115-SUM($D115:L115),$B115/$C115) -> 0 | N115: =IF((SUM($D115:M115)+$B115/$C115)>$B115,$B115-SUM($D115:M115),$B115/$C115) -> 0 | O115: =IF((SUM($D115:N115)+$B115/$C115)>$B115,$B115-SUM($D115:N115),$B115/$C115) -> 0 | P115: =IF((SUM($D115:O115)+$B115/$C115)>$B115,$B115-SUM($D115:O115),$B115/$C115) -> 0 | Q115: =IF((SUM($D115:P115)+$B115/$C115)>$B115,$B115-SUM($D115:P115),$B115/$C115) -> 0 | R115: =IF((SUM($D115:Q115)+$B115/$C115)>$B115,$B115-SUM($D115:Q115),$B115/$C115) -> 0 | S115: =IF((SUM($D115:R115)+$B115/$C115)>$B115,$B115-SUM($D115:R115),$B115/$C115) -> 0 | T115: =IF((SUM($D115:S115)+$B115/$C115)>$B115,$B115-SUM($D115:S115),$B115/$C115) -> 0 | U115: =IF((SUM($D115:T115)+$B115/$C115)>$B115,$B115-SUM($D115:T115),$B115/$C115) -> 0 | V115: =IF((SUM($D115:U115)+$B115/$C115)>$B115,$B115-SUM($D115:U115),$B115/$C115) -> 0 | W115: =IF((SUM($D115:V115)+$B115/$C115)>$B115,$B115-SUM($D115:V115),$B115/$C115) -> 0 | X115: =IF((SUM($D115:W115)+$B115/$C115)>$B115,$B115-SUM($D115:W115),$B115/$C115) -> 0 | Y115: =IF((SUM($D115:X115)+$B115/$C115)>$B115,$B115-SUM($D115:X115),$B115/$C115) -> 0 | Z115: =IF((SUM($D115:Y115)+$B115/$C115)>$B115,$B115-SUM($D115:Y115),$B115/$C115) -> 0 | AA115: =IF((SUM($D115:Z115)+$B115/$C115)>$B115,$B115-SUM($D115:Z115),$B115/$C115) -> 0
B116: =SUM(B113:B115) -> 0 | D116: =SUM(D113:D115) -> 0 | E116: =SUM(E113:E115) -> 0 | F116: 0 | G116: 0 | H116: 0 | I116: 0 | J116: 0 | K116: 0 | L116: 0 | M116: 0 | N116: 0 | O116: 0 | P116: 0 | Q116: 0 | R116: 0 | S116: 0 | T116: 0 | U116: 0 | V116: 0 | W116: 0 | X116: =SUM(X113:X115) -> 0 | Y116: =SUM(Y113:Y115) -> 0 | Z116: =SUM(Z113:Z115) -> 0 | AA116: =SUM(AA113:AA115) -> 0
A119: Total | B119: =SUM(B92,B100,B108,B116) -> 13075.51908 | D119: =SUM(D92,D100,D108,D116) -> 2615.103816 | E119: 2615.103816 | F119: 2615.103816 | G119: 2615.103816 | H119: 2615.103816 | I119: 0 | J119: 0 | K119: 0 | L119: 0 | M119: 0 | N119: 0 | O119: 0 | P119: 0 | Q119: 0 | R119: 0 | S119: 0 | T119: 0 | U119: 0 | V119: 0 | W119: 0 | X119: =SUM(X92,X100,X108,X116) -> 0 | Y119: =SUM(Y92,Y100,Y108,Y116) -> 0 | Z119: =SUM(Z92,Z100,Z108,Z116) -> 0 | AA119: =SUM(AA92,AA100,AA108,AA116) -> 0
A123: Regulatory Depreciation on Opening Assets at 1 January 2009 - AMI Capex 2006-08
A124: =$A$4 -> ($000 Real 2008)
A125: RAB at 1 January 2009 | D125: =D$4 -> 2009 | E125: =E$4 -> 2010 | F125: 2011 | G125: 2012 | H125: 2013 | I125: 2014 | J125: 2015 | K125: 2016 | L125: 2017 | M125: 2018 | N125: 2019 | O125: 2020 | P125: 2021 | Q125: 2022 | R125: 2023 | S125: 2024 | T125: 2025 | U125: 2026 | V125: 2027 | W125: 2028 | X125: 2029 | Y125: 2030 | Z125: 2031 | AA125: 2032
A126: Opening asset base | D126: =B163 -> 17451.76465 | E126: =D128 -> 14734.21817 | F126: =E128 -> 12016.67168 | G126: 9299.125192 | H126: 6581.578705 | I126: 3864.032219 | J126: 1252.629488 | K126: 2.273736754e-12 | L126: 2.273736754e-12 | M126: 2.273736754e-12 | N126: 2.273736754e-12 | O126: 2.273736754e-12 | P126: 2.273736754e-12 | Q126: 2.273736754e-12 | R126: 2.273736754e-12 | S126: 2.273736754e-12 | T126: 2.273736754e-12 | U126: 2.273736754e-12 | V126: 2.273736754e-12 | W126: 2.273736754e-12 | X126: =W128 -> 2.273736754e-12 | Y126: =X128 -> 2.273736754e-12 | Z126: =Y128 -> 2.273736754e-12 | AA126: =Z128 -> 2.273736754e-12
A127: Regulatory depreciation | D127: =D163 -> 2717.546487 | E127: =E163 -> 2717.546487 | F127: 2717.546487 | G127: 2717.546487 | H127: 2717.546487 | I127: 2611.402731 | J127: 1252.629488 | K127: 0 | L127: 0 | M127: 0 | N127: 0 | O127: 0 | P127: 0 | Q127: 0 | R127: 0 | S127: 0 | T127: 0 | U127: 0 | V127: 0 | W127: 0 | X127: =X163 -> 0 | Y127: =Y163 -> 0 | Z127: =Z163 -> 0 | AA127: =AA163 -> 0
A128: Closing asset base | D128: =D126-D127 -> 14734.21817 | E128: =E126-E127 -> 12016.67168 | F128: 9299.125192 | G128: 6581.578705 | H128: 3864.032219 | I128: 1252.629488 | J128: 2.273736754e-12 | K128: 2.273736754e-12 | L128: 2.273736754e-12 | M128: 2.273736754e-12 | N128: 2.273736754e-12 | O128: 2.273736754e-12 | P128: 2.273736754e-12 | Q128: 2.273736754e-12 | R128: 2.273736754e-12 | S128: 2.273736754e-12 | T128: 2.273736754e-12 | U128: 2.273736754e-12 | V128: 2.273736754e-12 | W128: 2.273736754e-12 | X128: =X126-X127 -> 2.273736754e-12 | Y128: =Y126-Y127 -> 2.273736754e-12 | Z128: =Z126-Z127 -> 2.273736754e-12 | AA128: =AA126-AA127 -> 2.273736754e-12
A129: Check | C129: =SUM(D129:E129) -> 0 | D129: =IF(ABS(D126-SUM(D127:AA127))<0.001,0,ABS(D126-SUM(D127:AA127))) -> 0 | E129: =IF(ABS(D126-('Data 2006-08'!D88*'Data 2006-08'!D156*(1+'Data 2006-08'!C141)^2.5+'Data 2006-08'!E88*'Data 2006-08'!E156*(1+'Data 2006-08'!C141)^1.5+'Data 2006-08'!F88*(1+'Data 2006-08'!C141)^0.5)/10^3)<0.001,0,ABS(D126-('Data 2006-08'!D88*'Data 2006-08'!D156*(1+'Data 2006-08'!C141)^2.5+'Data 2006-08'!E88*'Data 2006-08'!E156*(1+'Data 2006-08'!C141)^1.5+'Data 2006-08'!F88*(1+'Data 2006-08'!C141)^0.5)/10^3)) -> 0
A131: ='Data 2009-15 (Real $2008)'!A$154 -> Remotely read interval meters & transformers | B131: RAB WDV | C131: Remaining | D131: =D$4 -> 2009 | E131: =E$4 -> 2010 | F131: 2011 | G131: 2012 | H131: 2013 | I131: 2014 | J131: 2015 | K131: 2016 | L131: 2017 | M131: 2018 | N131: 2019 | O131: 2020 | P131: 2021 | Q131: 2022 | R131: 2023 | S131: 2024 | T131: 2025 | U131: 2026 | V131: 2027 | W131: 2028 | X131: 2029 | Y131: 2030 | Z131: 2031 | AA131: 2032
A132: =$A$4 -> ($000 Real 2008) | B132: 1/01/2009 | C132: Life (years)
A133: 2006 | B133: ='Data 2006-08'!D$84*'Data 2006-08'!D156/10^3*(1+'Data 2006-08'!C$141)^2.5 -> 0 | C133: ='Data 2009-15 (Real $2008)'!C$154-(D$131-A133-0.5) -> 12.5 | D133: =IF(C133<1,B133,B133/C133) -> 0 | E133: =IF((SUM($D133:D133)+$B133/$C133)>$B133,$B133-SUM($D133:D133),$B133/$C133) -> 0 | F133: =IF((SUM($D133:E133)+$B133/$C133)>$B133,$B133-SUM($D133:E133),$B133/$C133) -> 0 | G133: =IF((SUM($D133:F133)+$B133/$C133)>$B133,$B133-SUM($D133:F133),$B133/$C133) -> 0 | H133: =IF((SUM($D133:G133)+$B133/$C133)>$B133,$B133-SUM($D133:G133),$B133/$C133) -> 0 | I133: =IF((SUM($D133:H133)+$B133/$C133)>$B133,$B133-SUM($D133:H133),$B133/$C133) -> 0 | J133: =IF((SUM($D133:I133)+$B133/$C133)>$B133,$B133-SUM($D133:I133),$B133/$C133) -> 0 | K133: =IF((SUM($D133:J133)+$B133/$C133)>$B133,$B133-SUM($D133:J133),$B133/$C133) -> 0 | L133: =IF((SUM($D133:K133)+$B133/$C133)>$B133,$B133-SUM($D133:K133),$B133/$C133) -> 0 | M133: =IF((SUM($D133:L133)+$B133/$C133)>$B133,$B133-SUM($D133:L133),$B133/$C133) -> 0 | N133: =IF((SUM($D133:M133)+$B133/$C133)>$B133,$B133-SUM($D133:M133),$B133/$C133) -> 0 | O133: =IF((SUM($D133:N133)+$B133/$C133)>$B133,$B133-SUM($D133:N133),$B133/$C133) -> 0 | P133: =IF((SUM($D133:O133)+$B133/$C133)>$B133,$B133-SUM($D133:O133),$B133/$C133) -> 0 | Q133: =IF((SUM($D133:P133)+$B133/$C133)>$B133,$B133-SUM($D133:P133),$B133/$C133) -> 0 | R133: =IF((SUM($D133:Q133)+$B133/$C133)>$B133,$B133-SUM($D133:Q133),$B133/$C133) -> 0 | S133: =IF((SUM($D133:R133)+$B133/$C133)>$B133,$B133-SUM($D133:R133),$B133/$C133) -> 0 | T133: =IF((SUM($D133:S133)+$B133/$C133)>$B133,$B133-SUM($D133:S133),$B133/$C133) -> 0 | U133: =IF((SUM($D133:T133)+$B133/$C133)>$B133,$B133-SUM($D133:T133),$B133/$C133) -> 0 | V133: =IF((SUM($D133:U133)+$B133/$C133)>$B133,$B133-SUM($D133:U133),$B133/$C133) -> 0 | W133: =IF((SUM($D133:V133)+$B133/$C133)>$B133,$B133-SUM($D133:V133),$B133/$C133) -> 0 | X133: =IF((SUM($D133:W133)+$B133/$C133)>$B133,$B133-SUM($D133:W133),$B133/$C133) -> 0 | Y133: =IF((SUM($D133:X133)+$B133/$C133)>$B133,$B133-SUM($D133:X133),$B133/$C133) -> 0 | Z133: =IF((SUM($D133:Y133)+$B133/$C133)>$B133,$B133-SUM($D133:Y133),$B133/$C133) -> 0 | AA133: =IF((SUM($D133:Z133)+$B133/$C133)>$B133,$B133-SUM($D133:Z133),$B133/$C133) -> 0
A134: 2007 | B134: ='Data 2006-08'!E$84*'Data 2006-08'!E156/10^3*(1+'Data 2006-08'!C$141)^1.5 -> 0 | C134: ='Data 2009-15 (Real $2008)'!C$154-(D$131-A134-0.5) -> 13.5 | D134: =IF(C134<1,B134,B134/C134) -> 0 | E134: =IF((SUM($D134:D134)+$B134/$C134)>$B134,$B134-SUM($D134:D134),$B134/$C134) -> 0 | F134: =IF((SUM($D134:E134)+$B134/$C134)>$B134,$B134-SUM($D134:E134),$B134/$C134) -> 0 | G134: =IF((SUM($D134:F134)+$B134/$C134)>$B134,$B134-SUM($D134:F134),$B134/$C134) -> 0 | H134: =IF((SUM($D134:G134)+$B134/$C134)>$B134,$B134-SUM($D134:G134),$B134/$C134) -> 0 | I134: =IF((SUM($D134:H134)+$B134/$C134)>$B134,$B134-SUM($D134:H134),$B134/$C134) -> 0 | J134: =IF((SUM($D134:I134)+$B134/$C134)>$B134,$B134-SUM($D134:I134),$B134/$C134) -> 0 | K134: =IF((SUM($D134:J134)+$B134/$C134)>$B134,$B134-SUM($D134:J134),$B134/$C134) -> 0 | L134: =IF((SUM($D134:K134)+$B134/$C134)>$B134,$B134-SUM($D134:K134),$B134/$C134) -> 0 | M134: =IF((SUM($D134:L134)+$B134/$C134)>$B134,$B134-SUM($D134:L134),$B134/$C134) -> 0 | N134: =IF((SUM($D134:M134)+$B134/$C134)>$B134,$B134-SUM($D134:M134),$B134/$C134) -> 0 | O134: =IF((SUM($D134:N134)+$B134/$C134)>$B134,$B134-SUM($D134:N134),$B134/$C134) -> 0 | P134: =IF((SUM($D134:O134)+$B134/$C134)>$B134,$B134-SUM($D134:O134),$B134/$C134) -> 0 | Q134: =IF((SUM($D134:P134)+$B134/$C134)>$B134,$B134-SUM($D134:P134),$B134/$C134) -> 0 | R134: =IF((SUM($D134:Q134)+$B134/$C134)>$B134,$B134-SUM($D134:Q134),$B134/$C134) -> 0 | S134: =IF((SUM($D134:R134)+$B134/$C134)>$B134,$B134-SUM($D134:R134),$B134/$C134) -> 0 | T134: =IF((SUM($D134:S134)+$B134/$C134)>$B134,$B134-SUM($D134:S134),$B134/$C134) -> 0 | U134: =IF((SUM($D134:T134)+$B134/$C134)>$B134,$B134-SUM($D134:T134),$B134/$C134) -> 0 | V134: =IF((SUM($D134:U134)+$B134/$C134)>$B134,$B134-SUM($D134:U134),$B134/$C134) -> 0 | W134: =IF((SUM($D134:V134)+$B134/$C134)>$B134,$B134-SUM($D134:V134),$B134/$C134) -> 0 | X134: =IF((SUM($D134:W134)+$B134/$C134)>$B134,$B134-SUM($D134:W134),$B134/$C134) -> 0 | Y134: =IF((SUM($D134:X134)+$B134/$C134)>$B134,$B134-SUM($D134:X134),$B134/$C134) -> 0 | Z134: =IF((SUM($D134:Y134)+$B134/$C134)>$B134,$B134-SUM($D134:Y134),$B134/$C134) -> 0 | AA134: =IF((SUM($D134:Z134)+$B134/$C134)>$B134,$B134-SUM($D134:Z134),$B134/$C134) -> 0
A135: 2008 | B135: ='Data 2006-08'!F$84/10^3*(1+'Data 2006-08'!C$141)^0.5 -> 0 | C135: ='Data 2009-15 (Real $2008)'!C$154-(D$131-A135-0.5) -> 14.5 | D135: =IF(C135<1,B135,B135/C135) -> 0 | E135: =IF((SUM($D135:D135)+$B135/$C135)>$B135,$B135-SUM($D135:D135),$B135/$C135) -> 0 | F135: =IF((SUM($D135:E135)+$B135/$C135)>$B135,$B135-SUM($D135:E135),$B135/$C135) -> 0 | G135: =IF((SUM($D135:F135)+$B135/$C135)>$B135,$B135-SUM($D135:F135),$B135/$C135) -> 0 | H135: =IF((SUM($D135:G135)+$B135/$C135)>$B135,$B135-SUM($D135:G135),$B135/$C135) -> 0 | I135: =IF((SUM($D135:H135)+$B135/$C135)>$B135,$B135-SUM($D135:H135),$B135/$C135) -> 0 | J135: =IF((SUM($D135:I135)+$B135/$C135)>$B135,$B135-SUM($D135:I135),$B135/$C135) -> 0 | K135: =IF((SUM($D135:J135)+$B135/$C135)>$B135,$B135-SUM($D135:J135),$B135/$C135) -> 0 | L135: =IF((SUM($D135:K135)+$B135/$C135)>$B135,$B135-SUM($D135:K135),$B135/$C135) -> 0 | M135: =IF((SUM($D135:L135)+$B135/$C135)>$B135,$B135-SUM($D135:L135),$B135/$C135) -> 0 | N135: =IF((SUM($D135:M135)+$B135/$C135)>$B135,$B135-SUM($D135:M135),$B135/$C135) -> 0 | O135: =IF((SUM($D135:N135)+$B135/$C135)>$B135,$B135-SUM($D135:N135),$B135/$C135) -> 0 | P135: =IF((SUM($D135:O135)+$B135/$C135)>$B135,$B135-SUM($D135:O135),$B135/$C135) -> 0 | Q135: =IF((SUM($D135:P135)+$B135/$C135)>$B135,$B135-SUM($D135:P135),$B135/$C135) -> 0 | R135: =IF((SUM($D135:Q135)+$B135/$C135)>$B135,$B135-SUM($D135:Q135),$B135/$C135) -> 0 | S135: =IF((SUM($D135:R135)+$B135/$C135)>$B135,$B135-SUM($D135:R135),$B135/$C135) -> 0 | T135: =IF((SUM($D135:S135)+$B135/$C135)>$B135,$B135-SUM($D135:S135),$B135/$C135) -> 0 | U135: =IF((SUM($D135:T135)+$B135/$C135)>$B135,$B135-SUM($D135:T135),$B135/$C135) -> 0 | V135: =IF((SUM($D135:U135)+$B135/$C135)>$B135,$B135-SUM($D135:U135),$B135/$C135) -> 0 | W135: =IF((SUM($D135:V135)+$B135/$C135)>$B135,$B135-SUM($D135:V135),$B135/$C135) -> 0 | X135: =IF((SUM($D135:W135)+$B135/$C135)>$B135,$B135-SUM($D135:W135),$B135/$C135) -> 0 | Y135: =IF((SUM($D135:X135)+$B135/$C135)>$B135,$B135-SUM($D135:X135),$B135/$C135) -> 0 | Z135: =IF((SUM($D135:Y135)+$B135/$C135)>$B135,$B135-SUM($D135:Y135),$B135/$C135) -> 0 | AA135: =IF((SUM($D135:Z135)+$B135/$C135)>$B135,$B135-SUM($D135:Z135),$B135/$C135) -> 0
B136: =SUM(B133:B135) -> 0 | D136: =SUM(D133:D135) -> 0 | E136: =SUM(E133:E135) -> 0 | F136: 0 | G136: 0 | H136: 0 | I136: 0 | J136: 0 | K136: 0 | L136: 0 | M136: 0 | N136: 0 | O136: 0 | P136: 0 | Q136: 0 | R136: 0 | S136: 0 | T136: 0 | U136: 0 | V136: 0 | W136: 0 | X136: =SUM(X133:X135) -> 0 | Y136: =SUM(Y133:Y135) -> 0 | Z136: =SUM(Z133:Z135) -> 0 | AA136: =SUM(AA133:AA135) -> 0
A139: IT | B139: RAB WDV | C139: Remaining | D139: =D$4 -> 2009 | E139: =E$4 -> 2010 | F139: 2011 | G139: 2012 | H139: 2013 | I139: 2014 | J139: 2015 | K139: 2016 | L139: 2017 | M139: 2018 | N139: 2019 | O139: 2020 | P139: 2021 | Q139: 2022 | R139: 2023 | S139: 2024 | T139: 2025 | U139: 2026 | V139: 2027 | W139: 2028 | X139: 2029 | Y139: 2030 | Z139: 2031 | AA139: 2032
A140: =$A$4 -> ($000 Real 2008) | B140: 1/01/2009 | C140: Life (years)
A141: 2006 | B141: ='Data 2006-08'!D$85*'Data 2006-08'!D156/10^3*(1+'Data 2006-08'!C$141)^2.5 -> 0 | C141: ='Data 2009-15 (Real $2008)'!C$155-(D$139-A141-0.5) -> 4.5 | D141: =IF(C141<1,B141,B141/C141) -> 0 | E141: =IF((SUM($D141:D141)+$B141/$C141)>$B141,$B141-SUM($D141:D141),$B141/$C141) -> 0 | F141: =IF((SUM($D141:E141)+$B141/$C141)>$B141,$B141-SUM($D141:E141),$B141/$C141) -> 0 | G141: =IF((SUM($D141:F141)+$B141/$C141)>$B141,$B141-SUM($D141:F141),$B141/$C141) -> 0 | H141: =IF((SUM($D141:G141)+$B141/$C141)>$B141,$B141-SUM($D141:G141),$B141/$C141) -> 0 | I141: =IF((SUM($D141:H141)+$B141/$C141)>$B141,$B141-SUM($D141:H141),$B141/$C141) -> 0 | J141: =IF((SUM($D141:I141)+$B141/$C141)>$B141,$B141-SUM($D141:I141),$B141/$C141) -> 0 | K141: =IF((SUM($D141:J141)+$B141/$C141)>$B141,$B141-SUM($D141:J141),$B141/$C141) -> 0 | L141: =IF((SUM($D141:K141)+$B141/$C141)>$B141,$B141-SUM($D141:K141),$B141/$C141) -> 0 | M141: =IF((SUM($D141:L141)+$B141/$C141)>$B141,$B141-SUM($D141:L141),$B141/$C141) -> 0 | N141: =IF((SUM($D141:M141)+$B141/$C141)>$B141,$B141-SUM($D141:M141),$B141/$C141) -> 0 | O141: =IF((SUM($D141:N141)+$B141/$C141)>$B141,$B141-SUM($D141:N141),$B141/$C141) -> 0 | P141: =IF((SUM($D141:O141)+$B141/$C141)>$B141,$B141-SUM($D141:O141),$B141/$C141) -> 0 | Q141: =IF((SUM($D141:P141)+$B141/$C141)>$B141,$B141-SUM($D141:P141),$B141/$C141) -> 0 | R141: =IF((SUM($D141:Q141)+$B141/$C141)>$B141,$B141-SUM($D141:Q141),$B141/$C141) -> 0 | S141: =IF((SUM($D141:R141)+$B141/$C141)>$B141,$B141-SUM($D141:R141),$B141/$C141) -> 0 | T141: =IF((SUM($D141:S141)+$B141/$C141)>$B141,$B141-SUM($D141:S141),$B141/$C141) -> 0 | U141: =IF((SUM($D141:T141)+$B141/$C141)>$B141,$B141-SUM($D141:T141),$B141/$C141) -> 0 | V141: =IF((SUM($D141:U141)+$B141/$C141)>$B141,$B141-SUM($D141:U141),$B141/$C141) -> 0 | W141: =IF((SUM($D141:V141)+$B141/$C141)>$B141,$B141-SUM($D141:V141),$B141/$C141) -> 0 | X141: =IF((SUM($D141:W141)+$B141/$C141)>$B141,$B141-SUM($D141:W141),$B141/$C141) -> 0 | Y141: =IF((SUM($D141:X141)+$B141/$C141)>$B141,$B141-SUM($D141:X141),$B141/$C141) -> 0 | Z141: =IF((SUM($D141:Y141)+$B141/$C141)>$B141,$B141-SUM($D141:Y141),$B141/$C141) -> 0 | AA141: =IF((SUM($D141:Z141)+$B141/$C141)>$B141,$B141-SUM($D141:Z141),$B141/$C141) -> 0
A142: 2007 | B142: ='Data 2006-08'!E$85*'Data 2006-08'!E156/10^3*(1+'Data 2006-08'!C$141)^1.5 -> 0 | C142: ='Data 2009-15 (Real $2008)'!C$155-(D$139-A142-0.5) -> 5.5 | D142: =IF(C142<1,B142,B142/C142) -> 0 | E142: =IF((SUM($D142:D142)+$B142/$C142)>$B142,$B142-SUM($D142:D142),$B142/$C142) -> 0 | F142: =IF((SUM($D142:E142)+$B142/$C142)>$B142,$B142-SUM($D142:E142),$B142/$C142) -> 0 | G142: =IF((SUM($D142:F142)+$B142/$C142)>$B142,$B142-SUM($D142:F142),$B142/$C142) -> 0 | H142: =IF((SUM($D142:G142)+$B142/$C142)>$B142,$B142-SUM($D142:G142),$B142/$C142) -> 0 | I142: =IF((SUM($D142:H142)+$B142/$C142)>$B142,$B142-SUM($D142:H142),$B142/$C142) -> 0 | J142: =IF((SUM($D142:I142)+$B142/$C142)>$B142,$B142-SUM($D142:I142),$B142/$C142) -> 0 | K142: =IF((SUM($D142:J142)+$B142/$C142)>$B142,$B142-SUM($D142:J142),$B142/$C142) -> 0 | L142: =IF((SUM($D142:K142)+$B142/$C142)>$B142,$B142-SUM($D142:K142),$B142/$C142) -> 0 | M142: =IF((SUM($D142:L142)+$B142/$C142)>$B142,$B142-SUM($D142:L142),$B142/$C142) -> 0 | N142: =IF((SUM($D142:M142)+$B142/$C142)>$B142,$B142-SUM($D142:M142),$B142/$C142) -> 0 | O142: =IF((SUM($D142:N142)+$B142/$C142)>$B142,$B142-SUM($D142:N142),$B142/$C142) -> 0 | P142: =IF((SUM($D142:O142)+$B142/$C142)>$B142,$B142-SUM($D142:O142),$B142/$C142) -> 0 | Q142: =IF((SUM($D142:P142)+$B142/$C142)>$B142,$B142-SUM($D142:P142),$B142/$C142) -> 0 | R142: =IF((SUM($D142:Q142)+$B142/$C142)>$B142,$B142-SUM($D142:Q142),$B142/$C142) -> 0 | S142: =IF((SUM($D142:R142)+$B142/$C142)>$B142,$B142-SUM($D142:R142),$B142/$C142) -> 0 | T142: =IF((SUM($D142:S142)+$B142/$C142)>$B142,$B142-SUM($D142:S142),$B142/$C142) -> 0 | U142: =IF((SUM($D142:T142)+$B142/$C142)>$B142,$B142-SUM($D142:T142),$B142/$C142) -> 0 | V142: =IF((SUM($D142:U142)+$B142/$C142)>$B142,$B142-SUM($D142:U142),$B142/$C142) -> 0 | W142: =IF((SUM($D142:V142)+$B142/$C142)>$B142,$B142-SUM($D142:V142),$B142/$C142) -> 0 | X142: =IF((SUM($D142:W142)+$B142/$C142)>$B142,$B142-SUM($D142:W142),$B142/$C142) -> 0 | Y142: =IF((SUM($D142:X142)+$B142/$C142)>$B142,$B142-SUM($D142:X142),$B142/$C142) -> 0 | Z142: =IF((SUM($D142:Y142)+$B142/$C142)>$B142,$B142-SUM($D142:Y142),$B142/$C142) -> 0 | AA142: =IF((SUM($D142:Z142)+$B142/$C142)>$B142,$B142-SUM($D142:Z142),$B142/$C142) -> 0
A143: 2008 | B143: ='Data 2006-08'!F$85/10^3*(1+'Data 2006-08'!C$141)^0.5 -> 2989.805362 | C143: ='Data 2009-15 (Real $2008)'!C$155-(D$139-A143-0.5) -> 6.5 | D143: =IF(C143<1,B143,B143/C143) -> 459.9700557 | E143: =IF((SUM($D143:D143)+$B143/$C143)>$B143,$B143-SUM($D143:D143),$B143/$C143) -> 459.9700557 | F143: =IF((SUM($D143:E143)+$B143/$C143)>$B143,$B143-SUM($D143:E143),$B143/$C143) -> 459.9700557 | G143: =IF((SUM($D143:F143)+$B143/$C143)>$B143,$B143-SUM($D143:F143),$B143/$C143) -> 459.9700557 | H143: =IF((SUM($D143:G143)+$B143/$C143)>$B143,$B143-SUM($D143:G143),$B143/$C143) -> 459.9700557 | I143: =IF((SUM($D143:H143)+$B143/$C143)>$B143,$B143-SUM($D143:H143),$B143/$C143) -> 459.9700557 | J143: =IF((SUM($D143:I143)+$B143/$C143)>$B143,$B143-SUM($D143:I143),$B143/$C143) -> 229.9850279 | K143: =IF((SUM($D143:J143)+$B143/$C143)>$B143,$B143-SUM($D143:J143),$B143/$C143) -> 0 | L143: =IF((SUM($D143:K143)+$B143/$C143)>$B143,$B143-SUM($D143:K143),$B143/$C143) -> 0 | M143: =IF((SUM($D143:L143)+$B143/$C143)>$B143,$B143-SUM($D143:L143),$B143/$C143) -> 0 | N143: =IF((SUM($D143:M143)+$B143/$C143)>$B143,$B143-SUM($D143:M143),$B143/$C143) -> 0 | O143: =IF((SUM($D143:N143)+$B143/$C143)>$B143,$B143-SUM($D143:N143),$B143/$C143) -> 0 | P143: =IF((SUM($D143:O143)+$B143/$C143)>$B143,$B143-SUM($D143:O143),$B143/$C143) -> 0 | Q143: =IF((SUM($D143:P143)+$B143/$C143)>$B143,$B143-SUM($D143:P143),$B143/$C143) -> 0 | R143: =IF((SUM($D143:Q143)+$B143/$C143)>$B143,$B143-SUM($D143:Q143),$B143/$C143) -> 0 | S143: =IF((SUM($D143:R143)+$B143/$C143)>$B143,$B143-SUM($D143:R143),$B143/$C143) -> 0 | T143: =IF((SUM($D143:S143)+$B143/$C143)>$B143,$B143-SUM($D143:S143),$B143/$C143) -> 0 | U143: =IF((SUM($D143:T143)+$B143/$C143)>$B143,$B143-SUM($D143:T143),$B143/$C143) -> 0 | V143: =IF((SUM($D143:U143)+$B143/$C143)>$B143,$B143-SUM($D143:U143),$B143/$C143) -> 0 | W143: =IF((SUM($D143:V143)+$B143/$C143)>$B143,$B143-SUM($D143:V143),$B143/$C143) -> 0 | X143: =IF((SUM($D143:W143)+$B143/$C143)>$B143,$B143-SUM($D143:W143),$B143/$C143) -> 0 | Y143: =IF((SUM($D143:X143)+$B143/$C143)>$B143,$B143-SUM($D143:X143),$B143/$C143) -> 0 | Z143: =IF((SUM($D143:Y143)+$B143/$C143)>$B143,$B143-SUM($D143:Y143),$B143/$C143) -> 0 | AA143: =IF((SUM($D143:Z143)+$B143/$C143)>$B143,$B143-SUM($D143:Z143),$B143/$C143) -> 0
B144: =SUM(B141:B143) -> 2989.805362 | D144: =SUM(D141:D143) -> 459.9700557 | E144: =SUM(E141:E143) -> 459.9700557 | F144: 459.9700557 | G144: 459.9700557 | H144: 459.9700557 | I144: 459.9700557 | J144: 229.9850279 | K144: 0 | L144: 0 | M144: 0 | N144: 0 | O144: 0 | P144: 0 | Q144: 0 | R144: 0 | S144: 0 | T144: 0 | U144: 0 | V144: 0 | W144: 0 | X144: =SUM(X141:X143) -> 0 | Y144: =SUM(Y141:Y143) -> 0 | Z144: =SUM(Z141:Z143) -> 0 | AA144: =SUM(AA141:AA143) -> 0
A147: Communications | B147: RAB WDV | C147: Remaining | D147: =D$4 -> 2009 | E147: =E$4 -> 2010 | F147: 2011 | G147: 2012 | H147: 2013 | I147: 2014 | J147: 2015 | K147: 2016 | L147: 2017 | M147: 2018 | N147: 2019 | O147: 2020 | P147: 2021 | Q147: 2022 | R147: 2023 | S147: 2024 | T147: 2025 | U147: 2026 | V147: 2027 | W147: 2028 | X147: 2029 | Y147: 2030 | Z147: 2031 | AA147: 2032
A148: =$A$4 -> ($000 Real 2008) | B148: 1/01/2009 | C148: Life (years)
A149: 2006 | B149: ='Data 2006-08'!D$86*'Data 2006-08'!D156/10^3*(1+'Data 2006-08'!C$141)^2.5 -> 0 | C149: ='Data 2009-15 (Real $2008)'!C$156-(D$147-A149-0.5) -> 4.5 | D149: =IF(C149<1,B149,B149/C149) -> 0 | E149: =IF((SUM($D149:D149)+$B149/$C149)>$B149,$B149-SUM($D149:D149),$B149/$C149) -> 0 | F149: =IF((SUM($D149:E149)+$B149/$C149)>$B149,$B149-SUM($D149:E149),$B149/$C149) -> 0 | G149: =IF((SUM($D149:F149)+$B149/$C149)>$B149,$B149-SUM($D149:F149),$B149/$C149) -> 0 | H149: =IF((SUM($D149:G149)+$B149/$C149)>$B149,$B149-SUM($D149:G149),$B149/$C149) -> 0 | I149: =IF((SUM($D149:H149)+$B149/$C149)>$B149,$B149-SUM($D149:H149),$B149/$C149) -> 0 | J149: =IF((SUM($D149:I149)+$B149/$C149)>$B149,$B149-SUM($D149:I149),$B149/$C149) -> 0 | K149: =IF((SUM($D149:J149)+$B149/$C149)>$B149,$B149-SUM($D149:J149),$B149/$C149) -> 0 | L149: =IF((SUM($D149:K149)+$B149/$C149)>$B149,$B149-SUM($D149:K149),$B149/$C149) -> 0 | M149: =IF((SUM($D149:L149)+$B149/$C149)>$B149,$B149-SUM($D149:L149),$B149/$C149) -> 0 | N149: =IF((SUM($D149:M149)+$B149/$C149)>$B149,$B149-SUM($D149:M149),$B149/$C149) -> 0 | O149: =IF((SUM($D149:N149)+$B149/$C149)>$B149,$B149-SUM($D149:N149),$B149/$C149) -> 0 | P149: =IF((SUM($D149:O149)+$B149/$C149)>$B149,$B149-SUM($D149:O149),$B149/$C149) -> 0 | Q149: =IF((SUM($D149:P149)+$B149/$C149)>$B149,$B149-SUM($D149:P149),$B149/$C149) -> 0 | R149: =IF((SUM($D149:Q149)+$B149/$C149)>$B149,$B149-SUM($D149:Q149),$B149/$C149) -> 0 | S149: =IF((SUM($D149:R149)+$B149/$C149)>$B149,$B149-SUM($D149:R149),$B149/$C149) -> 0 | T149: =IF((SUM($D149:S149)+$B149/$C149)>$B149,$B149-SUM($D149:S149),$B149/$C149) -> 0 | U149: =IF((SUM($D149:T149)+$B149/$C149)>$B149,$B149-SUM($D149:T149),$B149/$C149) -> 0 | V149: =IF((SUM($D149:U149)+$B149/$C149)>$B149,$B149-SUM($D149:U149),$B149/$C149) -> 0 | W149: =IF((SUM($D149:V149)+$B149/$C149)>$B149,$B149-SUM($D149:V149),$B149/$C149) -> 0 | X149: =IF((SUM($D149:W149)+$B149/$C149)>$B149,$B149-SUM($D149:W149),$B149/$C149) -> 0 | Y149: =IF((SUM($D149:X149)+$B149/$C149)>$B149,$B149-SUM($D149:X149),$B149/$C149) -> 0 | Z149: =IF((SUM($D149:Y149)+$B149/$C149)>$B149,$B149-SUM($D149:Y149),$B149/$C149) -> 0 | AA149: =IF((SUM($D149:Z149)+$B149/$C149)>$B149,$B149-SUM($D149:Z149),$B149/$C149) -> 0
A150: 2007 | B150: ='Data 2006-08'!E$86*'Data 2006-08'!E156/10^3*(1+'Data 2006-08'!C$141)^1.5 -> 0 | C150: ='Data 2009-15 (Real $2008)'!C$156-(D$147-A150-0.5) -> 5.5 | D150: =IF(C150<1,B150,B150/C150) -> 0 | E150: =IF((SUM($D150:D150)+$B150/$C150)>$B150,$B150-SUM($D150:D150),$B150/$C150) -> 0 | F150: =IF((SUM($D150:E150)+$B150/$C150)>$B150,$B150-SUM($D150:E150),$B150/$C150) -> 0 | G150: =IF((SUM($D150:F150)+$B150/$C150)>$B150,$B150-SUM($D150:F150),$B150/$C150) -> 0 | H150: =IF((SUM($D150:G150)+$B150/$C150)>$B150,$B150-SUM($D150:G150),$B150/$C150) -> 0 | I150: =IF((SUM($D150:H150)+$B150/$C150)>$B150,$B150-SUM($D150:H150),$B150/$C150) -> 0 | J150: =IF((SUM($D150:I150)+$B150/$C150)>$B150,$B150-SUM($D150:I150),$B150/$C150) -> 0 | K150: =IF((SUM($D150:J150)+$B150/$C150)>$B150,$B150-SUM($D150:J150),$B150/$C150) -> 0 | L150: =IF((SUM($D150:K150)+$B150/$C150)>$B150,$B150-SUM($D150:K150),$B150/$C150) -> 0 | M150: =IF((SUM($D150:L150)+$B150/$C150)>$B150,$B150-SUM($D150:L150),$B150/$C150) -> 0 | N150: =IF((SUM($D150:M150)+$B150/$C150)>$B150,$B150-SUM($D150:M150),$B150/$C150) -> 0 | O150: =IF((SUM($D150:N150)+$B150/$C150)>$B150,$B150-SUM($D150:N150),$B150/$C150) -> 0 | P150: =IF((SUM($D150:O150)+$B150/$C150)>$B150,$B150-SUM($D150:O150),$B150/$C150) -> 0 | Q150: =IF((SUM($D150:P150)+$B150/$C150)>$B150,$B150-SUM($D150:P150),$B150/$C150) -> 0 | R150: =IF((SUM($D150:Q150)+$B150/$C150)>$B150,$B150-SUM($D150:Q150),$B150/$C150) -> 0 | S150: =IF((SUM($D150:R150)+$B150/$C150)>$B150,$B150-SUM($D150:R150),$B150/$C150) -> 0 | T150: =IF((SUM($D150:S150)+$B150/$C150)>$B150,$B150-SUM($D150:S150),$B150/$C150) -> 0 | U150: =IF((SUM($D150:T150)+$B150/$C150)>$B150,$B150-SUM($D150:T150),$B150/$C150) -> 0 | V150: =IF((SUM($D150:U150)+$B150/$C150)>$B150,$B150-SUM($D150:U150),$B150/$C150) -> 0 | W150: =IF((SUM($D150:V150)+$B150/$C150)>$B150,$B150-SUM($D150:V150),$B150/$C150) -> 0 | X150: =IF((SUM($D150:W150)+$B150/$C150)>$B150,$B150-SUM($D150:W150),$B150/$C150) -> 0 | Y150: =IF((SUM($D150:X150)+$B150/$C150)>$B150,$B150-SUM($D150:X150),$B150/$C150) -> 0 | Z150: =IF((SUM($D150:Y150)+$B150/$C150)>$B150,$B150-SUM($D150:Y150),$B150/$C150) -> 0 | AA150: =IF((SUM($D150:Z150)+$B150/$C150)>$B150,$B150-SUM($D150:Z150),$B150/$C150) -> 0
A151: 2008 | B151: ='Data 2006-08'!F$86/10^3*(1+'Data 2006-08'!C$141)^0.5 -> 0 | C151: ='Data 2009-15 (Real $2008)'!C$156-(D$147-A151-0.5) -> 6.5 | D151: =IF(C151<1,B151,B151/C151) -> 0 | E151: =IF((SUM($D151:D151)+$B151/$C151)>$B151,$B151-SUM($D151:D151),$B151/$C151) -> 0 | F151: =IF((SUM($D151:E151)+$B151/$C151)>$B151,$B151-SUM($D151:E151),$B151/$C151) -> 0 | G151: =IF((SUM($D151:F151)+$B151/$C151)>$B151,$B151-SUM($D151:F151),$B151/$C151) -> 0 | H151: =IF((SUM($D151:G151)+$B151/$C151)>$B151,$B151-SUM($D151:G151),$B151/$C151) -> 0 | I151: =IF((SUM($D151:H151)+$B151/$C151)>$B151,$B151-SUM($D151:H151),$B151/$C151) -> 0 | J151: =IF((SUM($D151:I151)+$B151/$C151)>$B151,$B151-SUM($D151:I151),$B151/$C151) -> 0 | K151: =IF((SUM($D151:J151)+$B151/$C151)>$B151,$B151-SUM($D151:J151),$B151/$C151) -> 0 | L151: =IF((SUM($D151:K151)+$B151/$C151)>$B151,$B151-SUM($D151:K151),$B151/$C151) -> 0 | M151: =IF((SUM($D151:L151)+$B151/$C151)>$B151,$B151-SUM($D151:L151),$B151/$C151) -> 0 | N151: =IF((SUM($D151:M151)+$B151/$C151)>$B151,$B151-SUM($D151:M151),$B151/$C151) -> 0 | O151: =IF((SUM($D151:N151)+$B151/$C151)>$B151,$B151-SUM($D151:N151),$B151/$C151) -> 0 | P151: =IF((SUM($D151:O151)+$B151/$C151)>$B151,$B151-SUM($D151:O151),$B151/$C151) -> 0 | Q151: =IF((SUM($D151:P151)+$B151/$C151)>$B151,$B151-SUM($D151:P151),$B151/$C151) -> 0 | R151: =IF((SUM($D151:Q151)+$B151/$C151)>$B151,$B151-SUM($D151:Q151),$B151/$C151) -> 0 | S151: =IF((SUM($D151:R151)+$B151/$C151)>$B151,$B151-SUM($D151:R151),$B151/$C151) -> 0 | T151: =IF((SUM($D151:S151)+$B151/$C151)>$B151,$B151-SUM($D151:S151),$B151/$C151) -> 0 | U151: =IF((SUM($D151:T151)+$B151/$C151)>$B151,$B151-SUM($D151:T151),$B151/$C151) -> 0 | V151: =IF((SUM($D151:U151)+$B151/$C151)>$B151,$B151-SUM($D151:U151),$B151/$C151) -> 0 | W151: =IF((SUM($D151:V151)+$B151/$C151)>$B151,$B151-SUM($D151:V151),$B151/$C151) -> 0 | X151: =IF((SUM($D151:W151)+$B151/$C151)>$B151,$B151-SUM($D151:W151),$B151/$C151) -> 0 | Y151: =IF((SUM($D151:X151)+$B151/$C151)>$B151,$B151-SUM($D151:X151),$B151/$C151) -> 0 | Z151: =IF((SUM($D151:Y151)+$B151/$C151)>$B151,$B151-SUM($D151:Y151),$B151/$C151) -> 0 | AA151: =IF((SUM($D151:Z151)+$B151/$C151)>$B151,$B151-SUM($D151:Z151),$B151/$C151) -> 0
B152: =SUM(B149:B151) -> 0 | D152: =SUM(D149:D151) -> 0 | E152: =SUM(E149:E151) -> 0 | F152: 0 | G152: 0 | H152: 0 | I152: 0 | J152: 0 | K152: 0 | L152: 0 | M152: 0 | N152: 0 | O152: 0 | P152: 0 | Q152: 0 | R152: 0 | S152: 0 | T152: 0 | U152: 0 | V152: 0 | W152: 0 | X152: =SUM(X149:X151) -> 0 | Y152: =SUM(Y149:Y151) -> 0 | Z152: =SUM(Z149:Z151) -> 0 | AA152: =SUM(AA149:AA151) -> 0
A155: Other | B155: RAB WDV | C155: Remaining | D155: =D$4 -> 2009 | E155: =E$4 -> 2010 | F155: 2011 | G155: 2012 | H155: 2013 | I155: 2014 | J155: 2015 | K155: 2016 | L155: 2017 | M155: 2018 | N155: 2019 | O155: 2020 | P155: 2021 | Q155: 2022 | R155: 2023 | S155: 2024 | T155: 2025 | U155: 2026 | V155: 2027 | W155: 2028 | X155: 2029 | Y155: 2030 | Z155: 2031 | AA155: 2032
A156: =$A$4 -> ($000 Real 2008) | B156: 1/01/2009 | C156: Life (years)
A157: 2006 | B157: ='Data 2006-08'!D$87*'Data 2006-08'!D156/10^3*(1+'Data 2006-08'!C$141)^2.5 -> 0 | C157: ='Data 2009-15 (Real $2008)'!C$157-(D$155-A157-0.5) -> 4.5 | D157: =IF(C157<1,B157,B157/C157) -> 0 | E157: =IF((SUM($D157:D157)+$B157/$C157)>$B157,$B157-SUM($D157:D157),$B157/$C157) -> 0 | F157: =IF((SUM($D157:E157)+$B157/$C157)>$B157,$B157-SUM($D157:E157),$B157/$C157) -> 0 | G157: =IF((SUM($D157:F157)+$B157/$C157)>$B157,$B157-SUM($D157:F157),$B157/$C157) -> 0 | H157: =IF((SUM($D157:G157)+$B157/$C157)>$B157,$B157-SUM($D157:G157),$B157/$C157) -> 0 | I157: =IF((SUM($D157:H157)+$B157/$C157)>$B157,$B157-SUM($D157:H157),$B157/$C157) -> 0 | J157: =IF((SUM($D157:I157)+$B157/$C157)>$B157,$B157-SUM($D157:I157),$B157/$C157) -> 0 | K157: =IF((SUM($D157:J157)+$B157/$C157)>$B157,$B157-SUM($D157:J157),$B157/$C157) -> 0 | L157: =IF((SUM($D157:K157)+$B157/$C157)>$B157,$B157-SUM($D157:K157),$B157/$C157) -> 0 | M157: =IF((SUM($D157:L157)+$B157/$C157)>$B157,$B157-SUM($D157:L157),$B157/$C157) -> 0 | N157: =IF((SUM($D157:M157)+$B157/$C157)>$B157,$B157-SUM($D157:M157),$B157/$C157) -> 0 | O157: =IF((SUM($D157:N157)+$B157/$C157)>$B157,$B157-SUM($D157:N157),$B157/$C157) -> 0 | P157: =IF((SUM($D157:O157)+$B157/$C157)>$B157,$B157-SUM($D157:O157),$B157/$C157) -> 0 | Q157: =IF((SUM($D157:P157)+$B157/$C157)>$B157,$B157-SUM($D157:P157),$B157/$C157) -> 0 | R157: =IF((SUM($D157:Q157)+$B157/$C157)>$B157,$B157-SUM($D157:Q157),$B157/$C157) -> 0 | S157: =IF((SUM($D157:R157)+$B157/$C157)>$B157,$B157-SUM($D157:R157),$B157/$C157) -> 0 | T157: =IF((SUM($D157:S157)+$B157/$C157)>$B157,$B157-SUM($D157:S157),$B157/$C157) -> 0 | U157: =IF((SUM($D157:T157)+$B157/$C157)>$B157,$B157-SUM($D157:T157),$B157/$C157) -> 0 | V157: =IF((SUM($D157:U157)+$B157/$C157)>$B157,$B157-SUM($D157:U157),$B157/$C157) -> 0 | W157: =IF((SUM($D157:V157)+$B157/$C157)>$B157,$B157-SUM($D157:V157),$B157/$C157) -> 0 | X157: =IF((SUM($D157:W157)+$B157/$C157)>$B157,$B157-SUM($D157:W157),$B157/$C157) -> 0 | Y157: =IF((SUM($D157:X157)+$B157/$C157)>$B157,$B157-SUM($D157:X157),$B157/$C157) -> 0 | Z157: =IF((SUM($D157:Y157)+$B157/$C157)>$B157,$B157-SUM($D157:Y157),$B157/$C157) -> 0 | AA157: =IF((SUM($D157:Z157)+$B157/$C157)>$B157,$B157-SUM($D157:Z157),$B157/$C157) -> 0
A158: 2007 | B158: ='Data 2006-08'!E$87*'Data 2006-08'!E156/10^3*(1+'Data 2006-08'!C$141)^1.5 -> 1167.581312 | C158: ='Data 2009-15 (Real $2008)'!C$157-(D$155-A158-0.5) -> 5.5 | D158: =IF(C158<1,B158,B158/C158) -> 212.2875112 | E158: =IF((SUM($D158:D158)+$B158/$C158)>$B158,$B158-SUM($D158:D158),$B158/$C158) -> 212.2875112 | F158: =IF((SUM($D158:E158)+$B158/$C158)>$B158,$B158-SUM($D158:E158),$B158/$C158) -> 212.2875112 | G158: =IF((SUM($D158:F158)+$B158/$C158)>$B158,$B158-SUM($D158:F158),$B158/$C158) -> 212.2875112 | H158: =IF((SUM($D158:G158)+$B158/$C158)>$B158,$B158-SUM($D158:G158),$B158/$C158) -> 212.2875112 | I158: =IF((SUM($D158:H158)+$B158/$C158)>$B158,$B158-SUM($D158:H158),$B158/$C158) -> 106.1437556 | J158: =IF((SUM($D158:I158)+$B158/$C158)>$B158,$B158-SUM($D158:I158),$B158/$C158) -> 0 | K158: =IF((SUM($D158:J158)+$B158/$C158)>$B158,$B158-SUM($D158:J158),$B158/$C158) -> 0 | L158: =IF((SUM($D158:K158)+$B158/$C158)>$B158,$B158-SUM($D158:K158),$B158/$C158) -> 0 | M158: =IF((SUM($D158:L158)+$B158/$C158)>$B158,$B158-SUM($D158:L158),$B158/$C158) -> 0 | N158: =IF((SUM($D158:M158)+$B158/$C158)>$B158,$B158-SUM($D158:M158),$B158/$C158) -> 0 | O158: =IF((SUM($D158:N158)+$B158/$C158)>$B158,$B158-SUM($D158:N158),$B158/$C158) -> 0 | P158: =IF((SUM($D158:O158)+$B158/$C158)>$B158,$B158-SUM($D158:O158),$B158/$C158) -> 0 | Q158: =IF((SUM($D158:P158)+$B158/$C158)>$B158,$B158-SUM($D158:P158),$B158/$C158) -> 0 | R158: =IF((SUM($D158:Q158)+$B158/$C158)>$B158,$B158-SUM($D158:Q158),$B158/$C158) -> 0 | S158: =IF((SUM($D158:R158)+$B158/$C158)>$B158,$B158-SUM($D158:R158),$B158/$C158) -> 0 | T158: =IF((SUM($D158:S158)+$B158/$C158)>$B158,$B158-SUM($D158:S158),$B158/$C158) -> 0 | U158: =IF((SUM($D158:T158)+$B158/$C158)>$B158,$B158-SUM($D158:T158),$B158/$C158) -> 0 | V158: =IF((SUM($D158:U158)+$B158/$C158)>$B158,$B158-SUM($D158:U158),$B158/$C158) -> 0 | W158: =IF((SUM($D158:V158)+$B158/$C158)>$B158,$B158-SUM($D158:V158),$B158/$C158) -> 0 | X158: =IF((SUM($D158:W158)+$B158/$C158)>$B158,$B158-SUM($D158:W158),$B158/$C158) -> 0 | Y158: =IF((SUM($D158:X158)+$B158/$C158)>$B158,$B158-SUM($D158:X158),$B158/$C158) -> 0 | Z158: =IF((SUM($D158:Y158)+$B158/$C158)>$B158,$B158-SUM($D158:Y158),$B158/$C158) -> 0 | AA158: =IF((SUM($D158:Z158)+$B158/$C158)>$B158,$B158-SUM($D158:Z158),$B158/$C158) -> 0
A159: 2008 | B159: ='Data 2006-08'!F$87/10^3*(1+'Data 2006-08'!C$141)^0.5 -> 13294.37798 | C159: ='Data 2009-15 (Real $2008)'!C$157-(D$155-A159-0.5) -> 6.5 | D159: =IF(C159<1,B159,B159/C159) -> 2045.28892 | E159: =IF((SUM($D159:D159)+$B159/$C159)>$B159,$B159-SUM($D159:D159),$B159/$C159) -> 2045.28892 | F159: =IF((SUM($D159:E159)+$B159/$C159)>$B159,$B159-SUM($D159:E159),$B159/$C159) -> 2045.28892 | G159: =IF((SUM($D159:F159)+$B159/$C159)>$B159,$B159-SUM($D159:F159),$B159/$C159) -> 2045.28892 | H159: =IF((SUM($D159:G159)+$B159/$C159)>$B159,$B159-SUM($D159:G159),$B159/$C159) -> 2045.28892 | I159: =IF((SUM($D159:H159)+$B159/$C159)>$B159,$B159-SUM($D159:H159),$B159/$C159) -> 2045.28892 | J159: =IF((SUM($D159:I159)+$B159/$C159)>$B159,$B159-SUM($D159:I159),$B159/$C159) -> 1022.64446 | K159: =IF((SUM($D159:J159)+$B159/$C159)>$B159,$B159-SUM($D159:J159),$B159/$C159) -> 0 | L159: =IF((SUM($D159:K159)+$B159/$C159)>$B159,$B159-SUM($D159:K159),$B159/$C159) -> 0 | M159: =IF((SUM($D159:L159)+$B159/$C159)>$B159,$B159-SUM($D159:L159),$B159/$C159) -> 0 | N159: =IF((SUM($D159:M159)+$B159/$C159)>$B159,$B159-SUM($D159:M159),$B159/$C159) -> 0 | O159: =IF((SUM($D159:N159)+$B159/$C159)>$B159,$B159-SUM($D159:N159),$B159/$C159) -> 0 | P159: =IF((SUM($D159:O159)+$B159/$C159)>$B159,$B159-SUM($D159:O159),$B159/$C159) -> 0 | Q159: =IF((SUM($D159:P159)+$B159/$C159)>$B159,$B159-SUM($D159:P159),$B159/$C159) -> 0 | R159: =IF((SUM($D159:Q159)+$B159/$C159)>$B159,$B159-SUM($D159:Q159),$B159/$C159) -> 0 | S159: =IF((SUM($D159:R159)+$B159/$C159)>$B159,$B159-SUM($D159:R159),$B159/$C159) -> 0 | T159: =IF((SUM($D159:S159)+$B159/$C159)>$B159,$B159-SUM($D159:S159),$B159/$C159) -> 0 | U159: =IF((SUM($D159:T159)+$B159/$C159)>$B159,$B159-SUM($D159:T159),$B159/$C159) -> 0 | V159: =IF((SUM($D159:U159)+$B159/$C159)>$B159,$B159-SUM($D159:U159),$B159/$C159) -> 0 | W159: =IF((SUM($D159:V159)+$B159/$C159)>$B159,$B159-SUM($D159:V159),$B159/$C159) -> 0 | X159: =IF((SUM($D159:W159)+$B159/$C159)>$B159,$B159-SUM($D159:W159),$B159/$C159) -> 0 | Y159: =IF((SUM($D159:X159)+$B159/$C159)>$B159,$B159-SUM($D159:X159),$B159/$C159) -> 0 | Z159: =IF((SUM($D159:Y159)+$B159/$C159)>$B159,$B159-SUM($D159:Y159),$B159/$C159) -> 0 | AA159: =IF((SUM($D159:Z159)+$B159/$C159)>$B159,$B159-SUM($D159:Z159),$B159/$C159) -> 0
B160: =SUM(B157:B159) -> 14461.95929 | D160: =SUM(D157:D159) -> 2257.576431 | E160: =SUM(E157:E159) -> 2257.576431 | F160: 2257.576431 | G160: 2257.576431 | H160: 2257.576431 | I160: 2151.432675 | J160: 1022.64446 | K160: 0 | L160: 0 | M160: 0 | N160: 0 | O160: 0 | P160: 0 | Q160: 0 | R160: 0 | S160: 0 | T160: 0 | U160: 0 | V160: 0 | W160: 0 | X160: =SUM(X157:X159) -> 0 | Y160: =SUM(Y157:Y159) -> 0 | Z160: =SUM(Z157:Z159) -> 0 | AA160: =SUM(AA157:AA159) -> 0
A163: Total | B163: =SUM(B136,B144,B152,B160) -> 17451.76465 | D163: =SUM(D136,D144,D152,D160) -> 2717.546487 | E163: 2717.546487 | F163: 2717.546487 | G163: 2717.546487 | H163: 2717.546487 | I163: 2611.402731 | J163: 1252.629488 | K163: 0 | L163: 0 | M163: 0 | N163: 0 | O163: 0 | P163: 0 | Q163: 0 | R163: 0 | S163: 0 | T163: 0 | U163: 0 | V163: 0 | W163: 0 | X163: =SUM(X136,X144,X152,X160) -> 0 | Y163: =SUM(Y136,Y144,Y152,Y160) -> 0 | Z163: =SUM(Z136,Z144,Z152,Z160) -> 0 | AA163: =SUM(AA136,AA144,AA152,AA160) -> 0
A167: Regulatory depreciation on AMI Capex 2009-15
A168: =$A$4 -> ($000 Real 2008)
A169: RAB AMI Capex 2009-11 | D169: =D$4 -> 2009 | E169: =E$4 -> 2010 | F169: 2011 | G169: 2012 | H169: 2013 | I169: 2014 | J169: 2015 | K169: 2016 | L169: 2017 | M169: 2018 | N169: 2019 | O169: 2020 | P169: 2021 | Q169: 2022 | R169: 2023 | S169: 2024 | T169: 2025 | U169: 2026 | V169: 2027 | W169: 2028 | X169: 2029 | Y169: 2030 | Z169: 2031 | AA169: 2032
A170: Opening asset base | D170: 0 | E170: =D173 -> 57018.41565 | F170: =E173 -> 83099.32358 | G170: 94430.27617 | H170: 102431.7464 | I170: 114090.5352 | J170: 108670.6748 | K170: 94142.16423 | L170: 77018.50816 | M170: 65467.63183 | N170: 56219.40133 | O170: 47821.84633 | P170: 40010.66648 | Q170: 32859.2483 | R170: 26506.50492 | S170: 20566.15166 | T170: 14773.42737 | U170: 9453.749017 | V170: 5017.878253 | W170: 1839.990161 | X170: =W173 -> 307.4276762 | Y170: =X173 -> 7.006605101 | Z170: =Y173 -> 3.97903932e-13 | AA170: =Z173 -> 3.97903932e-13
A171: Net Capex | D171: =D186 -> 61378.24704 | E171: =E186 -> 37294.22088 | F171: 26597.45422 | G171: 26075.83307 | H171: 32200.68492 | I171: 14000.22098 | J171: 5983.66002 | K171: 0 | L171: 0 | M171: 0 | N171: 0 | O171: 0 | P171: 0 | Q171: 0 | R171: 0 | S171: 0 | T171: 0 | U171: 0 | V171: 0 | W171: 0 | X171: =X186 -> 0 | Y171: =Y186 -> 0 | Z171: =Z186 -> 0 | AA171: =AA186 -> 0
A172: Regulatory depreciation | D172: =D261 -> 4359.831388 | E172: =E261 -> 11213.31295 | F172: 15266.50163 | G172: 18074.36285 | H172: 20541.89615 | I172: 19420.08134 | J172: 20512.17059 | K172: 17123.65606 | L172: 11550.87633 | M172: 9248.2305 | N172: 8397.555006 | O172: 7811.179851 | P172: 7151.418173 | Q172: 6352.743386 | R172: 5940.353253 | S172: 5792.72429 | T172: 5319.678355 | U172: 4435.870764 | V172: 3177.888092 | W172: 1532.562485 | X172: =X261 -> 300.4210711 | Y172: =Y261 -> 7.006605101 | Z172: =Z261 -> 0 | AA172: =AA261 -> 0
A173: Closing asset base | D173: =D170+D171-D172 -> 57018.41565 | E173: =E170+E171-E172 -> 83099.32358 | F173: 94430.27617 | G173: 102431.7464 | H173: 114090.5352 | I173: 108670.6748 | J173: 94142.16423 | K173: 77018.50816 | L173: 65467.63183 | M173: 56219.40133 | N173: 47821.84633 | O173: 40010.66648 | P173: 32859.2483 | Q173: 26506.50492 | R173: 20566.15166 | S173: 14773.42737 | T173: 9453.749017 | U173: 5017.878253 | V173: 1839.990161 | W173: 307.4276762 | X173: =X170+X171-X172 -> 7.006605101 | Y173: =Y170+Y171-Y172 -> 3.97903932e-13 | Z173: =Z170+Z171-Z172 -> 3.97903932e-13 | AA173: =AA170+AA171-AA172 -> 3.97903932e-13
A174: Check | C174: =SUM(D174:K174) -> 0 | D174: =IF(ABS(SUM(D171:AA171)-SUM(D172:AA172))<0.001,0,ABS(SUM(D171:AA171)-SUM(D172:AA172))) -> 0 | E174: =IF(ABS(D171-D186)<0.001,0,ABS(D171-D186)) -> 0 | F174: 0 | G174: 0 | H174: 0 | I174: 0 | J174: 0 | K174: 0
A179: Net Capex | D179: =D$4 -> 2009 | E179: =E$4 -> 2010 | F179: 2011 | G179: 2012 | H179: 2013 | I179: 2014 | J179: 2015 | K179: 2016 | L179: 2017 | M179: 2018 | N179: 2019 | O179: 2020 | P179: 2021 | Q179: 2022 | R179: 2023 | S179: 2024 | T179: 2025 | U179: 2026 | V179: 2027 | W179: 2028 | X179: 2029 | Y179: 2030 | Z179: 2031 | AA179: 2032
A180: Accumulation Meters | D180: =('Data 2009-15 (Real $2008)'!D10-'Data 2009-15 (Real $2008)'!D34-'Data 2009-15 (Real $2008)'!D43)/10^3 -> 2809.577734 | E180: =('Data 2009-15 (Real $2008)'!E10-'Data 2009-15 (Real $2008)'!E34-'Data 2009-15 (Real $2008)'!E43)/10^3 -> 1749.443603 | F180: =('Data 2009-15 (Real $2008)'!F10-'Data 2009-15 (Real $2008)'!F34-'Data 2009-15 (Real $2008)'!F43)/10^3 -> 1435.521869 | G180: =('Data 2009-15 (Real $2008)'!G10-'Data 2009-15 (Real $2008)'!G34-'Data 2009-15 (Real $2008)'!G43)/10^3 -> 65.48403424 | H180: =('Data 2009-15 (Real $2008)'!H10-'Data 2009-15 (Real $2008)'!H34-'Data 2009-15 (Real $2008)'!H43)/10^3 -> 0 | I180: =('Data 2009-15 (Real $2008)'!I10-'Data 2009-15 (Real $2008)'!I34-'Data 2009-15 (Real $2008)'!I43)/10^3 -> 0 | J180: =('Data 2009-15 (Real $2008)'!J10-'Data 2009-15 (Real $2008)'!J34-'Data 2009-15 (Real $2008)'!J43)/10^3 -> 0
A181: Manually read interval meters | D181: =('Data 2009-15 (Real $2008)'!D11-'Data 2009-15 (Real $2008)'!D35-'Data 2009-15 (Real $2008)'!D44)/10^3 -> 829.0426883 | E181: =('Data 2009-15 (Real $2008)'!E11-'Data 2009-15 (Real $2008)'!E35-'Data 2009-15 (Real $2008)'!E44)/10^3 -> 1074.109563 | F181: =('Data 2009-15 (Real $2008)'!F11-'Data 2009-15 (Real $2008)'!F35-'Data 2009-15 (Real $2008)'!F44)/10^3 -> 881.330728 | G181: =('Data 2009-15 (Real $2008)'!G11-'Data 2009-15 (Real $2008)'!G35-'Data 2009-15 (Real $2008)'!G44)/10^3 -> 642.0135729 | H181: =('Data 2009-15 (Real $2008)'!H11-'Data 2009-15 (Real $2008)'!H35-'Data 2009-15 (Real $2008)'!H44)/10^3 -> 0 | I181: =('Data 2009-15 (Real $2008)'!I11-'Data 2009-15 (Real $2008)'!I35-'Data 2009-15 (Real $2008)'!I44)/10^3 -> 0 | J181: =('Data 2009-15 (Real $2008)'!J11-'Data 2009-15 (Real $2008)'!J35-'Data 2009-15 (Real $2008)'!J44)/10^3 -> 0
A182: ='Data 2009-15 (Real $2008)'!A$154 -> Remotely read interval meters & transformers | D182: =('Data 2009-15 (Real $2008)'!D12-'Data 2009-15 (Real $2008)'!D36-'Data 2009-15 (Real $2008)'!D45)/10^3 -> 4428.868876 | E182: =('Data 2009-15 (Real $2008)'!E12-'Data 2009-15 (Real $2008)'!E36-'Data 2009-15 (Real $2008)'!E45)/10^3 -> 9762.509177 | F182: =('Data 2009-15 (Real $2008)'!F12-'Data 2009-15 (Real $2008)'!F36-'Data 2009-15 (Real $2008)'!F45)/10^3 -> 16751.71855 | G182: =('Data 2009-15 (Real $2008)'!G12-'Data 2009-15 (Real $2008)'!G36-'Data 2009-15 (Real $2008)'!G45)/10^3 -> 20987.76163 | H182: =('Data 2009-15 (Real $2008)'!H12-'Data 2009-15 (Real $2008)'!H36-'Data 2009-15 (Real $2008)'!H45)/10^3 -> 28372.00658 | I182: =('Data 2009-15 (Real $2008)'!I12-'Data 2009-15 (Real $2008)'!I36-'Data 2009-15 (Real $2008)'!I45)/10^3 -> 8592.235826 | J182: =('Data 2009-15 (Real $2008)'!J12-'Data 2009-15 (Real $2008)'!J36-'Data 2009-15 (Real $2008)'!J45)/10^3 -> 210.198153
A183: IT | D183: =('Data 2009-15 (Real $2008)'!D13-'Data 2009-15 (Real $2008)'!D37-'Data 2009-15 (Real $2008)'!D46)/10^3 -> 24464.59428 | E183: =('Data 2009-15 (Real $2008)'!E13-'Data 2009-15 (Real $2008)'!E37-'Data 2009-15 (Real $2008)'!E46)/10^3 -> 4782.097605 | F183: =('Data 2009-15 (Real $2008)'!F13-'Data 2009-15 (Real $2008)'!F37-'Data 2009-15 (Real $2008)'!F46)/10^3 -> 261.6640657 | G183: =('Data 2009-15 (Real $2008)'!G13-'Data 2009-15 (Real $2008)'!G37-'Data 2009-15 (Real $2008)'!G46)/10^3 -> 441.2087563 | H183: =('Data 2009-15 (Real $2008)'!H13-'Data 2009-15 (Real $2008)'!H37-'Data 2009-15 (Real $2008)'!H46)/10^3 -> 717.8564028 | I183: =('Data 2009-15 (Real $2008)'!I13-'Data 2009-15 (Real $2008)'!I37-'Data 2009-15 (Real $2008)'!I46)/10^3 -> 2928.101331 | J183: =('Data 2009-15 (Real $2008)'!J13-'Data 2009-15 (Real $2008)'!J37-'Data 2009-15 (Real $2008)'!J46)/10^3 -> 5206.221616
A184: Communications | D184: =('Data 2009-15 (Real $2008)'!D14-'Data 2009-15 (Real $2008)'!D38-'Data 2009-15 (Real $2008)'!D47)/10^3 -> 128.7232012 | E184: =('Data 2009-15 (Real $2008)'!E14-'Data 2009-15 (Real $2008)'!E38-'Data 2009-15 (Real $2008)'!E47)/10^3 -> 325.7188707 | F184: =('Data 2009-15 (Real $2008)'!F14-'Data 2009-15 (Real $2008)'!F38-'Data 2009-15 (Real $2008)'!F47)/10^3 -> 1089.216376 | G184: =('Data 2009-15 (Real $2008)'!G14-'Data 2009-15 (Real $2008)'!G38-'Data 2009-15 (Real $2008)'!G47)/10^3 -> 1505.97825 | H184: =('Data 2009-15 (Real $2008)'!H14-'Data 2009-15 (Real $2008)'!H38-'Data 2009-15 (Real $2008)'!H47)/10^3 -> 2723.250681 | I184: =('Data 2009-15 (Real $2008)'!I14-'Data 2009-15 (Real $2008)'!I38-'Data 2009-15 (Real $2008)'!I47)/10^3 -> 601.1264833 | J184: =('Data 2009-15 (Real $2008)'!J14-'Data 2009-15 (Real $2008)'!J38-'Data 2009-15 (Real $2008)'!J47)/10^3 -> 567.2402513
A185: Other | D185: =('Data 2009-15 (Real $2008)'!D15-'Data 2009-15 (Real $2008)'!D39-'Data 2009-15 (Real $2008)'!D48)/10^3 -> 28717.44025 | E185: =('Data 2009-15 (Real $2008)'!E15-'Data 2009-15 (Real $2008)'!E39-'Data 2009-15 (Real $2008)'!E48)/10^3 -> 19600.34207 | F185: =('Data 2009-15 (Real $2008)'!F15-'Data 2009-15 (Real $2008)'!F39-'Data 2009-15 (Real $2008)'!F48)/10^3 -> 6178.002632 | G185: =('Data 2009-15 (Real $2008)'!G15-'Data 2009-15 (Real $2008)'!G39-'Data 2009-15 (Real $2008)'!G48)/10^3 -> 2433.386834 | H185: =('Data 2009-15 (Real $2008)'!H15-'Data 2009-15 (Real $2008)'!H39-'Data 2009-15 (Real $2008)'!H48)/10^3 -> 387.5712475 | I185: =('Data 2009-15 (Real $2008)'!I15-'Data 2009-15 (Real $2008)'!I39-'Data 2009-15 (Real $2008)'!I48)/10^3 -> 1878.757338 | J185: =('Data 2009-15 (Real $2008)'!J15-'Data 2009-15 (Real $2008)'!J39-'Data 2009-15 (Real $2008)'!J48)/10^3 -> 0
D186: =SUM(D180:D185) -> 61378.24704 | E186: 37294.22088 | F186: 26597.45422 | G186: 26075.83307 | H186: 32200.68492 | I186: 14000.22098 | J186: 5983.66002
A189: Accumulation Meters | B189: Net | C189: Regulatory | D189: =D$4 -> 2009 | E189: =E$4 -> 2010 | F189: 2011 | G189: 2012 | H189: 2013 | I189: 2014 | J189: 2015 | K189: 2016 | L189: 2017 | M189: 2018 | N189: 2019 | O189: 2020 | P189: 2021 | Q189: 2022 | R189: 2023 | S189: 2024 | T189: 2025 | U189: 2026 | V189: 2027 | W189: 2028 | X189: 2029 | Y189: 2030 | Z189: 2031 | AA189: 2032
A190: =$A$4 -> ($000 Real 2008) | B190: Capex | C190: Life (years)
A191: 2009 | B191: =D$180 -> 2809.577734 | C191: =IF('Data 2006-08'!C$34<=A191,1,'Data 2006-08'!C$34-A191+0.5) -> 4.5 | D191: =IF($C191=1,$B191,$B191/2/$C191) -> 312.1753038 | E191: =IF((SUM($D191:D191)+$B191/$C191)>$B191,$B191-SUM($D191:D191),$B191/$C191) -> 624.3506076 | F191: =IF((SUM($D191:E191)+$B191/$C191)>$B191,$B191-SUM($D191:E191),$B191/$C191) -> 624.3506076 | G191: =IF((SUM($D191:F191)+$B191/$C191)>$B191,$B191-SUM($D191:F191),$B191/$C191) -> 624.3506076 | H191: =IF((SUM($D191:G191)+$B191/$C191)>$B191,$B191-SUM($D191:G191),$B191/$C191) -> 624.3506076 | I191: =IF((SUM($D191:H191)+$B191/$C191)>$B191,$B191-SUM($D191:H191),$B191/$C191) -> 0 | J191: =IF((SUM($D191:I191)+$B191/$C191)>$B191,$B191-SUM($D191:I191),$B191/$C191) -> 0 | K191: =IF((SUM($D191:J191)+$B191/$C191)>$B191,$B191-SUM($D191:J191),$B191/$C191) -> 0 | L191: =IF((SUM($D191:K191)+$B191/$C191)>$B191,$B191-SUM($D191:K191),$B191/$C191) -> 0 | M191: =IF((SUM($D191:L191)+$B191/$C191)>$B191,$B191-SUM($D191:L191),$B191/$C191) -> 0 | N191: =IF((SUM($D191:M191)+$B191/$C191)>$B191,$B191-SUM($D191:M191),$B191/$C191) -> 0 | O191: =IF((SUM($D191:N191)+$B191/$C191)>$B191,$B191-SUM($D191:N191),$B191/$C191) -> 0 | P191: =IF((SUM($D191:O191)+$B191/$C191)>$B191,$B191-SUM($D191:O191),$B191/$C191) -> 0 | Q191: =IF((SUM($D191:P191)+$B191/$C191)>$B191,$B191-SUM($D191:P191),$B191/$C191) -> 0 | R191: =IF((SUM($D191:Q191)+$B191/$C191)>$B191,$B191-SUM($D191:Q191),$B191/$C191) -> 0 | S191: =IF((SUM($D191:R191)+$B191/$C191)>$B191,$B191-SUM($D191:R191),$B191/$C191) -> 0 | T191: =IF((SUM($D191:S191)+$B191/$C191)>$B191,$B191-SUM($D191:S191),$B191/$C191) -> 0 | U191: =IF((SUM($D191:T191)+$B191/$C191)>$B191,$B191-SUM($D191:T191),$B191/$C191) -> 0 | V191: =IF((SUM($D191:U191)+$B191/$C191)>$B191,$B191-SUM($D191:U191),$B191/$C191) -> 0 | W191: =IF((SUM($D191:V191)+$B191/$C191)>$B191,$B191-SUM($D191:V191),$B191/$C191) -> 0 | X191: =IF((SUM($D191:W191)+$B191/$C191)>$B191,$B191-SUM($D191:W191),$B191/$C191) -> 0 | Y191: =IF((SUM($D191:X191)+$B191/$C191)>$B191,$B191-SUM($D191:X191),$B191/$C191) -> 0 | Z191: =IF((SUM($D191:Y191)+$B191/$C191)>$B191,$B191-SUM($D191:Y191),$B191/$C191) -> 0 | AA191: =IF((SUM($D191:Z191)+$B191/$C191)>$B191,$B191-SUM($D191:Z191),$B191/$C191) -> 0
A192: 2010 | B192: =E$180 -> 1749.443603 | C192: =IF('Data 2006-08'!C$34<=A192,1,'Data 2006-08'!C$34-A192+0.5) -> 3.5 | E192: =IF($C192=1,$B192,$B192/2/$C192) -> 249.9205147 | F192: =IF((SUM($D192:E192)+$B192/$C192)>$B192,$B192-SUM($D192:E192),$B192/$C192) -> 499.8410293 | G192: =IF((SUM($D192:F192)+$B192/$C192)>$B192,$B192-SUM($D192:F192),$B192/$C192) -> 499.8410293 | H192: =IF((SUM($D192:G192)+$B192/$C192)>$B192,$B192-SUM($D192:G192),$B192/$C192) -> 499.8410293 | I192: =IF((SUM($D192:H192)+$B192/$C192)>$B192,$B192-SUM($D192:H192),$B192/$C192) -> 0 | J192: =IF((SUM($D192:I192)+$B192/$C192)>$B192,$B192-SUM($D192:I192),$B192/$C192) -> 0 | K192: =IF((SUM($D192:J192)+$B192/$C192)>$B192,$B192-SUM($D192:J192),$B192/$C192) -> 0 | L192: =IF((SUM($D192:K192)+$B192/$C192)>$B192,$B192-SUM($D192:K192),$B192/$C192) -> 0 | M192: =IF((SUM($D192:L192)+$B192/$C192)>$B192,$B192-SUM($D192:L192),$B192/$C192) -> 0 | N192: =IF((SUM($D192:M192)+$B192/$C192)>$B192,$B192-SUM($D192:M192),$B192/$C192) -> 0 | O192: =IF((SUM($D192:N192)+$B192/$C192)>$B192,$B192-SUM($D192:N192),$B192/$C192) -> 0 | P192: =IF((SUM($D192:O192)+$B192/$C192)>$B192,$B192-SUM($D192:O192),$B192/$C192) -> 0 | Q192: =IF((SUM($D192:P192)+$B192/$C192)>$B192,$B192-SUM($D192:P192),$B192/$C192) -> 0 | R192: =IF((SUM($D192:Q192)+$B192/$C192)>$B192,$B192-SUM($D192:Q192),$B192/$C192) -> 0 | S192: =IF((SUM($D192:R192)+$B192/$C192)>$B192,$B192-SUM($D192:R192),$B192/$C192) -> 0 | T192: =IF((SUM($D192:S192)+$B192/$C192)>$B192,$B192-SUM($D192:S192),$B192/$C192) -> 0 | U192: =IF((SUM($D192:T192)+$B192/$C192)>$B192,$B192-SUM($D192:T192),$B192/$C192) -> 0 | V192: =IF((SUM($D192:U192)+$B192/$C192)>$B192,$B192-SUM($D192:U192),$B192/$C192) -> 0 | W192: =IF((SUM($D192:V192)+$B192/$C192)>$B192,$B192-SUM($D192:V192),$B192/$C192) -> 0 | X192: =IF((SUM($D192:W192)+$B192/$C192)>$B192,$B192-SUM($D192:W192),$B192/$C192) -> 0 | Y192: =IF((SUM($D192:X192)+$B192/$C192)>$B192,$B192-SUM($D192:X192),$B192/$C192) -> 0 | Z192: =IF((SUM($D192:Y192)+$B192/$C192)>$B192,$B192-SUM($D192:Y192),$B192/$C192) -> 0 | AA192: =IF((SUM($D192:Z192)+$B192/$C192)>$B192,$B192-SUM($D192:Z192),$B192/$C192) -> 0
A193: 2011 | B193: =F$180 -> 1435.521869 | C193: =IF('Data 2006-08'!C$34<=A193,1,'Data 2006-08'!C$34-A193+0.5) -> 2.5 | F193: =IF($C193=1,$B193,$B193/2/$C193) -> 287.1043738 | G193: =IF((SUM($D193:F193)+$B193/$C193)>$B193,$B193-SUM($D193:F193),$B193/$C193) -> 574.2087477 | H193: =IF((SUM($D193:G193)+$B193/$C193)>$B193,$B193-SUM($D193:G193),$B193/$C193) -> 574.2087477 | I193: =IF((SUM($D193:H193)+$B193/$C193)>$B193,$B193-SUM($D193:H193),$B193/$C193) -> 0 | J193: =IF((SUM($D193:I193)+$B193/$C193)>$B193,$B193-SUM($D193:I193),$B193/$C193) -> 0 | K193: =IF((SUM($D193:J193)+$B193/$C193)>$B193,$B193-SUM($D193:J193),$B193/$C193) -> 0 | L193: =IF((SUM($D193:K193)+$B193/$C193)>$B193,$B193-SUM($D193:K193),$B193/$C193) -> 0 | M193: =IF((SUM($D193:L193)+$B193/$C193)>$B193,$B193-SUM($D193:L193),$B193/$C193) -> 0 | N193: =IF((SUM($D193:M193)+$B193/$C193)>$B193,$B193-SUM($D193:M193),$B193/$C193) -> 0 | O193: =IF((SUM($D193:N193)+$B193/$C193)>$B193,$B193-SUM($D193:N193),$B193/$C193) -> 0 | P193: =IF((SUM($D193:O193)+$B193/$C193)>$B193,$B193-SUM($D193:O193),$B193/$C193) -> 0 | Q193: =IF((SUM($D193:P193)+$B193/$C193)>$B193,$B193-SUM($D193:P193),$B193/$C193) -> 0 | R193: =IF((SUM($D193:Q193)+$B193/$C193)>$B193,$B193-SUM($D193:Q193),$B193/$C193) -> 0 | S193: =IF((SUM($D193:R193)+$B193/$C193)>$B193,$B193-SUM($D193:R193),$B193/$C193) -> 0 | T193: =IF((SUM($D193:S193)+$B193/$C193)>$B193,$B193-SUM($D193:S193),$B193/$C193) -> 0 | U193: =IF((SUM($D193:T193)+$B193/$C193)>$B193,$B193-SUM($D193:T193),$B193/$C193) -> 0 | V193: =IF((SUM($D193:U193)+$B193/$C193)>$B193,$B193-SUM($D193:U193),$B193/$C193) -> 0 | W193: =IF((SUM($D193:V193)+$B193/$C193)>$B193,$B193-SUM($D193:V193),$B193/$C193) -> 0 | X193: =IF((SUM($D193:W193)+$B193/$C193)>$B193,$B193-SUM($D193:W193),$B193/$C193) -> 0 | Y193: =IF((SUM($D193:X193)+$B193/$C193)>$B193,$B193-SUM($D193:X193),$B193/$C193) -> 0 | Z193: =IF((SUM($D193:Y193)+$B193/$C193)>$B193,$B193-SUM($D193:Y193),$B193/$C193) -> 0 | AA193: =IF((SUM($D193:Z193)+$B193/$C193)>$B193,$B193-SUM($D193:Z193),$B193/$C193) -> 0
A194: 2012 | B194: =G$180 -> 65.48403424 | C194: =IF('Data 2006-08'!C$34<=A194,1,'Data 2006-08'!C$34-A194+0.5) -> 1.5 | G194: =IF($C194=1,$B194,$B194/2/$C194) -> 21.82801141 | H194: =IF((SUM($D194:G194)+$B194/$C194)>$B194,$B194-SUM($D194:G194),$B194/$C194) -> 43.65602283 | I194: =IF((SUM($D194:H194)+$B194/$C194)>$B194,$B194-SUM($D194:H194),$B194/$C194) -> 0 | J194: =IF((SUM($D194:I194)+$B194/$C194)>$B194,$B194-SUM($D194:I194),$B194/$C194) -> 0 | K194: =IF((SUM($D194:J194)+$B194/$C194)>$B194,$B194-SUM($D194:J194),$B194/$C194) -> 0 | L194: =IF((SUM($D194:K194)+$B194/$C194)>$B194,$B194-SUM($D194:K194),$B194/$C194) -> 0 | M194: =IF((SUM($D194:L194)+$B194/$C194)>$B194,$B194-SUM($D194:L194),$B194/$C194) -> 0 | N194: =IF((SUM($D194:M194)+$B194/$C194)>$B194,$B194-SUM($D194:M194),$B194/$C194) -> 0 | O194: =IF((SUM($D194:N194)+$B194/$C194)>$B194,$B194-SUM($D194:N194),$B194/$C194) -> 0 | P194: =IF((SUM($D194:O194)+$B194/$C194)>$B194,$B194-SUM($D194:O194),$B194/$C194) -> 0 | Q194: =IF((SUM($D194:P194)+$B194/$C194)>$B194,$B194-SUM($D194:P194),$B194/$C194) -> 0 | R194: =IF((SUM($D194:Q194)+$B194/$C194)>$B194,$B194-SUM($D194:Q194),$B194/$C194) -> 0 | S194: =IF((SUM($D194:R194)+$B194/$C194)>$B194,$B194-SUM($D194:R194),$B194/$C194) -> 0 | T194: =IF((SUM($D194:S194)+$B194/$C194)>$B194,$B194-SUM($D194:S194),$B194/$C194) -> 0 | U194: =IF((SUM($D194:T194)+$B194/$C194)>$B194,$B194-SUM($D194:T194),$B194/$C194) -> 0 | V194: =IF((SUM($D194:U194)+$B194/$C194)>$B194,$B194-SUM($D194:U194),$B194/$C194) -> 0 | W194: =IF((SUM($D194:V194)+$B194/$C194)>$B194,$B194-SUM($D194:V194),$B194/$C194) -> 0 | X194: =IF((SUM($D194:W194)+$B194/$C194)>$B194,$B194-SUM($D194:W194),$B194/$C194) -> 0 | Y194: =IF((SUM($D194:X194)+$B194/$C194)>$B194,$B194-SUM($D194:X194),$B194/$C194) -> 0 | Z194: =IF((SUM($D194:Y194)+$B194/$C194)>$B194,$B194-SUM($D194:Y194),$B194/$C194) -> 0 | AA194: =IF((SUM($D194:Z194)+$B194/$C194)>$B194,$B194-SUM($D194:Z194),$B194/$C194) -> 0
A195: 2013 | B195: =H$180 -> 0 | C195: =IF('Data 2006-08'!C$34<=A195,1,'Data 2006-08'!C$34-A195+0.5) -> 1 | H195: =IF($C195=1,$B195,$B195/2/$C195) -> 0 | I195: =IF((SUM($D195:H195)+$B195/$C195)>$B195,$B195-SUM($D195:H195),$B195/$C195) -> 0 | J195: =IF((SUM($D195:I195)+$B195/$C195)>$B195,$B195-SUM($D195:I195),$B195/$C195) -> 0 | K195: =IF((SUM($D195:J195)+$B195/$C195)>$B195,$B195-SUM($D195:J195),$B195/$C195) -> 0 | L195: =IF((SUM($D195:K195)+$B195/$C195)>$B195,$B195-SUM($D195:K195),$B195/$C195) -> 0 | M195: =IF((SUM($D195:L195)+$B195/$C195)>$B195,$B195-SUM($D195:L195),$B195/$C195) -> 0 | N195: =IF((SUM($D195:M195)+$B195/$C195)>$B195,$B195-SUM($D195:M195),$B195/$C195) -> 0 | O195: =IF((SUM($D195:N195)+$B195/$C195)>$B195,$B195-SUM($D195:N195),$B195/$C195) -> 0 | P195: =IF((SUM($D195:O195)+$B195/$C195)>$B195,$B195-SUM($D195:O195),$B195/$C195) -> 0 | Q195: =IF((SUM($D195:P195)+$B195/$C195)>$B195,$B195-SUM($D195:P195),$B195/$C195) -> 0 | R195: =IF((SUM($D195:Q195)+$B195/$C195)>$B195,$B195-SUM($D195:Q195),$B195/$C195) -> 0 | S195: =IF((SUM($D195:R195)+$B195/$C195)>$B195,$B195-SUM($D195:R195),$B195/$C195) -> 0 | T195: =IF((SUM($D195:S195)+$B195/$C195)>$B195,$B195-SUM($D195:S195),$B195/$C195) -> 0 | U195: =IF((SUM($D195:T195)+$B195/$C195)>$B195,$B195-SUM($D195:T195),$B195/$C195) -> 0 | V195: =IF((SUM($D195:U195)+$B195/$C195)>$B195,$B195-SUM($D195:U195),$B195/$C195) -> 0 | W195: =IF((SUM($D195:V195)+$B195/$C195)>$B195,$B195-SUM($D195:V195),$B195/$C195) -> 0 | X195: =IF((SUM($D195:W195)+$B195/$C195)>$B195,$B195-SUM($D195:W195),$B195/$C195) -> 0 | Y195: =IF((SUM($D195:X195)+$B195/$C195)>$B195,$B195-SUM($D195:X195),$B195/$C195) -> 0 | Z195: =IF((SUM($D195:Y195)+$B195/$C195)>$B195,$B195-SUM($D195:Y195),$B195/$C195) -> 0 | AA195: =IF((SUM($D195:Z195)+$B195/$C195)>$B195,$B195-SUM($D195:Z195),$B195/$C195) -> 0
A196: 2014 | B196: =I$180 -> 0 | C196: =IF('Data 2006-08'!C$34<=A196,1,'Data 2006-08'!C$34-A196+0.5) -> 1 | I196: =IF($C196=1,$B196,$B196/2/$C196) -> 0 | J196: =IF((SUM($D196:I196)+$B196/$C196)>$B196,$B196-SUM($D196:I196),$B196/$C196) -> 0 | K196: =IF((SUM($D196:J196)+$B196/$C196)>$B196,$B196-SUM($D196:J196),$B196/$C196) -> 0 | L196: =IF((SUM($D196:K196)+$B196/$C196)>$B196,$B196-SUM($D196:K196),$B196/$C196) -> 0 | M196: =IF((SUM($D196:L196)+$B196/$C196)>$B196,$B196-SUM($D196:L196),$B196/$C196) -> 0 | N196: =IF((SUM($D196:M196)+$B196/$C196)>$B196,$B196-SUM($D196:M196),$B196/$C196) -> 0 | O196: =IF((SUM($D196:N196)+$B196/$C196)>$B196,$B196-SUM($D196:N196),$B196/$C196) -> 0 | P196: =IF((SUM($D196:O196)+$B196/$C196)>$B196,$B196-SUM($D196:O196),$B196/$C196) -> 0 | Q196: =IF((SUM($D196:P196)+$B196/$C196)>$B196,$B196-SUM($D196:P196),$B196/$C196) -> 0 | R196: =IF((SUM($D196:Q196)+$B196/$C196)>$B196,$B196-SUM($D196:Q196),$B196/$C196) -> 0 | S196: =IF((SUM($D196:R196)+$B196/$C196)>$B196,$B196-SUM($D196:R196),$B196/$C196) -> 0 | T196: =IF((SUM($D196:S196)+$B196/$C196)>$B196,$B196-SUM($D196:S196),$B196/$C196) -> 0 | U196: =IF((SUM($D196:T196)+$B196/$C196)>$B196,$B196-SUM($D196:T196),$B196/$C196) -> 0 | V196: =IF((SUM($D196:U196)+$B196/$C196)>$B196,$B196-SUM($D196:U196),$B196/$C196) -> 0 | W196: =IF((SUM($D196:V196)+$B196/$C196)>$B196,$B196-SUM($D196:V196),$B196/$C196) -> 0 | X196: =IF((SUM($D196:W196)+$B196/$C196)>$B196,$B196-SUM($D196:W196),$B196/$C196) -> 0 | Y196: =IF((SUM($D196:X196)+$B196/$C196)>$B196,$B196-SUM($D196:X196),$B196/$C196) -> 0 | Z196: =IF((SUM($D196:Y196)+$B196/$C196)>$B196,$B196-SUM($D196:Y196),$B196/$C196) -> 0 | AA196: =IF((SUM($D196:Z196)+$B196/$C196)>$B196,$B196-SUM($D196:Z196),$B196/$C196) -> 0
A197: 2015 | B197: =J$180 -> 0 | C197: =IF('Data 2006-08'!C$34<=A197,1,'Data 2006-08'!C$34-A197+0.5) -> 1 | J197: =IF($C197=1,$B197,$B197/2/$C197) -> 0 | K197: =IF((SUM($D197:J197)+$B197/$C197)>$B197,$B197-SUM($D197:J197),$B197/$C197) -> 0 | L197: =IF((SUM($D197:K197)+$B197/$C197)>$B197,$B197-SUM($D197:K197),$B197/$C197) -> 0 | M197: =IF((SUM($D197:L197)+$B197/$C197)>$B197,$B197-SUM($D197:L197),$B197/$C197) -> 0 | N197: =IF((SUM($D197:M197)+$B197/$C197)>$B197,$B197-SUM($D197:M197),$B197/$C197) -> 0 | O197: =IF((SUM($D197:N197)+$B197/$C197)>$B197,$B197-SUM($D197:N197),$B197/$C197) -> 0 | P197: =IF((SUM($D197:O197)+$B197/$C197)>$B197,$B197-SUM($D197:O197),$B197/$C197) -> 0 | Q197: =IF((SUM($D197:P197)+$B197/$C197)>$B197,$B197-SUM($D197:P197),$B197/$C197) -> 0 | R197: =IF((SUM($D197:Q197)+$B197/$C197)>$B197,$B197-SUM($D197:Q197),$B197/$C197) -> 0 | S197: =IF((SUM($D197:R197)+$B197/$C197)>$B197,$B197-SUM($D197:R197),$B197/$C197) -> 0 | T197: =IF((SUM($D197:S197)+$B197/$C197)>$B197,$B197-SUM($D197:S197),$B197/$C197) -> 0 | U197: =IF((SUM($D197:T197)+$B197/$C197)>$B197,$B197-SUM($D197:T197),$B197/$C197) -> 0 | V197: =IF((SUM($D197:U197)+$B197/$C197)>$B197,$B197-SUM($D197:U197),$B197/$C197) -> 0 | W197: =IF((SUM($D197:V197)+$B197/$C197)>$B197,$B197-SUM($D197:V197),$B197/$C197) -> 0 | X197: =IF((SUM($D197:W197)+$B197/$C197)>$B197,$B197-SUM($D197:W197),$B197/$C197) -> 0 | Y197: =IF((SUM($D197:X197)+$B197/$C197)>$B197,$B197-SUM($D197:X197),$B197/$C197) -> 0 | Z197: =IF((SUM($D197:Y197)+$B197/$C197)>$B197,$B197-SUM($D197:Y197),$B197/$C197) -> 0 | AA197: =IF((SUM($D197:Z197)+$B197/$C197)>$B197,$B197-SUM($D197:Z197),$B197/$C197) -> 0
B198: =SUM(B191:B197) -> 6060.02724 | D198: =SUM(D191:D197) -> 312.1753038 | E198: 874.2711223 | F198: 1411.296011 | G198: 1720.228396 | H198: 1742.056407 | I198: 0 | J198: 0 | K198: 0 | L198: 0 | M198: 0 | N198: 0 | O198: 0 | P198: 0 | Q198: 0 | R198: 0 | S198: 0 | T198: 0 | U198: 0 | V198: 0 | W198: 0 | X198: 0 | Y198: 0 | Z198: 0 | AA198: 0
A201: Manually read interval meters | B201: Net | C201: Regulatory | D201: =D$4 -> 2009 | E201: =E$4 -> 2010 | F201: 2011 | G201: 2012 | H201: 2013 | I201: 2014 | J201: 2015 | K201: 2016 | L201: 2017 | M201: 2018 | N201: 2019 | O201: 2020 | P201: 2021 | Q201: 2022 | R201: 2023 | S201: 2024 | T201: 2025 | U201: 2026 | V201: 2027 | W201: 2028 | X201: 2029 | Y201: 2030 | Z201: 2031 | AA201: 2032
A202: =$A$4 -> ($000 Real 2008) | B202: Capex | C202: Life (years)
A203: 2009 | B203: =D$181 -> 829.0426883 | C203: =IF('Data 2006-08'!C$34<=A203,1,'Data 2006-08'!C$34-A203+0.5) -> 4.5 | D203: =IF($C203=1,$B203,$B203/2/$C203) -> 92.11585425 | E203: =IF((SUM($D203:D203)+$B203/$C203)>$B203,$B203-SUM($D203:D203),$B203/$C203) -> 184.2317085 | F203: =IF((SUM($D203:E203)+$B203/$C203)>$B203,$B203-SUM($D203:E203),$B203/$C203) -> 184.2317085 | G203: =IF((SUM($D203:F203)+$B203/$C203)>$B203,$B203-SUM($D203:F203),$B203/$C203) -> 184.2317085 | H203: =IF((SUM($D203:G203)+$B203/$C203)>$B203,$B203-SUM($D203:G203),$B203/$C203) -> 184.2317085 | I203: =IF((SUM($D203:H203)+$B203/$C203)>$B203,$B203-SUM($D203:H203),$B203/$C203) -> 0 | J203: =IF((SUM($D203:I203)+$B203/$C203)>$B203,$B203-SUM($D203:I203),$B203/$C203) -> 0 | K203: =IF((SUM($D203:J203)+$B203/$C203)>$B203,$B203-SUM($D203:J203),$B203/$C203) -> 0 | L203: =IF((SUM($D203:K203)+$B203/$C203)>$B203,$B203-SUM($D203:K203),$B203/$C203) -> 0 | M203: =IF((SUM($D203:L203)+$B203/$C203)>$B203,$B203-SUM($D203:L203),$B203/$C203) -> 0 | N203: =IF((SUM($D203:M203)+$B203/$C203)>$B203,$B203-SUM($D203:M203),$B203/$C203) -> 0 | O203: =IF((SUM($D203:N203)+$B203/$C203)>$B203,$B203-SUM($D203:N203),$B203/$C203) -> 0 | P203: =IF((SUM($D203:O203)+$B203/$C203)>$B203,$B203-SUM($D203:O203),$B203/$C203) -> 0 | Q203: =IF((SUM($D203:P203)+$B203/$C203)>$B203,$B203-SUM($D203:P203),$B203/$C203) -> 0 | R203: =IF((SUM($D203:Q203)+$B203/$C203)>$B203,$B203-SUM($D203:Q203),$B203/$C203) -> 0 | S203: =IF((SUM($D203:R203)+$B203/$C203)>$B203,$B203-SUM($D203:R203),$B203/$C203) -> 0 | T203: =IF((SUM($D203:S203)+$B203/$C203)>$B203,$B203-SUM($D203:S203),$B203/$C203) -> 0 | U203: =IF((SUM($D203:T203)+$B203/$C203)>$B203,$B203-SUM($D203:T203),$B203/$C203) -> 0 | V203: =IF((SUM($D203:U203)+$B203/$C203)>$B203,$B203-SUM($D203:U203),$B203/$C203) -> 0 | W203: =IF((SUM($D203:V203)+$B203/$C203)>$B203,$B203-SUM($D203:V203),$B203/$C203) -> 0 | X203: =IF((SUM($D203:W203)+$B203/$C203)>$B203,$B203-SUM($D203:W203),$B203/$C203) -> 0 | Y203: =IF((SUM($D203:X203)+$B203/$C203)>$B203,$B203-SUM($D203:X203),$B203/$C203) -> 0 | Z203: =IF((SUM($D203:Y203)+$B203/$C203)>$B203,$B203-SUM($D203:Y203),$B203/$C203) -> 0 | AA203: =IF((SUM($D203:Z203)+$B203/$C203)>$B203,$B203-SUM($D203:Z203),$B203/$C203) -> 0
A204: 2010 | B204: =E$181 -> 1074.109563 | C204: =IF('Data 2006-08'!C$34<=A204,1,'Data 2006-08'!C$34-A204+0.5) -> 3.5 | E204: =IF($C204=1,$B204,$B204/2/$C204) -> 153.4442234 | F204: =IF((SUM($D204:E204)+$B204/$C204)>$B204,$B204-SUM($D204:E204),$B204/$C204) -> 306.8884467 | G204: =IF((SUM($D204:F204)+$B204/$C204)>$B204,$B204-SUM($D204:F204),$B204/$C204) -> 306.8884467 | H204: =IF((SUM($D204:G204)+$B204/$C204)>$B204,$B204-SUM($D204:G204),$B204/$C204) -> 306.8884467 | I204: =IF((SUM($D204:H204)+$B204/$C204)>$B204,$B204-SUM($D204:H204),$B204/$C204) -> 0 | J204: =IF((SUM($D204:I204)+$B204/$C204)>$B204,$B204-SUM($D204:I204),$B204/$C204) -> 0 | K204: =IF((SUM($D204:J204)+$B204/$C204)>$B204,$B204-SUM($D204:J204),$B204/$C204) -> 0 | L204: =IF((SUM($D204:K204)+$B204/$C204)>$B204,$B204-SUM($D204:K204),$B204/$C204) -> 0 | M204: =IF((SUM($D204:L204)+$B204/$C204)>$B204,$B204-SUM($D204:L204),$B204/$C204) -> 0 | N204: =IF((SUM($D204:M204)+$B204/$C204)>$B204,$B204-SUM($D204:M204),$B204/$C204) -> 0 | O204: =IF((SUM($D204:N204)+$B204/$C204)>$B204,$B204-SUM($D204:N204),$B204/$C204) -> 0 | P204: =IF((SUM($D204:O204)+$B204/$C204)>$B204,$B204-SUM($D204:O204),$B204/$C204) -> 0 | Q204: =IF((SUM($D204:P204)+$B204/$C204)>$B204,$B204-SUM($D204:P204),$B204/$C204) -> 0 | R204: =IF((SUM($D204:Q204)+$B204/$C204)>$B204,$B204-SUM($D204:Q204),$B204/$C204) -> 0 | S204: =IF((SUM($D204:R204)+$B204/$C204)>$B204,$B204-SUM($D204:R204),$B204/$C204) -> 0 | T204: =IF((SUM($D204:S204)+$B204/$C204)>$B204,$B204-SUM($D204:S204),$B204/$C204) -> 0 | U204: =IF((SUM($D204:T204)+$B204/$C204)>$B204,$B204-SUM($D204:T204),$B204/$C204) -> 0 | V204: =IF((SUM($D204:U204)+$B204/$C204)>$B204,$B204-SUM($D204:U204),$B204/$C204) -> 0 | W204: =IF((SUM($D204:V204)+$B204/$C204)>$B204,$B204-SUM($D204:V204),$B204/$C204) -> 0 | X204: =IF((SUM($D204:W204)+$B204/$C204)>$B204,$B204-SUM($D204:W204),$B204/$C204) -> 0 | Y204: =IF((SUM($D204:X204)+$B204/$C204)>$B204,$B204-SUM($D204:X204),$B204/$C204) -> 0 | Z204: =IF((SUM($D204:Y204)+$B204/$C204)>$B204,$B204-SUM($D204:Y204),$B204/$C204) -> 0 | AA204: =IF((SUM($D204:Z204)+$B204/$C204)>$B204,$B204-SUM($D204:Z204),$B204/$C204) -> 0
A205: 2011 | B205: =F$181 -> 881.330728 | C205: =IF('Data 2006-08'!C$34<=A205,1,'Data 2006-08'!C$34-A205+0.5) -> 2.5 | F205: =IF($C205=1,$B205,$B205/2/$C205) -> 176.2661456 | G205: =IF((SUM($D205:F205)+$B205/$C205)>$B205,$B205-SUM($D205:F205),$B205/$C205) -> 352.5322912 | H205: =IF((SUM($D205:G205)+$B205/$C205)>$B205,$B205-SUM($D205:G205),$B205/$C205) -> 352.5322912 | I205: =IF((SUM($D205:H205)+$B205/$C205)>$B205,$B205-SUM($D205:H205),$B205/$C205) -> 1.136868377e-13 | J205: =IF((SUM($D205:I205)+$B205/$C205)>$B205,$B205-SUM($D205:I205),$B205/$C205) -> 0 | K205: =IF((SUM($D205:J205)+$B205/$C205)>$B205,$B205-SUM($D205:J205),$B205/$C205) -> 0 | L205: =IF((SUM($D205:K205)+$B205/$C205)>$B205,$B205-SUM($D205:K205),$B205/$C205) -> 0 | M205: =IF((SUM($D205:L205)+$B205/$C205)>$B205,$B205-SUM($D205:L205),$B205/$C205) -> 0 | N205: =IF((SUM($D205:M205)+$B205/$C205)>$B205,$B205-SUM($D205:M205),$B205/$C205) -> 0 | O205: =IF((SUM($D205:N205)+$B205/$C205)>$B205,$B205-SUM($D205:N205),$B205/$C205) -> 0 | P205: =IF((SUM($D205:O205)+$B205/$C205)>$B205,$B205-SUM($D205:O205),$B205/$C205) -> 0 | Q205: =IF((SUM($D205:P205)+$B205/$C205)>$B205,$B205-SUM($D205:P205),$B205/$C205) -> 0 | R205: =IF((SUM($D205:Q205)+$B205/$C205)>$B205,$B205-SUM($D205:Q205),$B205/$C205) -> 0 | S205: =IF((SUM($D205:R205)+$B205/$C205)>$B205,$B205-SUM($D205:R205),$B205/$C205) -> 0 | T205: =IF((SUM($D205:S205)+$B205/$C205)>$B205,$B205-SUM($D205:S205),$B205/$C205) -> 0 | U205: =IF((SUM($D205:T205)+$B205/$C205)>$B205,$B205-SUM($D205:T205),$B205/$C205) -> 0 | V205: =IF((SUM($D205:U205)+$B205/$C205)>$B205,$B205-SUM($D205:U205),$B205/$C205) -> 0 | W205: =IF((SUM($D205:V205)+$B205/$C205)>$B205,$B205-SUM($D205:V205),$B205/$C205) -> 0 | X205: =IF((SUM($D205:W205)+$B205/$C205)>$B205,$B205-SUM($D205:W205),$B205/$C205) -> 0 | Y205: =IF((SUM($D205:X205)+$B205/$C205)>$B205,$B205-SUM($D205:X205),$B205/$C205) -> 0 | Z205: =IF((SUM($D205:Y205)+$B205/$C205)>$B205,$B205-SUM($D205:Y205),$B205/$C205) -> 0 | AA205: =IF((SUM($D205:Z205)+$B205/$C205)>$B205,$B205-SUM($D205:Z205),$B205/$C205) -> 0
A206: 2012 | B206: =G$181 -> 642.0135729 | C206: =IF('Data 2006-08'!C$34<=A206,1,'Data 2006-08'!C$34-A206+0.5) -> 1.5 | G206: =IF($C206=1,$B206,$B206/2/$C206) -> 214.0045243 | H206: =IF((SUM($D206:G206)+$B206/$C206)>$B206,$B206-SUM($D206:G206),$B206/$C206) -> 428.0090486 | I206: =IF((SUM($D206:H206)+$B206/$C206)>$B206,$B206-SUM($D206:H206),$B206/$C206) -> 0 | J206: =IF((SUM($D206:I206)+$B206/$C206)>$B206,$B206-SUM($D206:I206),$B206/$C206) -> 0 | K206: =IF((SUM($D206:J206)+$B206/$C206)>$B206,$B206-SUM($D206:J206),$B206/$C206) -> 0 | L206: =IF((SUM($D206:K206)+$B206/$C206)>$B206,$B206-SUM($D206:K206),$B206/$C206) -> 0 | M206: =IF((SUM($D206:L206)+$B206/$C206)>$B206,$B206-SUM($D206:L206),$B206/$C206) -> 0 | N206: =IF((SUM($D206:M206)+$B206/$C206)>$B206,$B206-SUM($D206:M206),$B206/$C206) -> 0 | O206: =IF((SUM($D206:N206)+$B206/$C206)>$B206,$B206-SUM($D206:N206),$B206/$C206) -> 0 | P206: =IF((SUM($D206:O206)+$B206/$C206)>$B206,$B206-SUM($D206:O206),$B206/$C206) -> 0 | Q206: =IF((SUM($D206:P206)+$B206/$C206)>$B206,$B206-SUM($D206:P206),$B206/$C206) -> 0 | R206: =IF((SUM($D206:Q206)+$B206/$C206)>$B206,$B206-SUM($D206:Q206),$B206/$C206) -> 0 | S206: =IF((SUM($D206:R206)+$B206/$C206)>$B206,$B206-SUM($D206:R206),$B206/$C206) -> 0 | T206: =IF((SUM($D206:S206)+$B206/$C206)>$B206,$B206-SUM($D206:S206),$B206/$C206) -> 0 | U206: =IF((SUM($D206:T206)+$B206/$C206)>$B206,$B206-SUM($D206:T206),$B206/$C206) -> 0 | V206: =IF((SUM($D206:U206)+$B206/$C206)>$B206,$B206-SUM($D206:U206),$B206/$C206) -> 0 | W206: =IF((SUM($D206:V206)+$B206/$C206)>$B206,$B206-SUM($D206:V206),$B206/$C206) -> 0 | X206: =IF((SUM($D206:W206)+$B206/$C206)>$B206,$B206-SUM($D206:W206),$B206/$C206) -> 0 | Y206: =IF((SUM($D206:X206)+$B206/$C206)>$B206,$B206-SUM($D206:X206),$B206/$C206) -> 0 | Z206: =IF((SUM($D206:Y206)+$B206/$C206)>$B206,$B206-SUM($D206:Y206),$B206/$C206) -> 0 | AA206: =IF((SUM($D206:Z206)+$B206/$C206)>$B206,$B206-SUM($D206:Z206),$B206/$C206) -> 0
A207: 2013 | B207: =H$181 -> 0 | C207: =IF('Data 2006-08'!C$34<=A207,1,'Data 2006-08'!C$34-A207+0.5) -> 1 | H207: =IF($C207=1,$B207,$B207/2/$C207) -> 0 | I207: =IF((SUM($D207:H207)+$B207/$C207)>$B207,$B207-SUM($D207:H207),$B207/$C207) -> 0 | J207: =IF((SUM($D207:I207)+$B207/$C207)>$B207,$B207-SUM($D207:I207),$B207/$C207) -> 0 | K207: =IF((SUM($D207:J207)+$B207/$C207)>$B207,$B207-SUM($D207:J207),$B207/$C207) -> 0 | L207: =IF((SUM($D207:K207)+$B207/$C207)>$B207,$B207-SUM($D207:K207),$B207/$C207) -> 0 | M207: =IF((SUM($D207:L207)+$B207/$C207)>$B207,$B207-SUM($D207:L207),$B207/$C207) -> 0 | N207: =IF((SUM($D207:M207)+$B207/$C207)>$B207,$B207-SUM($D207:M207),$B207/$C207) -> 0 | O207: =IF((SUM($D207:N207)+$B207/$C207)>$B207,$B207-SUM($D207:N207),$B207/$C207) -> 0 | P207: =IF((SUM($D207:O207)+$B207/$C207)>$B207,$B207-SUM($D207:O207),$B207/$C207) -> 0 | Q207: =IF((SUM($D207:P207)+$B207/$C207)>$B207,$B207-SUM($D207:P207),$B207/$C207) -> 0 | R207: =IF((SUM($D207:Q207)+$B207/$C207)>$B207,$B207-SUM($D207:Q207),$B207/$C207) -> 0 | S207: =IF((SUM($D207:R207)+$B207/$C207)>$B207,$B207-SUM($D207:R207),$B207/$C207) -> 0 | T207: =IF((SUM($D207:S207)+$B207/$C207)>$B207,$B207-SUM($D207:S207),$B207/$C207) -> 0 | U207: =IF((SUM($D207:T207)+$B207/$C207)>$B207,$B207-SUM($D207:T207),$B207/$C207) -> 0 | V207: =IF((SUM($D207:U207)+$B207/$C207)>$B207,$B207-SUM($D207:U207),$B207/$C207) -> 0 | W207: =IF((SUM($D207:V207)+$B207/$C207)>$B207,$B207-SUM($D207:V207),$B207/$C207) -> 0 | X207: =IF((SUM($D207:W207)+$B207/$C207)>$B207,$B207-SUM($D207:W207),$B207/$C207) -> 0 | Y207: =IF((SUM($D207:X207)+$B207/$C207)>$B207,$B207-SUM($D207:X207),$B207/$C207) -> 0 | Z207: =IF((SUM($D207:Y207)+$B207/$C207)>$B207,$B207-SUM($D207:Y207),$B207/$C207) -> 0 | AA207: =IF((SUM($D207:Z207)+$B207/$C207)>$B207,$B207-SUM($D207:Z207),$B207/$C207) -> 0
A208: 2014 | B208: =I$181 -> 0 | C208: =IF('Data 2006-08'!C$34<=A208,1,'Data 2006-08'!C$34-A208+0.5) -> 1 | I208: =IF($C208=1,$B208,$B208/2/$C208) -> 0 | J208: =IF((SUM($D208:I208)+$B208/$C208)>$B208,$B208-SUM($D208:I208),$B208/$C208) -> 0 | K208: =IF((SUM($D208:J208)+$B208/$C208)>$B208,$B208-SUM($D208:J208),$B208/$C208) -> 0 | L208: =IF((SUM($D208:K208)+$B208/$C208)>$B208,$B208-SUM($D208:K208),$B208/$C208) -> 0 | M208: =IF((SUM($D208:L208)+$B208/$C208)>$B208,$B208-SUM($D208:L208),$B208/$C208) -> 0 | N208: =IF((SUM($D208:M208)+$B208/$C208)>$B208,$B208-SUM($D208:M208),$B208/$C208) -> 0 | O208: =IF((SUM($D208:N208)+$B208/$C208)>$B208,$B208-SUM($D208:N208),$B208/$C208) -> 0 | P208: =IF((SUM($D208:O208)+$B208/$C208)>$B208,$B208-SUM($D208:O208),$B208/$C208) -> 0 | Q208: =IF((SUM($D208:P208)+$B208/$C208)>$B208,$B208-SUM($D208:P208),$B208/$C208) -> 0 | R208: =IF((SUM($D208:Q208)+$B208/$C208)>$B208,$B208-SUM($D208:Q208),$B208/$C208) -> 0 | S208: =IF((SUM($D208:R208)+$B208/$C208)>$B208,$B208-SUM($D208:R208),$B208/$C208) -> 0 | T208: =IF((SUM($D208:S208)+$B208/$C208)>$B208,$B208-SUM($D208:S208),$B208/$C208) -> 0 | U208: =IF((SUM($D208:T208)+$B208/$C208)>$B208,$B208-SUM($D208:T208),$B208/$C208) -> 0 | V208: =IF((SUM($D208:U208)+$B208/$C208)>$B208,$B208-SUM($D208:U208),$B208/$C208) -> 0 | W208: =IF((SUM($D208:V208)+$B208/$C208)>$B208,$B208-SUM($D208:V208),$B208/$C208) -> 0 | X208: =IF((SUM($D208:W208)+$B208/$C208)>$B208,$B208-SUM($D208:W208),$B208/$C208) -> 0 | Y208: =IF((SUM($D208:X208)+$B208/$C208)>$B208,$B208-SUM($D208:X208),$B208/$C208) -> 0 | Z208: =IF((SUM($D208:Y208)+$B208/$C208)>$B208,$B208-SUM($D208:Y208),$B208/$C208) -> 0 | AA208: =IF((SUM($D208:Z208)+$B208/$C208)>$B208,$B208-SUM($D208:Z208),$B208/$C208) -> 0
A209: 2015 | B209: =J$181 -> 0 | C209: =IF('Data 2006-08'!C$34<=A209,1,'Data 2006-08'!C$34-A209+0.5) -> 1 | J209: =IF($C209=1,$B209,$B209/2/$C209) -> 0 | K209: =IF((SUM($D209:J209)+$B209/$C209)>$B209,$B209-SUM($D209:J209),$B209/$C209) -> 0 | L209: =IF((SUM($D209:K209)+$B209/$C209)>$B209,$B209-SUM($D209:K209),$B209/$C209) -> 0 | M209: =IF((SUM($D209:L209)+$B209/$C209)>$B209,$B209-SUM($D209:L209),$B209/$C209) -> 0 | N209: =IF((SUM($D209:M209)+$B209/$C209)>$B209,$B209-SUM($D209:M209),$B209/$C209) -> 0 | O209: =IF((SUM($D209:N209)+$B209/$C209)>$B209,$B209-SUM($D209:N209),$B209/$C209) -> 0 | P209: =IF((SUM($D209:O209)+$B209/$C209)>$B209,$B209-SUM($D209:O209),$B209/$C209) -> 0 | Q209: =IF((SUM($D209:P209)+$B209/$C209)>$B209,$B209-SUM($D209:P209),$B209/$C209) -> 0 | R209: =IF((SUM($D209:Q209)+$B209/$C209)>$B209,$B209-SUM($D209:Q209),$B209/$C209) -> 0 | S209: =IF((SUM($D209:R209)+$B209/$C209)>$B209,$B209-SUM($D209:R209),$B209/$C209) -> 0 | T209: =IF((SUM($D209:S209)+$B209/$C209)>$B209,$B209-SUM($D209:S209),$B209/$C209) -> 0 | U209: =IF((SUM($D209:T209)+$B209/$C209)>$B209,$B209-SUM($D209:T209),$B209/$C209) -> 0 | V209: =IF((SUM($D209:U209)+$B209/$C209)>$B209,$B209-SUM($D209:U209),$B209/$C209) -> 0 | W209: =IF((SUM($D209:V209)+$B209/$C209)>$B209,$B209-SUM($D209:V209),$B209/$C209) -> 0 | X209: =IF((SUM($D209:W209)+$B209/$C209)>$B209,$B209-SUM($D209:W209),$B209/$C209) -> 0 | Y209: =IF((SUM($D209:X209)+$B209/$C209)>$B209,$B209-SUM($D209:X209),$B209/$C209) -> 0 | Z209: =IF((SUM($D209:Y209)+$B209/$C209)>$B209,$B209-SUM($D209:Y209),$B209/$C209) -> 0 | AA209: =IF((SUM($D209:Z209)+$B209/$C209)>$B209,$B209-SUM($D209:Z209),$B209/$C209) -> 0
B210: =SUM(B203:B209) -> 3426.496553 | D210: =SUM(D203:D209) -> 92.11585425 | E210: 337.6759319 | F210: 667.3863008 | G210: 1057.656971 | H210: 1271.661495 | I210: 1.136868377e-13 | J210: 0 | K210: 0 | L210: 0 | M210: 0 | N210: 0 | O210: 0 | P210: 0 | Q210: 0 | R210: 0 | S210: 0 | T210: 0 | U210: 0 | V210: 0 | W210: 0 | X210: 0 | Y210: 0 | Z210: 0 | AA210: 0
A213: ='Data 2009-15 (Real $2008)'!A$154 -> Remotely read interval meters & transformers | B213: Net | C213: Regulatory | D213: =D$4 -> 2009 | E213: =E$4 -> 2010 | F213: 2011 | G213: 2012 | H213: 2013 | I213: 2014 | J213: 2015 | K213: 2016 | L213: 2017 | M213: 2018 | N213: 2019 | O213: 2020 | P213: 2021 | Q213: 2022 | R213: 2023 | S213: 2024 | T213: 2025 | U213: 2026 | V213: 2027 | W213: 2028 | X213: 2029 | Y213: 2030 | Z213: 2031 | AA213: 2032
A214: =$A$4 -> ($000 Real 2008) | B214: Capex | C214: Life (years)
A215: 2009 | B215: =D$182 -> 4428.868876 | C215: ='Data 2009-15 (Real $2008)'!C$154 -> 15 | D215: =IF(C215<1,B215,B215/2/C215) -> 147.6289625 | E215: =IF((SUM($D215:D215)+$B215/$C215)>$B215,$B215-SUM($D215:D215),$B215/$C215) -> 295.2579251 | F215: =IF((SUM($D215:E215)+$B215/$C215)>$B215,$B215-SUM($D215:E215),$B215/$C215) -> 295.2579251 | G215: =IF((SUM($D215:F215)+$B215/$C215)>$B215,$B215-SUM($D215:F215),$B215/$C215) -> 295.2579251 | H215: =IF((SUM($D215:G215)+$B215/$C215)>$B215,$B215-SUM($D215:G215),$B215/$C215) -> 295.2579251 | I215: =IF((SUM($D215:H215)+$B215/$C215)>$B215,$B215-SUM($D215:H215),$B215/$C215) -> 295.2579251 | J215: =IF((SUM($D215:I215)+$B215/$C215)>$B215,$B215-SUM($D215:I215),$B215/$C215) -> 295.2579251 | K215: =IF((SUM($D215:J215)+$B215/$C215)>$B215,$B215-SUM($D215:J215),$B215/$C215) -> 295.2579251 | L215: =IF((SUM($D215:K215)+$B215/$C215)>$B215,$B215-SUM($D215:K215),$B215/$C215) -> 295.2579251 | M215: =IF((SUM($D215:L215)+$B215/$C215)>$B215,$B215-SUM($D215:L215),$B215/$C215) -> 295.2579251 | N215: =IF((SUM($D215:M215)+$B215/$C215)>$B215,$B215-SUM($D215:M215),$B215/$C215) -> 295.2579251 | O215: =IF((SUM($D215:N215)+$B215/$C215)>$B215,$B215-SUM($D215:N215),$B215/$C215) -> 295.2579251 | P215: =IF((SUM($D215:O215)+$B215/$C215)>$B215,$B215-SUM($D215:O215),$B215/$C215) -> 295.2579251 | Q215: =IF((SUM($D215:P215)+$B215/$C215)>$B215,$B215-SUM($D215:P215),$B215/$C215) -> 295.2579251 | R215: =IF((SUM($D215:Q215)+$B215/$C215)>$B215,$B215-SUM($D215:Q215),$B215/$C215) -> 295.2579251 | S215: =IF((SUM($D215:R215)+$B215/$C215)>$B215,$B215-SUM($D215:R215),$B215/$C215) -> 147.6289625 | T215: =IF((SUM($D215:S215)+$B215/$C215)>$B215,$B215-SUM($D215:S215),$B215/$C215) -> 0 | U215: =IF((SUM($D215:T215)+$B215/$C215)>$B215,$B215-SUM($D215:T215),$B215/$C215) -> 0 | V215: =IF((SUM($D215:U215)+$B215/$C215)>$B215,$B215-SUM($D215:U215),$B215/$C215) -> 0 | W215: =IF((SUM($D215:V215)+$B215/$C215)>$B215,$B215-SUM($D215:V215),$B215/$C215) -> 0 | X215: =IF((SUM($D215:W215)+$B215/$C215)>$B215,$B215-SUM($D215:W215),$B215/$C215) -> 0 | Y215: =IF((SUM($D215:X215)+$B215/$C215)>$B215,$B215-SUM($D215:X215),$B215/$C215) -> 0 | Z215: =IF((SUM($D215:Y215)+$B215/$C215)>$B215,$B215-SUM($D215:Y215),$B215/$C215) -> 0 | AA215: =IF((SUM($D215:Z215)+$B215/$C215)>$B215,$B215-SUM($D215:Z215),$B215/$C215) -> 0
A216: 2010 | B216: =E$182 -> 9762.509177 | C216: ='Data 2009-15 (Real $2008)'!C$154 -> 15 | E216: =IF(C216<1,B216,B216/2/C216) -> 325.4169726 | F216: =IF((SUM($D216:E216)+$B216/$C216)>$B216,$B216-SUM($D216:E216),$B216/$C216) -> 650.8339451 | G216: =IF((SUM($D216:F216)+$B216/$C216)>$B216,$B216-SUM($D216:F216),$B216/$C216) -> 650.8339451 | H216: =IF((SUM($D216:G216)+$B216/$C216)>$B216,$B216-SUM($D216:G216),$B216/$C216) -> 650.8339451 | I216: =IF((SUM($D216:H216)+$B216/$C216)>$B216,$B216-SUM($D216:H216),$B216/$C216) -> 650.8339451 | J216: =IF((SUM($D216:I216)+$B216/$C216)>$B216,$B216-SUM($D216:I216),$B216/$C216) -> 650.8339451 | K216: =IF((SUM($D216:J216)+$B216/$C216)>$B216,$B216-SUM($D216:J216),$B216/$C216) -> 650.8339451 | L216: =IF((SUM($D216:K216)+$B216/$C216)>$B216,$B216-SUM($D216:K216),$B216/$C216) -> 650.8339451 | M216: =IF((SUM($D216:L216)+$B216/$C216)>$B216,$B216-SUM($D216:L216),$B216/$C216) -> 650.8339451 | N216: =IF((SUM($D216:M216)+$B216/$C216)>$B216,$B216-SUM($D216:M216),$B216/$C216) -> 650.8339451 | O216: =IF((SUM($D216:N216)+$B216/$C216)>$B216,$B216-SUM($D216:N216),$B216/$C216) -> 650.8339451 | P216: =IF((SUM($D216:O216)+$B216/$C216)>$B216,$B216-SUM($D216:O216),$B216/$C216) -> 650.8339451 | Q216: =IF((SUM($D216:P216)+$B216/$C216)>$B216,$B216-SUM($D216:P216),$B216/$C216) -> 650.8339451 | R216: =IF((SUM($D216:Q216)+$B216/$C216)>$B216,$B216-SUM($D216:Q216),$B216/$C216) -> 650.8339451 | S216: =IF((SUM($D216:R216)+$B216/$C216)>$B216,$B216-SUM($D216:R216),$B216/$C216) -> 650.8339451 | T216: =IF((SUM($D216:S216)+$B216/$C216)>$B216,$B216-SUM($D216:S216),$B216/$C216) -> 325.4169726 | U216: =IF((SUM($D216:T216)+$B216/$C216)>$B216,$B216-SUM($D216:T216),$B216/$C216) -> 0 | V216: =IF((SUM($D216:U216)+$B216/$C216)>$B216,$B216-SUM($D216:U216),$B216/$C216) -> 0 | W216: =IF((SUM($D216:V216)+$B216/$C216)>$B216,$B216-SUM($D216:V216),$B216/$C216) -> 0 | X216: =IF((SUM($D216:W216)+$B216/$C216)>$B216,$B216-SUM($D216:W216),$B216/$C216) -> 0 | Y216: =IF((SUM($D216:X216)+$B216/$C216)>$B216,$B216-SUM($D216:X216),$B216/$C216) -> 0 | Z216: =IF((SUM($D216:Y216)+$B216/$C216)>$B216,$B216-SUM($D216:Y216),$B216/$C216) -> 0 | AA216: =IF((SUM($D216:Z216)+$B216/$C216)>$B216,$B216-SUM($D216:Z216),$B216/$C216) -> 0
A217: 2011 | B217: =F$182 -> 16751.71855 | C217: ='Data 2009-15 (Real $2008)'!C$154 -> 15 | F217: =IF(C217<1,B217,B217/2/C217) -> 558.3906184 | G217: =IF((SUM($D217:F217)+$B217/$C217)>$B217,$B217-SUM($D217:F217),$B217/$C217) -> 1116.781237 | H217: =IF((SUM($D217:G217)+$B217/$C217)>$B217,$B217-SUM($D217:G217),$B217/$C217) -> 1116.781237 | I217: =IF((SUM($D217:H217)+$B217/$C217)>$B217,$B217-SUM($D217:H217),$B217/$C217) -> 1116.781237 | J217: =IF((SUM($D217:I217)+$B217/$C217)>$B217,$B217-SUM($D217:I217),$B217/$C217) -> 1116.781237 | K217: =IF((SUM($D217:J217)+$B217/$C217)>$B217,$B217-SUM($D217:J217),$B217/$C217) -> 1116.781237 | L217: =IF((SUM($D217:K217)+$B217/$C217)>$B217,$B217-SUM($D217:K217),$B217/$C217) -> 1116.781237 | M217: =IF((SUM($D217:L217)+$B217/$C217)>$B217,$B217-SUM($D217:L217),$B217/$C217) -> 1116.781237 | N217: =IF((SUM($D217:M217)+$B217/$C217)>$B217,$B217-SUM($D217:M217),$B217/$C217) -> 1116.781237 | O217: =IF((SUM($D217:N217)+$B217/$C217)>$B217,$B217-SUM($D217:N217),$B217/$C217) -> 1116.781237 | P217: =IF((SUM($D217:O217)+$B217/$C217)>$B217,$B217-SUM($D217:O217),$B217/$C217) -> 1116.781237 | Q217: =IF((SUM($D217:P217)+$B217/$C217)>$B217,$B217-SUM($D217:P217),$B217/$C217) -> 1116.781237 | R217: =IF((SUM($D217:Q217)+$B217/$C217)>$B217,$B217-SUM($D217:Q217),$B217/$C217) -> 1116.781237 | S217: =IF((SUM($D217:R217)+$B217/$C217)>$B217,$B217-SUM($D217:R217),$B217/$C217) -> 1116.781237 | T217: =IF((SUM($D217:S217)+$B217/$C217)>$B217,$B217-SUM($D217:S217),$B217/$C217) -> 1116.781237 | U217: =IF((SUM($D217:T217)+$B217/$C217)>$B217,$B217-SUM($D217:T217),$B217/$C217) -> 558.3906184 | V217: =IF((SUM($D217:U217)+$B217/$C217)>$B217,$B217-SUM($D217:U217),$B217/$C217) -> 0 | W217: =IF((SUM($D217:V217)+$B217/$C217)>$B217,$B217-SUM($D217:V217),$B217/$C217) -> 0 | X217: =IF((SUM($D217:W217)+$B217/$C217)>$B217,$B217-SUM($D217:W217),$B217/$C217) -> 0 | Y217: =IF((SUM($D217:X217)+$B217/$C217)>$B217,$B217-SUM($D217:X217),$B217/$C217) -> 0 | Z217: =IF((SUM($D217:Y217)+$B217/$C217)>$B217,$B217-SUM($D217:Y217),$B217/$C217) -> 0 | AA217: =IF((SUM($D217:Z217)+$B217/$C217)>$B217,$B217-SUM($D217:Z217),$B217/$C217) -> 0
A218: 2012 | B218: =G$182 -> 20987.76163 | C218: ='Data 2009-15 (Real $2008)'!C$154 -> 15 | G218: =IF($C218=1,$B218,$B218/2/$C218) -> 699.5920542 | H218: =IF((SUM($D218:G218)+$B218/$C218)>$B218,$B218-SUM($D218:G218),$B218/$C218) -> 1399.184108 | I218: =IF((SUM($D218:H218)+$B218/$C218)>$B218,$B218-SUM($D218:H218),$B218/$C218) -> 1399.184108 | J218: =IF((SUM($D218:I218)+$B218/$C218)>$B218,$B218-SUM($D218:I218),$B218/$C218) -> 1399.184108 | K218: =IF((SUM($D218:J218)+$B218/$C218)>$B218,$B218-SUM($D218:J218),$B218/$C218) -> 1399.184108 | L218: =IF((SUM($D218:K218)+$B218/$C218)>$B218,$B218-SUM($D218:K218),$B218/$C218) -> 1399.184108 | M218: =IF((SUM($D218:L218)+$B218/$C218)>$B218,$B218-SUM($D218:L218),$B218/$C218) -> 1399.184108 | N218: =IF((SUM($D218:M218)+$B218/$C218)>$B218,$B218-SUM($D218:M218),$B218/$C218) -> 1399.184108 | O218: =IF((SUM($D218:N218)+$B218/$C218)>$B218,$B218-SUM($D218:N218),$B218/$C218) -> 1399.184108 | P218: =IF((SUM($D218:O218)+$B218/$C218)>$B218,$B218-SUM($D218:O218),$B218/$C218) -> 1399.184108 | Q218: =IF((SUM($D218:P218)+$B218/$C218)>$B218,$B218-SUM($D218:P218),$B218/$C218) -> 1399.184108 | R218: =IF((SUM($D218:Q218)+$B218/$C218)>$B218,$B218-SUM($D218:Q218),$B218/$C218) -> 1399.184108 | S218: =IF((SUM($D218:R218)+$B218/$C218)>$B218,$B218-SUM($D218:R218),$B218/$C218) -> 1399.184108 | T218: =IF((SUM($D218:S218)+$B218/$C218)>$B218,$B218-SUM($D218:S218),$B218/$C218) -> 1399.184108 | U218: =IF((SUM($D218:T218)+$B218/$C218)>$B218,$B218-SUM($D218:T218),$B218/$C218) -> 1399.184108 | V218: =IF((SUM($D218:U218)+$B218/$C218)>$B218,$B218-SUM($D218:U218),$B218/$C218) -> 699.5920542 | W218: =IF((SUM($D218:V218)+$B218/$C218)>$B218,$B218-SUM($D218:V218),$B218/$C218) -> 0 | X218: =IF((SUM($D218:W218)+$B218/$C218)>$B218,$B218-SUM($D218:W218),$B218/$C218) -> 0 | Y218: =IF((SUM($D218:X218)+$B218/$C218)>$B218,$B218-SUM($D218:X218),$B218/$C218) -> 0 | Z218: =IF((SUM($D218:Y218)+$B218/$C218)>$B218,$B218-SUM($D218:Y218),$B218/$C218) -> 0 | AA218: =IF((SUM($D218:Z218)+$B218/$C218)>$B218,$B218-SUM($D218:Z218),$B218/$C218) -> 0
A219: 2013 | B219: =H$182 -> 28372.00658 | C219: ='Data 2009-15 (Real $2008)'!C$154 -> 15 | H219: =IF($C219=1,$B219,$B219/2/$C219) -> 945.7335528 | I219: =IF((SUM($D219:H219)+$B219/$C219)>$B219,$B219-SUM($D219:H219),$B219/$C219) -> 1891.467106 | J219: =IF((SUM($D219:I219)+$B219/$C219)>$B219,$B219-SUM($D219:I219),$B219/$C219) -> 1891.467106 | K219: =IF((SUM($D219:J219)+$B219/$C219)>$B219,$B219-SUM($D219:J219),$B219/$C219) -> 1891.467106 | L219: =IF((SUM($D219:K219)+$B219/$C219)>$B219,$B219-SUM($D219:K219),$B219/$C219) -> 1891.467106 | M219: =IF((SUM($D219:L219)+$B219/$C219)>$B219,$B219-SUM($D219:L219),$B219/$C219) -> 1891.467106 | N219: =IF((SUM($D219:M219)+$B219/$C219)>$B219,$B219-SUM($D219:M219),$B219/$C219) -> 1891.467106 | O219: =IF((SUM($D219:N219)+$B219/$C219)>$B219,$B219-SUM($D219:N219),$B219/$C219) -> 1891.467106 | P219: =IF((SUM($D219:O219)+$B219/$C219)>$B219,$B219-SUM($D219:O219),$B219/$C219) -> 1891.467106 | Q219: =IF((SUM($D219:P219)+$B219/$C219)>$B219,$B219-SUM($D219:P219),$B219/$C219) -> 1891.467106 | R219: =IF((SUM($D219:Q219)+$B219/$C219)>$B219,$B219-SUM($D219:Q219),$B219/$C219) -> 1891.467106 | S219: =IF((SUM($D219:R219)+$B219/$C219)>$B219,$B219-SUM($D219:R219),$B219/$C219) -> 1891.467106 | T219: =IF((SUM($D219:S219)+$B219/$C219)>$B219,$B219-SUM($D219:S219),$B219/$C219) -> 1891.467106 | U219: =IF((SUM($D219:T219)+$B219/$C219)>$B219,$B219-SUM($D219:T219),$B219/$C219) -> 1891.467106 | V219: =IF((SUM($D219:U219)+$B219/$C219)>$B219,$B219-SUM($D219:U219),$B219/$C219) -> 1891.467106 | W219: =IF((SUM($D219:V219)+$B219/$C219)>$B219,$B219-SUM($D219:V219),$B219/$C219) -> 945.7335528 | X219: =IF((SUM($D219:W219)+$B219/$C219)>$B219,$B219-SUM($D219:W219),$B219/$C219) -> 0 | Y219: =IF((SUM($D219:X219)+$B219/$C219)>$B219,$B219-SUM($D219:X219),$B219/$C219) -> 0 | Z219: =IF((SUM($D219:Y219)+$B219/$C219)>$B219,$B219-SUM($D219:Y219),$B219/$C219) -> 0 | AA219: =IF((SUM($D219:Z219)+$B219/$C219)>$B219,$B219-SUM($D219:Z219),$B219/$C219) -> 0
A220: 2014 | B220: =I$182 -> 8592.235826 | C220: ='Data 2009-15 (Real $2008)'!C$154 -> 15 | I220: =IF($C220=1,$B220,$B220/2/$C220) -> 286.4078609 | J220: =IF((SUM($D220:I220)+$B220/$C220)>$B220,$B220-SUM($D220:I220),$B220/$C220) -> 572.8157217 | K220: =IF((SUM($D220:J220)+$B220/$C220)>$B220,$B220-SUM($D220:J220),$B220/$C220) -> 572.8157217 | L220: =IF((SUM($D220:K220)+$B220/$C220)>$B220,$B220-SUM($D220:K220),$B220/$C220) -> 572.8157217 | M220: =IF((SUM($D220:L220)+$B220/$C220)>$B220,$B220-SUM($D220:L220),$B220/$C220) -> 572.8157217 | N220: =IF((SUM($D220:M220)+$B220/$C220)>$B220,$B220-SUM($D220:M220),$B220/$C220) -> 572.8157217 | O220: =IF((SUM($D220:N220)+$B220/$C220)>$B220,$B220-SUM($D220:N220),$B220/$C220) -> 572.8157217 | P220: =IF((SUM($D220:O220)+$B220/$C220)>$B220,$B220-SUM($D220:O220),$B220/$C220) -> 572.8157217 | Q220: =IF((SUM($D220:P220)+$B220/$C220)>$B220,$B220-SUM($D220:P220),$B220/$C220) -> 572.8157217 | R220: =IF((SUM($D220:Q220)+$B220/$C220)>$B220,$B220-SUM($D220:Q220),$B220/$C220) -> 572.8157217 | S220: =IF((SUM($D220:R220)+$B220/$C220)>$B220,$B220-SUM($D220:R220),$B220/$C220) -> 572.8157217 | T220: =IF((SUM($D220:S220)+$B220/$C220)>$B220,$B220-SUM($D220:S220),$B220/$C220) -> 572.8157217 | U220: =IF((SUM($D220:T220)+$B220/$C220)>$B220,$B220-SUM($D220:T220),$B220/$C220) -> 572.8157217 | V220: =IF((SUM($D220:U220)+$B220/$C220)>$B220,$B220-SUM($D220:U220),$B220/$C220) -> 572.8157217 | W220: =IF((SUM($D220:V220)+$B220/$C220)>$B220,$B220-SUM($D220:V220),$B220/$C220) -> 572.8157217 | X220: =IF((SUM($D220:W220)+$B220/$C220)>$B220,$B220-SUM($D220:W220),$B220/$C220) -> 286.4078609 | Y220: =IF((SUM($D220:X220)+$B220/$C220)>$B220,$B220-SUM($D220:X220),$B220/$C220) -> 0 | Z220: =IF((SUM($D220:Y220)+$B220/$C220)>$B220,$B220-SUM($D220:Y220),$B220/$C220) -> 0 | AA220: =IF((SUM($D220:Z220)+$B220/$C220)>$B220,$B220-SUM($D220:Z220),$B220/$C220) -> 0
A221: 2015 | B221: =J$182 -> 210.198153 | C221: ='Data 2009-15 (Real $2008)'!C$154 -> 15 | J221: =IF($C221=1,$B221,$B221/2/$C221) -> 7.006605101 | K221: =IF((SUM($D221:J221)+$B221/$C221)>$B221,$B221-SUM($D221:J221),$B221/$C221) -> 14.0132102 | L221: =IF((SUM($D221:K221)+$B221/$C221)>$B221,$B221-SUM($D221:K221),$B221/$C221) -> 14.0132102 | M221: =IF((SUM($D221:L221)+$B221/$C221)>$B221,$B221-SUM($D221:L221),$B221/$C221) -> 14.0132102 | N221: =IF((SUM($D221:M221)+$B221/$C221)>$B221,$B221-SUM($D221:M221),$B221/$C221) -> 14.0132102 | O221: =IF((SUM($D221:N221)+$B221/$C221)>$B221,$B221-SUM($D221:N221),$B221/$C221) -> 14.0132102 | P221: =IF((SUM($D221:O221)+$B221/$C221)>$B221,$B221-SUM($D221:O221),$B221/$C221) -> 14.0132102 | Q221: =IF((SUM($D221:P221)+$B221/$C221)>$B221,$B221-SUM($D221:P221),$B221/$C221) -> 14.0132102 | R221: =IF((SUM($D221:Q221)+$B221/$C221)>$B221,$B221-SUM($D221:Q221),$B221/$C221) -> 14.0132102 | S221: =IF((SUM($D221:R221)+$B221/$C221)>$B221,$B221-SUM($D221:R221),$B221/$C221) -> 14.0132102 | T221: =IF((SUM($D221:S221)+$B221/$C221)>$B221,$B221-SUM($D221:S221),$B221/$C221) -> 14.0132102 | U221: =IF((SUM($D221:T221)+$B221/$C221)>$B221,$B221-SUM($D221:T221),$B221/$C221) -> 14.0132102 | V221: =IF((SUM($D221:U221)+$B221/$C221)>$B221,$B221-SUM($D221:U221),$B221/$C221) -> 14.0132102 | W221: =IF((SUM($D221:V221)+$B221/$C221)>$B221,$B221-SUM($D221:V221),$B221/$C221) -> 14.0132102 | X221: =IF((SUM($D221:W221)+$B221/$C221)>$B221,$B221-SUM($D221:W221),$B221/$C221) -> 14.0132102 | Y221: =IF((SUM($D221:X221)+$B221/$C221)>$B221,$B221-SUM($D221:X221),$B221/$C221) -> 7.006605101 | Z221: =IF((SUM($D221:Y221)+$B221/$C221)>$B221,$B221-SUM($D221:Y221),$B221/$C221) -> 0 | AA221: =IF((SUM($D221:Z221)+$B221/$C221)>$B221,$B221-SUM($D221:Z221),$B221/$C221) -> 0
B222: =SUM(B215:B221) -> 89105.2988 | D222: =SUM(D215:D221) -> 147.6289625 | E222: 620.6748976 | F222: 1504.482489 | G222: 2762.465161 | H222: 4407.790768 | I222: 5639.932182 | J222: 5933.346648 | K222: 5940.353253 | L222: 5940.353253 | M222: 5940.353253 | N222: 5940.353253 | O222: 5940.353253 | P222: 5940.353253 | Q222: 5940.353253 | R222: 5940.353253 | S222: 5792.72429 | T222: 5319.678355 | U222: 4435.870764 | V222: 3177.888092 | W222: 1532.562485 | X222: 300.4210711 | Y222: 7.006605101 | Z222: 0 | AA222: 0
A225: IT | B225: Net | C225: Regulatory | D225: =D$4 -> 2009 | E225: =E$4 -> 2010 | F225: 2011 | G225: 2012 | H225: 2013 | I225: 2014 | J225: 2015 | K225: 2016 | L225: 2017 | M225: 2018 | N225: 2019 | O225: 2020 | P225: 2021 | Q225: 2022 | R225: 2023 | S225: 2024 | T225: 2025 | U225: 2026 | V225: 2027 | W225: 2028 | X225: 2029 | Y225: 2030 | Z225: 2031 | AA225: 2032
A226: =$A$4 -> ($000 Real 2008) | B226: Capex | C226: Life (years)
A227: 2009 | B227: =D$183 -> 24464.59428 | C227: ='Data 2009-15 (Real $2008)'!C$155 -> 7 | D227: =IF(C227<1,B227,B227/2/C227) -> 1747.47102 | E227: =IF((SUM($D227:D227)+$B227/$C227)>$B227,$B227-SUM($D227:D227),$B227/$C227) -> 3494.942041 | F227: =IF((SUM($D227:E227)+$B227/$C227)>$B227,$B227-SUM($D227:E227),$B227/$C227) -> 3494.942041 | G227: =IF((SUM($D227:F227)+$B227/$C227)>$B227,$B227-SUM($D227:F227),$B227/$C227) -> 3494.942041 | H227: =IF((SUM($D227:G227)+$B227/$C227)>$B227,$B227-SUM($D227:G227),$B227/$C227) -> 3494.942041 | I227: =IF((SUM($D227:H227)+$B227/$C227)>$B227,$B227-SUM($D227:H227),$B227/$C227) -> 3494.942041 | J227: =IF((SUM($D227:I227)+$B227/$C227)>$B227,$B227-SUM($D227:I227),$B227/$C227) -> 3494.942041 | K227: =IF((SUM($D227:J227)+$B227/$C227)>$B227,$B227-SUM($D227:J227),$B227/$C227) -> 1747.47102 | L227: =IF((SUM($D227:K227)+$B227/$C227)>$B227,$B227-SUM($D227:K227),$B227/$C227) -> 0 | M227: =IF((SUM($D227:L227)+$B227/$C227)>$B227,$B227-SUM($D227:L227),$B227/$C227) -> 0 | N227: =IF((SUM($D227:M227)+$B227/$C227)>$B227,$B227-SUM($D227:M227),$B227/$C227) -> 0 | O227: =IF((SUM($D227:N227)+$B227/$C227)>$B227,$B227-SUM($D227:N227),$B227/$C227) -> 0 | P227: =IF((SUM($D227:O227)+$B227/$C227)>$B227,$B227-SUM($D227:O227),$B227/$C227) -> 0 | Q227: =IF((SUM($D227:P227)+$B227/$C227)>$B227,$B227-SUM($D227:P227),$B227/$C227) -> 0 | R227: =IF((SUM($D227:Q227)+$B227/$C227)>$B227,$B227-SUM($D227:Q227),$B227/$C227) -> 0 | S227: =IF((SUM($D227:R227)+$B227/$C227)>$B227,$B227-SUM($D227:R227),$B227/$C227) -> 0 | T227: =IF((SUM($D227:S227)+$B227/$C227)>$B227,$B227-SUM($D227:S227),$B227/$C227) -> 0 | U227: =IF((SUM($D227:T227)+$B227/$C227)>$B227,$B227-SUM($D227:T227),$B227/$C227) -> 0 | V227: =IF((SUM($D227:U227)+$B227/$C227)>$B227,$B227-SUM($D227:U227),$B227/$C227) -> 0 | W227: =IF((SUM($D227:V227)+$B227/$C227)>$B227,$B227-SUM($D227:V227),$B227/$C227) -> 0 | X227: =IF((SUM($D227:W227)+$B227/$C227)>$B227,$B227-SUM($D227:W227),$B227/$C227) -> 0 | Y227: =IF((SUM($D227:X227)+$B227/$C227)>$B227,$B227-SUM($D227:X227),$B227/$C227) -> 0 | Z227: =IF((SUM($D227:Y227)+$B227/$C227)>$B227,$B227-SUM($D227:Y227),$B227/$C227) -> 0 | AA227: =IF((SUM($D227:Z227)+$B227/$C227)>$B227,$B227-SUM($D227:Z227),$B227/$C227) -> 0
A228: 2010 | B228: =E$183 -> 4782.097605 | C228: ='Data 2009-15 (Real $2008)'!C$155 -> 7 | E228: =IF(C228<1,B228,B228/2/C228) -> 341.5784004 | F228: =IF((SUM($D228:E228)+$B228/$C228)>$B228,$B228-SUM($D228:E228),$B228/$C228) -> 683.1568007 | G228: =IF((SUM($D228:F228)+$B228/$C228)>$B228,$B228-SUM($D228:F228),$B228/$C228) -> 683.1568007 | H228: =IF((SUM($D228:G228)+$B228/$C228)>$B228,$B228-SUM($D228:G228),$B228/$C228) -> 683.1568007 | I228: =IF((SUM($D228:H228)+$B228/$C228)>$B228,$B228-SUM($D228:H228),$B228/$C228) -> 683.1568007 | J228: =IF((SUM($D228:I228)+$B228/$C228)>$B228,$B228-SUM($D228:I228),$B228/$C228) -> 683.1568007 | K228: =IF((SUM($D228:J228)+$B228/$C228)>$B228,$B228-SUM($D228:J228),$B228/$C228) -> 683.1568007 | L228: =IF((SUM($D228:K228)+$B228/$C228)>$B228,$B228-SUM($D228:K228),$B228/$C228) -> 341.5784004 | M228: =IF((SUM($D228:L228)+$B228/$C228)>$B228,$B228-SUM($D228:L228),$B228/$C228) -> 0 | N228: =IF((SUM($D228:M228)+$B228/$C228)>$B228,$B228-SUM($D228:M228),$B228/$C228) -> 0 | O228: =IF((SUM($D228:N228)+$B228/$C228)>$B228,$B228-SUM($D228:N228),$B228/$C228) -> 0 | P228: =IF((SUM($D228:O228)+$B228/$C228)>$B228,$B228-SUM($D228:O228),$B228/$C228) -> 0 | Q228: =IF((SUM($D228:P228)+$B228/$C228)>$B228,$B228-SUM($D228:P228),$B228/$C228) -> 0 | R228: =IF((SUM($D228:Q228)+$B228/$C228)>$B228,$B228-SUM($D228:Q228),$B228/$C228) -> 0 | S228: =IF((SUM($D228:R228)+$B228/$C228)>$B228,$B228-SUM($D228:R228),$B228/$C228) -> 0 | T228: =IF((SUM($D228:S228)+$B228/$C228)>$B228,$B228-SUM($D228:S228),$B228/$C228) -> 0 | U228: =IF((SUM($D228:T228)+$B228/$C228)>$B228,$B228-SUM($D228:T228),$B228/$C228) -> 0 | V228: =IF((SUM($D228:U228)+$B228/$C228)>$B228,$B228-SUM($D228:U228),$B228/$C228) -> 0 | W228: =IF((SUM($D228:V228)+$B228/$C228)>$B228,$B228-SUM($D228:V228),$B228/$C228) -> 0 | X228: =IF((SUM($D228:W228)+$B228/$C228)>$B228,$B228-SUM($D228:W228),$B228/$C228) -> 0 | Y228: =IF((SUM($D228:X228)+$B228/$C228)>$B228,$B228-SUM($D228:X228),$B228/$C228) -> 0 | Z228: =IF((SUM($D228:Y228)+$B228/$C228)>$B228,$B228-SUM($D228:Y228),$B228/$C228) -> 0 | AA228: =IF((SUM($D228:Z228)+$B228/$C228)>$B228,$B228-SUM($D228:Z228),$B228/$C228) -> 0
A229: 2011 | B229: =F$183 -> 261.6640657 | C229: ='Data 2009-15 (Real $2008)'!C$155 -> 7 | F229: =IF(C229<1,B229,B229/2/C229) -> 18.69029041 | G229: =IF((SUM($D229:F229)+$B229/$C229)>$B229,$B229-SUM($D229:F229),$B229/$C229) -> 37.38058082 | H229: =IF((SUM($D229:G229)+$B229/$C229)>$B229,$B229-SUM($D229:G229),$B229/$C229) -> 37.38058082 | I229: =IF((SUM($D229:H229)+$B229/$C229)>$B229,$B229-SUM($D229:H229),$B229/$C229) -> 37.38058082 | J229: =IF((SUM($D229:I229)+$B229/$C229)>$B229,$B229-SUM($D229:I229),$B229/$C229) -> 37.38058082 | K229: =IF((SUM($D229:J229)+$B229/$C229)>$B229,$B229-SUM($D229:J229),$B229/$C229) -> 37.38058082 | L229: =IF((SUM($D229:K229)+$B229/$C229)>$B229,$B229-SUM($D229:K229),$B229/$C229) -> 37.38058082 | M229: =IF((SUM($D229:L229)+$B229/$C229)>$B229,$B229-SUM($D229:L229),$B229/$C229) -> 18.69029041 | N229: =IF((SUM($D229:M229)+$B229/$C229)>$B229,$B229-SUM($D229:M229),$B229/$C229) -> 0 | O229: =IF((SUM($D229:N229)+$B229/$C229)>$B229,$B229-SUM($D229:N229),$B229/$C229) -> 0 | P229: =IF((SUM($D229:O229)+$B229/$C229)>$B229,$B229-SUM($D229:O229),$B229/$C229) -> 0 | Q229: =IF((SUM($D229:P229)+$B229/$C229)>$B229,$B229-SUM($D229:P229),$B229/$C229) -> 0 | R229: =IF((SUM($D229:Q229)+$B229/$C229)>$B229,$B229-SUM($D229:Q229),$B229/$C229) -> 0 | S229: =IF((SUM($D229:R229)+$B229/$C229)>$B229,$B229-SUM($D229:R229),$B229/$C229) -> 0 | T229: =IF((SUM($D229:S229)+$B229/$C229)>$B229,$B229-SUM($D229:S229),$B229/$C229) -> 0 | U229: =IF((SUM($D229:T229)+$B229/$C229)>$B229,$B229-SUM($D229:T229),$B229/$C229) -> 0 | V229: =IF((SUM($D229:U229)+$B229/$C229)>$B229,$B229-SUM($D229:U229),$B229/$C229) -> 0 | W229: =IF((SUM($D229:V229)+$B229/$C229)>$B229,$B229-SUM($D229:V229),$B229/$C229) -> 0 | X229: =IF((SUM($D229:W229)+$B229/$C229)>$B229,$B229-SUM($D229:W229),$B229/$C229) -> 0 | Y229: =IF((SUM($D229:X229)+$B229/$C229)>$B229,$B229-SUM($D229:X229),$B229/$C229) -> 0 | Z229: =IF((SUM($D229:Y229)+$B229/$C229)>$B229,$B229-SUM($D229:Y229),$B229/$C229) -> 0 | AA229: =IF((SUM($D229:Z229)+$B229/$C229)>$B229,$B229-SUM($D229:Z229),$B229/$C229) -> 0
A230: 2012 | B230: =G$183 -> 441.2087563 | C230: ='Data 2009-15 (Real $2008)'!C$155 -> 7 | G230: =IF($C230=1,$B230,$B230/2/$C230) -> 31.51491117 | H230: =IF((SUM($D230:G230)+$B230/$C230)>$B230,$B230-SUM($D230:G230),$B230/$C230) -> 63.02982233 | I230: =IF((SUM($D230:H230)+$B230/$C230)>$B230,$B230-SUM($D230:H230),$B230/$C230) -> 63.02982233 | J230: =IF((SUM($D230:I230)+$B230/$C230)>$B230,$B230-SUM($D230:I230),$B230/$C230) -> 63.02982233 | K230: =IF((SUM($D230:J230)+$B230/$C230)>$B230,$B230-SUM($D230:J230),$B230/$C230) -> 63.02982233 | L230: =IF((SUM($D230:K230)+$B230/$C230)>$B230,$B230-SUM($D230:K230),$B230/$C230) -> 63.02982233 | M230: =IF((SUM($D230:L230)+$B230/$C230)>$B230,$B230-SUM($D230:L230),$B230/$C230) -> 63.02982233 | N230: =IF((SUM($D230:M230)+$B230/$C230)>$B230,$B230-SUM($D230:M230),$B230/$C230) -> 31.51491117 | O230: =IF((SUM($D230:N230)+$B230/$C230)>$B230,$B230-SUM($D230:N230),$B230/$C230) -> 0 | P230: =IF((SUM($D230:O230)+$B230/$C230)>$B230,$B230-SUM($D230:O230),$B230/$C230) -> 0 | Q230: =IF((SUM($D230:P230)+$B230/$C230)>$B230,$B230-SUM($D230:P230),$B230/$C230) -> 0 | R230: =IF((SUM($D230:Q230)+$B230/$C230)>$B230,$B230-SUM($D230:Q230),$B230/$C230) -> 0 | S230: =IF((SUM($D230:R230)+$B230/$C230)>$B230,$B230-SUM($D230:R230),$B230/$C230) -> 0 | T230: =IF((SUM($D230:S230)+$B230/$C230)>$B230,$B230-SUM($D230:S230),$B230/$C230) -> 0 | U230: =IF((SUM($D230:T230)+$B230/$C230)>$B230,$B230-SUM($D230:T230),$B230/$C230) -> 0 | V230: =IF((SUM($D230:U230)+$B230/$C230)>$B230,$B230-SUM($D230:U230),$B230/$C230) -> 0 | W230: =IF((SUM($D230:V230)+$B230/$C230)>$B230,$B230-SUM($D230:V230),$B230/$C230) -> 0 | X230: =IF((SUM($D230:W230)+$B230/$C230)>$B230,$B230-SUM($D230:W230),$B230/$C230) -> 0 | Y230: =IF((SUM($D230:X230)+$B230/$C230)>$B230,$B230-SUM($D230:X230),$B230/$C230) -> 0 | Z230: =IF((SUM($D230:Y230)+$B230/$C230)>$B230,$B230-SUM($D230:Y230),$B230/$C230) -> 0 | AA230: =IF((SUM($D230:Z230)+$B230/$C230)>$B230,$B230-SUM($D230:Z230),$B230/$C230) -> 0
A231: 2013 | B231: =H$183 -> 717.8564028 | C231: ='Data 2009-15 (Real $2008)'!C$155 -> 7 | H231: =IF($C231=1,$B231,$B231/2/$C231) -> 51.27545734 | I231: =IF((SUM($D231:H231)+$B231/$C231)>$B231,$B231-SUM($D231:H231),$B231/$C231) -> 102.5509147 | J231: =IF((SUM($D231:I231)+$B231/$C231)>$B231,$B231-SUM($D231:I231),$B231/$C231) -> 102.5509147 | K231: =IF((SUM($D231:J231)+$B231/$C231)>$B231,$B231-SUM($D231:J231),$B231/$C231) -> 102.5509147 | L231: =IF((SUM($D231:K231)+$B231/$C231)>$B231,$B231-SUM($D231:K231),$B231/$C231) -> 102.5509147 | M231: =IF((SUM($D231:L231)+$B231/$C231)>$B231,$B231-SUM($D231:L231),$B231/$C231) -> 102.5509147 | N231: =IF((SUM($D231:M231)+$B231/$C231)>$B231,$B231-SUM($D231:M231),$B231/$C231) -> 102.5509147 | O231: =IF((SUM($D231:N231)+$B231/$C231)>$B231,$B231-SUM($D231:N231),$B231/$C231) -> 51.27545734 | P231: =IF((SUM($D231:O231)+$B231/$C231)>$B231,$B231-SUM($D231:O231),$B231/$C231) -> 0 | Q231: =IF((SUM($D231:P231)+$B231/$C231)>$B231,$B231-SUM($D231:P231),$B231/$C231) -> 0 | R231: =IF((SUM($D231:Q231)+$B231/$C231)>$B231,$B231-SUM($D231:Q231),$B231/$C231) -> 0 | S231: =IF((SUM($D231:R231)+$B231/$C231)>$B231,$B231-SUM($D231:R231),$B231/$C231) -> 0 | T231: =IF((SUM($D231:S231)+$B231/$C231)>$B231,$B231-SUM($D231:S231),$B231/$C231) -> 0 | U231: =IF((SUM($D231:T231)+$B231/$C231)>$B231,$B231-SUM($D231:T231),$B231/$C231) -> 0 | V231: =IF((SUM($D231:U231)+$B231/$C231)>$B231,$B231-SUM($D231:U231),$B231/$C231) -> 0 | W231: =IF((SUM($D231:V231)+$B231/$C231)>$B231,$B231-SUM($D231:V231),$B231/$C231) -> 0 | X231: =IF((SUM($D231:W231)+$B231/$C231)>$B231,$B231-SUM($D231:W231),$B231/$C231) -> 0 | Y231: =IF((SUM($D231:X231)+$B231/$C231)>$B231,$B231-SUM($D231:X231),$B231/$C231) -> 0 | Z231: =IF((SUM($D231:Y231)+$B231/$C231)>$B231,$B231-SUM($D231:Y231),$B231/$C231) -> 0 | AA231: =IF((SUM($D231:Z231)+$B231/$C231)>$B231,$B231-SUM($D231:Z231),$B231/$C231) -> 0
A232: 2014 | B232: =I$183 -> 2928.101331 | C232: ='Data 2009-15 (Real $2008)'!C$155 -> 7 | I232: =IF($C232=1,$B232,$B232/2/$C232) -> 209.1500951 | J232: =IF((SUM($D232:I232)+$B232/$C232)>$B232,$B232-SUM($D232:I232),$B232/$C232) -> 418.3001902 | K232: =IF((SUM($D232:J232)+$B232/$C232)>$B232,$B232-SUM($D232:J232),$B232/$C232) -> 418.3001902 | L232: =IF((SUM($D232:K232)+$B232/$C232)>$B232,$B232-SUM($D232:K232),$B232/$C232) -> 418.3001902 | M232: =IF((SUM($D232:L232)+$B232/$C232)>$B232,$B232-SUM($D232:L232),$B232/$C232) -> 418.3001902 | N232: =IF((SUM($D232:M232)+$B232/$C232)>$B232,$B232-SUM($D232:M232),$B232/$C232) -> 418.3001902 | O232: =IF((SUM($D232:N232)+$B232/$C232)>$B232,$B232-SUM($D232:N232),$B232/$C232) -> 418.3001902 | P232: =IF((SUM($D232:O232)+$B232/$C232)>$B232,$B232-SUM($D232:O232),$B232/$C232) -> 209.1500951 | Q232: =IF((SUM($D232:P232)+$B232/$C232)>$B232,$B232-SUM($D232:P232),$B232/$C232) -> 0 | R232: =IF((SUM($D232:Q232)+$B232/$C232)>$B232,$B232-SUM($D232:Q232),$B232/$C232) -> 0 | S232: =IF((SUM($D232:R232)+$B232/$C232)>$B232,$B232-SUM($D232:R232),$B232/$C232) -> 0 | T232: =IF((SUM($D232:S232)+$B232/$C232)>$B232,$B232-SUM($D232:S232),$B232/$C232) -> 0 | U232: =IF((SUM($D232:T232)+$B232/$C232)>$B232,$B232-SUM($D232:T232),$B232/$C232) -> 0 | V232: =IF((SUM($D232:U232)+$B232/$C232)>$B232,$B232-SUM($D232:U232),$B232/$C232) -> 0 | W232: =IF((SUM($D232:V232)+$B232/$C232)>$B232,$B232-SUM($D232:V232),$B232/$C232) -> 0 | X232: =IF((SUM($D232:W232)+$B232/$C232)>$B232,$B232-SUM($D232:W232),$B232/$C232) -> 0 | Y232: =IF((SUM($D232:X232)+$B232/$C232)>$B232,$B232-SUM($D232:X232),$B232/$C232) -> 0 | Z232: =IF((SUM($D232:Y232)+$B232/$C232)>$B232,$B232-SUM($D232:Y232),$B232/$C232) -> 0 | AA232: =IF((SUM($D232:Z232)+$B232/$C232)>$B232,$B232-SUM($D232:Z232),$B232/$C232) -> 0
A233: 2015 | B233: =J$183 -> 5206.221616 | C233: ='Data 2009-15 (Real $2008)'!C$155 -> 7 | J233: =IF($C233=1,$B233,$B233/2/$C233) -> 371.8729725 | K233: =IF((SUM($D233:J233)+$B233/$C233)>$B233,$B233-SUM($D233:J233),$B233/$C233) -> 743.7459451 | L233: =IF((SUM($D233:K233)+$B233/$C233)>$B233,$B233-SUM($D233:K233),$B233/$C233) -> 743.7459451 | M233: =IF((SUM($D233:L233)+$B233/$C233)>$B233,$B233-SUM($D233:L233),$B233/$C233) -> 743.7459451 | N233: =IF((SUM($D233:M233)+$B233/$C233)>$B233,$B233-SUM($D233:M233),$B233/$C233) -> 743.7459451 | O233: =IF((SUM($D233:N233)+$B233/$C233)>$B233,$B233-SUM($D233:N233),$B233/$C233) -> 743.7459451 | P233: =IF((SUM($D233:O233)+$B233/$C233)>$B233,$B233-SUM($D233:O233),$B233/$C233) -> 743.7459451 | Q233: =IF((SUM($D233:P233)+$B233/$C233)>$B233,$B233-SUM($D233:P233),$B233/$C233) -> 371.8729725 | R233: =IF((SUM($D233:Q233)+$B233/$C233)>$B233,$B233-SUM($D233:Q233),$B233/$C233) -> 0 | S233: =IF((SUM($D233:R233)+$B233/$C233)>$B233,$B233-SUM($D233:R233),$B233/$C233) -> 0 | T233: =IF((SUM($D233:S233)+$B233/$C233)>$B233,$B233-SUM($D233:S233),$B233/$C233) -> 0 | U233: =IF((SUM($D233:T233)+$B233/$C233)>$B233,$B233-SUM($D233:T233),$B233/$C233) -> 0 | V233: =IF((SUM($D233:U233)+$B233/$C233)>$B233,$B233-SUM($D233:U233),$B233/$C233) -> 0 | W233: =IF((SUM($D233:V233)+$B233/$C233)>$B233,$B233-SUM($D233:V233),$B233/$C233) -> 0 | X233: =IF((SUM($D233:W233)+$B233/$C233)>$B233,$B233-SUM($D233:W233),$B233/$C233) -> 0 | Y233: =IF((SUM($D233:X233)+$B233/$C233)>$B233,$B233-SUM($D233:X233),$B233/$C233) -> 0 | Z233: =IF((SUM($D233:Y233)+$B233/$C233)>$B233,$B233-SUM($D233:Y233),$B233/$C233) -> 0 | AA233: =IF((SUM($D233:Z233)+$B233/$C233)>$B233,$B233-SUM($D233:Z233),$B233/$C233) -> 0
B234: =SUM(B227:B233) -> 38801.74406 | D234: =SUM(D227:D233) -> 1747.47102 | E234: 3836.520441 | F234: 4196.789132 | G234: 4246.994333 | H234: 4329.784702 | I234: 4590.210254 | J234: 5171.233322 | K234: 3795.635274 | L234: 1706.585853 | M234: 1346.317163 | N234: 1296.111961 | O234: 1213.321593 | P234: 952.8960402 | Q234: 371.8729725 | R234: 0 | S234: 0 | T234: 0 | U234: 0 | V234: 0 | W234: 0 | X234: 0 | Y234: 0 | Z234: 0 | AA234: 0
A237: Communications | B237: Net | C237: Regulatory | D237: =D$4 -> 2009 | E237: =E$4 -> 2010 | F237: 2011 | G237: 2012 | H237: 2013 | I237: 2014 | J237: 2015 | K237: 2016 | L237: 2017 | M237: 2018 | N237: 2019 | O237: 2020 | P237: 2021 | Q237: 2022 | R237: 2023 | S237: 2024 | T237: 2025 | U237: 2026 | V237: 2027 | W237: 2028 | X237: 2029 | Y237: 2030 | Z237: 2031 | AA237: 2032
A238: =$A$4 -> ($000 Real 2008) | B238: Capex | C238: Life (years)
A239: 2009 | B239: =D$184 -> 128.7232012 | C239: ='Data 2009-15 (Real $2008)'!C$156 -> 7 | D239: =IF(C239<1,B239,B239/2/C239) -> 9.194514369 | E239: =IF((SUM($D239:D239)+$B239/$C239)>$B239,$B239-SUM($D239:D239),$B239/$C239) -> 18.38902874 | F239: =IF((SUM($D239:E239)+$B239/$C239)>$B239,$B239-SUM($D239:E239),$B239/$C239) -> 18.38902874 | G239: =IF((SUM($D239:F239)+$B239/$C239)>$B239,$B239-SUM($D239:F239),$B239/$C239) -> 18.38902874 | H239: =IF((SUM($D239:G239)+$B239/$C239)>$B239,$B239-SUM($D239:G239),$B239/$C239) -> 18.38902874 | I239: =IF((SUM($D239:H239)+$B239/$C239)>$B239,$B239-SUM($D239:H239),$B239/$C239) -> 18.38902874 | J239: =IF((SUM($D239:I239)+$B239/$C239)>$B239,$B239-SUM($D239:I239),$B239/$C239) -> 18.38902874 | K239: =IF((SUM($D239:J239)+$B239/$C239)>$B239,$B239-SUM($D239:J239),$B239/$C239) -> 9.194514369 | L239: =IF((SUM($D239:K239)+$B239/$C239)>$B239,$B239-SUM($D239:K239),$B239/$C239) -> 0 | M239: =IF((SUM($D239:L239)+$B239/$C239)>$B239,$B239-SUM($D239:L239),$B239/$C239) -> 0 | N239: =IF((SUM($D239:M239)+$B239/$C239)>$B239,$B239-SUM($D239:M239),$B239/$C239) -> 0 | O239: =IF((SUM($D239:N239)+$B239/$C239)>$B239,$B239-SUM($D239:N239),$B239/$C239) -> 0 | P239: =IF((SUM($D239:O239)+$B239/$C239)>$B239,$B239-SUM($D239:O239),$B239/$C239) -> 0 | Q239: =IF((SUM($D239:P239)+$B239/$C239)>$B239,$B239-SUM($D239:P239),$B239/$C239) -> 0 | R239: =IF((SUM($D239:Q239)+$B239/$C239)>$B239,$B239-SUM($D239:Q239),$B239/$C239) -> 0 | S239: =IF((SUM($D239:R239)+$B239/$C239)>$B239,$B239-SUM($D239:R239),$B239/$C239) -> 0 | T239: =IF((SUM($D239:S239)+$B239/$C239)>$B239,$B239-SUM($D239:S239),$B239/$C239) -> 0 | U239: =IF((SUM($D239:T239)+$B239/$C239)>$B239,$B239-SUM($D239:T239),$B239/$C239) -> 0 | V239: =IF((SUM($D239:U239)+$B239/$C239)>$B239,$B239-SUM($D239:U239),$B239/$C239) -> 0 | W239: =IF((SUM($D239:V239)+$B239/$C239)>$B239,$B239-SUM($D239:V239),$B239/$C239) -> 0 | X239: =IF((SUM($D239:W239)+$B239/$C239)>$B239,$B239-SUM($D239:W239),$B239/$C239) -> 0 | Y239: =IF((SUM($D239:X239)+$B239/$C239)>$B239,$B239-SUM($D239:X239),$B239/$C239) -> 0 | Z239: =IF((SUM($D239:Y239)+$B239/$C239)>$B239,$B239-SUM($D239:Y239),$B239/$C239) -> 0 | AA239: =IF((SUM($D239:Z239)+$B239/$C239)>$B239,$B239-SUM($D239:Z239),$B239/$C239) -> 0
A240: 2010 | B240: =E$184 -> 325.7188707 | C240: ='Data 2009-15 (Real $2008)'!C$156 -> 7 | E240: =IF(C240<1,B240,B240/2/C240) -> 23.26563362 | F240: =IF((SUM($D240:E240)+$B240/$C240)>$B240,$B240-SUM($D240:E240),$B240/$C240) -> 46.53126724 | G240: =IF((SUM($D240:F240)+$B240/$C240)>$B240,$B240-SUM($D240:F240),$B240/$C240) -> 46.53126724 | H240: =IF((SUM($D240:G240)+$B240/$C240)>$B240,$B240-SUM($D240:G240),$B240/$C240) -> 46.53126724 | I240: =IF((SUM($D240:H240)+$B240/$C240)>$B240,$B240-SUM($D240:H240),$B240/$C240) -> 46.53126724 | J240: =IF((SUM($D240:I240)+$B240/$C240)>$B240,$B240-SUM($D240:I240),$B240/$C240) -> 46.53126724 | K240: =IF((SUM($D240:J240)+$B240/$C240)>$B240,$B240-SUM($D240:J240),$B240/$C240) -> 46.53126724 | L240: =IF((SUM($D240:K240)+$B240/$C240)>$B240,$B240-SUM($D240:K240),$B240/$C240) -> 23.26563362 | M240: =IF((SUM($D240:L240)+$B240/$C240)>$B240,$B240-SUM($D240:L240),$B240/$C240) -> 0 | N240: =IF((SUM($D240:M240)+$B240/$C240)>$B240,$B240-SUM($D240:M240),$B240/$C240) -> 0 | O240: =IF((SUM($D240:N240)+$B240/$C240)>$B240,$B240-SUM($D240:N240),$B240/$C240) -> 0 | P240: =IF((SUM($D240:O240)+$B240/$C240)>$B240,$B240-SUM($D240:O240),$B240/$C240) -> 0 | Q240: =IF((SUM($D240:P240)+$B240/$C240)>$B240,$B240-SUM($D240:P240),$B240/$C240) -> 0 | R240: =IF((SUM($D240:Q240)+$B240/$C240)>$B240,$B240-SUM($D240:Q240),$B240/$C240) -> 0 | S240: =IF((SUM($D240:R240)+$B240/$C240)>$B240,$B240-SUM($D240:R240),$B240/$C240) -> 0 | T240: =IF((SUM($D240:S240)+$B240/$C240)>$B240,$B240-SUM($D240:S240),$B240/$C240) -> 0 | U240: =IF((SUM($D240:T240)+$B240/$C240)>$B240,$B240-SUM($D240:T240),$B240/$C240) -> 0 | V240: =IF((SUM($D240:U240)+$B240/$C240)>$B240,$B240-SUM($D240:U240),$B240/$C240) -> 0 | W240: =IF((SUM($D240:V240)+$B240/$C240)>$B240,$B240-SUM($D240:V240),$B240/$C240) -> 0 | X240: =IF((SUM($D240:W240)+$B240/$C240)>$B240,$B240-SUM($D240:W240),$B240/$C240) -> 0 | Y240: =IF((SUM($D240:X240)+$B240/$C240)>$B240,$B240-SUM($D240:X240),$B240/$C240) -> 0 | Z240: =IF((SUM($D240:Y240)+$B240/$C240)>$B240,$B240-SUM($D240:Y240),$B240/$C240) -> 0 | AA240: =IF((SUM($D240:Z240)+$B240/$C240)>$B240,$B240-SUM($D240:Z240),$B240/$C240) -> 0
A241: 2011 | B241: =F$184 -> 1089.216376 | C241: ='Data 2009-15 (Real $2008)'!C$156 -> 7 | F241: =IF(C241<1,B241,B241/2/C241) -> 77.80116973 | G241: =IF((SUM($D241:F241)+$B241/$C241)>$B241,$B241-SUM($D241:F241),$B241/$C241) -> 155.6023395 | H241: =IF((SUM($D241:G241)+$B241/$C241)>$B241,$B241-SUM($D241:G241),$B241/$C241) -> 155.6023395 | I241: =IF((SUM($D241:H241)+$B241/$C241)>$B241,$B241-SUM($D241:H241),$B241/$C241) -> 155.6023395 | J241: =IF((SUM($D241:I241)+$B241/$C241)>$B241,$B241-SUM($D241:I241),$B241/$C241) -> 155.6023395 | K241: =IF((SUM($D241:J241)+$B241/$C241)>$B241,$B241-SUM($D241:J241),$B241/$C241) -> 155.6023395 | L241: =IF((SUM($D241:K241)+$B241/$C241)>$B241,$B241-SUM($D241:K241),$B241/$C241) -> 155.6023395 | M241: =IF((SUM($D241:L241)+$B241/$C241)>$B241,$B241-SUM($D241:L241),$B241/$C241) -> 77.80116973 | N241: =IF((SUM($D241:M241)+$B241/$C241)>$B241,$B241-SUM($D241:M241),$B241/$C241) -> 0 | O241: =IF((SUM($D241:N241)+$B241/$C241)>$B241,$B241-SUM($D241:N241),$B241/$C241) -> 0 | P241: =IF((SUM($D241:O241)+$B241/$C241)>$B241,$B241-SUM($D241:O241),$B241/$C241) -> 0 | Q241: =IF((SUM($D241:P241)+$B241/$C241)>$B241,$B241-SUM($D241:P241),$B241/$C241) -> 0 | R241: =IF((SUM($D241:Q241)+$B241/$C241)>$B241,$B241-SUM($D241:Q241),$B241/$C241) -> 0 | S241: =IF((SUM($D241:R241)+$B241/$C241)>$B241,$B241-SUM($D241:R241),$B241/$C241) -> 0 | T241: =IF((SUM($D241:S241)+$B241/$C241)>$B241,$B241-SUM($D241:S241),$B241/$C241) -> 0 | U241: =IF((SUM($D241:T241)+$B241/$C241)>$B241,$B241-SUM($D241:T241),$B241/$C241) -> 0 | V241: =IF((SUM($D241:U241)+$B241/$C241)>$B241,$B241-SUM($D241:U241),$B241/$C241) -> 0 | W241: =IF((SUM($D241:V241)+$B241/$C241)>$B241,$B241-SUM($D241:V241),$B241/$C241) -> 0 | X241: =IF((SUM($D241:W241)+$B241/$C241)>$B241,$B241-SUM($D241:W241),$B241/$C241) -> 0 | Y241: =IF((SUM($D241:X241)+$B241/$C241)>$B241,$B241-SUM($D241:X241),$B241/$C241) -> 0 | Z241: =IF((SUM($D241:Y241)+$B241/$C241)>$B241,$B241-SUM($D241:Y241),$B241/$C241) -> 0 | AA241: =IF((SUM($D241:Z241)+$B241/$C241)>$B241,$B241-SUM($D241:Z241),$B241/$C241) -> 0
A242: 2012 | B242: =G$184 -> 1505.97825 | C242: ='Data 2009-15 (Real $2008)'!C$156 -> 7 | G242: =IF($C242=1,$B242,$B242/2/$C242) -> 107.569875 | H242: =IF((SUM($D242:G242)+$B242/$C242)>$B242,$B242-SUM($D242:G242),$B242/$C242) -> 215.13975 | I242: =IF((SUM($D242:H242)+$B242/$C242)>$B242,$B242-SUM($D242:H242),$B242/$C242) -> 215.13975 | J242: =IF((SUM($D242:I242)+$B242/$C242)>$B242,$B242-SUM($D242:I242),$B242/$C242) -> 215.13975 | K242: =IF((SUM($D242:J242)+$B242/$C242)>$B242,$B242-SUM($D242:J242),$B242/$C242) -> 215.13975 | L242: =IF((SUM($D242:K242)+$B242/$C242)>$B242,$B242-SUM($D242:K242),$B242/$C242) -> 215.13975 | M242: =IF((SUM($D242:L242)+$B242/$C242)>$B242,$B242-SUM($D242:L242),$B242/$C242) -> 215.13975 | N242: =IF((SUM($D242:M242)+$B242/$C242)>$B242,$B242-SUM($D242:M242),$B242/$C242) -> 107.569875 | O242: =IF((SUM($D242:N242)+$B242/$C242)>$B242,$B242-SUM($D242:N242),$B242/$C242) -> 0 | P242: =IF((SUM($D242:O242)+$B242/$C242)>$B242,$B242-SUM($D242:O242),$B242/$C242) -> 0 | Q242: =IF((SUM($D242:P242)+$B242/$C242)>$B242,$B242-SUM($D242:P242),$B242/$C242) -> 0 | R242: =IF((SUM($D242:Q242)+$B242/$C242)>$B242,$B242-SUM($D242:Q242),$B242/$C242) -> 0 | S242: =IF((SUM($D242:R242)+$B242/$C242)>$B242,$B242-SUM($D242:R242),$B242/$C242) -> 0 | T242: =IF((SUM($D242:S242)+$B242/$C242)>$B242,$B242-SUM($D242:S242),$B242/$C242) -> 0 | U242: =IF((SUM($D242:T242)+$B242/$C242)>$B242,$B242-SUM($D242:T242),$B242/$C242) -> 0 | V242: =IF((SUM($D242:U242)+$B242/$C242)>$B242,$B242-SUM($D242:U242),$B242/$C242) -> 0 | W242: =IF((SUM($D242:V242)+$B242/$C242)>$B242,$B242-SUM($D242:V242),$B242/$C242) -> 0 | X242: =IF((SUM($D242:W242)+$B242/$C242)>$B242,$B242-SUM($D242:W242),$B242/$C242) -> 0 | Y242: =IF((SUM($D242:X242)+$B242/$C242)>$B242,$B242-SUM($D242:X242),$B242/$C242) -> 0 | Z242: =IF((SUM($D242:Y242)+$B242/$C242)>$B242,$B242-SUM($D242:Y242),$B242/$C242) -> 0 | AA242: =IF((SUM($D242:Z242)+$B242/$C242)>$B242,$B242-SUM($D242:Z242),$B242/$C242) -> 0
A243: 2013 | B243: =H$184 -> 2723.250681 | C243: ='Data 2009-15 (Real $2008)'!C$156 -> 7 | H243: =IF($C243=1,$B243,$B243/2/$C243) -> 194.5179058 | I243: =IF((SUM($D243:H243)+$B243/$C243)>$B243,$B243-SUM($D243:H243),$B243/$C243) -> 389.0358115 | J243: =IF((SUM($D243:I243)+$B243/$C243)>$B243,$B243-SUM($D243:I243),$B243/$C243) -> 389.0358115 | K243: =IF((SUM($D243:J243)+$B243/$C243)>$B243,$B243-SUM($D243:J243),$B243/$C243) -> 389.0358115 | L243: =IF((SUM($D243:K243)+$B243/$C243)>$B243,$B243-SUM($D243:K243),$B243/$C243) -> 389.0358115 | M243: =IF((SUM($D243:L243)+$B243/$C243)>$B243,$B243-SUM($D243:L243),$B243/$C243) -> 389.0358115 | N243: =IF((SUM($D243:M243)+$B243/$C243)>$B243,$B243-SUM($D243:M243),$B243/$C243) -> 389.0358115 | O243: =IF((SUM($D243:N243)+$B243/$C243)>$B243,$B243-SUM($D243:N243),$B243/$C243) -> 194.5179058 | P243: =IF((SUM($D243:O243)+$B243/$C243)>$B243,$B243-SUM($D243:O243),$B243/$C243) -> 0 | Q243: =IF((SUM($D243:P243)+$B243/$C243)>$B243,$B243-SUM($D243:P243),$B243/$C243) -> 0 | R243: =IF((SUM($D243:Q243)+$B243/$C243)>$B243,$B243-SUM($D243:Q243),$B243/$C243) -> 0 | S243: =IF((SUM($D243:R243)+$B243/$C243)>$B243,$B243-SUM($D243:R243),$B243/$C243) -> 0 | T243: =IF((SUM($D243:S243)+$B243/$C243)>$B243,$B243-SUM($D243:S243),$B243/$C243) -> 0 | U243: =IF((SUM($D243:T243)+$B243/$C243)>$B243,$B243-SUM($D243:T243),$B243/$C243) -> 0 | V243: =IF((SUM($D243:U243)+$B243/$C243)>$B243,$B243-SUM($D243:U243),$B243/$C243) -> 0 | W243: =IF((SUM($D243:V243)+$B243/$C243)>$B243,$B243-SUM($D243:V243),$B243/$C243) -> 0 | X243: =IF((SUM($D243:W243)+$B243/$C243)>$B243,$B243-SUM($D243:W243),$B243/$C243) -> 0 | Y243: =IF((SUM($D243:X243)+$B243/$C243)>$B243,$B243-SUM($D243:X243),$B243/$C243) -> 0 | Z243: =IF((SUM($D243:Y243)+$B243/$C243)>$B243,$B243-SUM($D243:Y243),$B243/$C243) -> 0 | AA243: =IF((SUM($D243:Z243)+$B243/$C243)>$B243,$B243-SUM($D243:Z243),$B243/$C243) -> 0
A244: 2014 | B244: =I$184 -> 601.1264833 | C244: ='Data 2009-15 (Real $2008)'!C$156 -> 7 | I244: =IF($C244=1,$B244,$B244/2/$C244) -> 42.93760595 | J244: =IF((SUM($D244:I244)+$B244/$C244)>$B244,$B244-SUM($D244:I244),$B244/$C244) -> 85.8752119 | K244: =IF((SUM($D244:J244)+$B244/$C244)>$B244,$B244-SUM($D244:J244),$B244/$C244) -> 85.8752119 | L244: =IF((SUM($D244:K244)+$B244/$C244)>$B244,$B244-SUM($D244:K244),$B244/$C244) -> 85.8752119 | M244: =IF((SUM($D244:L244)+$B244/$C244)>$B244,$B244-SUM($D244:L244),$B244/$C244) -> 85.8752119 | N244: =IF((SUM($D244:M244)+$B244/$C244)>$B244,$B244-SUM($D244:M244),$B244/$C244) -> 85.8752119 | O244: =IF((SUM($D244:N244)+$B244/$C244)>$B244,$B244-SUM($D244:N244),$B244/$C244) -> 85.8752119 | P244: =IF((SUM($D244:O244)+$B244/$C244)>$B244,$B244-SUM($D244:O244),$B244/$C244) -> 42.93760595 | Q244: =IF((SUM($D244:P244)+$B244/$C244)>$B244,$B244-SUM($D244:P244),$B244/$C244) -> 0 | R244: =IF((SUM($D244:Q244)+$B244/$C244)>$B244,$B244-SUM($D244:Q244),$B244/$C244) -> 0 | S244: =IF((SUM($D244:R244)+$B244/$C244)>$B244,$B244-SUM($D244:R244),$B244/$C244) -> 0 | T244: =IF((SUM($D244:S244)+$B244/$C244)>$B244,$B244-SUM($D244:S244),$B244/$C244) -> 0 | U244: =IF((SUM($D244:T244)+$B244/$C244)>$B244,$B244-SUM($D244:T244),$B244/$C244) -> 0 | V244: =IF((SUM($D244:U244)+$B244/$C244)>$B244,$B244-SUM($D244:U244),$B244/$C244) -> 0 | W244: =IF((SUM($D244:V244)+$B244/$C244)>$B244,$B244-SUM($D244:V244),$B244/$C244) -> 0 | X244: =IF((SUM($D244:W244)+$B244/$C244)>$B244,$B244-SUM($D244:W244),$B244/$C244) -> 0 | Y244: =IF((SUM($D244:X244)+$B244/$C244)>$B244,$B244-SUM($D244:X244),$B244/$C244) -> 0 | Z244: =IF((SUM($D244:Y244)+$B244/$C244)>$B244,$B244-SUM($D244:Y244),$B244/$C244) -> 0 | AA244: =IF((SUM($D244:Z244)+$B244/$C244)>$B244,$B244-SUM($D244:Z244),$B244/$C244) -> 0
A245: 2015 | B245: =J$184 -> 567.2402513 | C245: ='Data 2009-15 (Real $2008)'!C$156 -> 7 | J245: =IF($C245=1,$B245,$B245/2/$C245) -> 40.51716081 | K245: =IF((SUM($D245:J245)+$B245/$C245)>$B245,$B245-SUM($D245:J245),$B245/$C245) -> 81.03432161 | L245: =IF((SUM($D245:K245)+$B245/$C245)>$B245,$B245-SUM($D245:K245),$B245/$C245) -> 81.03432161 | M245: =IF((SUM($D245:L245)+$B245/$C245)>$B245,$B245-SUM($D245:L245),$B245/$C245) -> 81.03432161 | N245: =IF((SUM($D245:M245)+$B245/$C245)>$B245,$B245-SUM($D245:M245),$B245/$C245) -> 81.03432161 | O245: =IF((SUM($D245:N245)+$B245/$C245)>$B245,$B245-SUM($D245:N245),$B245/$C245) -> 81.03432161 | P245: =IF((SUM($D245:O245)+$B245/$C245)>$B245,$B245-SUM($D245:O245),$B245/$C245) -> 81.03432161 | Q245: =IF((SUM($D245:P245)+$B245/$C245)>$B245,$B245-SUM($D245:P245),$B245/$C245) -> 40.51716081 | R245: =IF((SUM($D245:Q245)+$B245/$C245)>$B245,$B245-SUM($D245:Q245),$B245/$C245) -> 0 | S245: =IF((SUM($D245:R245)+$B245/$C245)>$B245,$B245-SUM($D245:R245),$B245/$C245) -> 0 | T245: =IF((SUM($D245:S245)+$B245/$C245)>$B245,$B245-SUM($D245:S245),$B245/$C245) -> 0 | U245: =IF((SUM($D245:T245)+$B245/$C245)>$B245,$B245-SUM($D245:T245),$B245/$C245) -> 0 | V245: =IF((SUM($D245:U245)+$B245/$C245)>$B245,$B245-SUM($D245:U245),$B245/$C245) -> 0 | W245: =IF((SUM($D245:V245)+$B245/$C245)>$B245,$B245-SUM($D245:V245),$B245/$C245) -> 0 | X245: =IF((SUM($D245:W245)+$B245/$C245)>$B245,$B245-SUM($D245:W245),$B245/$C245) -> 0 | Y245: =IF((SUM($D245:X245)+$B245/$C245)>$B245,$B245-SUM($D245:X245),$B245/$C245) -> 0 | Z245: =IF((SUM($D245:Y245)+$B245/$C245)>$B245,$B245-SUM($D245:Y245),$B245/$C245) -> 0 | AA245: =IF((SUM($D245:Z245)+$B245/$C245)>$B245,$B245-SUM($D245:Z245),$B245/$C245) -> 0
B246: =SUM(B239:B245) -> 6941.254113 | D246: =SUM(D239:D245) -> 9.194514369 | E246: 41.65466236 | F246: 142.7214657 | G246: 328.0925104 | H246: 630.1802912 | I246: 867.6358029 | J246: 951.0905697 | K246: 982.4132161 | L246: 949.9530681 | M246: 848.8862647 | N246: 663.51522 | O246: 361.4274393 | P246: 123.9719276 | Q246: 40.51716081 | R246: 0 | S246: 0 | T246: 0 | U246: 0 | V246: 0 | W246: 0 | X246: 0 | Y246: 0 | Z246: 0 | AA246: 0
A249: Other | B249: Net | C249: Regulatory | D249: =D$4 -> 2009 | E249: =E$4 -> 2010 | F249: 2011 | G249: 2012 | H249: 2013 | I249: 2014 | J249: 2015 | K249: 2016 | L249: 2017 | M249: 2018 | N249: 2019 | O249: 2020 | P249: 2021 | Q249: 2022 | R249: 2023 | S249: 2024 | T249: 2025 | U249: 2026 | V249: 2027 | W249: 2028 | X249: 2029 | Y249: 2030 | Z249: 2031 | AA249: 2032
A250: =$A$4 -> ($000 Real 2008) | B250: Capex | C250: Life (years)
A251: 2009 | B251: =D$185 -> 28717.44025 | C251: ='Data 2009-15 (Real $2008)'!C$157 -> 7 | D251: =IF(C251<1,B251,B251/2/C251) -> 2051.245732 | E251: =IF((SUM($D251:D251)+$B251/$C251)>$B251,$B251-SUM($D251:D251),$B251/$C251) -> 4102.491465 | F251: =IF((SUM($D251:E251)+$B251/$C251)>$B251,$B251-SUM($D251:E251),$B251/$C251) -> 4102.491465 | G251: =IF((SUM($D251:F251)+$B251/$C251)>$B251,$B251-SUM($D251:F251),$B251/$C251) -> 4102.491465 | H251: =IF((SUM($D251:G251)+$B251/$C251)>$B251,$B251-SUM($D251:G251),$B251/$C251) -> 4102.491465 | I251: =IF((SUM($D251:H251)+$B251/$C251)>$B251,$B251-SUM($D251:H251),$B251/$C251) -> 4102.491465 | J251: =IF((SUM($D251:I251)+$B251/$C251)>$B251,$B251-SUM($D251:I251),$B251/$C251) -> 4102.491465 | K251: =IF((SUM($D251:J251)+$B251/$C251)>$B251,$B251-SUM($D251:J251),$B251/$C251) -> 2051.245732 | L251: =IF((SUM($D251:K251)+$B251/$C251)>$B251,$B251-SUM($D251:K251),$B251/$C251) -> 0 | M251: =IF((SUM($D251:L251)+$B251/$C251)>$B251,$B251-SUM($D251:L251),$B251/$C251) -> 0 | N251: =IF((SUM($D251:M251)+$B251/$C251)>$B251,$B251-SUM($D251:M251),$B251/$C251) -> 0 | O251: =IF((SUM($D251:N251)+$B251/$C251)>$B251,$B251-SUM($D251:N251),$B251/$C251) -> 0 | P251: =IF((SUM($D251:O251)+$B251/$C251)>$B251,$B251-SUM($D251:O251),$B251/$C251) -> 0 | Q251: =IF((SUM($D251:P251)+$B251/$C251)>$B251,$B251-SUM($D251:P251),$B251/$C251) -> 0 | R251: =IF((SUM($D251:Q251)+$B251/$C251)>$B251,$B251-SUM($D251:Q251),$B251/$C251) -> 0 | S251: =IF((SUM($D251:R251)+$B251/$C251)>$B251,$B251-SUM($D251:R251),$B251/$C251) -> 0 | T251: =IF((SUM($D251:S251)+$B251/$C251)>$B251,$B251-SUM($D251:S251),$B251/$C251) -> 0 | U251: =IF((SUM($D251:T251)+$B251/$C251)>$B251,$B251-SUM($D251:T251),$B251/$C251) -> 0 | V251: =IF((SUM($D251:U251)+$B251/$C251)>$B251,$B251-SUM($D251:U251),$B251/$C251) -> 0 | W251: =IF((SUM($D251:V251)+$B251/$C251)>$B251,$B251-SUM($D251:V251),$B251/$C251) -> 0 | X251: =IF((SUM($D251:W251)+$B251/$C251)>$B251,$B251-SUM($D251:W251),$B251/$C251) -> 0 | Y251: =IF((SUM($D251:X251)+$B251/$C251)>$B251,$B251-SUM($D251:X251),$B251/$C251) -> 0 | Z251: =IF((SUM($D251:Y251)+$B251/$C251)>$B251,$B251-SUM($D251:Y251),$B251/$C251) -> 0 | AA251: =IF((SUM($D251:Z251)+$B251/$C251)>$B251,$B251-SUM($D251:Z251),$B251/$C251) -> 0
A252: 2010 | B252: =E$185 -> 19600.34207 | C252: ='Data 2009-15 (Real $2008)'!C$157 -> 7 | E252: =IF(C252<1,B252,B252/2/C252) -> 1400.024433 | F252: =IF((SUM($D252:E252)+$B252/$C252)>$B252,$B252-SUM($D252:E252),$B252/$C252) -> 2800.048866 | G252: =IF((SUM($D252:F252)+$B252/$C252)>$B252,$B252-SUM($D252:F252),$B252/$C252) -> 2800.048866 | H252: =IF((SUM($D252:G252)+$B252/$C252)>$B252,$B252-SUM($D252:G252),$B252/$C252) -> 2800.048866 | I252: =IF((SUM($D252:H252)+$B252/$C252)>$B252,$B252-SUM($D252:H252),$B252/$C252) -> 2800.048866 | J252: =IF((SUM($D252:I252)+$B252/$C252)>$B252,$B252-SUM($D252:I252),$B252/$C252) -> 2800.048866 | K252: =IF((SUM($D252:J252)+$B252/$C252)>$B252,$B252-SUM($D252:J252),$B252/$C252) -> 2800.048866 | L252: =IF((SUM($D252:K252)+$B252/$C252)>$B252,$B252-SUM($D252:K252),$B252/$C252) -> 1400.024433 | M252: =IF((SUM($D252:L252)+$B252/$C252)>$B252,$B252-SUM($D252:L252),$B252/$C252) -> 0 | N252: =IF((SUM($D252:M252)+$B252/$C252)>$B252,$B252-SUM($D252:M252),$B252/$C252) -> 0 | O252: =IF((SUM($D252:N252)+$B252/$C252)>$B252,$B252-SUM($D252:N252),$B252/$C252) -> 0 | P252: =IF((SUM($D252:O252)+$B252/$C252)>$B252,$B252-SUM($D252:O252),$B252/$C252) -> 0 | Q252: =IF((SUM($D252:P252)+$B252/$C252)>$B252,$B252-SUM($D252:P252),$B252/$C252) -> 0 | R252: =IF((SUM($D252:Q252)+$B252/$C252)>$B252,$B252-SUM($D252:Q252),$B252/$C252) -> 0 | S252: =IF((SUM($D252:R252)+$B252/$C252)>$B252,$B252-SUM($D252:R252),$B252/$C252) -> 0 | T252: =IF((SUM($D252:S252)+$B252/$C252)>$B252,$B252-SUM($D252:S252),$B252/$C252) -> 0 | U252: =IF((SUM($D252:T252)+$B252/$C252)>$B252,$B252-SUM($D252:T252),$B252/$C252) -> 0 | V252: =IF((SUM($D252:U252)+$B252/$C252)>$B252,$B252-SUM($D252:U252),$B252/$C252) -> 0 | W252: =IF((SUM($D252:V252)+$B252/$C252)>$B252,$B252-SUM($D252:V252),$B252/$C252) -> 0 | X252: =IF((SUM($D252:W252)+$B252/$C252)>$B252,$B252-SUM($D252:W252),$B252/$C252) -> 0 | Y252: =IF((SUM($D252:X252)+$B252/$C252)>$B252,$B252-SUM($D252:X252),$B252/$C252) -> 0 | Z252: =IF((SUM($D252:Y252)+$B252/$C252)>$B252,$B252-SUM($D252:Y252),$B252/$C252) -> 0 | AA252: =IF((SUM($D252:Z252)+$B252/$C252)>$B252,$B252-SUM($D252:Z252),$B252/$C252) -> 0
A253: 2011 | B253: =F$185 -> 6178.002632 | C253: ='Data 2009-15 (Real $2008)'!C$157 -> 7 | F253: =IF(C253<1,B253,B253/2/C253) -> 441.2859023 | G253: =IF((SUM($D253:F253)+$B253/$C253)>$B253,$B253-SUM($D253:F253),$B253/$C253) -> 882.5718046 | H253: =IF((SUM($D253:G253)+$B253/$C253)>$B253,$B253-SUM($D253:G253),$B253/$C253) -> 882.5718046 | I253: =IF((SUM($D253:H253)+$B253/$C253)>$B253,$B253-SUM($D253:H253),$B253/$C253) -> 882.5718046 | J253: =IF((SUM($D253:I253)+$B253/$C253)>$B253,$B253-SUM($D253:I253),$B253/$C253) -> 882.5718046 | K253: =IF((SUM($D253:J253)+$B253/$C253)>$B253,$B253-SUM($D253:J253),$B253/$C253) -> 882.5718046 | L253: =IF((SUM($D253:K253)+$B253/$C253)>$B253,$B253-SUM($D253:K253),$B253/$C253) -> 882.5718046 | M253: =IF((SUM($D253:L253)+$B253/$C253)>$B253,$B253-SUM($D253:L253),$B253/$C253) -> 441.2859023 | N253: =IF((SUM($D253:M253)+$B253/$C253)>$B253,$B253-SUM($D253:M253),$B253/$C253) -> 0 | O253: =IF((SUM($D253:N253)+$B253/$C253)>$B253,$B253-SUM($D253:N253),$B253/$C253) -> 0 | P253: =IF((SUM($D253:O253)+$B253/$C253)>$B253,$B253-SUM($D253:O253),$B253/$C253) -> 0 | Q253: =IF((SUM($D253:P253)+$B253/$C253)>$B253,$B253-SUM($D253:P253),$B253/$C253) -> 0 | R253: =IF((SUM($D253:Q253)+$B253/$C253)>$B253,$B253-SUM($D253:Q253),$B253/$C253) -> 0 | S253: =IF((SUM($D253:R253)+$B253/$C253)>$B253,$B253-SUM($D253:R253),$B253/$C253) -> 0 | T253: =IF((SUM($D253:S253)+$B253/$C253)>$B253,$B253-SUM($D253:S253),$B253/$C253) -> 0 | U253: =IF((SUM($D253:T253)+$B253/$C253)>$B253,$B253-SUM($D253:T253),$B253/$C253) -> 0 | V253: =IF((SUM($D253:U253)+$B253/$C253)>$B253,$B253-SUM($D253:U253),$B253/$C253) -> 0 | W253: =IF((SUM($D253:V253)+$B253/$C253)>$B253,$B253-SUM($D253:V253),$B253/$C253) -> 0 | X253: =IF((SUM($D253:W253)+$B253/$C253)>$B253,$B253-SUM($D253:W253),$B253/$C253) -> 0 | Y253: =IF((SUM($D253:X253)+$B253/$C253)>$B253,$B253-SUM($D253:X253),$B253/$C253) -> 0 | Z253: =IF((SUM($D253:Y253)+$B253/$C253)>$B253,$B253-SUM($D253:Y253),$B253/$C253) -> 0 | AA253: =IF((SUM($D253:Z253)+$B253/$C253)>$B253,$B253-SUM($D253:Z253),$B253/$C253) -> 0
A254: 2012 | B254: =G$185 -> 2433.386834 | C254: ='Data 2009-15 (Real $2008)'!C$157 -> 7 | G254: =IF($C254=1,$B254,$B254/2/$C254) -> 173.8133453 | H254: =IF((SUM($D254:G254)+$B254/$C254)>$B254,$B254-SUM($D254:G254),$B254/$C254) -> 347.6266905 | I254: =IF((SUM($D254:H254)+$B254/$C254)>$B254,$B254-SUM($D254:H254),$B254/$C254) -> 347.6266905 | J254: =IF((SUM($D254:I254)+$B254/$C254)>$B254,$B254-SUM($D254:I254),$B254/$C254) -> 347.6266905 | K254: =IF((SUM($D254:J254)+$B254/$C254)>$B254,$B254-SUM($D254:J254),$B254/$C254) -> 347.6266905 | L254: =IF((SUM($D254:K254)+$B254/$C254)>$B254,$B254-SUM($D254:K254),$B254/$C254) -> 347.6266905 | M254: =IF((SUM($D254:L254)+$B254/$C254)>$B254,$B254-SUM($D254:L254),$B254/$C254) -> 347.6266905 | N254: =IF((SUM($D254:M254)+$B254/$C254)>$B254,$B254-SUM($D254:M254),$B254/$C254) -> 173.8133453 | O254: =IF((SUM($D254:N254)+$B254/$C254)>$B254,$B254-SUM($D254:N254),$B254/$C254) -> 0 | P254: =IF((SUM($D254:O254)+$B254/$C254)>$B254,$B254-SUM($D254:O254),$B254/$C254) -> 0 | Q254: =IF((SUM($D254:P254)+$B254/$C254)>$B254,$B254-SUM($D254:P254),$B254/$C254) -> 0 | R254: =IF((SUM($D254:Q254)+$B254/$C254)>$B254,$B254-SUM($D254:Q254),$B254/$C254) -> 0 | S254: =IF((SUM($D254:R254)+$B254/$C254)>$B254,$B254-SUM($D254:R254),$B254/$C254) -> 0 | T254: =IF((SUM($D254:S254)+$B254/$C254)>$B254,$B254-SUM($D254:S254),$B254/$C254) -> 0 | U254: =IF((SUM($D254:T254)+$B254/$C254)>$B254,$B254-SUM($D254:T254),$B254/$C254) -> 0 | V254: =IF((SUM($D254:U254)+$B254/$C254)>$B254,$B254-SUM($D254:U254),$B254/$C254) -> 0 | W254: =IF((SUM($D254:V254)+$B254/$C254)>$B254,$B254-SUM($D254:V254),$B254/$C254) -> 0 | X254: =IF((SUM($D254:W254)+$B254/$C254)>$B254,$B254-SUM($D254:W254),$B254/$C254) -> 0 | Y254: =IF((SUM($D254:X254)+$B254/$C254)>$B254,$B254-SUM($D254:X254),$B254/$C254) -> 0 | Z254: =IF((SUM($D254:Y254)+$B254/$C254)>$B254,$B254-SUM($D254:Y254),$B254/$C254) -> 0 | AA254: =IF((SUM($D254:Z254)+$B254/$C254)>$B254,$B254-SUM($D254:Z254),$B254/$C254) -> 0
A255: 2013 | B255: =H$185 -> 387.5712475 | C255: ='Data 2009-15 (Real $2008)'!C$157 -> 7 | H255: =IF($C255=1,$B255,$B255/2/$C255) -> 27.68366054 | I255: =IF((SUM($D255:H255)+$B255/$C255)>$B255,$B255-SUM($D255:H255),$B255/$C255) -> 55.36732107 | J255: =IF((SUM($D255:I255)+$B255/$C255)>$B255,$B255-SUM($D255:I255),$B255/$C255) -> 55.36732107 | K255: =IF((SUM($D255:J255)+$B255/$C255)>$B255,$B255-SUM($D255:J255),$B255/$C255) -> 55.36732107 | L255: =IF((SUM($D255:K255)+$B255/$C255)>$B255,$B255-SUM($D255:K255),$B255/$C255) -> 55.36732107 | M255: =IF((SUM($D255:L255)+$B255/$C255)>$B255,$B255-SUM($D255:L255),$B255/$C255) -> 55.36732107 | N255: =IF((SUM($D255:M255)+$B255/$C255)>$B255,$B255-SUM($D255:M255),$B255/$C255) -> 55.36732107 | O255: =IF((SUM($D255:N255)+$B255/$C255)>$B255,$B255-SUM($D255:N255),$B255/$C255) -> 27.68366054 | P255: =IF((SUM($D255:O255)+$B255/$C255)>$B255,$B255-SUM($D255:O255),$B255/$C255) -> 0 | Q255: =IF((SUM($D255:P255)+$B255/$C255)>$B255,$B255-SUM($D255:P255),$B255/$C255) -> 0 | R255: =IF((SUM($D255:Q255)+$B255/$C255)>$B255,$B255-SUM($D255:Q255),$B255/$C255) -> 0 | S255: =IF((SUM($D255:R255)+$B255/$C255)>$B255,$B255-SUM($D255:R255),$B255/$C255) -> 0 | T255: =IF((SUM($D255:S255)+$B255/$C255)>$B255,$B255-SUM($D255:S255),$B255/$C255) -> 0 | U255: =IF((SUM($D255:T255)+$B255/$C255)>$B255,$B255-SUM($D255:T255),$B255/$C255) -> 0 | V255: =IF((SUM($D255:U255)+$B255/$C255)>$B255,$B255-SUM($D255:U255),$B255/$C255) -> 0 | W255: =IF((SUM($D255:V255)+$B255/$C255)>$B255,$B255-SUM($D255:V255),$B255/$C255) -> 0 | X255: =IF((SUM($D255:W255)+$B255/$C255)>$B255,$B255-SUM($D255:W255),$B255/$C255) -> 0 | Y255: =IF((SUM($D255:X255)+$B255/$C255)>$B255,$B255-SUM($D255:X255),$B255/$C255) -> 0 | Z255: =IF((SUM($D255:Y255)+$B255/$C255)>$B255,$B255-SUM($D255:Y255),$B255/$C255) -> 0 | AA255: =IF((SUM($D255:Z255)+$B255/$C255)>$B255,$B255-SUM($D255:Z255),$B255/$C255) -> 0
A256: 2014 | B256: =I$185 -> 1878.757338 | C256: ='Data 2009-15 (Real $2008)'!C$157 -> 7 | I256: =IF($C256=1,$B256,$B256/2/$C256) -> 134.1969527 | J256: =IF((SUM($D256:I256)+$B256/$C256)>$B256,$B256-SUM($D256:I256),$B256/$C256) -> 268.3939054 | K256: =IF((SUM($D256:J256)+$B256/$C256)>$B256,$B256-SUM($D256:J256),$B256/$C256) -> 268.3939054 | L256: =IF((SUM($D256:K256)+$B256/$C256)>$B256,$B256-SUM($D256:K256),$B256/$C256) -> 268.3939054 | M256: =IF((SUM($D256:L256)+$B256/$C256)>$B256,$B256-SUM($D256:L256),$B256/$C256) -> 268.3939054 | N256: =IF((SUM($D256:M256)+$B256/$C256)>$B256,$B256-SUM($D256:M256),$B256/$C256) -> 268.3939054 | O256: =IF((SUM($D256:N256)+$B256/$C256)>$B256,$B256-SUM($D256:N256),$B256/$C256) -> 268.3939054 | P256: =IF((SUM($D256:O256)+$B256/$C256)>$B256,$B256-SUM($D256:O256),$B256/$C256) -> 134.1969527 | Q256: =IF((SUM($D256:P256)+$B256/$C256)>$B256,$B256-SUM($D256:P256),$B256/$C256) -> 0 | R256: =IF((SUM($D256:Q256)+$B256/$C256)>$B256,$B256-SUM($D256:Q256),$B256/$C256) -> 0 | S256: =IF((SUM($D256:R256)+$B256/$C256)>$B256,$B256-SUM($D256:R256),$B256/$C256) -> 0 | T256: =IF((SUM($D256:S256)+$B256/$C256)>$B256,$B256-SUM($D256:S256),$B256/$C256) -> 0 | U256: =IF((SUM($D256:T256)+$B256/$C256)>$B256,$B256-SUM($D256:T256),$B256/$C256) -> 0 | V256: =IF((SUM($D256:U256)+$B256/$C256)>$B256,$B256-SUM($D256:U256),$B256/$C256) -> 0 | W256: =IF((SUM($D256:V256)+$B256/$C256)>$B256,$B256-SUM($D256:V256),$B256/$C256) -> 0 | X256: =IF((SUM($D256:W256)+$B256/$C256)>$B256,$B256-SUM($D256:W256),$B256/$C256) -> 0 | Y256: =IF((SUM($D256:X256)+$B256/$C256)>$B256,$B256-SUM($D256:X256),$B256/$C256) -> 0 | Z256: =IF((SUM($D256:Y256)+$B256/$C256)>$B256,$B256-SUM($D256:Y256),$B256/$C256) -> 0 | AA256: =IF((SUM($D256:Z256)+$B256/$C256)>$B256,$B256-SUM($D256:Z256),$B256/$C256) -> 0
A257: 2015 | B257: =J$185 -> 0 | C257: ='Data 2009-15 (Real $2008)'!C$157 -> 7 | J257: =IF($C257=1,$B257,$B257/2/$C257) -> 0 | K257: =IF((SUM($D257:J257)+$B257/$C257)>$B257,$B257-SUM($D257:J257),$B257/$C257) -> 0 | L257: =IF((SUM($D257:K257)+$B257/$C257)>$B257,$B257-SUM($D257:K257),$B257/$C257) -> 0 | M257: =IF((SUM($D257:L257)+$B257/$C257)>$B257,$B257-SUM($D257:L257),$B257/$C257) -> 0 | N257: =IF((SUM($D257:M257)+$B257/$C257)>$B257,$B257-SUM($D257:M257),$B257/$C257) -> 0 | O257: =IF((SUM($D257:N257)+$B257/$C257)>$B257,$B257-SUM($D257:N257),$B257/$C257) -> 0 | P257: =IF((SUM($D257:O257)+$B257/$C257)>$B257,$B257-SUM($D257:O257),$B257/$C257) -> 0 | Q257: =IF((SUM($D257:P257)+$B257/$C257)>$B257,$B257-SUM($D257:P257),$B257/$C257) -> 0 | R257: =IF((SUM($D257:Q257)+$B257/$C257)>$B257,$B257-SUM($D257:Q257),$B257/$C257) -> 0 | S257: =IF((SUM($D257:R257)+$B257/$C257)>$B257,$B257-SUM($D257:R257),$B257/$C257) -> 0 | T257: =IF((SUM($D257:S257)+$B257/$C257)>$B257,$B257-SUM($D257:S257),$B257/$C257) -> 0 | U257: =IF((SUM($D257:T257)+$B257/$C257)>$B257,$B257-SUM($D257:T257),$B257/$C257) -> 0 | V257: =IF((SUM($D257:U257)+$B257/$C257)>$B257,$B257-SUM($D257:U257),$B257/$C257) -> 0 | W257: =IF((SUM($D257:V257)+$B257/$C257)>$B257,$B257-SUM($D257:V257),$B257/$C257) -> 0 | X257: =IF((SUM($D257:W257)+$B257/$C257)>$B257,$B257-SUM($D257:W257),$B257/$C257) -> 0 | Y257: =IF((SUM($D257:X257)+$B257/$C257)>$B257,$B257-SUM($D257:X257),$B257/$C257) -> 0 | Z257: =IF((SUM($D257:Y257)+$B257/$C257)>$B257,$B257-SUM($D257:Y257),$B257/$C257) -> 0 | AA257: =IF((SUM($D257:Z257)+$B257/$C257)>$B257,$B257-SUM($D257:Z257),$B257/$C257) -> 0
... 2 more rows

Sheet Offset of Costs and Rev 2006-08
A1: ='Data 2006-08'!$A$1 -> Jemena | D1: 2006 | E1: 2007 | F1: 2008 | G1: 2009 | H1: 2010 | I1: 2011 | J1: 2012 | K1: 2013
D3: 2006 | E3: 2007 | F3: 2008 | G3: 2009 | H3: 2010 | I3: 2011 | J3: 2012 | K3: 2013
A4: Inflation | D4: ='Data 2006-08'!D155 -> 0.03026134801 | E4: ='Data 2006-08'!E155 -> 0.0393858478 | F4: ='Data 2006-08'!F155 -> 0.01862556198 | G4: ='Data 2009-15 (Real $2008)'!D144 -> 0.04981084489 | H4: ='Data 2009-15 (Real $2008)'!E144 -> 0.01261261261 | I4: ='Data 2009-15 (Real $2008)'!F144 -> 0.02787663108 | J4: ='Data 2009-15 (Real $2008)'!G144 -> 0.03519907675 | K4: ='Data 2009-15 (Real $2008)'!H144 -> 0.02004008016
A5: ='Data 2006-08'!A141 -> 'Vanilla' after tax WACC (real) | D5: ='Data 2006-08'!$C$141 -> 0.059 | E5: ='Data 2006-08'!$C$141 -> 0.059 | F5: ='Data 2006-08'!$C$141 -> 0.059 | G5: ='AMI Building Blocks 2009-15'!$C$18 -> 0.06771645866 | H5: ='AMI Building Blocks 2009-15'!$C$18 -> 0.06771645866 | I5: ='AMI Building Blocks 2009-15'!$C$18 -> 0.06771645866 | J5: ='AMI Building Blocks 2009-15'!$C$18 -> 0.06771645866 | K5: ='AMI Building Blocks 2009-15'!$C$18 -> 0.06771645866
A6: Vanilla' after tax WACC (Nominal) | D6: =(1+D4)*(1+D5)-1 -> 0.09104676754 | E6: 0.1007096128 | F6: 0.07872447013 | G6: 0.1209003176 | H6: 0.08118315273 | I6: 0.09748079647 | J6: 0.1052990922 | K6: 0.08911358208
A10: Offset of costs and revenue 2006-08 | D10: 2006 | E10: 2007 | F10: 2008 | G10: 2009 | H10: 2010 | I10: 2011 | J10: 2012 | K10: 2013
A11: ($000 Nominal)
A12: Prescribed Metering offset | D12: =D73 -> -967.3366141 | E12: =E73 -> -508.3803459 | F12: =F73 -> -1047.532733
A13: Duos Tax Offset | D13: =D36 -> 118.2662862 | E13: =E36 -> 454.8565464 | F13: =F36 -> 531.0430956 | G13: =G36 -> 558.054181 | H13: =H36 -> 412.7248181
A14: Efficiency Carry-over | D14: =D65 -> 1513.863546 | E14: =E65 -> 1425.409274 | F14: 1263.041457 | G14: 1325.954619 | H14: 1342.678371 | I14: 1380.10772 | J14: -384.3118945 | K14: -217.9752699
A15: AMI O & M costs | D15: ='Data 2006-08'!D115/10^3 -> 0 | E15: ='Data 2006-08'!E115/10^3 -> 0 | F15: ='Data 2006-08'!F115/10^3 -> 0
A16: Total | D16: =SUM(D12:D15) -> 664.7932185 | E16: 1371.885474 | F16: 746.551819 | G16: 1884.0088 | H16: 1755.403189 | I16: 1380.10772 | J16: -384.3118945 | K16: -217.9752699
A18: WACC adjustment factor (time value of money) | D18: =E18*(1+E6) -> 1.330914884 | E18: =F18*(1+F6) -> 1.209142601 | F18: =G18*(1+G6) -> 1.120900318 | G18: 1 | H18: =G18/(1+H6) -> 0.9249126732 | I18: =H18/(1+I6) -> 0.8427597787 | J18: =I18/(1+J6) -> 0.7624721531 | K18: =J18/(1+K6) -> 0.7000850652
A20: Total Offset of costs and revenue 2006-08 (WACC adjusted) | G20: =SUMPRODUCT(D16:K16,D18:K18) -> 7605.472915
A24: Duos Tax Offset : EDPR 2006-10 | D24: 2006 | E24: 2007 | F24: 2008 | G24: 2009 | H24: 2010
A25: ($000 Real 2004)
A26: Metering Taxable loss | D26: =-IF('Data 2006-08'!D184>0,0,'Data 2006-08'!D184/'Data 2006-08'!D185/10^3) -> 635.7273421 | E26: =-IF('Data 2006-08'!E184>0,0,'Data 2006-08'!E184/'Data 2006-08'!E185/10^3) -> 2352.380559 | F26: =-IF('Data 2006-08'!F184>0,0,'Data 2006-08'!F184/'Data 2006-08'!F185/10^3) -> 2696.176558 | G26: =-IF('Data 2006-08'!G184>0,0,'Data 2006-08'!G184/'Data 2006-08'!G185/10^3) -> 2698.881852 | H26: =-IF('Data 2006-08'!H184>0,0,'Data 2006-08'!H184/'Data 2006-08'!H185/10^3) -> 1971.173078
A27: Cost of Tax | D27: =D26*'Data 2006-08'!$C$169/(1-'Data 2006-08'!$C$169*(1-'Data 2006-08'!$C$170)) -> 224.374356 | E27: =E26*'Data 2006-08'!$C$169/(1-'Data 2006-08'!$C$169*(1-'Data 2006-08'!$C$170)) -> 830.251962 | F27: =F26*'Data 2006-08'!$C$169/(1-'Data 2006-08'!$C$169*(1-'Data 2006-08'!$C$170)) -> 951.5917262 | G27: =G26*'Data 2006-08'!$C$169/(1-'Data 2006-08'!$C$169*(1-'Data 2006-08'!$C$170)) -> 952.546536 | H27: =H26*'Data 2006-08'!$C$169/(1-'Data 2006-08'!$C$169*(1-'Data 2006-08'!$C$170)) -> 695.7081453
A28: Franking benefit | D28: =D27*'Data 2006-08'!$C$170 -> 112.187178 | E28: =E27*'Data 2006-08'!$C$170 -> 415.125981 | F28: =F27*'Data 2006-08'!$C$170 -> 475.7958631 | G28: =G27*'Data 2006-08'!$C$170 -> 476.273268 | H28: =H27*'Data 2006-08'!$C$170 -> 347.8540727
A29: Duos tax offset | D29: =D27-D28 -> 112.187178 | E29: =E27-E28 -> 415.125981 | F29: =F27-F28 -> 475.7958631 | G29: =G27-G28 -> 476.273268 | H29: =H27-H28 -> 347.8540727
A31: Duos tax offset
A32: ($000 Real 2008) | D32: =D29*'Data 2006-08'!$B$156 -> 125.2138384 | E32: =E29*'Data 2006-08'!$B$156 -> 463.3285052 | F32: =F29*'Data 2006-08'!$B$156 -> 531.0430956 | G32: =G29*'Data 2006-08'!$B$156 -> 531.5759346 | H32: =H29*'Data 2006-08'!$B$156 -> 388.2452915
A35: Duos tax offset | D35: 2006 | E35: 2007 | F35: 2008 | G35: 2009 | H35: 2010
A36: ($000 Nominal) | D36: =D32/'Data 2006-08'!D156 -> 118.2662862 | E36: =E32/'Data 2006-08'!E156 -> 454.8565464 | F36: =F32/'Data 2006-08'!F156 -> 531.0430956 | G36: =G32*'Data 2009-15 (Real $2008)'!D145 -> 558.054181 | H36: =H32*'Data 2009-15 (Real $2008)'!E145 -> 412.7248181
A40: Efficiency Carry-over | D40: 2006 | E40: 2007 | F40: 2008 | G40: 2009 | H40: 2010 | I40: 2011 | J40: 2012 | K40: 2013
A41: ($000 Real 2008)
A42: Benchmark costs (adjusted for actual quantities)
A43: Meter maintenance | D43: ='Data 2006-08'!D205*'Data 2006-08'!D59*'Data 2006-08'!$B$156/10^3 -> 669.7730975 | E43: ='Data 2006-08'!E205*'Data 2006-08'!E59*'Data 2006-08'!$B$156/10^3 -> 716.8662093 | F43: ='Data 2006-08'!F205*'Data 2006-08'!F59*'Data 2006-08'!$B$156/10^3 -> 760.9853766
A44: Metering data services | D44: =((('Data 2006-08'!D208*12+'Data 2006-08'!D210)*'Data 2006-08'!D63+('Data 2006-08'!D208*4+'Data 2006-08'!D210)*'Data 2006-08'!D64)+(('Data 2006-08'!D209*12+'Data 2006-08'!D211)*'Data 2006-08'!D65+('Data 2006-08'!D209*4+'Data 2006-08'!D211)*'Data 2006-08'!D66))*'Data 2006-08'!$B$156/10^3 -> 2516.774849 | E44: =((('Data 2006-08'!E208*12+'Data 2006-08'!E210)*'Data 2006-08'!E63+('Data 2006-08'!E208*4+'Data 2006-08'!E210)*'Data 2006-08'!E64)+(('Data 2006-08'!E209*12+'Data 2006-08'!E211)*'Data 2006-08'!E65+('Data 2006-08'!E209*4+'Data 2006-08'!E211)*'Data 2006-08'!E66))*'Data 2006-08'!$B$156/10^3 -> 2588.351219 | F44: =((('Data 2006-08'!F208*12+'Data 2006-08'!F210)*'Data 2006-08'!F63+('Data 2006-08'!F208*4+'Data 2006-08'!F210)*'Data 2006-08'!F64)+(('Data 2006-08'!F209*12+'Data 2006-08'!F211)*'Data 2006-08'!F65+('Data 2006-08'!F209*4+'Data 2006-08'!F211)*'Data 2006-08'!F66))*'Data 2006-08'!$B$156/10^3 -> 2640.68308
A45: Customer services (meter replacements) | D45: ='Data 2006-08'!D213*'Data 2006-08'!D69*'Data 2006-08'!$B$156/10^3*(1-'Data 2006-08'!D51) -> 0 | E45: ='Data 2006-08'!E213*'Data 2006-08'!E69*'Data 2006-08'!$B$156/10^3*(1-'Data 2006-08'!E51) -> 0 | F45: ='Data 2006-08'!F213*'Data 2006-08'!F69*'Data 2006-08'!$B$156/10^3*(1-'Data 2006-08'!F51) -> 0
D46: =SUM(D43:D45) -> 3186.547946 | E46: =SUM(E43:E45) -> 3305.217428 | F46: =SUM(F43:F45) -> 3401.668457
A48: Actual costs
A49: Meter maintenance | D49: ='Data 2006-08'!D40*'Data 2006-08'!D156/10^3 -> 508.1975968 | E49: ='Data 2006-08'!E40*'Data 2006-08'!E156/10^3 -> 405.1980437 | F49: ='Data 2006-08'!F40*'Data 2006-08'!F156/10^3 -> 522.383
A50: Metering data services | D50: ='Data 2006-08'!D45*'Data 2006-08'!D156/10^3 -> 1075.554899 | E50: ='Data 2006-08'!E45*'Data 2006-08'!E156/10^3 -> 1448.061062 | F50: ='Data 2006-08'!F45*'Data 2006-08'!F156/10^3 -> 1616.244
A51: Customer services (meter replacements) | D51: ='Data 2006-08'!D46*'Data 2006-08'!D156/10^3 -> 0 | E51: ='Data 2006-08'!E46*'Data 2006-08'!E156/10^3 -> 0 | F51: ='Data 2006-08'!F46*'Data 2006-08'!F156/10^3 -> 0
D52: =SUM(D49:D51) -> 1583.752496 | E52: =SUM(E49:E51) -> 1853.259106 | F52: =SUM(F49:F51) -> 2138.627
A54: Underspend\(Overspend) | D54: =D46-D52 -> 1602.79545 | E54: =E46-E52 -> 1451.958322 | F54: =F46-F52 -> 1263.041457
A55: Incremental gain | D55: =D54 -> 1602.79545 | E55: =E54-D54 -> -150.837128 | F55: =F54-E54 -> -188.9168657
A57: Efficiency
A58: 2006 | D58: =$D55 -> 1602.79545 | E58: 1602.79545 | F58: 1602.79545 | G58: 1602.79545 | H58: 1602.79545 | I58: 1602.79545
A59: 2007 | E59: =$E55 -> -150.837128 | F59: -150.837128 | G59: -150.837128 | H59: -150.837128 | I59: -150.837128 | J59: -150.837128
A60: 2008 | F60: =$F55 -> -188.9168657 | G60: -188.9168657 | H60: -188.9168657 | I60: -188.9168657 | J60: -188.9168657 | K60: -188.9168657
D61: =SUM(D58:D60) -> 1602.79545 | E61: =SUM(E58:E60) -> 1451.958322 | F61: 1263.041457 | G61: 1263.041457 | H61: 1263.041457 | I61: 1263.041457 | J61: -339.7539937 | K61: -188.9168657
A64: Efficiency Carry-over | D64: 2006 | E64: 2007 | F64: 2008 | G64: 2009 | H64: 2010 | I64: 2011 | J64: 2012 | K64: 2013
A65: ($000 Nominal) | D65: =D61/'Data 2006-08'!D156 -> 1513.863546 | E65: =E61/'Data 2006-08'!E156 -> 1425.409274 | F65: =F61/'Data 2006-08'!F156 -> 1263.041457 | G65: =G61*'Data 2009-15 (Real $2008)'!D145 -> 1325.954619 | H65: =H61*'Data 2009-15 (Real $2008)'!E145 -> 1342.678371 | I65: =I61*'Data 2009-15 (Real $2008)'!F145 -> 1380.10772 | J65: =J61*'Data 2009-15 (Real $2008)'!F145*(1+J4) -> -384.3118945 | K65: =K61*'Data 2009-15 (Real $2008)'!F145*(1+J4)*(1+K4) -> -217.9752699
A69: Prescribed Metering offset | D69: 2006 | E69: 2007 | F69: 2008
A70: ($000 Nominal)
A71: Tariff Revenue | D71: =-'Data 2006-08'!D75/10^3 -> -5642.414 | E71: =-'Data 2006-08'!E75/10^3 -> -7072.768 | F71: =-'Data 2006-08'!F75/10^3 -> -8841.231851
A72: Prescribed Metering costs | D72: =D84/'Data 2006-08'!D156 -> 4675.077386 | E72: =E84/'Data 2006-08'!E156 -> 6564.387654 | F72: =F84/'Data 2006-08'!F156 -> 7793.699118
A73: Net offset | D73: =SUM(D71:D72) -> -967.3366141 | E73: =SUM(E71:E72) -> -508.3803459 | F73: =SUM(F71:F72) -> -1047.532733
A78: Prescribed Metering costs
A79: ($000 Real 2008) | D79: 2006 | E79: 2007 | F79: 2008
A80: Return on assets | D80: =D185*'Data 2006-08'!$C$141 -> 162.4452323 | E80: =E185*'Data 2006-08'!$C$141 -> 436.1984785 | F80: =F185*'Data 2006-08'!$C$141 -> 659.4810591
A81: Regulatory depreciation | D81: =D182 -> 85.61768681 | E81: =E182 -> 227.002807 | F81: =F182 -> 340.4340586
A82: O&M expenditure | D82: ='Data 2006-08'!D50*'Data 2006-08'!D$156/10^3 -> 4679.257959 | E82: ='Data 2006-08'!E50*'Data 2006-08'!E$156/10^3 -> 6023.451778 | F82: ='Data 2006-08'!F50*'Data 2006-08'!F$156/10^3 -> 6793.784
A83: Tax liability | D83: =D114 -> 22.39389805 | E83: =E114 -> 0 | F83: =F114 -> 0
D84: =SUM(D80:D83) -> 4949.714776 | E84: =SUM(E80:E83) -> 6686.653063 | F84: =SUM(F80:F83) -> 7793.699118
A88: TAXATION CALCULATION
D89: 2006 | E89: 2007 | F89: 2008
A90: Cost of debt (nominal) | D90: =('Data 2006-08'!$C$138+1)*('Data 2006-08'!D155+1)-1 -> 0.0721414718 | E90: =('Data 2006-08'!$C$138+1)*('Data 2006-08'!E155+1)-1 -> 0.08163688251 | F90: =('Data 2006-08'!$C$138+1)*('Data 2006-08'!F155+1)-1 -> 0.06003269107
A91: ="Average RAB "&A79&"" -> Average RAB ($000 Real 2008) | D91: =D185 -> 2753.309022 | E91: =E185 -> 7393.19455 | F91: =F185 -> 11177.64507
A92: ="Debt ("&D96*100&"% of RAB)" -> Debt (60% of RAB) | D92: =$D$96*D91 -> 1651.985413 | E92: =$D$96*E91 -> 4435.91673 | F92: =$D$96*F91 -> 6706.587042
A93: Inflation factor | D93: =1/'Data 2006-08'!D156 -> 0.9445145019 | E93: =1/'Data 2006-08'!E156 -> 0.9817150063 | F93: =1/'Data 2006-08'!F156 -> 1
A95: Tax rate | D95: ='Data 2006-08'!C169 -> 0.3
A96: Gearing | D96: ='Data 2006-08'!C171 -> 0.6
A97: Franking credit value | D97: ='Data 2006-08'!C170 -> 0.5
A99: ($000 MOD) | D99: 2006 | E99: 2007 | F99: 2008
A100: Tariff Revenue | D100: ='Data 2006-08'!D75/10^3 -> 5642.414 | E100: ='Data 2006-08'!E75/10^3 -> 7072.768 | F100: ='Data 2006-08'!F75/10^3 -> 8841.231851
A101: Customer contributions | D101: ='Data 2006-08'!D28/10^3 -> 0 | E101: ='Data 2006-08'!E28/10^3 -> 0 | F101: ='Data 2006-08'!F28/10^3 -> 0
A102: Operating & maintenance expenditure | D102: ='Data 2006-08'!D50/10^3 -> 4419.627 | E102: ='Data 2006-08'!E50/10^3 -> 5913.313 | F102: ='Data 2006-08'!F50/10^3 -> 6793.784
A103: Tax depreciation | D103: =D278 -> 990.3652022 | E103: =E278 -> 2345.65839 | F103: =F278 -> 2977.885572
A104: Interest | D104: =D92*D93*D90 -> 112.5640828 | E104: =E92*E93*E90 -> 355.5127875 | F104: =F92*F93*F90 -> 402.614468
A105: Tax losses brought forward | D105: 0 | E105: =IF(D106<0,-D106,0) -> 0 | F105: =IF(E106<0,-E106,0) -> 1541.716178
A106: After tax net income | D106: =SUM(D100:D101)-SUM(D102:D105) -> 119.857715 | E106: =SUM(E100:E101)-SUM(E102:E105) -> -1541.716178 | F106: =SUM(F100:F101)-SUM(F102:F105) -> -2874.768366
A107: Cost of tax | D107: =IF(D106<0,0,D106*$D$95/(1-$D$95*(1-$D$97))) -> 42.30272293 | E107: =IF(E106<0,0,E106*$D$95/(1-$D$95*(1-$D$97))) -> 0 | F107: =IF(F106<0,0,F106*$D$95/(1-$D$95*(1-$D$97))) -> 0
A108: Franking benefit | D108: =D107*$D$97 -> 21.15136147 | E108: =E107*$D$97 -> 0 | F108: =F107*$D$97 -> 0
A109: Tax liability ($000 MOD) | D109: =D107-D108 -> 21.15136147 | E109: =E107-E108 -> 0 | F109: =F107-F108 -> 0
A111: =$A$79 -> ($000 Real 2008) | D111: 2006 | E111: 2007 | F111: 2008
A112: Cost of tax | D112: =D107/D$93 -> 44.78779611 | E112: 0 | F112: 0
A113: Franking benefit | D113: 22.39389805 | E113: 0 | F113: 0
A114: ="Tax liability "&A79&"" -> Tax liability ($000 Real 2008) | D114: =D112-D113 -> 22.39389805 | E114: =E112-E113 -> 0 | F114: =F112-F113 -> 0
A119: CAPITAL EXPENDITURE - METERING SERVICES
A120: =$A$79 -> ($000 Real 2008) | D120: 2006 | E120: 2007 | F120: 2008
A122: Accumulation meters | D122: ='Data 2006-08'!D10*'Data 2006-08'!D$156/10^3 -> 5173.175992 | E122: ='Data 2006-08'!E10*'Data 2006-08'!E$156/10^3 -> 3846.409538 | F122: ='Data 2006-08'!F10*'Data 2006-08'!F$156/10^3 -> 3977.207623
A123: Manually read interval meters | D123: ='Data 2006-08'!D11*'Data 2006-08'!D$156/10^3 -> 419.0597383 | E123: ='Data 2006-08'!E11*'Data 2006-08'!E$156/10^3 -> 153.7462819 | F123: ='Data 2006-08'!F11*'Data 2006-08'!F$156/10^3 -> 158.9744613
A124: Customer contributions | D124: ='Data 2006-08'!D28*'Data 2006-08'!D$156/10^3 -> 0 | E124: ='Data 2006-08'!E28*'Data 2006-08'!E$156/10^3 -> 0 | F124: ='Data 2006-08'!F28*'Data 2006-08'!F$156/10^3 -> 0
A125: Total metering (net of customer contributions) | D125: =D122+D123-D124 -> 5592.23573 | E125: =E122+E123-E124 -> 4000.15582 | F125: =F122+F123-F124 -> 4136.182084
A127: Metering Data Services (IT) | D127: ='Data 2006-08'!D12*'Data 2006-08'!D$156/10^3 -> 0 | E127: ='Data 2006-08'!E12*'Data 2006-08'!E$156/10^3 -> 0 | F127: ='Data 2006-08'!F12*'Data 2006-08'!F$156/10^3 -> 0
